Workbook

Sheet ProjectInformation
A1: CPN DATA
A2: INFORMATION ADDED BY DESIGNER
A3: Section Engineer | B3: Flattery
A4: Design Team | B4: Johnson
A6: County | B6: TAMA
A7: Project Number | B7: NHSX-030-6(189)--3H-86
A8: English or Metric | B8: ENGLISH
A9: Revised
A10: Bridge Block
A11: File No.

Sheet PrintSheets
B94: FILE NO. | I94: =IF(ProjectInformation!$B$11<>"",ProjectInformation!$B$11,"") ->  | P94: =UPPER(ProjectInformation!B8) -> ENGLISH | W94: DESIGN TEAM | AF94: =IF(AND(ProjectInformation!$B$3<>"",ProjectInformation!$B$4<>"",ProjectInformation!$B$5<>""),ProjectInformation!$B$3&"\"&ProjectInformation!$B$4&"\"&ProjectInformation!$B$5,IF(AND(ProjectInformation!$B$3<>"",ProjectInformation!$B$4<>""),ProjectInformation!$B$3&"\"&ProjectInformation!$B$4,IF(ProjectInformation!$B$3<>"",ProjectInformation!$B$3,""))) -> Flattery\Johnson | BN94: =IF(ProjectInformation!$B$6<>"",ProjectInformation!$B$6,"") -> TAMA | CX94: COUNTY | DD94: PROJECT NUMBER | DP94: =IF(ProjectInformation!$B$7<>"",ProjectInformation!$B$7,"") -> NHSX-030-6(189)--3H-86 | ET94: SHEET NUMBER | FD94: C.1 | FJ94: =IF(FP94<>"","REVISED","") ->  | FP94: =IF(ProjectInformation!$B$9<>"",ProjectInformation!$B$9,"") -> 
B95: 12/12/2017 3:10:38 PM pflatte c:\pw_work\pwmain\pflatte\d0569206\86030189_C01.xlsm | DD95: Changed By Addenda
B189: FILE NO. | I189: =IF(ProjectInformation!$B$11<>"",ProjectInformation!$B$11,"") ->  | P189: =UPPER(ProjectInformation!B8) -> ENGLISH | W189: DESIGN TEAM | AF189: =IF(AND(ProjectInformation!$B$3<>"",ProjectInformation!$B$4<>"",ProjectInformation!$B$5<>""),ProjectInformation!$B$3&"\"&ProjectInformation!$B$4&"\"&ProjectInformation!$B$5,IF(AND(ProjectInformation!$B$3<>"",ProjectInformation!$B$4<>""),ProjectInformation!$B$3&"\"&ProjectInformation!$B$4,IF(ProjectInformation!$B$3<>"",ProjectInformation!$B$3,""))) -> Flattery\Johnson | BN189: =IF(ProjectInformation!$B$6<>"",ProjectInformation!$B$6,"") -> TAMA | CX189: COUNTY | DD189: PROJECT NUMBER | DP189: =IF(ProjectInformation!$B$7<>"",ProjectInformation!$B$7,"") -> NHSX-030-6(189)--3H-86 | ET189: SHEET NUMBER | FD189: =IF($FD$94<>"","C."& MID(OFFSET($FD$189,-95,0),3,LEN(OFFSET($FD$189,-95,0))-2)+1,"") -> C.2 | FJ189: =IF(FP189<>"","REVISED","") ->  | FP189: =IF(ProjectInformation!$B$9<>"",ProjectInformation!$B$9,"") -> 
B190: 12/12/2017 3:10:49 PM pflatte c:\pw_work\pwmain\pflatte\d0569206\86030189_C01.xlsm | DD190: Changed By Addenda
B284: FILE NO. | I284: =IF(ProjectInformation!$B$11<>"",ProjectInformation!$B$11,"") ->  | P284: =UPPER(ProjectInformation!B8) -> ENGLISH | W284: DESIGN TEAM | AF284: =IF(AND(ProjectInformation!$B$3<>"",ProjectInformation!$B$4<>"",ProjectInformation!$B$5<>""),ProjectInformation!$B$3&"\"&ProjectInformation!$B$4&"\"&ProjectInformation!$B$5,IF(AND(ProjectInformation!$B$3<>"",ProjectInformation!$B$4<>""),ProjectInformation!$B$3&"\"&ProjectInformation!$B$4,IF(ProjectInformation!$B$3<>"",ProjectInformation!$B$3,""))) -> Flattery\Johnson | BN284: =IF(ProjectInformation!$B$6<>"",ProjectInformation!$B$6,"") -> TAMA | CX284: COUNTY | DD284: PROJECT NUMBER | DP284: =IF(ProjectInformation!$B$7<>"",ProjectInformation!$B$7,"") -> NHSX-030-6(189)--3H-86 | ET284: SHEET NUMBER | FD284: =IF($FD$189<>"","C."& MID(OFFSET($FD$284,-95,0),3,LEN(OFFSET($FD$284,-95,0))-2)+1,"") -> C.3 | FJ284: =IF(FP284<>"","REVISED","") ->  | FP284: =IF(ProjectInformation!$B$9<>"",ProjectInformation!$B$9,"") -> 
B285: 12/12/2017 3:11:00 PM pflatte c:\pw_work\pwmain\pflatte\d0569206\86030189_C01.xlsm | DD285: Changed By Addenda
B379: FILE NO. | I379: =IF(ProjectInformation!$B$11<>"",ProjectInformation!$B$11,"") ->  | P379: =UPPER(ProjectInformation!B8) -> ENGLISH | W379: DESIGN TEAM | AF379: =IF(AND(ProjectInformation!$B$3<>"",ProjectInformation!$B$4<>"",ProjectInformation!$B$5<>""),ProjectInformation!$B$3&"\"&ProjectInformation!$B$4&"\"&ProjectInformation!$B$5,IF(AND(ProjectInformation!$B$3<>"",ProjectInformation!$B$4<>""),ProjectInformation!$B$3&"\"&ProjectInformation!$B$4,IF(ProjectInformation!$B$3<>"",ProjectInformation!$B$3,""))) -> Flattery\Johnson | BN379: =IF(ProjectInformation!$B$6<>"",ProjectInformation!$B$6,"") -> TAMA | CX379: COUNTY | DD379: PROJECT NUMBER | DP379: =IF(ProjectInformation!$B$7<>"",ProjectInformation!$B$7,"") -> NHSX-030-6(189)--3H-86 | ET379: SHEET NUMBER | FD379: =IF($FD$284<>"","C."& MID(OFFSET($FD$379,-95,0),3,LEN(OFFSET($FD$379,-95,0))-2)+1,"") -> C.4 | FJ379: =IF(FP379<>"","REVISED","") ->  | FP379: =IF(ProjectInformation!$B$9<>"",ProjectInformation!$B$9,"") -> 
B380: 12/12/2017 3:11:12 PM pflatte c:\pw_work\pwmain\pflatte\d0569206\86030189_C01.xlsm | DD380: Changed By Addenda
B474: FILE NO. | I474: =IF(ProjectInformation!$B$11<>"",ProjectInformation!$B$11,"") ->  | P474: =UPPER(ProjectInformation!B8) -> ENGLISH | W474: DESIGN TEAM | AF474: =IF(AND(ProjectInformation!$B$3<>"",ProjectInformation!$B$4<>"",ProjectInformation!$B$5<>""),ProjectInformation!$B$3&"\"&ProjectInformation!$B$4&"\"&ProjectInformation!$B$5,IF(AND(ProjectInformation!$B$3<>"",ProjectInformation!$B$4<>""),ProjectInformation!$B$3&"\"&ProjectInformation!$B$4,IF(ProjectInformation!$B$3<>"",ProjectInformation!$B$3,""))) -> Flattery\Johnson | BN474: =IF(ProjectInformation!$B$6<>"",ProjectInformation!$B$6,"") -> TAMA | CX474: COUNTY | DD474: PROJECT NUMBER | DP474: =IF(ProjectInformation!$B$7<>"",ProjectInformation!$B$7,"") -> NHSX-030-6(189)--3H-86 | ET474: SHEET NUMBER | FD474: =IF($FD$379<>"","C."& MID(OFFSET($FD$474,-95,0),3,LEN(OFFSET($FD$474,-95,0))-2)+1,"") -> C.5 | FJ474: =IF(FP474<>"","REVISED","") ->  | FP474: =IF(ProjectInformation!$B$9<>"",ProjectInformation!$B$9,"") -> 
B475: 10/2/2017 10:12:42 AM ajohns1 c:\pw_work\pwmain\ajohns1\d0569206\86030189_C01.xlsm
B569: FILE NO. | I569: =IF(ProjectInformation!$B$11<>"",ProjectInformation!$B$11,"") ->  | P569: =UPPER(ProjectInformation!B8) -> ENGLISH | W569: DESIGN TEAM | AF569: =IF(AND(ProjectInformation!$B$3<>"",ProjectInformation!$B$4<>"",ProjectInformation!$B$5<>""),ProjectInformation!$B$3&"\"&ProjectInformation!$B$4&"\"&ProjectInformation!$B$5,IF(AND(ProjectInformation!$B$3<>"",ProjectInformation!$B$4<>""),ProjectInformation!$B$3&"\"&ProjectInformation!$B$4,IF(ProjectInformation!$B$3<>"",ProjectInformation!$B$3,""))) -> Flattery\Johnson | BN569: =IF(ProjectInformation!$B$6<>"",ProjectInformation!$B$6,"") -> TAMA | CX569: COUNTY | DD569: PROJECT NUMBER | DP569: =IF(ProjectInformation!$B$7<>"",ProjectInformation!$B$7,"") -> NHSX-030-6(189)--3H-86 | ET569: SHEET NUMBER | FD569: =IF($FD$474<>"","C."& MID(OFFSET($FD$569,-95,0),3,LEN(OFFSET($FD$569,-95,0))-2)+1,"") -> C.6 | FJ569: =IF(FP569<>"","REVISED","") ->  | FP569: =IF(ProjectInformation!$B$9<>"",ProjectInformation!$B$9,"") -> 
B570: 10/2/2017 10:12:42 AM ajohns1 c:\pw_work\pwmain\ajohns1\d0569206\86030189_C01.xlsm
B664: FILE NO. | I664: =IF(ProjectInformation!$B$11<>"",ProjectInformation!$B$11,"") ->  | P664: =UPPER(ProjectInformation!B8) -> ENGLISH | W664: DESIGN TEAM | AF664: =IF(AND(ProjectInformation!$B$3<>"",ProjectInformation!$B$4<>"",ProjectInformation!$B$5<>""),ProjectInformation!$B$3&"\"&ProjectInformation!$B$4&"\"&ProjectInformation!$B$5,IF(AND(ProjectInformation!$B$3<>"",ProjectInformation!$B$4<>""),ProjectInformation!$B$3&"\"&ProjectInformation!$B$4,IF(ProjectInformation!$B$3<>"",ProjectInformation!$B$3,""))) -> Flattery\Johnson | BN664: =IF(ProjectInformation!$B$6<>"",ProjectInformation!$B$6,"") -> TAMA | CX664: COUNTY | DD664: PROJECT NUMBER | DP664: =IF(ProjectInformation!$B$7<>"",ProjectInformation!$B$7,"") -> NHSX-030-6(189)--3H-86 | ET664: SHEET NUMBER | FD664: =IF($FD$569<>"","C."& MID(OFFSET($FD$664,-95,0),3,LEN(OFFSET($FD$664,-95,0))-2)+1,"") -> C.7 | FJ664: =IF(FP664<>"","REVISED","") ->  | FP664: =IF(ProjectInformation!$B$9<>"",ProjectInformation!$B$9,"") -> 
B665: 10/2/2017 10:12:42 AM ajohns1 c:\pw_work\pwmain\ajohns1\d0569206\86030189_C01.xlsm
B759: FILE NO. | I759: =IF(ProjectInformation!$B$11<>"",ProjectInformation!$B$11,"") ->  | P759: =UPPER(ProjectInformation!B8) -> ENGLISH | W759: DESIGN TEAM | AF759: =IF(AND(ProjectInformation!$B$3<>"",ProjectInformation!$B$4<>"",ProjectInformation!$B$5<>""),ProjectInformation!$B$3&"\"&ProjectInformation!$B$4&"\"&ProjectInformation!$B$5,IF(AND(ProjectInformation!$B$3<>"",ProjectInformation!$B$4<>""),ProjectInformation!$B$3&"\"&ProjectInformation!$B$4,IF(ProjectInformation!$B$3<>"",ProjectInformation!$B$3,""))) -> Flattery\Johnson | BN759: =IF(ProjectInformation!$B$6<>"",ProjectInformation!$B$6,"") -> TAMA | CX759: COUNTY | DD759: PROJECT NUMBER | DP759: =IF(ProjectInformation!$B$7<>"",ProjectInformation!$B$7,"") -> NHSX-030-6(189)--3H-86 | ET759: SHEET NUMBER | FD759: =IF($FD$664<>"","C."& MID(OFFSET($FD$759,-95,0),3,LEN(OFFSET($FD$759,-95,0))-2)+1,"") -> C.8 | FJ759: =IF(FP759<>"","REVISED","") ->  | FP759: =IF(ProjectInformation!$B$9<>"",ProjectInformation!$B$9,"") -> 
B760: 10/2/2017 10:12:42 AM ajohns1 c:\pw_work\pwmain\ajohns1\d0569206\86030189_C01.xlsm
B854: FILE NO. | I854: =IF(ProjectInformation!$B$11<>"",ProjectInformation!$B$11,"") ->  | P854: =UPPER(ProjectInformation!B8) -> ENGLISH | W854: DESIGN TEAM | AF854: =IF(AND(ProjectInformation!$B$3<>"",ProjectInformation!$B$4<>"",ProjectInformation!$B$5<>""),ProjectInformation!$B$3&"\"&ProjectInformation!$B$4&"\"&ProjectInformation!$B$5,IF(AND(ProjectInformation!$B$3<>"",ProjectInformation!$B$4<>""),ProjectInformation!$B$3&"\"&ProjectInformation!$B$4,IF(ProjectInformation!$B$3<>"",ProjectInformation!$B$3,""))) -> Flattery\Johnson | BN854: =IF(ProjectInformation!$B$6<>"",ProjectInformation!$B$6,"") -> TAMA | CX854: COUNTY | DD854: PROJECT NUMBER | DP854: =IF(ProjectInformation!$B$7<>"",ProjectInformation!$B$7,"") -> NHSX-030-6(189)--3H-86 | ET854: SHEET NUMBER | FD854: =IF($FD$759<>"","C."& MID(OFFSET($FD$854,-95,0),3,LEN(OFFSET($FD$854,-95,0))-2)+1,"") -> C.9 | FJ854: =IF(FP854<>"","REVISED","") ->  | FP854: =IF(ProjectInformation!$B$9<>"",ProjectInformation!$B$9,"") -> 
B855: 10/2/2017 10:12:43 AM ajohns1 c:\pw_work\pwmain\ajohns1\d0569206\86030189_C01.xlsm
B949: FILE NO. | I949: =IF(ProjectInformation!$B$11<>"",ProjectInformation!$B$11,"") ->  | P949: =UPPER(ProjectInformation!B8) -> ENGLISH | W949: DESIGN TEAM | AF949: =IF(AND(ProjectInformation!$B$3<>"",ProjectInformation!$B$4<>"",ProjectInformation!$B$5<>""),ProjectInformation!$B$3&"\"&ProjectInformation!$B$4&"\"&ProjectInformation!$B$5,IF(AND(ProjectInformation!$B$3<>"",ProjectInformation!$B$4<>""),ProjectInformation!$B$3&"\"&ProjectInformation!$B$4,IF(ProjectInformation!$B$3<>"",ProjectInformation!$B$3,""))) -> Flattery\Johnson | BN949: =IF(ProjectInformation!$B$6<>"",ProjectInformation!$B$6,"") -> TAMA | CX949: COUNTY | DD949: PROJECT NUMBER | DP949: =IF(ProjectInformation!$B$7<>"",ProjectInformation!$B$7,"") -> NHSX-030-6(189)--3H-86 | ET949: SHEET NUMBER | FD949: =IF($FD$854<>"","C."& MID(OFFSET($FD$949,-95,0),3,LEN(OFFSET($FD$949,-95,0))-2)+1,"") -> C.10 | FJ949: =IF(FP949<>"","REVISED","") ->  | FP949: =IF(ProjectInformation!$B$9<>"",ProjectInformation!$B$9,"") -> 
B950: 10/2/2017 10:12:43 AM ajohns1 c:\pw_work\pwmain\ajohns1\d0569206\86030189_C01.xlsm
B1044: FILE NO. | I1044: =IF(ProjectInformation!$B$11<>"",ProjectInformation!$B$11,"") ->  | P1044: =UPPER(ProjectInformation!B8) -> ENGLISH | W1044: DESIGN TEAM | AF1044: =IF(AND(ProjectInformation!$B$3<>"",ProjectInformation!$B$4<>"",ProjectInformation!$B$5<>""),ProjectInformation!$B$3&"\"&ProjectInformation!$B$4&"\"&ProjectInformation!$B$5,IF(AND(ProjectInformation!$B$3<>"",ProjectInformation!$B$4<>""),ProjectInformation!$B$3&"\"&ProjectInformation!$B$4,IF(ProjectInformation!$B$3<>"",ProjectInformation!$B$3,""))) -> Flattery\Johnson | BN1044: =IF(ProjectInformation!$B$6<>"",ProjectInformation!$B$6,"") -> TAMA | CX1044: COUNTY | DD1044: PROJECT NUMBER | DP1044: =IF(ProjectInformation!$B$7<>"",ProjectInformation!$B$7,"") -> NHSX-030-6(189)--3H-86 | ET1044: SHEET NUMBER | FD1044: =IF($FD$949<>"","C."& MID(OFFSET($FD$1044,-95,0),3,LEN(OFFSET($FD$1044,-95,0))-2)+1,"") -> C.11 | FJ1044: =IF(FP1044<>"","REVISED","") ->  | FP1044: =IF(ProjectInformation!$B$9<>"",ProjectInformation!$B$9,"") -> 
B1045: 10/2/2017 10:12:43 AM ajohns1 c:\pw_work\pwmain\ajohns1\d0569206\86030189_C01.xlsm

Sheet DE100_1A
A1: TabTitle | B1: =C15 -> ESTIMATED PROJECT QUANTITIES (1 DIVISION PROJECT)
A2: Number of Tab Columns | B2: 6
A3: DE Starter Row Number | B3: 22
A4: TabSheet Starter Row Number | B4: 9
A5: TabSheet Header Row Count | B5: 8
A6: Top Header Cell | B6: J15
A7: Bottom Header Cell | B7: O22
A8: DESheet Row Count | B8: 161
A9: Fixed Empty Rows | B9: 0
A10: Usable Empty Rows | B10: 76
A11: Total Rows Placed | B11: 237 | C11: xlCenter | D11: xlCenter | E11: xlLeft(1) | F11: xlLeft(1) | G11: xlRight(1) | H11: xlRight(1) | J11: =C11 -> xlCenter | K11: =D11 -> xlCenter | L11: xlLeft(1) | M11: xlLeft(1) | N11: xlRight(1) | O11: xlRight(1)
A12: Total Rows Needed | B12: =SUM(B8:B10) -> 237 | C12: General | D12: General | E12: General | F12: General | G12: General | H12: General | J12: =C12 -> General | K12: General | L12: General | M12: General | N12: General | O12: General
A13: Last Tab DE Starter Row | B13: 177 | C13: =CELL("width",C13) -> 12 | D13: 16 | E13: 83 | F13: 11 | G13: 16 | H13: 16 | J13: =CELL("width",J13) -> 0 | K13: 0 | L13: 0 | M13: 0 | N13: 0 | O13: 0
A14: Last Tab Tabsheet Starter Row | B14: 180 | C14: A | D14: B | E14: C | F14: D | G14: E | H14: F | J14: =LOWER(C14) -> a | K14: =LOWER(D14) -> b | L14: c | M14: d | N14: e | O14: f
A15: Last Copy Starter Row | B15: 172 | C15: ESTIMATED PROJECT QUANTITIES (1 DIVISION PROJECT) | J15: 100-1A
A16: Tab Loop Number | B16: 4 | J16: =B17 -> 1997-07-15
A17: Revision Date | B17: 1997-07-15 | J17: =C15 -> ESTIMATED PROJECT QUANTITIES (1 DIVISION PROJECT)
A18: Tabulation Width | B18: 2
A19: Horizontal Grid Lines | B19: Yes | C19: ="This Data Entry Sheet fills Tab "&J15&" effective "&TEXT(B17,"mm-dd-yy") -> This Data Entry Sheet fills Tab 100-1A effective 07-15-97
C20: Item No. | D20: Item Code | E20: Item | F20: Unit | G20: Total | H20: As Built Qty.
J21: =C20 -> Item No. | K21: =D20 -> Item Code | L21: =E20 -> Item | M21: Unit | N21: =G20 -> Total | O21: =H20 -> As Built Qty.
C22: 1 | D22: 2101-0850001 | E22: CLEARING AND GRUBBING | F22: ACRE | G22: 433.3
C23: 2 | D23: 2102-2624980 | E23: CONTRACTOR FURNISHED SELECT TREATMENT | F23: CY | G23: 428,073.7
C24: 3 | D24: 2102-2710070 | E24: EXCAVATION, CLASS 10, ROADWAY AND BORROW | F24: CY | G24: 4,515,579.0
C25: 4 | D25: 2102-2710090 | E25: EXCAVATION, CLASS 10, WASTE | F25: CY | G25: 580,746.0
C26: 5 | D26: 2102-2712015 | E26: EXCAVATION, CLASS 12, BOULDERS OR ROCK FRAGMENTS | F26: CY | G26: 2,500.0
C27: 6 | D27: 2102-4560000 | E27: LOCATING TILE LINES | F27: STA | G27: 1,187.40
C28: 7 | D28: 2105-8425011 | E28: TOPSOIL, SPREAD | F28: CY | G28: 394,644.0
C29: 8 | D29: 2105-8425020 | E29: TOPSOIL, STRIP AND STOCKPILE | F29: CY | G29: 470,373.0
C30: 9 | D30: 2107-0425020 | E30: COMPACTING BACKFILL ADJACENT TO BRIDGES, CULVERTS OR STRUCTURES | F30: CY | G30: 79,519.6
C31: 10 | D31: 2107-0875100 | E31: COMPACTION WITH MOISTURE CONTROL | F31: CY | G31: 3,459,995.0
C32: 11 | D32: 2107-3825025 | E32: GRANULAR MATERIAL FOR BLANKET AND SUBDRAIN | F32: CY | G32: 21,543.4
C33: 12 | D33: 2112-0000100 | E33: WICK DRAIN | F33: LF | G33: 85,447.5
C34: 13 | D34: 2312-8260051 | E34: GRANULAR SURFACING ON ROAD, CLASS A CRUSHED STONE | F34: TON | G34: 2,113.0
C35: 14 | D35: 2315-8275025 | E35: SURFACING, DRIVEWAY, CLASS A CRUSHED STONE | F35: TON | G35: 5,905.6
C36: 15 | D36: 2401-6745354 | E36: REMOVAL OF CONCRETE FOOTINGS, AS PER PLAN | F36: EACH | G36: 2
C37: 16 | D37: 2402-0425040 | E37: FLOODED BACKFILL | F37: CY | G37: 16,441.5
C38: 17 | D38: 2402-2720000 | E38: EXCAVATION, CLASS 20 | F38: CY | G38: 1004
C39: 18 | D39: 2402-2720100 | E39: EXCAVATION, CLASS 20, FOR ROADWAY PIPE CULVERT | F39: CY | G39: 34,891.9
C40: 19 | D40: 2416-0100018 | E40: APRONS, CONCRETE, 18 IN. DIA. | F40: EACH | G40: 16
C41: 20 | D41: 2416-0100024 | E41: APRONS, CONCRETE, 24 IN. DIA. | F41: EACH | G41: 91
C42: 21 | D42: 2416-0100030 | E42: APRONS, CONCRETE, 30 IN. DIA. | F42: EACH | G42: 7
C43: 22 | D43: 2416-0100036 | E43: APRONS, CONCRETE, 36 IN. DIA. | F43: EACH | G43: 7
C44: 23 | D44: 2416-0100042 | E44: APRONS, CONCRETE, 42 IN. DIA. | F44: EACH | G44: 4
C45: 24 | D45: 2416-0100048 | E45: APRONS, CONCRETE, 48 IN. DIA. | F45: EACH | G45: 9
C46: 25 | D46: 2416-0100054 | E46: APRONS, CONCRETE, 54 IN. DIA. | F46: EACH | G46: 5
C47: 26 | D47: 2416-0100066 | E47: APRONS, CONCRETE, 66 IN. DIA. | F47: EACH | G47: 4
C48: 27 | D48: 2416-0100072 | E48: APRONS, CONCRETE, 72 IN. DIA. | F48: EACH | G48: 1
C49: 28 | D49: 2416-0102272 | E49: APRON, LOW CLEARANCE CONCRETE, EQUIVALENT DIAMETER 72 IN. | F49: EACH | G49: 2
C50: 29 | D50: 2416-1180018 | E50: CULVERT, CONCRETE ROADWAY PIPE, 18 IN. DIA. | F50: LF | G50: 710
C51: 30 | D51: 2416-1180024 | E51: CULVERT, CONCRETE ROADWAY PIPE, 24 IN. DIA. | F51: LF | G51: 4486
C52: 31 | D52: 2416-1180030 | E52: CULVERT, CONCRETE ROADWAY PIPE, 30 IN. DIA. | F52: LF | G52: 648
C53: 32 | D53: 2416-1180036 | E53: CULVERT, CONCRETE ROADWAY PIPE, 36 IN. DIA. | F53: LF | G53: 838
C54: 33 | D54: 2416-1180042 | E54: CULVERT, CONCRETE ROADWAY PIPE, 42 IN. DIA. | F54: LF | G54: 498
C55: 34 | D55: 2416-1180048 | E55: CULVERT, CONCRETE ROADWAY PIPE, 48 IN. DIA. | F55: LF | G55: 988
C56: 35 | D56: 2416-1180072 | E56: CULVERT, CONCRETE ROADWAY PIPE, 72 IN. DIA. | F56: LF | G56: 202
C57: 36 | D57: 2416-1200272 | E57: CULVERT, LOW CLEARANCE CONCRETE ROADWAY PIPE, EQUIVALENT DIAMETER 72 | F57: LF | G57: 198
E58: IN.
C59: 37 | D59: 2416-1240036 | E59: CULVERT, 3000D CONCRETE ROADWAY PIPE, 36 IN. DIA. | F59: LF | G59: 158
C60: 38 | D60: 2416-1240048 | E60: CULVERT, 3000D CONCRETE ROADWAY PIPE, 48 IN. DIA. | F60: LF | G60: 256
C61: 39 | D61: 2416-1240054 | E61: CULVERT, 3000D CONCRETE ROADWAY PIPE, 54 IN. DIA. | F61: LF | G61: 258
C62: 40 | D62: 2416-1262024 | E62: CULVERT, CONCRETE PIPE, 2000D, TRENCHLESS, 24 IN. DIA. | F62: LF | G62: 902
C63: 41 | D63: 2416-1262030 | E63: CULVERT, CONCRETE PIPE, 2000D, TRENCHLESS, 30 IN. DIA. | F63: LF | G63: 194
C64: 42 | D64: 2416-1262036 | E64: CULVERT, CONCRETE PIPE, 2000D, TRENCHLESS, 36 IN. DIA. | F64: LF | G64: 472
C65: 43 | D65: 2416-1262042 | E65: CULVERT, CONCRETE PIPE, 2000D, TRENCHLESS, 42 IN. DIA. | F65: LF | G65: 74
C66: 44 | D66: 2416-1262048 | E66: CULVERT, CONCRETE PIPE, 2000D, TRENCHLESS, 48 IN. DIA. | F66: LF | G66: 106
C67: 45 | D67: 2416-1263030 | E67: CULVERT, CONCRETE PIPE, 3000D, TRENCHLESS, 30 IN. DIA. | F67: LF | G67: 162
C68: 46 | D68: 2416-1263036 | E68: CULVERT, CONCRETE PIPE, 3000D, TRENCHLESS, 36 IN. DIA. | F68: LF | G68: 174
C69: 47 | D69: 2416-1263054 | E69: CULVERT, CONCRETE PIPE, 3000D, TRENCHLESS, 54 IN. DIA. | F69: LF | G69: 150
C70: 48 | D70: 2417-0225024 | E70: APRONS, METAL, 24 IN. DIA. | F70: EACH | G70: 21
C71: 49 | D71: 2417-0225030 | E71: APRONS, METAL, 30 IN. DIA. | F71: EACH | G71: 2
C72: 50 | D72: 2417-0250035 | E72: APRONS, METAL, ARCH, 35 IN. X 24 IN. | F72: EACH | G72: 2
C73: 51 | D73: 2417-1060024 | E73: CULVERT, CORRUGATED METAL ROADWAY PIPE, 24 IN. DIA. | F73: LF | G73: 1843
C74: 52 | D74: 2417-1060030 | E74: CULVERT, CORRUGATED METAL ROADWAY PIPE, 30 IN. DIA. | F74: LF | G74: 144
C75: 53 | D75: 2417-1080024 | E75: CULVERT, CORRUGATED METAL ARCH ENTRANCE PIPE, 24 IN. X 18 IN. | F75: LF | G75: 362
C76: 54 | D76: 2417-1100035 | E76: CULVERT, CORRUGATED METAL ARCH ROADWAY PIPE, 35 IN. X 24 IN. | F76: LF | G76: 54
C77: 55 | D77: 2417-5895024 | E77: BEVELED PIPE AND GUARD, 24 INCH | F77: EACH | G77: 16
C78: 56 | D78: 2418-0000010 | E78: TEMPORARY STREAM DIVERSION | F78: EACH | G78: 5
C79: 57 | D79: 2422-0360018 | E79: APRONS, UNCLASSIFIED, 18 IN. DIA. | F79: EACH | G79: 4
C80: 58 | D80: 2422-0360024 | E80: APRONS, UNCLASSIFIED, 24 IN. DIA. | F80: EACH | G80: 50
C81: 59 | D81: 2422-0360030 | E81: APRONS, UNCLASSIFIED, 30 IN. DIA. | F81: EACH | G81: 8
C82: 60 | D82: 2422-0360036 | E82: APRONS, UNCLASSIFIED, 36 IN. DIA. | F82: EACH | G82: 2
C83: 61 | D83: 2422-0360042 | E83: APRONS, UNCLASSIFIED, 42 IN. DIA. | F83: EACH | G83: 4
C84: 62 | D84: 2422-0360048 | E84: APRONS, UNCLASSIFIED, 48 IN. DIA. | F84: EACH | G84: 4
C85: 63 | D85: 2422-0360054 | E85: APRONS, UNCLASSIFIED, 54 IN. DIA. | F85: EACH | G85: 2
C86: 64 | D86: 2422-0360060 | E86: APRONS, UNCLASSIFIED, 60 IN. DIA. | F86: EACH | G86: 2
C87: 65 | D87: 2422-0360072 | E87: APRONS, UNCLASSIFIED, 72 IN. DIA. | F87: EACH | G87: 2
C88: 66 | D88: 2422-0360078 | E88: APRONS, UNCLASSIFIED, 78 IN. DIA. | F88: EACH | G88: 2
C89: 67 | D89: 2422-1722018 | E89: CULVERT, UNCLASSIFIED ENTRANCE PIPE, 18 IN. DIA. | F89: LF | G89: 82
C90: 68 | D90: 2422-1722024 | E90: CULVERT, UNCLASSIFIED ENTRANCE PIPE, 24 IN. DIA. | F90: LF | G90: 5486
C91: 69 | D91: 2422-1722036 | E91: CULVERT, UNCLASSIFIED ENTRANCE PIPE, 36 IN. DIA. | F91: LF | G91: 136
C92: 70 | D92: 2422-1722072 | E92: CULVERT, UNCLASSIFIED ENTRANCE PIPE, 72 IN. DIA. | F92: LF | G92: 70
C93: 71 | D93: 2422-1723024 | E93: CULVERT, UNCLASSIFIED ROADWAY PIPE, 24 IN. DIA. | F93: LF | G93: 980
C94: 72 | D94: 2422-1723030 | E94: CULVERT, UNCLASSIFIED ROADWAY PIPE, 30 IN. DIA. | F94: LF | G94: 658
C95: 73 | D95: 2422-1723042 | E95: CULVERT, UNCLASSIFIED ROADWAY PIPE, 42 IN. DIA. | F95: LF | G95: 120
C96: 74 | D96: 2422-1723048 | E96: CULVERT, UNCLASSIFIED ROADWAY PIPE, 48 IN. DIA. | F96: LF | G96: 216
C97: 75 | D97: 2502-8212024 | E97: SUBDRAIN, LONGITUDINAL, (BACKSLOPE) 4 IN. DIA. | F97: LF | G97: 17,260.0
C98: 76 | D98: 2502-8221306 | E98: SUBDRAIN OUTLET, DR-306 | F98: EACH | G98: 70
C99: 77 | D99: 2506-4984000 | E99: FLOWABLE MORTAR | F99: CY | G99: 574.0
C100: 78 | D100: 2507-3250005 | E100: ENGINEERING FABRIC | F100: SY | G100: 31,015.8
C101: 79 | D101: 2507-6800061 | E101: REVETMENT, CLASS E | F101: TON | G101: 16,613.8
C102: 80 | D102: 2507-8029000 | E102: EROSION STONE | F102: TON | G102: 7,704.4
C103: 81 | D103: 2515-6745600 | E103: REMOVAL OF PAVED DRIVEWAY | F103: SY | G103: 798.7
C104: 82 | D104: 2518-6910000 | E104: SAFETY CLOSURE | F104: EACH | G104: 238
C105: 83 | D105: 2520-3350010 | E105: FIELD LABORATORY | F105: EACH | G105: 1
C106: 84 | D106: 2526-8285000 | E106: CONSTRUCTION SURVEY | F106: LS | G106: 1.00
C107: 85 | D107: 2528-8445110 | E107: TRAFFIC CONTROL | F107: LS | G107: 1.00
C108: 86 | D108: 2528-8445113 | E108: FLAGGERS | F108: EACH | G108: See Proposal
C109: 87 | D109: 2533-4980005 | E109: MOBILIZATION | F109: LS | G109: 1.00
C110: 88 | D110: 2599-9999001 | E110: ('ACRES' ITEM) STABILIZING CROP - NATIVE GRASS SEEDING AND | F110: ACRE | G110: 433.0
E111: FERTILIZING
C112: 89 | D112: 2599-9999001 | E112: ('ACRES' ITEM) SUBGRADE STABILIZATION | F112: ACRE | G112: 42.0
C113: 90 | D113: 2599-9999005 | E113: ('EACH' ITEM) PIEZOMETER | F113: EACH | G113: 12
C114: 91 | D114: 2599-9999009 | E114: ('LINEAR FEET' ITEM) CULVERT SPECIAL, UNCLASSIFIED ROADWAY PIPE, 48 | F114: LF | G114: 482.0
E115: IN. DIA.
C116: 92 | D116: 2599-9999009 | E116: ('LINEAR FEET' ITEM) CULVERT SPECIAL, UNCLASSIFIED ROADWAY PIPE, 54 | F116: LF | G116: 266.0
E117: IN. DIA.
C118: 93 | D118: 2599-9999009 | E118: ('LINEAR FEET' ITEM) CULVERT SPECIAL, UNCLASSIFIED ROADWAY PIPE, 60 | F118: LF | G118: 226.0
E119: IN. DIA.
C120: 94 | D120: 2599-9999009 | E120: ('LINEAR FEET' ITEM) CULVERT SPECIAL, UNCLASSIFIED ROADWAY PIPE, 78 | F120: LF | G120: 288.0
E121: IN. DIA.
C122: 95 | D122: 2599-9999009 | E122: ('LINEAR FEET' ITEM) CULVERT SPECIAL, UNCLASSIFIED ROADWAY PIPE, | F122: LF | G122: 640.0
E123: TRENCHLESS, 48 IN. DIA.
C124: 96 | D124: 2599-9999009 | E124: ('LINEAR FEET' ITEM) CULVERT SPECIAL, UNCLASSIFIED ROADWAY PIPE, | F124: LF | G124: 348.0
E125: TRENCHLESS, 54 IN. DIA.
C126: 97 | D126: 2599-9999009 | E126: ('LINEAR FEET' ITEM) CULVERT SPECIAL, UNCLASSIFIED ROADWAY PIPE, | F126: LF | G126: 340.0
E127: TRENCHLESS, 60 IN. DIA.
C128: 98 | D128: 2599-9999009 | E128: ('LINEAR FEET' ITEM) CULVERT SPECIAL, UNCLASSIFIED ROADWAY PIPE, | F128: LF | G128: 288.0
E129: TRENCHLESS, 78 IN. DIA.
C130: 99 | D130: 2599-9999009 | E130: ('LINEAR FEET' ITEM) CULVERT, 4000D CONCRETE ROADWAY PIPE, 42 IN. | F130: LF | G130: 286.0
E131: DIA.
C132: 100 | D132: 2599-9999009 | E132: ('LINEAR FEET' ITEM) CULVERT, 4000D CONCRETE ROADWAY PIPE, 48 IN. | F132: LF | G132: 218.0
E133: DIA.
C134: 101 | D134: 2599-9999009 | E134: ('LINEAR FEET' ITEM) CULVERT, 4000D CONCRETE ROADWAY PIPE, 54 IN. | F134: LF | G134: 266.0
E135: DIA.
C136: 102 | D136: 2599-9999009 | E136: ('LINEAR FEET' ITEM) CULVERT, 4000D CONCRETE ROADWAY PIPE, 66 IN. | F136: LF | G136: 514.0
E137: DIA.
C138: 103 | D138: 2599-9999009 | E138: ('LINEAR FEET' ITEM) CULVERT, 4000D CONCRETE ROADWAY PIPE, | F138: LF | G138: 386.0
E139: TRENCHLESS, 30 IN. DIA.
C140: 104 | D140: 2599-9999009 | E140: ('LINEAR FEET' ITEM) CULVERT, 4000D CONCRETE ROADWAY PIPE, | F140: LF | G140: 166.0
E141: TRENCHLESS, 42 IN. DIA.
C142: 105 | D142: 2599-9999009 | E142: ('LINEAR FEET' ITEM) CULVERT, 4000D CONCRETE ROADWAY PIPE, | F142: LF | G142: 282.0
E143: TRENCHLESS, 48 IN. DIA.
C144: 106 | D144: 2599-9999009 | E144: ('LINEAR FEET' ITEM) CULVERT, 4000D CONCRETE ROADWAY PIPE, | F144: LF | G144: 162.0
E145: TRENCHLESS, 54 IN. DIA.
C146: 107 | D146: 2599-9999009 | E146: ('LINEAR FEET' ITEM) CULVERT, 4000D CONCRETE ROADWAY PIPE, | F146: LF | G146: 434.0
E147: TRENCHLESS, 66 IN. DIA.
C148: 108 | D148: 2599-9999009 | E148: ('LINEAR FEET' ITEM) CULVERT, 4500D CONCRETE ROADWAY PIPE, 54 IN. | F148: LF | G148: 254.0
E149: DIA.
C150: 109 | D150: 2599-9999009 | E150: ('LINEAR FEET' ITEM) CULVERT, 4500D CONCRETE ROADWAY PIPE, | F150: LF | G150: 276.0
E151: TRENCHLESS, 54 IN. DIA.
C152: 110 | D152: 2599-9999009 | E152: ('LINEAR FEET' ITEM) HORIZONTAL STRIP DRAIN | F152: LF | G152: 13,115.0
C153: 111 | D153: 2599-9999012 | E153: ('THOUSANDS OF GALLONS' ITEM) DUST CONTROL WATERING | F153: MGAL | G153: 4,000.00
C154: 112 | D154: 2601-2633100 | E154: MOWING | F154: ACRE | G154: 1,684.0
C155: 113 | D155: 2601-2634100 | E155: MULCHING | F155: ACRE | G155: 433.0
C156: 114 | D156: 2601-2634105 | E156: MULCHING, BONDED FIBER MATRIX | F156: ACRE | G156: 10.0
C157: 115 | D157: 2601-2640350 | E157: SPECIAL DITCH CONTROL, WOOD EXCELSIOR MAT | F157: SQ | G157: 1,300.0
C158: 116 | D158: 2601-2642100 | E158: STABILIZING CROP - SEEDING AND FERTILIZING | F158: ACRE | G158: 433.0
C159: 117 | D159: 2601-2643110 | E159: WATERING FOR SOD, SPECIAL DITCH CONTROL, OR SLOPE PROTECTION | F159: MGAL | G159: 670.40
C160: 118 | D160: 2601-2643300 | E160: MOBILIZATION FOR WATERING | F160: EACH | G160: 3
C161: 119 | D161: 2601-2643412 | E161: TURF REINFORCEMENT MAT, TYPE 2 | F161: SQ | G161: 982.0
C162: 120 | D162: 2601-2643413 | E162: TURF REINFORCEMENT MAT, TYPE 3 | F162: SQ | G162: 542.0
C163: 121 | D163: 2601-2643414 | E163: TURF REINFORCEMENT MAT, TYPE 4 | F163: SQ | G163: 528.0
C164: 122 | D164: 2602-0000020 | E164: SILT FENCE | F164: LF | G164: 297,425.0
C165: 123 | D165: 2602-0000030 | E165: SILT FENCE FOR DITCH CHECKS | F165: LF | G165: 102,010.1
C166: 124 | D166: 2602-0000050 | E166: SILT BASINS | F166: EACH | G166: 450
C167: 125 | D167: 2602-0000071 | E167: REMOVAL OF SILT FENCE OR SILT FENCE FOR DITCH CHECKS | F167: LF | G167: 199,717.7
C168: 126 | D168: 2602-0000080 | E168: REMOVAL OF SILT BASINS | F168: EACH | G168: 225
C169: 127 | D169: 2602-0000101 | E169: MAINTENANCE OF SILT FENCE OR SILT FENCE FOR DITCH CHECK | F169: LF | G169: 39,943.5
C170: 128 | D170: 2602-0000130 | E170: TEMPORARY SEDIMENT CONTROL BASIN | F170: EACH | G170: 72
C171: 129 | D171: 2602-0000135 | E171: REMOVAL OF TEMPORARY SEDIMENT CONTROL BASIN | F171: EACH | G171: 72
C172: 130 | D172: 2602-0000140 | E172: MAINTENANCE OF TEMPORARY SEDIMENT CONTROL BASIN | F172: EACH | G172: 216
C173: 131 | D173: 2602-0000150 | E173: STABILIZED CONSTRUCTION ENTRANCE | F173: LF | G173: 3,000.0
C174: 132 | D174: 2602-0000160 | E174: ROCK CHECK DAM | F174: LF | G174: 21726
C175: 133 | D175: 2602-0000170 | E175: MAINTENANCE OF ROCK CHECK DAM | F175: EACH | G175: 3018
C176: 134 | D176: 2602-0000180 | E176: REMOVAL OF ROCK CHECK DAM | F176: EACH | G176: 1006
C177: 135 | D177: 2602-0000312 | E177: PERIMETER AND SLOPE SEDIMENT CONTROL DEVICE, 12 IN. DIA. | F177: LF | G177: 3,390.0
C178: 136 | D178: 2602-0000320 | E178: PERIMETER AND SLOPE SEDIMENT CONTROL DEVICE, 20 IN. DIA. | F178: LF | G178: 15,540.0
C179: 137 | D179: 2602-0000350 | E179: REMOVAL OF PERIMETER AND SLOPE SEDIMENT CONTROL DEVICE | F179: LF | G179: 4,000.0
C180: 138 | D180: 2602-0010010 | E180: MOBILIZATIONS, EROSION CONTROL | F180: EACH | G180: 1
C181: 139 | D181: 2602-0010020 | E181: MOBILIZATIONS, EMERGENCY EROSION CONTROL | F181: EACH | G181: 1
C182: 140 | D182: 2612-0000520 | E182: ROADSIDE SPRAY FOR WEED CONTROL | F182: ACRE | G182: 42.0

Sheet DE100_1D
A1: TabTitle | B1: =C15 -> PROJECT DESCRIPTION
A2: Number of Tab Columns | B2: 1
A3: DE Starter Row Number | B3: 18
A4: TabSheet Starter Row Number | B4: 5
A5: TabSheet Header Row Count | B5: 4
A6: Top Header Cell | B6: E15
A7: Bottom Header Cell | B7: E18
A8: DESheet Row Count | B8: 2
A9: Fixed Empty Rows | B9: 2
A10: Usable Empty Rows | B10: 0
A11: Total Rows Placed | B11: 4 | C11: xlLeft(1) | E11: =C11 -> xlLeft(1)
A12: Total Rows Needed | B12: =SUM(B8:B10) -> 4 | C12: General | E12: =C12 -> General
A13: Last Tab DE Starter Row | B13: 18 | C13: =CELL("width",C13) -> 159 | E13: =CELL("width",E13) -> 0
A14: Last Tab Tabsheet Starter Row | B14: 5 | C14: A | E14: a
A15: Last Copy Starter Row | B15: 1 | C15: PROJECT DESCRIPTION | E15: 100-1D
A16: Tab Loop Number | B16: 2 | E16: =B17 -> 2005-10-18
A17: Revision Date | B17: 2005-10-18 | C17: ="This Data Entry Sheet fills Tab "&E15&" effective "&TEXT(B17,"mm-dd-yy") -> This Data Entry Sheet fills Tab 100-1D effective 10-18-05 | E17: =C15 -> PROJECT DESCRIPTION
A18: Tabulation Width | B18: 2
A19: Horizontal Grid Lines | B19: No | C19: This project involves the grading of the new eastbound and westbound lanes from the Tama by-pass to the Benton County line on US 30.

Sheet DE100_4A
A1: TabTitle | B1: =C15 -> ESTIMATE REFERENCE INFORMATION
A2: Number of Tab Columns | B2: 3
A3: DE Starter Row Number | B3: 20
A4: TabSheet Starter Row Number | B4: 7
A5: TabSheet Header Row Count | B5: 6
A6: Top Header Cell | B6: G15
A7: Bottom Header Cell | B7: I20
A8: DESheet Row Count | B8: 527
A9: Fixed Empty Rows | B9: 0
A10: Usable Empty Rows | B10: 61
A11: Total Rows Placed | B11: 588 | C11: xlCenter | D11: xlCenter | E11: xlLeft(1) | G11: =C11 -> xlCenter | H11: xlCenter | I11: xlLeft(1)
A12: Total Rows Needed | B12: =SUM(B8:B10) -> 588 | C12: General | D12: General | E12: General | G12: General | H12: General | I12: General
A13: Last Tab DE Starter Row | B13: 524 | C13: =CELL("width",C13) -> 12 | D13: 16 | E13: 129 | G13: =CELL("width",G13) -> 0 | H13: 0 | I13: 0
A14: Last Tab Tabsheet Starter Row | B14: 547 | C14: A | D14: B | E14: C | G14: =LOWER(C14) -> a | H14: =LOWER(D14) -> b | I14: =LOWER(E14) -> c
A15: Last Copy Starter Row | B15: 541 | C15: ESTIMATE REFERENCE INFORMATION | G15: 100-4A
A16: Tab Loop Number | B16: 8 | G16: =B17 -> 2002-10-29
A17: Revision Date | B17: 2002-10-29 | C17: ="This Data Entry Sheet fills Tab "&G15&" effective "&TEXT(B17,"mm-dd-yy") -> This Data Entry Sheet fills Tab 100-4A effective 10-29-02 | G17: =C15 -> ESTIMATE REFERENCE INFORMATION
A18: Tabulation Width | B18: 2 | C18: Item No. | D18: Item Code | E18: Description
A19: Horizontal Grid Lines | B19: Yes | G19: =C18 -> Item No. | H19: =D18 -> Item Code | I19: =E18 -> Description
C20: 1 | D20: 2101-0850001 | E20: CLEARING AND GRUBBING
E21: Quantity includes all disturbed areas.
E22: Removal of field fence shall be incidental to the bid item.
C23: - | D23: - | E23: -
C24: 2 | D24: 2102-2624980 | E24: CONTRACTOR FURNISHED SELECT TREATMENT
E25: See Tab. 103-11 in the C sheets and cross sections for locations and details.
E26: Overhaul shall be incidental to the bid item.
E28: At the Preconstruction Meeting, indicate which treatment option will be used: Select Soil
E29: or Special Backfill.
C30: - | D30: - | E30: -
C31: 3 | D31: 2102-2710070 | E31: EXCAVATION, CLASS 10, ROADWAY AND BORROW
E32: See Tab. 107-28 in the T sheets and cross sections for details. Settlement plates shall be incidental to
E33: Class 10 Excavation. Overhaul shall be incidental to the bid item.
E35: An additional 175 CY is needed for two culvert outlets. See Tab. 104-3M in the CD sheets for locations and
E36: details.
E38: An additional 16,100 CY is needed for surcharge locations. See Tab. 107-31A in the CS sheets for locations and
E39: details.
E41: An additional 1,305 CY is needed for a core out. See Tab. 104-5CA in the CS sheets for locations and details.
C42: - | D42: - | E42: -
C43: 4 | D43: 2102-2710090 | E43: EXCAVATION, CLASS 10, WASTE
E44: See Tab. 107-28 in the T sheets and cross sections for details.
E45: Overhaul shall be incidental to the bid item.
C46: - | D46: - | E46: -
C47: 5 | D47: 2102-2712015 | E47: EXCAVATION, CLASS 12, BOULDERS OR ROCK FRAGMENTS
E48: For boulders encountered in the excavation. See Tab. 103-7 in the CS sheets.
E49: Overhaul shall be incidental to the bid item.
C50: - | D50: - | E50: -
C51: 6 | D51: 2102-4560000 | E51: LOCATING TILE LINES
E52: Estimated at twice the project length.
C53: - | D53: - | E53: -
C54: 7 | D54: 2105-8425011 | E54: TOPSOIL, SPREAD
C55: 8 | D55: 2105-8425020 | E55: TOPSOIL, STRIP AND STOCKPILE
E56: See Tab. 103-10 in the CS sheets, Tab. 107-28 in the T sheets, and cross sections for locations and details.
E57: Overhaul shall be incidental to the bid item.
E58: Approximately 75,730 CY of topsoil to remain on the project for future paving project. Excess ROW at Parcel 10,
E59: 18AM and 18 should be used for stockpile locations. Verify specific locations with the Engineer prior to
E60: beginning placement. See H sheets for Parcel locations.
C61: - | D61: - | E61: -
C62: 9 | D62: 2107-0425020 | E62: COMPACTING BACKFILL ADJACENT TO BRIDGES, CULVERTS OR STRUCTURES
E63: See Tab. 104-4 in the CD sheets.
C64: - | D64: - | E64: -
C65: 10 | D65: 2107-0875100 | E65: COMPACTION WITH MOISTURE CONTROL
E66: See Tab. 103-6 in the CS sheets and Tab. 107-28 in the T sheets.
E67: Cubic yards shown on the contract documents as determined by the template fill volume.
E68: Shrinkage will not be included in the moisture control quantity.
C69: - | D69: - | E69: -
C70: 11 | D70: 2107-3825025 | E70: GRANULAR MATERIAL FOR BLANKET AND SUBDRAIN
E71: See Tab. 104-5C in the CS sheets for locations and details.
C72: - | D72: - | E72: -
C73: 12 | D73: 2112-0000100 | E73: WICK DRAIN
E74: See Q sheets and Tab. 104-6 in the CS sheets for locations and details.
C75: - | D75: - | E75: -
C76: 13 | D76: 2312-8260051 | E76: GRANULAR SURFACING ON ROAD, CLASS A CRUSHED STONE
E77: See Typical 2_GradeGran in the B sheets for side road surfacing locations and details.
C78: - | D78: - | E78: -
C79: 14 | D79: 2315-8275025 | E79: SURFACING, DRIVEWAY, CLASS A CRUSHED STONE
E80: See Tab. 102-3M in the C sheets for locations and details.
C81: - | D81: - | E81: -
C82: 15 | D82: 2401-6745354 | E82: REMOVAL OF CONCRETE FOOTINGS, AS PER PLAN
E83: Includes removing sign, footings, and excess material at Sta. 157+25, 119' Rt.
E85: Method of Measurement for the Removal of Concrete Footings will be by count.
E87: Basis of Payment for the Removal of Concrete Footings will be the contract unit price for each footing removed.
E88: Payments shall be full compensation for furnishing all materials, labor, and equipment necessary to remove and
E89: dispose of the sign and footings, and placement of backfill material made necessary by this operation.
C90: - | D90: - | E90: -
C91: 16 | D91: 2402-0425040 | E91: FLOODED BACKFILL
E92: See Tab. 104-3M and Tab. 104-4 in the CD sheets for locations and details.
C93: - | D93: - | E93: -
C94: 17 | D94: 2402-2720000 | E94: EXCAVATION, CLASS 20
E95: See Tab. 104-5CA in the CS sheets for locations and details.
C96: - | D96: - | E96: -
C97: 18 | D97: 2402-2720100 | E97: EXCAVATION, CLASS 20, FOR ROADWAY PIPE CULVERT
E98: See Tab. 104-3M in the CD sheets for locations and details.
C99: - | D99: - | E99: -
C104: 19 | D104: 2416-0100018 | E104: APRONS, CONCRETE, 18 IN. DIA.
C105: 20 | D105: 2416-0100024 | E105: APRONS, CONCRETE, 24 IN. DIA.
C106: 21 | D106: 2416-0100030 | E106: APRONS, CONCRETE, 30 IN. DIA.
C107: 22 | D107: 2416-0100036 | E107: APRONS, CONCRETE, 36 IN. DIA.
C108: 23 | D108: 2416-0100042 | E108: APRONS, CONCRETE, 42 IN. DIA.
C109: 24 | D109: 2416-0100048 | E109: APRONS, CONCRETE, 48 IN. DIA.
C110: 25 | D110: 2416-0100054 | E110: APRONS, CONCRETE, 54 IN. DIA.
C111: 26 | D111: 2416-0100066 | E111: APRONS, CONCRETE, 66 IN. DIA.
C112: 27 | D112: 2416-0100072 | E112: APRONS, CONCRETE, 72 IN. DIA.
C113: 28 | D113: 2416-0102272 | E113: APRON, LOW CLEARANCE CONCRETE, EQUIVALENT DIAMETER 72 IN.
C114: 29 | D114: 2416-1180018 | E114: CULVERT, CONCRETE ROADWAY PIPE, 18 IN. DIA.
C115: 30 | D115: 2416-1180024 | E115: CULVERT, CONCRETE ROADWAY PIPE, 24 IN. DIA.
C116: 31 | D116: 2416-1180030 | E116: CULVERT, CONCRETE ROADWAY PIPE, 30 IN. DIA.
C117: 32 | D117: 2416-1180036 | E117: CULVERT, CONCRETE ROADWAY PIPE, 36 IN. DIA.
C118: 33 | D118: 2416-1180042 | E118: CULVERT, CONCRETE ROADWAY PIPE, 42 IN. DIA.
C119: 34 | D119: 2416-1180048 | E119: CULVERT, CONCRETE ROADWAY PIPE, 48 IN. DIA.
C120: 35 | D120: 2416-1180072 | E120: CULVERT, CONCRETE ROADWAY PIPE, 72 IN. DIA.
C121: 36 | D121: 2416-1200272 | E121: CULVERT, LOW CLEARANCE CONCRETE ROADWAY PIPE, EQUIVALENT DIAMETER 72 IN.
C122: 37 | D122: 2416-1240036 | E122: CULVERT, 3000D CONCRETE ROADWAY PIPE, 36 IN. DIA.
C123: 38 | D123: 2416-1240048 | E123: CULVERT, 3000D CONCRETE ROADWAY PIPE, 48 IN. DIA.
C124: 39 | D124: 2416-1240054 | E124: CULVERT, 3000D CONCRETE ROADWAY PIPE, 54 IN. DIA.
C125: 40 | D125: 2416-1262024 | E125: CULVERT, CONCRETE PIPE, 2000D, TRENCHLESS, 24 IN. DIA.
C126: 41 | D126: 2416-1262030 | E126: CULVERT, CONCRETE PIPE, 2000D, TRENCHLESS, 30 IN. DIA.
C127: 42 | D127: 2416-1262036 | E127: CULVERT, CONCRETE PIPE, 2000D, TRENCHLESS, 36 IN. DIA.
C128: 43 | D128: 2416-1262042 | E128: CULVERT, CONCRETE PIPE, 2000D, TRENCHLESS, 42 IN. DIA.
C129: 44 | D129: 2416-1262048 | E129: CULVERT, CONCRETE PIPE, 2000D, TRENCHLESS, 48 IN. DIA.
C130: 45 | D130: 2416-1263030 | E130: CULVERT, CONCRETE PIPE, 3000D, TRENCHLESS, 30 IN. DIA.
C131: 46 | D131: 2416-1263036 | E131: CULVERT, CONCRETE PIPE, 3000D, TRENCHLESS, 36 IN. DIA.
C132: 47 | D132: 2416-1263054 | E132: CULVERT, CONCRETE PIPE, 3000D, TRENCHLESS, 54 IN. DIA.
C133: 48 | D133: 2417-0225024 | E133: APRONS, METAL, 24 IN. DIA.
C134: 49 | D134: 2417-0225030 | E134: APRONS, METAL, 30 IN. DIA.
C135: 50 | D135: 2417-0250035 | E135: APRONS, METAL, ARCH, 35 IN. X 24 IN.
C136: 51 | D136: 2417-1060024 | E136: CULVERT, CORRUGATED METAL ROADWAY PIPE, 24 IN. DIA.
C137: 52 | D137: 2417-1060030 | E137: CULVERT, CORRUGATED METAL ROADWAY PIPE, 30 IN. DIA.
E138: See Tab. 104-3M in the CD sheets for locations and details.
C139: - | D139: - | E139: -
C140: 53 | D140: 2417-1080024 | E140: CULVERT, CORRUGATED METAL ARCH ENTRANCE PIPE, 24 IN. X 18 IN.
E141: See Tab. 102-3M in the C sheets for locations and details.
C142: - | D142: - | E142: -
C143: 54 | D143: 2417-1100035 | E143: CULVERT, CORRUGATED METAL ARCH ROADWAY PIPE, 35 IN. X 24 IN.
E144: See Tab. 104-3M in the CD sheets for locations and details.
C145: - | D145: - | E145: -
C146: 55 | D146: 2417-5895024 | E146: BEVELED PIPE AND GUARD, 24 INCH
E147: See Tab. 102-3M in the C sheets for locations and details.
C148: - | D148: - | E148: -
C149: 56 | D149: 2418-0000010 | E149: TEMPORARY STREAM DIVERSION
E150: See Tab. 104-4 in the CD sheets for locations and details.
C151: - | D151: - | E151: -
C152: 57 | D152: 2422-0360018 | E152: APRONS, UNCLASSIFIED, 18 IN. DIA.
E153: See Tab. 102-3M in the C sheets for locations and details.
C154: - | D154: - | E154: -
C155: 58 | D155: 2422-0360024 | E155: APRONS, UNCLASSIFIED, 24 IN. DIA.
E156: See Tab. 102-3M in the C sheets and Tab. 104-3M in the CD sheets for locations and details.
C157: - | D157: - | E157: -
C158: 59 | D158: 2422-0360030 | E158: APRONS, UNCLASSIFIED, 30 IN. DIA.
E159: See Tab. 104-3M in the CD sheets for locations and details.
C160: - | D160: - | E160: -
C161: 60 | D161: 2422-0360036 | E161: APRONS, UNCLASSIFIED, 36 IN. DIA.
E162: See Tab. 102-3M in the C sheets for locations and details.
C163: - | D163: - | E163: -
C164: 61 | D164: 2422-0360042 | E164: APRONS, UNCLASSIFIED, 42 IN. DIA.
E165: See Tab. 104-3M in the CD sheets for locations and details.
C166: - | D166: - | E166: -
C167: 62 | D167: 2422-0360048 | E167: APRONS, UNCLASSIFIED, 48 IN. DIA.
C168: 63 | D168: 2422-0360054 | E168: APRONS, UNCLASSIFIED, 54 IN. DIA.
C169: 64 | D169: 2422-0360060 | E169: APRONS, UNCLASSIFIED, 60 IN. DIA.
E170: See Tab. 104-3M in the CD sheets for locations and details.
E172: Provide CMP aprons for steel pipe or concrete aprons for concrete pipe.
C173: - | D173: - | E173: -
C174: 65 | D174: 2422-0360072 | E174: APRONS, UNCLASSIFIED, 72 IN. DIA.
E175: See Tab. 102-3M in the C sheets for locations and details.
C176: - | D176: - | E176: -
C177: 66 | D177: 2422-0360078 | E177: APRONS, UNCLASSIFIED, 78 IN. DIA.
E178: See Tab. 104-3M in the CD sheets for locations and details.
E180: Provide CMP aprons for steel pipe or concrete aprons for concrete pipe.
C181: - | D181: - | E181: -
C182: 67 | D182: 2422-1722018 | E182: CULVERT, UNCLASSIFIED ENTRANCE PIPE, 18 IN. DIA.
C183: 68 | D183: 2422-1722024 | E183: CULVERT, UNCLASSIFIED ENTRANCE PIPE, 24 IN. DIA.
C184: 69 | D184: 2422-1722036 | E184: CULVERT, UNCLASSIFIED ENTRANCE PIPE, 36 IN. DIA.
C185: 70 | D185: 2422-1722072 | E185: CULVERT, UNCLASSIFIED ENTRANCE PIPE, 72 IN. DIA.
E186: See Tab. 102-3M in the C sheets for locations and details.
C187: - | D187: - | E187: -
C188: 71 | D188: 2422-1723024 | E188: CULVERT, UNCLASSIFIED ROADWAY PIPE, 24 IN. DIA.
C189: 72 | D189: 2422-1723030 | E189: CULVERT, UNCLASSIFIED ROADWAY PIPE, 30 IN. DIA.
C190: 73 | D190: 2422-1723042 | E190: CULVERT, UNCLASSIFIED ROADWAY PIPE, 42 IN. DIA.
C191: 74 | D191: 2422-1723048 | E191: CULVERT, UNCLASSIFIED ROADWAY PIPE, 48 IN. DIA.
E192: See Tab. 104-3M in the CD sheets for locations and details.
C193: - | D193: - | E193: -
C194: 75 | D194: 2502-8212024 | E194: SUBDRAIN, LONGITUDINAL, (BACKSLOPE) 4 IN. DIA.
C195: 76 | D195: 2502-8221306 | E195: SUBDRAIN OUTLET, DR-306
E196: See Tab. 104-9 in the CS sheets for locations and details.
C197: - | D197: - | E197: -
C198: 77 | D198: 2506-4984000 | E198: FLOWABLE MORTAR
E199: See Tab. 104-3M in the CD sheets for locations and details.
C200: - | D200: - | E200: -
C201: 78 | D201: 2507-3250005 | E201: ENGINEERING FABRIC
E202: See Tab. 104-3M in the CD sheets and Tab. 100-23 in the CE sheets for locations and details.
E204: Use material specified for embankment erosion control according to Article 4196.01, B, 3.
E205: Material will be measured in sq. yds. of actual area covered. Refer to details.
C206: - | D206: - | E206: -
C207: 79 | D207: 2507-6800061 | E207: REVETMENT, CLASS E
E208: See Tab. 104-3M in the CD sheets and Tab. 100-23 in the CE sheets for locations and details.
C209: - | D209: - | E209: -
C210: 80 | D210: 2507-8029000 | E210: EROSION STONE
E211: See Tab. 100-23 in the CE sheets for locations and details.
C212: - | D212: - | E212: -
C213: 81 | D213: 2515-6745600 | E213: REMOVAL OF PAVED DRIVEWAY
... 272 more rows

Sheet DE102_3
A1: TabTitle | B1: =C16 -> ACCESS POINTS AND SAFETY RAMPS
A2: Number of Tab Columns | B2: 21
A3: DE Starter Row Number | B3: 33
A4: TabSheet Starter Row Number | B4: 19
A5: TabSheet Header Row Count | B5: 18
A6: Top Header Cell | B6: AA15
A7: Bottom Header Cell | B7: AU32
A8: DESheet Row Count | B8: 122
A9: Fixed Empty Rows | B9: 10
A10: Usable Empty Rows | B10: 0
A11: Total Rows Placed | B11: 132 | C11: xlRight(1) | D11: xlLeft(1) | E11: xlLeft(1) | F11: xlLeft(1) | G11: xlRight(1) | H11: xlRight(1) | I11: xlRight(1) | J11: xlRight(1) | K11: xlRight(1) | L11: xlRight(1) | M11: xlRight(1) | N11: xlRight(1) | O11: xlRight(1) | P11: xlRight(1) | Q11: xlRight(1) | R11: xlRight(1) | T11: xlRight(1) | V11: xlRight(1) | W11: xlRight(1) | X11: xlRight(1) | Y11: xlLeft(1) | AA11: =C11 -> xlRight(1) | AB11: xlLeft(1) | AC11: xlLeft(1) | AD11: xlLeft(1) | AE11: xlRight(1) | AF11: xlRight(1) | AG11: xlRight(1) | AH11: xlRight(1) | AI11: xlRight(1) | AJ11: xlRight(1) | AK11: xlRight(1) | AL11: xlRight(1) | AM11: xlRight(1) | AN11: xlRight(1) | AO11: =Q11 -> xlRight(1) | AQ11: =T11 -> xlRight(1) | AR11: =V11 -> xlRight(1) | AS11: xlRight(1) | AT11: xlRight(1) | AU11: =Y11 -> xlLeft(1)
A12: Total Rows Needed | B12: =SUM(B8:B10) -> 132 | C12: #+00.00 | D12: General | E12: General | F12: General | G12: 0.0 | H12: 0.0 | I12: 0.0 | J12: 0.0 | K12: 0.0 | L12: 0.0 | M12: 0.0 | N12: 0.0 | O12: 0.0 | P12: 0.0 | Q12: 0 | R12: 0 | T12: 0.0 | V12: 0.0 | W12: 0.000 | X12: 0.000 | Y12: General | AA12: #+00.00 | AB12: General | AC12: General | AD12: General | AE12: 0.0 | AF12: 0.0 | AG12: 0.0 | AH12: 0.0 | AI12: 0.0 | AJ12: 0.0 | AK12: 0.0 | AL12: 0.0 | AM12: 0.0 | AN12: 0.0 | AO12: 0 | AQ12: =T12 -> 0.0 | AR12: 0.0 | AS12: 0.000 | AT12: 0.000 | AU12: General
A13: Last Tab DE Starter Row | B13: 105 | C13: =CELL("width",C13) -> 16 | D13: 6 | E13: 20 | F13: 12 | G13: 12 | H13: 12 | I13: 8 | J13: 8 | K13: 8 | L13: 8 | M13: 10 | N13: 10 | O13: 10 | P13: 10 | Q13: 10 | R13: 10 | T13: =CELL("width",T13) -> 10 | V13: =CELL("width",V13) -> 10 | W13: =CELL("width",W13) -> 13 | X13: =CELL("width",X13) -> 13 | Y13: =CELL("width",Y13) -> 94 | AA13: =CELL("width",AA13) -> 0 | AB13: 0 | AC13: 0 | AD13: 0 | AE13: 0 | AF13: 0 | AG13: 0 | AH13: 0 | AI13: 0 | AJ13: 0 | AK13: 0 | AL13: 0 | AM13: 0 | AN13: 0 | AO13: 0 | AQ13: 0 | AR13: 0 | AS13: 0 | AT13: 0 | AU13: 0
A14: Last Tab Tabsheet Starter Row | B14: 109 | C14: A | D14: B | E14: C | F14: D | G14: E | H14: F | I14: G | J14: H | K14: I | L14: J | M14: K | N14: L | O14: M | P14: N | Q14: O | R14: P | T14: Q | V14: R | W14: S | X14: T | Y14: U | AA14: =LOWER(C14) -> a | AB14: b | AC14: c | AD14: d | AE14: e | AF14: f | AG14: g | AH14: h | AI14: i | AJ14: j | AK14: k | AL14: l | AM14: m | AN14: n | AO14: =LOWER(Q14) -> o | AQ14: =LOWER(T14) -> q | AR14: =LOWER(V14) -> r | AS14: =LOWER(W14) -> s | AT14: =LOWER(X14) -> t | AU14: =LOWER(Y14) -> u
A15: Last Copy Starter Row | B15: 91 | M15: Totals: | N15: =SUBTOTAL(9,N33:N6042) -> 12272 | Q15: =SUBTOTAL(9,Q33:Q6042) -> 112 | T15: =SUBTOTAL(9,T33:T6042) -> 0 | V15: =SUBTOTAL(9,V33:V6042) -> 0 | W15: =SUBTOTAL(9,W33:W6042) -> 15903.4 | X15: =SUBTOTAL(9,X33:X6042) -> 11811.114 | AA15: 102-3M | AW15: Pipe Type | AX15: =E26 -> Type
A16: Tab Loop Number | B16: 3 | C16: ACCESS POINTS AND SAFETY RAMPS | AA16: =B17 -> Modified | AW16: Reinforced Concrete Pipe. | AX16: A
A17: Revision Date | B17: Modified | AA17: =C16 -> ACCESS POINTS AND SAFETY RAMPS | AW17: Corrugated Metal Pipe. | AX17: B
A18: Tabulation Width | B18: 4 | AX18: C
A19: Horizontal Grid Lines | B19: Yes | C19: Refer to Cross-Sections | AX19: Safety Ramp
C20: Length of unclassified pipe calculated is based on using | H20: Reinforced Concrete Pipe. | AA20: =C19 -> Refer to Cross-Sections | AX20: Predetermined
C21: Refer to MI-210 | AA21: =C20&H20 -> Length of unclassified pipe calculated is based on using Reinforced Concrete Pipe.
C22: Refer to EW-501. | AA22: =C21 -> Refer to MI-210
C23: Refer to EW-501 or EW-502. | AA23: =C22 -> Refer to EW-501.
C24: *Predetermined for access point not constructed with this project. | AA24: =C23 -> Refer to EW-501 or EW-502.
C25: ="This Data Entry Sheet fills Tab "&AA15&" effective "&TEXT(B17,"mm-dd-yy") -> This Data Entry Sheet fills Tab 102-3M effective Modified | AA25: =C24 -> *Predetermined for access point not constructed with this project.
C26: Location | E26: Type | F26: Length of Opening | L26: Pipe Culvert | Q26: Aprons | R26: Aprons (DR-212) | S26: Driveway Surface Area | W26: Driveway Length | X26: Driveway Surfacing Material | Y26: Remarks | AA26: =C26 -> Location | AC26: =E26 -> Type | AD26: =F26 -> Length of Opening | AG26: =I26 ->  | AH26: =J26 ->  | AI26: =K26 ->  | AJ26: =L26 -> Pipe Culvert | AO26: =Q26 -> Aprons | AP26: =R26 -> Aprons (DR-212) | AQ26: =S26 -> Driveway Surface Area | AS26: =W26 -> Driveway Length | AT26: =X26 -> Driveway Surfacing Material | AU26: =Y26 -> Remarks
C28: Station | D28: Side | E28: A, B, C, Safety Ramp, or Predetermined* | F28: Case | G28: 1½" Dropped Curb | H28: 3" Dropped Curb | S28: HMA Sq. Ft. from Microstation | T28: HMA | U28: PCC Sq. Ft. from Microstation | V28: PCC | AA28: =C28 -> Station | AB28: Side | AC28: A, B, C, Safety Ramp, or Predetermined* | AD28: Case | AE28: 1½" Dropped Curb | AF28: 3" Dropped Curb
M29: Size | N29: Pipe Length | O29: Lt. | P29: Rt. | AJ29: =L28 -> 0 | AK29: =M29 -> Size | AL29: =N29 -> Pipe Length | AM29: =O29 -> Lt. | AN29: =P29 -> Rt. | AQ29: =T28 -> HMA | AR29: =V28 -> PCC
F32: 1 or 2 | G32: LF | H32: LF | I32: FT | J32: FT | K32: FT | L32: FT | M32: IN | N32: LF | O32: LF | P32: LF | Q32: No. | R32: No. | S32: SF | T32: SY | U32: SF | V32: SY | W32: LF | X32: TON | AD32: =F32 -> 1 or 2 | AE32: LF | AF32: LF | AG32: FT | AH32: FT | AI32: FT | AJ32: FT | AK32: IN | AL32: LF | AM32: LF | AN32: LF | AO32: =Q32 -> No. | AP32: No. | AQ32: =T32 -> SY | AR32: =V32 -> SY | AS32: =W32 -> LF | AT32: =X32 -> TON
C33: US 30 | Q33: =IF(M33<>"",2,"") ->  | T33: =IF(S33<>"",S33/9,"") ->  | V33: =IF(U33<>"",U33/9,"") -> 
C34: 11088 | D34: LT | E34: C | Y34: UAC
C35: 12032 | D35: LT | E35: C | I35: 24 | L35: 3.1 | M35: 24 | N35: 78 | O35: 52.8 | P35: 37.4 | Q35: 2 | W35: 87.7 | X35: =(W35*I35*(3/12)*140)/2000 -> 36.834
C36: 12032 | D36: MED | E36: Crossover | I36: 24 | W36: 151.6 | X36: =(W36*I36*(3/12)*140)/2000 -> 63.672 | Y36: Includes surfacing material for crossing both EB and WB lanes.
C37: 12032 | D37: RT | E37: Temp. Connection | I37: 24 | L37: 2.6 | M37: 24 | N37: 93 | O37: 29.2 | P37: 63.6 | W37: 66.7 | X37: =(W37*I37*(3/12)*140)/2000 -> 28.014
C38: 13350 | D38: LT | E38: C | I38: 24 | L38: 3.8 | M38: 24 | N38: 81 | O38: 50.3 | P38: 42.9 | Q38: 2 | W38: 459.2 | X38: 192.864
C39: 13350 | D39: MED | E39: Crossover | I39: 24 | W39: 31.8 | X39: - | Y39: Grading only.
C40: 14350 | D40: LT | E40: C, JOINT | I40: 24 | L40: 5.1 | M40: 24 | N40: 111 | O40: 60.8 | P40: 62.3 | Q40: 2 | W40: 603.9 | X40: 253.638
C41: 14350 | D41: MED | E41: Crossover | I41: 24 | L41: 0.8 | M41: 24 | N41: 52 | O41: 31.4 | P41: 32.9 | R41: 2 | W41: 151.6 | X41: 63.672 | Y41: Includes surfacing material for crossing both EB and WB lanes.
C42: 14350 | D42: RT | E42: Temp. Connection | I42: 24 | L42: 9.5 | M42: 24 | N42: 194 | O42: 78.4 | P42: 115.5 | W42: 95.7 | X42: 40.194
C43: 15656.47 | D43: RT | E43: Temp. Connection | I43: 24 | L43: 4.3 | M43: 24 | N43: 105 | O43: 51.2 | P43: 53.8 | W43: 252.3 | X43: 105.966 | Y43: Includes surfacing material for the median crossing.
C44: 16975 | D44: LT | E44: C, JOINT | I44: 24 | Q44: =IF(M44<>"",2,"") ->  | W44: 394.2 | X44: 165.564
C45: 16975 | D45: MED | E45: Temp. Crossover | I45: 24 | L45: 0.6 | M45: 24x18 | N45: 40 | O45: 19.9 | P45: 20 | W45: 151.6 | X45: 63.672 | Y45: Includes surfacing material for crossing both EB and WB lanes.
C46: 16975 | D46: RT | E46: Temp. Connection | I46: 24 | L46: 7.5 | M46: 24 | N46: 138 | O46: 81.7 | P46: 68.5 | Q46: 2 | W46: 96.4 | X46: 40.488
C47: 18276.22 | D47: RT | E47: Temp. Connection | I47: 24 | L47: 5.8 | M47: 24 | N47: 126 | O47: 57.6 | P47: 68.4 | W47: 244 | X47: 102.48 | Y47: Includes surfacing material for the median crossing.
C48: 18278 | D48: LT | E48: C, JOINT | I48: 24 | L48: 5.9 | M48: 24 | N48: 118 | O48: 55 | P48: 75.2 | Q48: =IF(M48<>"",2,"") -> 2 | W48: 939.2 | X48: 394.464
C49: 19610 | D49: RT | E49: Temp. Connection | I49: 24 | L49: 5.7 | M49: 24 | N49: 125 | O49: 54.4 | P49: 70.6 | W49: 240.6 | X49: 101.052 | Y49: Includes surfacing material for the median crossing.
C50: 20580 | D50: LT | E50: C | I50: 24 | L50: 20.8 | M50: 24 | N50: 346 | O50: 156 | P50: 202.3 | Q50: =IF(M50<>"",2,"") -> 2 | W50: 349.2 | X50: 146.664
C51: 20580 | D51: MED | E51: Crossover | I51: 24 | L51: 0.7 | M51: 24 | N51: 52 | O51: 31.4 | P51: 32.9 | R51: 2 | W51: 151.6 | X51: 63.672 | Y51: Includes surfacing material for crossing both EB and WB lanes.
C52: 20580 | D52: RT | E52: Temp. Connection | I52: 24 | L52: 10.1 | M52: 24 | N52: 228 | O52: 154.7 | P52: 73 | W52: 85.4 | X52: 35.868
C53: 22222.19 | D53: RT | E53: Temp. Connection | I53: 24 | W53: 232.6 | X53: 97.692 | Y53: Includes surfacing material for the median crossing.
C54: 22225 | D54: LT | E54: C, JOINT | I54: 24 | Q54: =IF(M54<>"",2,"") ->  | W54: 124.2 | X54: 52.164
C55: 23540 | D55: LT | E55: C, JOINT | I55: 24 | Q55: =IF(M55<>"",2,"") ->  | T55: =IF(S55<>"",S55/9,"") ->  | V55: =IF(U55<>"",U55/9,"") ->  | W55: 104.2 | X55: =(W55*I55*(3/12)*140)/2000 -> 43.764
C56: 23600 | D56: MED | E56: Temp. Crossover | I56: 24 | L56: 0.6 | M56: 24x18 | N56: 40 | O56: 19.6 | P56: 20.4 | W56: 176.5 | X56: 74.13 | Y56: Includes surfacing material for crossing both EB and WB lanes.
C57: 23600 | D57: RT | E57: Temp. Connection | I57: 24 | W57: 76.6 | X57: 32.172
C58: 25733 | D58: MED | E58: Crossover | I58: 24 | W58: 31.8 | X58: - | Y58: Grading only.
C59: 26175 | D59: LT | E59: C, JOINT | I59: 24 | L59: 9 | M59: 24 | N59: 163 | O59: 87.2 | P59: 88 | Q59: 2 | W59: 188.2 | X59: 79.044
C60: 26175 | D60: MED | E60: Temp. Crossover | I60: 24 | L60: 0.6 | M60: 24x18 | N60: 40 | O60: 19.9 | P60: 20.1 | W60: 152 | X60: 63.84 | Y60: Includes surfacing material for crossing both EB and WB lanes.
C61: 26175 | D61: RT | E61: Temp. Connection | I61: 24 | L61: 5.9 | M61: 24 | N61: 129 | O61: 57.3 | P61: 71.7 | W61: 69 | X61: 28.98
C62: 28152 | D62: RT | E62: Temp. Connection | I62: 24 | L62: 3.7 | M62: 24 | N62: 93 | O62: 47.7 | P62: 45.3 | W62: 215.4 | X62: 90.468 | Y62: Includes surfacing material for the median crossing.
C63: 30000 | D63: RT | E63: Temp. Connection | I63: 24 | L63: 4.5 | M63: 24 | N63: 108 | O63: 59.9 | P63: 48.1 | W63: 58.4 | X63: 24.528
C64: 30135 | D64: LT | E64: C | I64: 24 | Q64: =IF(M64<>"",2,"") ->  | W64: 174.2 | X64: 73.164
C65: 30135 | D65: MED | E65: Crossover | I65: 24 | L65: 0.7 | M65: 24 | N65: 56 | O65: 36 | P65: 32 | R65: 2 | W65: 239.4 | X65: 100.548 | Y65: Includes surfacing material for crossing both EB and WB lanes.
C66: 31442.48 | D66: RT | E66: Temp. Connection | I66: 24 | L66: 2.2 | M66: 24 | N66: 71 | O66: 41.8 | P66: 29.1 | W66: 210.1 | X66: 88.242 | Y66: Includes surfacing material for the median crossing.
C67: 32766 | D67: LT | E67: C, JOINT | I67: 24 | L67: 2.9 | M67: 24 | N67: 67 | O67: 41.4 | P67: 37.9 | Q67: =IF(M67<>"",2,"") -> 2 | W67: 274.2 | X67: 115.164
C68: 32766 | D68: MED | E68: Temp. Crossover | I68: 24 | L68: 0.6 | M68: 24x18 | N68: 40 | O68: 19.9 | P68: 20.1 | W68: 151.6 | X68: 63.672 | Y68: Includes surfacing material for crossing both EB and WB lanes.
C69: 32766 | D69: RT | E69: Temp. Connection | I69: 24 | L69: 1.2 | M69: 24 | N69: 49 | O69: 25.1 | P69: 23.9 | W69: 71.1 | X69: 29.862
C70: 34080 | D70: LT | E70: C, JOINT | I70: 24 | Q70: =IF(M70<>"",2,"") ->  | W70: 193.2 | X70: 81.144
C71: 34080 | D71: MED | E71: Crossover | I71: 24 | L71: 0.7 | M71: 24 | N71: 52 | O71: 31.2 | P71: 33.1 | R71: 2 | W71: 151.6 | X71: 63.672 | Y71: Includes surfacing material for crossing both EB and WB lanes.
C72: 34080 | D72: RT | E72: Temp. Connection | I72: 24 | Q72: =IF(M72<>"",2,"") ->  | W72: 79.2 | X72: 33.264
C73: 35700 | D73: LT | E73: C | I73: 24 | L73: 3.3 | M73: 24 | N73: 76 | O73: 51.3 | P73: 36.9 | Q73: 2 | W73: 149.2 | X73: 62.664
C74: 35700 | D74: MED | E74: Temp. Crossover | I74: 24 | W74: 151.6 | X74: 63.672 | Y74: Includes surfacing material for crossing both EB and WB lanes.
C75: 35700 | D75: RT | E75: Temp. Connection | I75: 24 | L75: 4.1 | M75: 24 | N75: 112 | O75: 37.1 | P75: 74.8 | W75: 86 | X75: 36.12
C76: 36706.89 | D76: RT | E76: Temp. Connection | I76: 24 | W76: 241.6 | X76: 101.472 | Y76: Includes surfacing material for the median crossing.
C77: 37850 | D77: LT | E77: C | I77: 24 | L77: 23.7 | M77: 24 | N77: 328 | O77: 134.8 | P77: 203.7 | Q77: =IF(M77<>"",2,"") -> 2 | T77: =IF(S77<>"",S77/9,"") ->  | V77: =IF(U77<>"",U77/9,"") ->  | W77: 1074.2 | X77: - | Y77: Grading only.
C78: 37850 | D78: MED | E78: Crossover | I78: 24 | L78: 0.8 | M78: 24 | N78: 54 | O78: 32.4 | P78: 33.9 | R78: 2 | W78: 31.8 | X78: - | Y78: Grading only.
C79: 39260 | D79: LT | E79: C | I79: 24 | L79: 3.1 | M79: 72 | N79: 70 | O79: 43.6 | P79: 42.9 | Q79: 2 | W79: 189.2 | X79: 79.464
C80: 39260 | D80: MED | E80: Crossover | I80: 24 | W80: 151.6 | X80: 63.672 | Y80: Includes surfacing material for crossing both EB and WB lanes.
C81: 39260 | D81: RT | E81: Temp. Connection | I81: 24 | L81: 7.1 | M81: 36 | N81: 136 | O81: 71.8 | P81: 80.1 | Q81: 2 | W81: 100.8 | X81: 42.336
C82: 42343 | D82: LT | E82: C | I82: 24 | L82: 20.7 | M82: 24 | N82: 340 | O82: 193.5 | P82: 158.4 | Q82: 2 | W82: 379.2 | X82: 159.264
C83: 42343 | D83: MED | E83: Temp. Crossover | I83: 24 | L83: 0.6 | M83: 24x18 | N83: 40 | O83: 18.9 | P83: 21.1 | W83: 151.6 | X83: 63.672 | Y83: Includes surfacing material for crossing both EB and WB lanes.
C84: 42343 | D84: RT | E84: Temp. Connection | I84: 24 | L84: 3.6 | M84: 24 | N84: 94 | O84: 52.2 | P84: 41.8 | W84: 75.4 | X84: 31.668
C85: 43210 | D85: LT | E85: C | I85: 24 | L85: 7.7 | M85: 24 | N85: 130 | O85: 89.9 | P85: 51.7 | Q85: 2 | W85: 94.2 | X85: 39.564
C86: 43210 | D86: MED | E86: Crossover | I86: 24 | L86: 0.7 | M86: 24 | N86: 52 | O86: 32.2 | P86: 32 | R86: 2 | W86: 151.6 | X86: 63.672 | Y86: Includes surfacing material for crossing both EB and WB lanes.
C87: 43210 | D87: RT | E87: Temp. Connection | I87: 24 | L87: 5.9 | M87: 24 | N87: 136 | O87: 54.5 | P87: 81.4 | W87: 70.5 | X87: 29.61
C88: 44860 | D88: LT | E88: C | I88: 24 | Q88: =IF(M88<>"",2,"") ->  | W88: 254.2 | X88: 106.764
C89: 44860 | D89: MED | E89: Temp. Crossover | I89: 24 | L89: 0.6 | M89: 24x18 | N89: 40 | O89: 19.9 | P89: 20.1 | W89: 151.6 | X89: 63.672 | Y89: Includes surfacing material for crossing both EB and WB lanes.
C90: 44860 | D90: RT | E90: Temp. Connection | I90: 24 | W90: 64.9 | X90: 27.258
C91: 47335.67 | D91: RT | E91: Temp. Connection | I91: 24 | L91: 4.3 | M91: 24 | N91: 149 | O91: 36.3 | P91: 112.3 | W91: 219.3 | X91: 92.106 | Y91: Includes surfacing material for the median crossing.
C92: 48550 | D92: LT | E92: C | I92: 24 | L92: 4.2 | M92: 24 | N92: 80 | O92: 56.4 | P92: 35.6 | Q92: =IF(M92<>"",2,"") -> 2 | W92: 99.2 | X92: 41.664
C93: 48550 | D93: MED | E93: Temp. Crossover | I93: 24 | L93: 0.5 | M93: 24x18 | N93: 40 | O93: 19.9 | P93: 20.1 | W93: 151.6 | X93: 63.672 | Y93: Includes surfacing material for crossing both EB and WB lanes.
C94: 48550 | D94: RT | E94: Temp. Connection | I94: 24 | L94: 3.1 | M94: 24 | N94: 85 | O94: 40.9 | P94: 44.1 | W94: 62.8 | X94: 26.376
C95: 49800 | D95: MED | E95: Crossover | I95: 24 | W95: 151.6 | X95: 63.672 | Y95: Includes surfacing material for crossing both EB and WB lanes.
C96: 49800 | D96: RT | E96: Temp. Connection | I96: 24 | L96: 5.1 | M96: 24 | N96: 119 | O96: 50.8 | P96: 68.1 | W96: 59.2 | X96: 24.864
C97: 52700 | D97: LT | E97: C | I97: 24 | L97: 7.7 | M97: 24 | N97: 142 | O97: 73.8 | P97: 80.5 | Q97: 2 | W97: 144.2 | X97: 60.564
C98: 52700 | D98: MED | E98: Crossover | I98: 24 | W98: 31.8 | X98: - | Y98: Grading only.
C99: 54400 | D99: LT | E99: C, JOINT | I99: 24 | L99: 6.4 | M99: 24 | N99: 122 | O99: 82.5 | P99: 51.5 | Q99: 2 | W99: 887.2 | X99: 372.624
C100: 54400 | D100: MED | E100: Crossover | I100: 24 | W100: 151.6 | X100: 63.672 | Y100: Includes surfacing material for crossing both EB and WB lanes.
C101: 54400 | D101: RT | E101: Temp. Connection | I101: 24 | L101: 0.8 | M101: 24 | N101: 52 | O101: 29.5 | P101: 22.5 | W101: 49.5 | X101: =(W101*I101*(3/12)*140)/2000 -> 20.79
C102: 55710 | D102: MED | E102: Crossover | I102: 24 | W102: 31.8 | X102: - | Y102: Grading only.
C103: 56250 | D103: LT | E103: C | I103: 24 | L103: 3.6 | M103: 24 | N103: 66 | O103: 39.1 | P103: 39.2 | Q103: 2 | W103: 124.2 | X103: 52.164
C104: 56250 | D104: MED | E104: Temp. Crossover | I104: 24 | L104: 0.6 | M104: 24x18 | N104: 40 | O104: 19 | P104: 20.9 | W104: 151.6 | X104: 63.672 | Y104: Includes surfacing material for crossing both EB and WB lanes.
C105: 56250 | D105: RT | E105: Temp. Connection | I105: 24 | L105: 3.1 | M105: 24 | N105: 94 | O105: 35.1 | P105: 58.8 | W105: 55.8 | X105: 23.436
C106: 57025 | D106: MED | E106: Crossover | I106: 24 | L106: 0.7 | M106: 24 | N106: 52 | O106: 31.7 | P106: 32.5 | R106: 2 | W106: 31.8 | X106: - | Y106: Grading only.
C107: 63590 | D107: LT | E107: C, JOINT | I107: 24 | Q107: =IF(M107<>"",2,"") ->  | W107: 274.2 | X107: 115.164
C108: 63850 | D108: RT | E108: Temp. Connection | I108: 24 | L108: 1.4 | M108: 24 | N108: 64 | O108: 41 | P108: 22.9 | W108: 59.7 | X108: =(W108*I108*(3/12)*140)/2000 -> 25.074
C109: 65090 | D109: LT | E109: C | I109: 24 | L109: 7.7 | M109: 24 | N109: 148 | O109: 66.1 | P109: 93.6 | Q109: 2 | W109: 109.2 | X109: 45.864
C110: 65090 | D110: MED | E110: Crossover | I110: 24 | W110: 151.6 | X110: 63.672 | Y110: Includes surfacing material for crossing both EB and WB lanes.
C111: 65090 | D111: RT | E111: Temp. Connection | I111: 24 | L111: 0.6 | M111: 24x18 | N111: 42 | O111: 19.6 | P111: 22.3 | W111: 46.5 | X111: 19.53
C112: 67010 | D112: MED | E112: Crossover | I112: 24 | L112: 0.7 | M112: 24 | N112: 52 | O112: 31 | P112: 33.2 | R112: 2 | W112: 72.3 | X112: 30.366
C113: 68846.15 | D113: MED | E113: Temp. Crossover | I113: 24 | W113: 106.8 | X113: 44.856 | Y113: Includes surfacing material for the median crossing.
C115: Ent. 143+50 Lt.
C116: 65 | I116: 24 | L116: 1.5 | M116: 18 | N116: 61 | O116: 57.9 | P116: 15 | Q116: 2 | W116: - | X116: - | Y116: Additional pipe for 'T' Ent.
C117: 22.61 | I117: 24 | L117: 2 | M117: 18 | N117: 21 | O117: 30.9 | P117: 27.3 | Q117: 2 | W117: - | X117: - | Y117: Additional pipe for 'T' Ent.
C119: Ent. 423+43 Lt.
C120: 335 | I120: 24 | L120: 7.1 | M120: 24 | N120: 65 | O120: 36.8 | P120: 40.4 | Q120: 2 | W120: - | X120: - | Y120: Additional pipe for 'T' Ent.
C122: Ent. 5+44 Lt.
C123: 200 | I123: 24 | L123: 2.1 | M123: 24 | N123: 38 | O123: 18 | P123: 32 | Q123: 2 | W123: - | X123: - | Y123: Additional pipe for 'T' Ent.
C125: N Ave. (N)
C126: 115900 | D126: LT | E126: C | I126: 24 | L126: 1.4 | M126: 24 | N126: 30 | O126: 21.5 | P126: 20.7 | Q126: 2 | W126: 59.5 | X126: 24.99
C128: O Ave. (N)
C129: 319825 | D129: LT | E129: C | I129: 24 | L129: 3.8 | M129: 24 | N129: 46 | O129: 30.9 | P129: 27.3 | Q129: 2 | W129: 167.9 | X129: 70.518
C131: Q Ave. (N)
C132: 731843 | D132: LT | E132: C | I132: 24 | L132: 1.8 | M132: 24 | N132: 35 | O132: 23.6 | P132: 23.6 | Q132: 2 | W132: 68.9 | X132: 28.938
C133: 731888 | D133: RT | E133: C | I133: 24 | L133: 1.4 | M133: 24 | N133: 32 | O133: 23.4 | P133: 20.7 | Q133: 2 | W133: 66.9 | X133: 28.098
C135: R Ave. (N)
C136: 836960 | D136: LT | E136: C | I136: 24 | L136: 5.6 | M136: 24 | N136: 58 | O136: 37 | P136: 33.2 | Q136: 2 | W136: 66.2 | X136: 27.804
C137: 837671.05 | D137: RT | E137: Temp. Entrance | I137: 12 | W137: 1155.1 | X137: 242.571
T139: =IF(S139<>"",S139/9,"") ->  | V139: =IF(U139<>"",U139/9,"") -> 
C140: TOTALS: | N140: =SUM(N34:N139) -> 6136 | Q140: =SUM(Q34:Q139) -> 56 | R140: =SUM(R34:R139) -> 16 | X140: =SUM(X34:X139) -> 5905.557
C143: BID ITEMS:
D144: APRONS, UNCLASSIFIED, 18 IN. DIA. | J144: 4 | L144: EACH | Q144: =IF(M144<>"",2,"") -> 
D145: APRONS, UNCLASSIFIED, 24 IN. DIA. | J145: 48 | L145: EACH | Q145: =IF(M145<>"",2,"") -> 
D146: APRONS, UNCLASSIFIED, 36 IN. DIA. | J146: 2 | L146: EACH
D147: APRONS, UNCLASSIFIED, 72 IN. DIA. | J147: 2 | L147: EACH | Q147: =IF(M147<>"",2,"") -> 
D148: BEVELED PIPE AND GUARD, 24 INCH | J148: 16 | L148: EACH
D149: CULVERT, UNCLASSIFIED ENTRANCE PIPE, 18 IN. DIA. | J149: 82 | L149: LF | Q149: =IF(M149<>"",2,"") -> 
D150: CULVERT, UNCLASSIFIED ENTRANCE PIPE, 24 IN. DIA. | J150: 5486 | L150: LF | T150: =IF(S150<>"",S150/9,"") -> 
D151: CULVERT, UNCLASSIFIED ENTRANCE PIPE, 36 IN. DIA. | J151: 136 | L151: LF
D152: CULVERT, UNCLASSIFIED ENTRANCE PIPE, 72 IN. DIA. | J152: 70 | L152: LF
D153: CULVERT, CORRUGATED METAL ARCH ENTRANCE PIPE, 24 IN. X 18 IN. | J153: 362 | L153: LF
D154: SURFACING, DRIVEWAY, CLASS A CRUSHED STONE | J154: =X140 -> 5905.557 | L154: TON
V160: =IF(U160<>"",U160/9,"") -> 
Q175: =IF(M175<>"",2,"") -> 
T203: =IF(S203<>"",S203/9,"") ->  | V203: =IF(U203<>"",U203/9,"") -> 
Q239: =IF(M239<>"",2,"") -> 
T267: =IF(S267<>"",S267/9,"") ->  | V267: =IF(U267<>"",U267/9,"") -> 
Q303: =IF(M303<>"",2,"") -> 
T331: =IF(S331<>"",S331/9,"") ->  | V331: =IF(U331<>"",U331/9,"") -> 
Q367: =IF(M367<>"",2,"") -> 
T395: =IF(S395<>"",S395/9,"") ->  | V395: =IF(U395<>"",U395/9,"") -> 
Q431: =IF(M431<>"",2,"") -> 
T459: =IF(S459<>"",S459/9,"") ->  | V459: =IF(U459<>"",U459/9,"") -> 
Q495: =IF(M495<>"",2,"") -> 
T523: =IF(S523<>"",S523/9,"") ->  | V523: =IF(U523<>"",U523/9,"") -> 
Q559: =IF(M559<>"",2,"") -> 
T587: =IF(S587<>"",S587/9,"") ->  | V587: =IF(U587<>"",U587/9,"") -> 
Q623: =IF(M623<>"",2,"") -> 
T651: =IF(S651<>"",S651/9,"") ->  | V651: =IF(U651<>"",U651/9,"") -> 
Q687: =IF(M687<>"",2,"") -> 
T715: =IF(S715<>"",S715/9,"") ->  | V715: =IF(U715<>"",U715/9,"") -> 
Q751: =IF(M751<>"",2,"") -> 
T779: =IF(S779<>"",S779/9,"") ->  | V779: =IF(U779<>"",U779/9,"") -> 
Q815: =IF(M815<>"",2,"") -> 
T843: =IF(S843<>"",S843/9,"") ->  | V843: =IF(U843<>"",U843/9,"") -> 
Q879: =IF(M879<>"",2,"") -> 
T907: =IF(S907<>"",S907/9,"") ->  | V907: =IF(U907<>"",U907/9,"") -> 
Q943: =IF(M943<>"",2,"") -> 
T971: =IF(S971<>"",S971/9,"") ->  | V971: =IF(U971<>"",U971/9,"") -> 
Q1007: =IF(M1007<>"",2,"") -> 
T1035: =IF(S1035<>"",S1035/9,"") ->  | V1035: =IF(U1035<>"",U1035/9,"") -> 
Q1071: =IF(M1071<>"",2,"") -> 
T1099: =IF(S1099<>"",S1099/9,"") ->  | V1099: =IF(U1099<>"",U1099/9,"") -> 
Q1135: =IF(M1135<>"",2,"") -> 
T1163: =IF(S1163<>"",S1163/9,"") ->  | V1163: =IF(U1163<>"",U1163/9,"") -> 
Q1199: =IF(M1199<>"",2,"") -> 
T1227: =IF(S1227<>"",S1227/9,"") ->  | V1227: =IF(U1227<>"",U1227/9,"") -> 
Q1263: =IF(M1263<>"",2,"") -> 
T1291: =IF(S1291<>"",S1291/9,"") ->  | V1291: =IF(U1291<>"",U1291/9,"") -> 
Q1327: =IF(M1327<>"",2,"") -> 
T1355: =IF(S1355<>"",S1355/9,"") ->  | V1355: =IF(U1355<>"",U1355/9,"") -> 
Q1391: =IF(M1391<>"",2,"") -> 
T1419: =IF(S1419<>"",S1419/9,"") ->  | V1419: =IF(U1419<>"",U1419/9,"") -> 
Q1455: =IF(M1455<>"",2,"") -> 
T1483: =IF(S1483<>"",S1483/9,"") ->  | V1483: =IF(U1483<>"",U1483/9,"") -> 
Q1519: =IF(M1519<>"",2,"") -> 
T1547: =IF(S1547<>"",S1547/9,"") ->  | V1547: =IF(U1547<>"",U1547/9,"") -> 
Q1583: =IF(M1583<>"",2,"") -> 
T1611: =IF(S1611<>"",S1611/9,"") ->  | V1611: =IF(U1611<>"",U1611/9,"") -> 
Q1647: =IF(M1647<>"",2,"") -> 
T1675: =IF(S1675<>"",S1675/9,"") ->  | V1675: =IF(U1675<>"",U1675/9,"") -> 
Q1711: =IF(M1711<>"",2,"") -> 
T1739: =IF(S1739<>"",S1739/9,"") ->  | V1739: =IF(U1739<>"",U1739/9,"") -> 
Q1775: =IF(M1775<>"",2,"") -> 
T1803: =IF(S1803<>"",S1803/9,"") ->  | V1803: =IF(U1803<>"",U1803/9,"") -> 
Q1839: =IF(M1839<>"",2,"") -> 
T1867: =IF(S1867<>"",S1867/9,"") ->  | V1867: =IF(U1867<>"",U1867/9,"") -> 
Q1903: =IF(M1903<>"",2,"") -> 
T1931: =IF(S1931<>"",S1931/9,"") ->  | V1931: =IF(U1931<>"",U1931/9,"") -> 
Q1967: =IF(M1967<>"",2,"") -> 
T1995: =IF(S1995<>"",S1995/9,"") ->  | V1995: =IF(U1995<>"",U1995/9,"") -> 
... 74 more rows

Sheet DE103_11
A1: TabTitle | B1: =C16 -> SELECT TREATMENT
A2: Number of Tab Columns | B2: 25
A3: DE Starter Row Number | B3: 60
A4: TabSheet Starter Row Number | B4: 46
A5: TabSheet Header Row Count | B5: 45
A6: Top Header Cell | B6: AE15
A7: Bottom Header Cell | B7: BC59
A8: DESheet Row Count | B8: 40
A9: Fixed Empty Rows | B9: 5
A10: Usable Empty Rows | B10: 0
A11: Total Rows Placed | B11: 45 | C11: xlLeft(1) | D11: xlLeft(1) | E11: xlRight(1) | F11: xlRight(1) | G11: xlRight(1) | J11: xlRight(1) | K11: xlRight(1) | L11: xlRight(1) | M11: xlRight(1) | N11: xlRight(1) | O11: xlRight(1) | P11: xlRight(1) | Q11: xlRight(1) | R11: xlRight(1) | S11: xlRight(1) | T11: xlRight(1) | U11: xlRight(1) | V11: xlRight(1) | W11: xlRight(1) | X11: xlRight(1) | Y11: xlRight(1) | Z11: xlRight(1) | AA11: xlRight(1) | AB11: xlRight(1) | AC11: xlLeft(1) | AE11: =C11 -> xlLeft(1) | AF11: xlLeft(1) | AG11: xlRight(1) | AH11: xlRight(1) | AI11: xlRight(1) | AJ11: =J11 -> xlRight(1) | AK11: xlRight(1) | AL11: xlRight(1) | AM11: xlRight(1) | AN11: xlRight(1) | AO11: xlRight(1) | AP11: xlRight(1) | AQ11: xlRight(1) | AR11: xlRight(1) | AS11: xlRight(1) | AT11: xlRight(1) | AU11: xlRight(1) | AV11: xlRight(1) | AW11: xlRight(1) | AX11: xlRight(1) | AY11: xlRight(1) | AZ11: =Z11 -> xlRight(1) | BA11: xlRight(1) | BB11: xlRight(1) | BC11: xlLeft(1)
A12: Total Rows Needed | B12: =SUM(B8:B10) -> 45 | C12: General | D12: General | E12: #+00.00 | F12: #+00.00 | G12: 0.0 | J12: 0.0 | K12: 0.0 | L12: 0.0 | M12: 0.0 | N12: 0.0 | O12: 0.0 | P12: 0.0 | Q12: 0.0 | R12: 0.0 | S12: 0.0 | T12: 0.0 | U12: 0.0 | V12: 0.0 | W12: 0.0 | X12: 0.0 | Y12: 0.0 | Z12: 0.0 | AA12: 0.0 | AB12: 0.0 | AC12: General | AE12: General | AF12: General | AG12: #+00.00 | AH12: #+00.00 | AI12: 0.0 | AJ12: 0.0 | AK12: 0.0 | AL12: 0.0 | AM12: 0.0 | AN12: 0.0 | AO12: 0.0 | AP12: 0.0 | AQ12: 0.0 | AR12: 0.0 | AS12: 0.0 | AT12: 0.0 | AU12: 0.0 | AV12: 0.0 | AW12: 0.0 | AX12: 0.0 | AY12: 0.0 | AZ12: 0.0 | BA12: 0.0 | BB12: 0.0 | BC12: General
A13: Last Tab DE Starter Row | B13: 60 | C13: =CELL("width",C13) -> 30 | D13: 11 | E13: 16 | F13: 16 | G13: 10 | J13: 10 | K13: 10 | L13: 10 | M13: 10 | N13: 10 | O13: 12 | P13: 12 | Q13: 10 | R13: 10 | S13: 10 | T13: 10 | U13: 10 | V13: 10 | W13: 10 | X13: 10 | Y13: 12 | Z13: 16 | AA13: 12 | AB13: 12 | AC13: 18 | AE13: =CELL("width",AE13) -> 0 | AF13: 0 | AG13: 0 | AH13: 0 | AI13: 0 | AJ13: 0 | AK13: 0 | AL13: 0 | AM13: 0 | AN13: 0 | AO13: 0 | AP13: 0 | AQ13: 0 | AR13: 0 | AS13: 0 | AT13: 0 | AU13: 0 | AV13: 0 | AW13: 0 | AX13: 0 | AY13: 0 | AZ13: 0 | BA13: 0 | BB13: 0 | BC13: 0
A14: Last Tab TabSheet Starter Row | B14: 46 | C14: A | D14: B | E14: C | F14: D | G14: E | J14: F | K14: G | L14: H | M14: I | N14: J | O14: K | P14: L | Q14: M | R14: N | S14: O | T14: P | U14: Q | V14: R | W14: S | X14: T | Y14: U | Z14: V | AA14: W | AB14: X | AC14: Y | AE14: =LOWER(C14) -> a | AF14: =LOWER(D14) -> b | AG14: =LOWER(E14) -> c | AH14: =LOWER(F14) -> d | AI14: =LOWER(G14) -> e | AJ14: =LOWER(J14) -> f | AK14: =LOWER(K14) -> g | AL14: h | AM14: i | AN14: j | AO14: k | AP14: l | AQ14: m | AR14: n | AS14: o | AT14: p | AU14: q | AV14: r | AW14: s | AX14: t | AY14: u | AZ14: v | BA14: w | BB14: x | BC14: y
A15: Last Copy Starter Row | B15: 1 | AB15: =SUBTOTAL(9,AB59:AB6013) -> 856147.3333 | AE15: 103-11
A16: Tab Loop Number | B16: 2 | C16: SELECT TREATMENT | AE16: =B17 -> 2017-10-17
A17: Revision Date | B17: 2017-10-17 | AE17: =C16 -> SELECT TREATMENT
A18: Tabulation Width | B18: 4 | C18: Possible Detail: G_4D_Grade_Delay_S
A19: Horizontal Grid Lines | B19: Yes | C19: ="This Data Entry Sheet fills Tab "&AE15&" effective "&TEXT(B17,"mm-dd-yy") -> This Data Entry Sheet fills Tab 103-11 effective 10-17-17 | AE19: =C18 -> Possible Detail: G_4D_Grade_Delay_S
C50: Moisture control is required for select soils treatment and is incidental to placement of the material. | AE50: =C50 -> Moisture control is required for select soils treatment and is incidental to placement of the material.
C52: Location | G52: Mainline | Q52: Section Area | Z52: Total Area (Mainline + Section) | AA52: Select Treament Thickness | AB52: Contractor Furnished Select Treatment | AC52: Remarks | AE52: =C52 -> Location | AI52: =G52 -> Mainline | AQ52: =Q52 -> Section Area | AZ52: =Z52 -> Total Area (Mainline + Section) | BA52: =AA52 -> Select Treament Thickness | BB52: =AB52 -> Contractor Furnished Select Treatment | BC52: =AC52 -> Remarks
C53: Road Identification | D53: Direction of Travel | E53: Station to Station | G53: Length | H53: Width | K53: Shoulder Width | O53: Pavement & Subgrade Thickness | P53: Area | Y53: Area | AE53: =C53 -> Road Identification | AF53: =D53 -> Direction of Travel | AG53: =E53 -> Station to Station | AI53: =G53 -> Length | AJ53: =H53 -> Width | AK53: =K53 -> Shoulder Width | AO53: =O53 -> Pavement & Subgrade Thickness | AP53: =P53 -> Area | AY53: =Y53 -> Area
K54: Median Side | M54: Outside | AK54: =K54 -> Median Side | AM54: =M54 -> Outside
H56: Inside Lane | I56: Outside Lane | J56: Total
G59: FT | H59: FT | I59: FT | J59: FT | K59: FT | L59: FT | M59: FT | N59: FT | O59: IN | P59: SF | Q59: SF | R59: SF | S59: SF | T59: SF | U59: SF | V59: SF | W59: SF | X59: SF | Y59: SF | Z59: SF | AA59: IN | AB59: CY | AI59: =G59 -> FT | AJ59: =J59 -> FT | AK59: =K59 -> FT | AL59: FT | AM59: FT | AN59: FT | AO59: IN | AP59: SF | AQ59: SF | AR59: SF | AS59: SF | AT59: SF | AU59: SF | AV59: SF | AW59: SF | AX59: SF | AY59: SF | AZ59: SF | BA59: IN | BB59: CY
G60: =IF(AND($E60<>"",$F60<>""),ABS($F60-$E60),"") ->  | H60: =IF(G60<>"",12,"") ->  | I60: =IF(G60<>"",14,"") ->  | J60: =IF(G60<>"",H60+I60,"") ->  | P60: =IF(F60<>"",G60*(J60+K60+L60+M60+N60),"") ->  | Y60: =IF(SUM(Q60:X60)>0,SUM(Q60:X60),"") ->  | Z60: =IF(F60<>"",SUM(P60,Y60),"") ->  | AB60: =IF(AA60<>"",(Z60*(AA60/12))/27,"") -> 
C61: US 30 | D61: WB | E61: 11130.57 | F61: 26574.32 | G61: =IF(AND($E61<>"",$F61<>""),$F61-$E61,"") -> 15443.75 | H61: =IF(G61<>"",12,"") -> 12 | I61: =IF(G61<>"",14,"") -> 14 | J61: =IF(G61<>"",H61+I61,"") -> 26 | K61: 2 | L61: 4 | M61: 4 | N61: 4 | O61: 16 | P61: =IF(F61<>"",G61*(J61+K61+L61+M61+N61),"") -> 617750 | Y61: =IF(SUM(Q61:X61)>0,SUM(Q61:X61),"") ->  | Z61: =IF(F61<>"",SUM(P61,Y61),"") -> 617750 | AA61: 30 | AB61: =IF(AA61<>"",(Z61*(AA61/12))/27,"") -> 57199.07407
C62: US 30 | D62: WB | E62: 27034.87 | F62: 50750 | G62: 23715.13 | H62: =IF(G62<>"",12,"") -> 12 | I62: =IF(G62<>"",14,"") -> 14 | J62: =IF(G62<>"",H62+I62,"") -> 26 | K62: 2 | L62: 4 | M62: 4 | N62: 4 | O62: 16 | P62: =IF(F62<>"",G62*(J62+K62+L62+M62+N62),"") -> 948605.2 | Y62: =IF(SUM(Q62:X62)>0,SUM(Q62:X62),"") ->  | Z62: =IF(F62<>"",SUM(P62,Y62),"") -> 948605.2 | AA62: 30 | AB62: 87833.81481
C63: US 30 | D63: WB | E63: 51050 | F63: 69518.51 | G63: 18468.51 | H63: 12 | I63: 14 | J63: 26 | K63: 2 | L63: 4 | M63: 4 | N63: 4 | O63: 16 | P63: 738740.4 | Y63: =IF(SUM(Q63:X63)>0,SUM(Q63:X63),"") ->  | Z63: 738740.4 | AA63: 30 | AB63: 68401.88889
C64: US 30 | D64: WB | E64: 70119.51 | F64: 70500 | G64: 380.49 | H64: 12 | I64: 14 | J64: 26 | K64: 2 | L64: 4 | M64: 4 | N64: 4 | O64: 16 | P64: =IF(F64<>"",G64*(J64+K64+L64+M64+N64),"") -> 15219.6 | Z64: 15219.6 | AA64: 30 | AB64: 1409.222222
C67: US 30 | D67: WB | E67: Intersection at N Ave. | T67: 2520 | U67: 4143.6 | Y67: 6663.6 | Z67: =Y67 -> 6663.6 | AA67: 30 | AB67: 617
C68: US 30 | D68: WB | E68: Intersection at O Ave. (S) | T68: 2520 | U68: 4124 | Y68: 6644 | Z68: =Y68 -> 6644 | AA68: 30 | AB68: 615.1851852
C69: US 30 | D69: WB | E69: Intersection at O Ave. (N) | T69: 2520 | U69: 2962.6 | Y69: 5482.6 | Z69: 5482.6 | AA69: 30 | AB69: 507.6481481
C70: US 30 | D70: WB | E70: Intersection at P Ave. (S) | T70: 2520 | U70: 4124 | Y70: 6644 | Z70: 6644 | AA70: 30 | AB70: 615.1851852
C71: US 30 | D71: WB | E71: Intersection at P Ave. (N) | T71: 2520 | U71: 2962.6 | Y71: 5482.6 | Z71: 5482.6 | AA71: 30 | AB71: 507.6481481
C72: US 30 | D72: WB | E72: Intersection at Q Ave. (N) | T72: 2520 | U72: 2962.6 | Y72: 5482.6 | Z72: 5482.6 | AA72: 30 | AB72: 507.6481481
C73: US 30 | D73: WB | E73: Intersection at R Ave. | T73: 2520 | U73: 4143.6 | Y73: 6663.6 | Z73: 6663.6 | AA73: 30 | AB73: 617
C74: US 30 | D74: WB | E74: Intersection at T Ave. | T74: 2520 | U74: 4143.6 | Y74: 6663.6 | Z74: 6663.6 | AA74: 30 | AB74: 617
C75: US 30 | D75: WB | E75: Intersection at Co. Rd. V18 | S75: 3047 | T75: 2520 | U75: 629 | Y75: 6196 | Z75: 6196 | AA75: 30 | AB75: 573.7037037 | AC75: Portion of E
C76: US 30 | D76: WB | E76: Intersection at V Ave. | T76: 2520 | U76: 4143.6 | Y76: 6663.6 | Z76: 6663.6 | AA76: 30 | AB76: 617
C77: US 30 | D77: WB | E77: Intersection at W Ave. | T77: 2520 | U77: 4143.6 | Y77: 6663.6 | Z77: 6663.6 | AA77: 30 | AB77: 617
C78: US 30 | D78: WB | E78: Intersection at WW Ave. | T78: 2520 | U78: 4123 | Y78: 6643 | Z78: 6643 | AA78: 30 | AB78: 615.0925926
C79: US 30 | D79: WB | E79: Intersection at X Ave. | T79: 2520 | U79: 4207.2 | Y79: 6727.2 | Z79: 6727.2 | AA79: 30 | AB79: 622.8888889
C81: US 30 | D81: EB | E81: 11800 | F81: 26627.43 | G81: 14827.43 | H81: 12 | I81: 14 | J81: 26 | K81: 2 | L81: 4 | M81: 4 | N81: 4 | O81: 16 | P81: 593097.2 | Z81: 593097.2 | AA81: 30 | AB81: 54916.40741
C82: US 30 | D82: EB | E82: 27087.99 | F82: 50750 | G82: 23662.01 | H82: 12 | I82: 14 | J82: 26 | K82: 2 | L82: 4 | M82: 4 | N82: 4 | O82: 16 | P82: 946480.4 | Z82: 946480.4 | AA82: 30 | AB82: 87637.07407
C83: US 30 | D83: EB | E83: 51050 | F83: 66300 | G83: 15250 | H83: 12 | I83: 14 | J83: 26 | K83: 2 | L83: 4 | M83: 4 | N83: 4 | O83: 16 | P83: 610000 | Z83: 610000 | AA83: 30 | AB83: 56481.48148
C85: US 30 | D85: EB | E85: Intersection at N Ave. | T85: 2520 | U85: 4143.6 | Y85: 6663.6 | Z85: =Y85 -> 6663.6 | AA85: 30 | AB85: 617
C86: US 30 | D86: EB | E86: Intersection at O Ave. (S) | T86: 2520 | U86: 2962.6 | Y86: 5482.6 | Z86: =Y86 -> 5482.6 | AA86: 30 | AB86: 507.6481481
C87: US 30 | D87: EB | E87: Intersection at O Ave. (N) | T87: 2520 | U87: 4124 | Y87: 6644 | Z87: 6644 | AA87: 30 | AB87: 615.1851852
C88: US 30 | D88: EB | E88: Intersection at P Ave. (S) | T88: 2520 | U88: 2962.6 | Y88: 5482.6 | Z88: 5482.6 | AA88: 30 | AB88: 507.6481481
C89: US 30 | D89: EB | E89: Intersection at P Ave. (N) | T89: 2520 | U89: 4124 | Y89: 6644 | Z89: 6644 | AA89: 30 | AB89: 615.1851852
C90: US 30 | D90: EB | E90: Intersection at Q Ave. (N) | T90: 2520 | U90: 4124 | Y90: 6644 | Z90: 6644 | AA90: 30 | AB90: 615.1851852
C91: US 30 | D91: EB | E91: Intersection at R Ave. | T91: 2520 | U91: 4143.6 | Y91: 6663.6 | Z91: 6663.6 | AA91: 30 | AB91: 617
C92: US 30 | D92: EB | E92: Intersection at T Ave. | T92: 2520 | U92: 4143.6 | Y92: 6663.6 | Z92: 6663.6 | AA92: 30 | AB92: 617
C93: US 30 | D93: EB | E93: Intersection at Co. Rd. V18 | U93: 985 | Y93: 985 | Z93: 985 | AA93: 30 | AB93: 91.2037037 | AC93: Portion of E
C94: US 30 | D94: EB | E94: Intersection at V Ave. | T94: 2520 | U94: 4143.6 | Y94: 6663.6 | Z94: 6663.6 | AA94: 30 | AB94: 617
C95: US 30 | D95: EB | E95: Intersection at W Ave. | T95: 2520 | U95: 4143.6 | Y95: 6663.6 | Z95: 6663.6 | AA95: 30 | AB95: 617
C96: US 30 | D96: EB | E96: Intersection at WW Ave. | T96: 2520 | U96: 2962.6 | Y96: 5482.6 | Z96: 5482.6 | AA96: 30 | AB96: 507.6481481
C99: TOTAL: | AB99: =SUM(AB60:AB97) -> 428073.6667
G100: =IF(AND($E100<>"",$F100<>""),ABS($F100-$E100),"") -> 
AB133: =IF(AA133<>"",(Z133*(AA133/12))/27,"") -> 
G134: =IF(AND($E134<>"",$F134<>""),ABS($F134-$E134),"") ->  | H134: =IF(G134<>"",12,"") ->  | I134: =IF(G134<>"",14,"") ->  | J134: =IF(G134<>"",H134+I134,"") ->  | P134: =IF(F134<>"",G134*(J134+K134+L134+M134+N134),"") ->  | Z134: =IF(F134<>"",SUM(P134,Y134),"") -> 
Y135: =IF(SUM(Q135:X135)>0,SUM(Q135:X135),"") -> 
AB197: =IF(AA197<>"",(Z197*(AA197/12))/27,"") -> 
G198: =IF(AND($E198<>"",$F198<>""),ABS($F198-$E198),"") ->  | H198: =IF(G198<>"",12,"") ->  | I198: =IF(G198<>"",14,"") ->  | J198: =IF(G198<>"",H198+I198,"") ->  | P198: =IF(F198<>"",G198*(J198+K198+L198+M198+N198),"") ->  | Z198: =IF(F198<>"",SUM(P198,Y198),"") -> 
Y199: =IF(SUM(Q199:X199)>0,SUM(Q199:X199),"") -> 
AB261: =IF(AA261<>"",(Z261*(AA261/12))/27,"") -> 
G262: =IF(AND($E262<>"",$F262<>""),ABS($F262-$E262),"") ->  | H262: =IF(G262<>"",12,"") ->  | I262: =IF(G262<>"",14,"") ->  | J262: =IF(G262<>"",H262+I262,"") ->  | P262: =IF(F262<>"",G262*(J262+K262+L262+M262+N262),"") ->  | Z262: =IF(F262<>"",SUM(P262,Y262),"") -> 
Y263: =IF(SUM(Q263:X263)>0,SUM(Q263:X263),"") -> 
AB325: =IF(AA325<>"",(Z325*(AA325/12))/27,"") -> 
G326: =IF(AND($E326<>"",$F326<>""),ABS($F326-$E326),"") ->  | H326: =IF(G326<>"",12,"") ->  | I326: =IF(G326<>"",14,"") ->  | J326: =IF(G326<>"",H326+I326,"") ->  | P326: =IF(F326<>"",G326*(J326+K326+L326+M326+N326),"") ->  | Z326: =IF(F326<>"",SUM(P326,Y326),"") -> 
Y327: =IF(SUM(Q327:X327)>0,SUM(Q327:X327),"") -> 
AB389: =IF(AA389<>"",(Z389*(AA389/12))/27,"") -> 
G390: =IF(AND($E390<>"",$F390<>""),ABS($F390-$E390),"") ->  | H390: =IF(G390<>"",12,"") ->  | I390: =IF(G390<>"",14,"") ->  | J390: =IF(G390<>"",H390+I390,"") ->  | P390: =IF(F390<>"",G390*(J390+K390+L390+M390+N390),"") ->  | Z390: =IF(F390<>"",SUM(P390,Y390),"") -> 
Y391: =IF(SUM(Q391:X391)>0,SUM(Q391:X391),"") -> 
AB453: =IF(AA453<>"",(Z453*(AA453/12))/27,"") -> 
G454: =IF(AND($E454<>"",$F454<>""),ABS($F454-$E454),"") ->  | H454: =IF(G454<>"",12,"") ->  | I454: =IF(G454<>"",14,"") ->  | J454: =IF(G454<>"",H454+I454,"") ->  | P454: =IF(F454<>"",G454*(J454+K454+L454+M454+N454),"") ->  | Z454: =IF(F454<>"",SUM(P454,Y454),"") -> 
Y455: =IF(SUM(Q455:X455)>0,SUM(Q455:X455),"") -> 
AB517: =IF(AA517<>"",(Z517*(AA517/12))/27,"") -> 
G518: =IF(AND($E518<>"",$F518<>""),ABS($F518-$E518),"") ->  | H518: =IF(G518<>"",12,"") ->  | I518: =IF(G518<>"",14,"") ->  | J518: =IF(G518<>"",H518+I518,"") ->  | P518: =IF(F518<>"",G518*(J518+K518+L518+M518+N518),"") ->  | Z518: =IF(F518<>"",SUM(P518,Y518),"") -> 
Y519: =IF(SUM(Q519:X519)>0,SUM(Q519:X519),"") -> 
AB581: =IF(AA581<>"",(Z581*(AA581/12))/27,"") -> 
G582: =IF(AND($E582<>"",$F582<>""),ABS($F582-$E582),"") ->  | H582: =IF(G582<>"",12,"") ->  | I582: =IF(G582<>"",14,"") ->  | J582: =IF(G582<>"",H582+I582,"") ->  | P582: =IF(F582<>"",G582*(J582+K582+L582+M582+N582),"") ->  | Z582: =IF(F582<>"",SUM(P582,Y582),"") -> 
Y583: =IF(SUM(Q583:X583)>0,SUM(Q583:X583),"") -> 
AB645: =IF(AA645<>"",(Z645*(AA645/12))/27,"") -> 
G646: =IF(AND($E646<>"",$F646<>""),ABS($F646-$E646),"") ->  | H646: =IF(G646<>"",12,"") ->  | I646: =IF(G646<>"",14,"") ->  | J646: =IF(G646<>"",H646+I646,"") ->  | P646: =IF(F646<>"",G646*(J646+K646+L646+M646+N646),"") ->  | Z646: =IF(F646<>"",SUM(P646,Y646),"") -> 
Y647: =IF(SUM(Q647:X647)>0,SUM(Q647:X647),"") -> 
AB709: =IF(AA709<>"",(Z709*(AA709/12))/27,"") -> 
G710: =IF(AND($E710<>"",$F710<>""),ABS($F710-$E710),"") ->  | H710: =IF(G710<>"",12,"") ->  | I710: =IF(G710<>"",14,"") ->  | J710: =IF(G710<>"",H710+I710,"") ->  | P710: =IF(F710<>"",G710*(J710+K710+L710+M710+N710),"") ->  | Z710: =IF(F710<>"",SUM(P710,Y710),"") -> 
Y711: =IF(SUM(Q711:X711)>0,SUM(Q711:X711),"") -> 
AB773: =IF(AA773<>"",(Z773*(AA773/12))/27,"") -> 
G774: =IF(AND($E774<>"",$F774<>""),ABS($F774-$E774),"") ->  | H774: =IF(G774<>"",12,"") ->  | I774: =IF(G774<>"",14,"") ->  | J774: =IF(G774<>"",H774+I774,"") ->  | P774: =IF(F774<>"",G774*(J774+K774+L774+M774+N774),"") ->  | Z774: =IF(F774<>"",SUM(P774,Y774),"") -> 
Y775: =IF(SUM(Q775:X775)>0,SUM(Q775:X775),"") -> 
AB837: =IF(AA837<>"",(Z837*(AA837/12))/27,"") -> 
G838: =IF(AND($E838<>"",$F838<>""),ABS($F838-$E838),"") ->  | H838: =IF(G838<>"",12,"") ->  | I838: =IF(G838<>"",14,"") ->  | J838: =IF(G838<>"",H838+I838,"") ->  | P838: =IF(F838<>"",G838*(J838+K838+L838+M838+N838),"") ->  | Z838: =IF(F838<>"",SUM(P838,Y838),"") -> 
Y839: =IF(SUM(Q839:X839)>0,SUM(Q839:X839),"") -> 
AB901: =IF(AA901<>"",(Z901*(AA901/12))/27,"") -> 
G902: =IF(AND($E902<>"",$F902<>""),ABS($F902-$E902),"") ->  | H902: =IF(G902<>"",12,"") ->  | I902: =IF(G902<>"",14,"") ->  | J902: =IF(G902<>"",H902+I902,"") ->  | P902: =IF(F902<>"",G902*(J902+K902+L902+M902+N902),"") ->  | Z902: =IF(F902<>"",SUM(P902,Y902),"") -> 
Y903: =IF(SUM(Q903:X903)>0,SUM(Q903:X903),"") -> 
AB965: =IF(AA965<>"",(Z965*(AA965/12))/27,"") -> 
G966: =IF(AND($E966<>"",$F966<>""),ABS($F966-$E966),"") ->  | H966: =IF(G966<>"",12,"") ->  | I966: =IF(G966<>"",14,"") ->  | J966: =IF(G966<>"",H966+I966,"") ->  | P966: =IF(F966<>"",G966*(J966+K966+L966+M966+N966),"") ->  | Z966: =IF(F966<>"",SUM(P966,Y966),"") -> 
Y967: =IF(SUM(Q967:X967)>0,SUM(Q967:X967),"") -> 
... 59 more rows

Sheet DE105_4
A1: TabTitle | B1: =C15 -> STANDARD ROAD PLANS
A2: Number of Tab Columns | B2: 3
A3: DE Starter Row Number | B3: 20
A4: TabSheet Starter Row Number | B4: 7
A5: TabSheet Header Row Count | B5: 6
A6: Top Header Cell | B6: G15
A7: Bottom Header Cell | B7: I20
A8: DESheet Row Count | B8: 53
A9: Fixed Empty Rows | B9: 0
A10: Usable Empty Rows | B10: 10
A11: Total Rows Placed | B11: 63 | C11: xlLeft | D11: xlCenter | E11: xlLeft | G11: =C11 -> xlLeft | H11: =D11 -> xlCenter | I11: =E11 -> xlLeft
A12: Total Rows Needed | B12: =SUM(B8:B10) -> 63 | C12: General | D12: Text | E12: General | G12: =C12 -> General | H12: =D12 -> Text | I12: General
A13: Last Tab DE Starter Row | B13: 20 | C13: =CELL("width",C13) -> 12 | D13: =CELL("width",D13) -> 12 | E13: 134 | G13: =CELL("width",G13) -> 0 | H13: =CELL("width",H13) -> 0 | I13: 0
A14: Last Tab Tabsheet Starter Row | B14: 7 | C14: A | D14: B | E14: C | G14: =LOWER(C14) -> a | H14: =LOWER(D14) -> b | I14: c
A15: Last Copy Starter Row | B15: 1 | C15: STANDARD ROAD PLANS | G15: 105-4
A16: Tab Loop Number | B16: 2 | G16: =B17 -> 2011-10-18
A17: Revision Date | B17: 2011-10-18 | C17: The following Standard Road Plans apply to construction work on this project. | G17: =C15 -> STANDARD ROAD PLANS
A18: Tabulation Width | B18: 2 | C18: ="This Data Entry Sheet fills Tab "&G15&" effective "&TEXT(B17,"mm-dd-yy") -> This Data Entry Sheet fills Tab 105-4 effective 10-18-11
A19: Horizontal Grid Lines | B19: Yes | C19: Number | D19: Date | E19: Title | G19: =C17 -> The following Standard Road Plans apply to construction work on this project.
B20: 2 | C20: DR-101 | D20: 04-18-17 | E20: Pipe Culvert (Bedding and Backfill) | G20: =C19 -> Number | H20: =D19 -> Date | I20: =E19 -> Title
C21: DR-102 | D21: 04-21-15 | E21: Pipe Culvert (Cover and Camber)
C22: DR-103 | D22: 04-21-15 | E22: Pipe Culvert (Installation Details)
C23: DR-104 | D23: 04-19-16 | E23: Depth of Cover Tables for Concrete and Corrugated Pipe
C24: DR-111 | D24: 10-17-17 | E24: Box Culvert (Backfill)
C25: DR-121 | D25: 10-17-17 | E25: Connected Pipe Joints
C26: DR-122 | D26: 10-18-16 | E26: Construction of Type "C" Concrete Adaptors for Pipe Culvert Connections
C27: DR-141 | D27: 04-18-17 | E27: Pipe Bends and Half Pipe
C28: DR-201 | D28: 04-21-15 | E28: Concrete Aprons
C29: DR-202 | D29: 04-21-15 | E29: Low Clearance Concrete Pipe Aprons
C30: DR-203 | D30: 04-21-15 | E30: Metal Pipe Aprons and Beveled Ends
C31: DR-204 | D31: 10-17-17 | E31: Metal Arch Aprons (for Corrugated Metal Pipe)
C32: DR-205 | D32: 04-21-15 | E32: Concrete Apron with End Wall
C33: DR-212 | D33: 04-21-15 | E33: Beveled Pipe and Guard
C34: DR-213 | D34: 10-17-17 | E34: Pipe Apron Guard
C35: DR-303 | D35: 10-17-17 | E35: Subdrains (Longitudinal)
C36: DR-306 | D36: 10-17-17 | E36: Precast Concrete Headwall for Subdrain Outlets
C37: DR-501 | D37: 04-21-15 | E37: Corrugated Metal Type "A" Diaphragm
C38: DR-601 | D38: 04-18-17 | E38: Reinforced Concrete Pipe Culvert
C39: DR-611 | D39: 04-18-17 | E39: Reinforced Concrete Pipe Culvert Letdown Structure
C40: DR-621 | D40: 04-18-17 | E40: Pipe Extension
C41: DR-622 | D41: 10-17-17 | E41: Pipe Extension Horizontal Bend One or Both Ends
C42: DR-632 | D42: 04-18-17 | E42: Corrugated Pipe Culvert Letdown Structure with Double Elbow
C43: DR-641 | D43: 04-18-17 | E43: Concrete/Corrugated Pipe Culvert Letdown Structure with Metal Apron
C44: DR-651 | D44: 04-18-17 | E44: Unclassified Pipe Culvert
C45: DR-652 | D45: 04-18-17 | E45: Unclassified Letdown Structure Single Elbow
C46: DR-653 | D46: 04-18-17 | E46: Unclassified Roadway Letdown Pipe with Metal Apron
C47: EC-101 | D47: 04-19-16 | E47: Wood Excelsior Mat for Ditch Protection
C48: EC-103 | D48: 04-21-15 | E48: Wood Excelsior Mat for Slope Protection
C49: EC-104 | D49: 04-19-16 | E49: Turf Reinforced Mat (TRM)
C50: EC-201 | D50: 10-17-17 | E50: Silt Fence
C51: EC-204 | D51: 04-18-17 | E51: Perimeter and Slope Sediment Control Devices
C52: EC-301 | D52: 10-18-16 | E52: Rock Erosion Control (REC)
C53: EC-502 | D53: 04-21-15 | E53: Seeding in Rural Areas
C54: EW-101 | D54: 10-17-17 | E54: Embankment and Rebuilding Embankments
C55: EW-102 | D55: 10-20-15 | E55: Allowable Placement of Unsuitable Soil in Embankments
C56: EW-103 | D56: 10-20-15 | E56: Embankment Subgrade Treatment, Moisture Density Control and Special Compaction
C57: EW-105 | D57: 04-21-15 | E57: Reshaping Slopes and Ditches
C58: EW-110 | D58: 10-20-15 | E58: Ditch Blocks and Dikes
C59: EW-201 | D59: 04-19-16 | E59: Bridge Berm Grading without Recoverable Slope (Barnroof Section)
C60: EW-212 | D60: 10-20-15 | E60: Settlement Plate
C61: EW-301 | D61: 10-20-15 | E61: Guardrail Grading
C62: EW-402 | D62: 04-18-17 | E62: Temporary Stream Diversion
C63: EW-403 | D63: 04-18-17 | E63: Temporary Erosion Control Measures
C64: EW-501 | D64: 10-20-15 | E64: Rural Entrance
C65: EW-503 | D65: 10-20-15 | E65: Side Road Grading
C66: SI-881 | D66: 10-17-17 | E66: Special Signs for Workzones
C67: TC-1 | D67: 04-16-13 | E67: Work Not Affecting Traffic (Two-Lane or Multi-Lane)
C68: TC-202 | D68: 04-21-15 | E68: Work Within 15 ft of Traveled Way
C69: TC-213 | D69: 04-17-12 | E69: Lane Closure with Flaggers
C70: TC-252 | D70: 04-19-16 | E70: Routes Closed to Traffic
C71: TC-273 | D71: 04-20-10 | E71: Construction Site Entrance
C72: TC-283 | D72: 10-18-11 | E72: Surveying Operations

Sheet DE107_23
A1: TabTitle | B1: =C16 -> GRADING FOR GUARDRAIL INSTALLATIONS
A2: Number of Tab Columns | B2: 17
A3: DE Starter Row Number | B3: 29
A4: TabSheet Starter Row Number | B4: 15
A5: TabSheet Header Row Count | B5: 14
A6: Top Header Cell | B6: U15
A7: Bottom Header Cell | B7: AK28
A8: DESheet Row Count | B8: 9
A9: Fixed Empty Rows | B9: 10
A10: Usable Empty Rows | B10: 0
A11: Total Rows Placed | B11: 19 | C11: xlRight(1) | D11: xlCenter | E11: xlRight(1) | F11: xlCenter | G11: xlRight(1) | H11: xlRight(1) | I11: xlRight(1) | J11: xlRight(1) | K11: xlRight(1) | L11: xlRight(1) | M11: xlRight(1) | N11: xlRight(1) | O11: xlRight(1) | P11: xlRight(1) | Q11: xlRight(1) | R11: xlRight(1) | S11: xlLeft(1) | U11: =C11 -> xlRight(1) | V11: xlCenter | W11: xlRight(1) | X11: xlCenter | Y11: xlRight(1) | Z11: xlRight(1) | AA11: xlRight(1) | AB11: xlRight(1) | AC11: xlRight(1) | AD11: xlRight(1) | AE11: xlRight(1) | AF11: xlRight(1) | AG11: xlRight(1) | AH11: xlRight(1) | AI11: xlRight(1) | AJ11: xlRight(1) | AK11: =S11 -> xlLeft(1)
A12: Total Rows Needed | B12: =SUM(B8:B10) -> 19 | C12: General | D12: General | E12: #+00.00 | F12: General | G12: Text | H12: 0.0 | I12: 0.0 | J12: 0.0 | K12: 0.0 | L12: 0.0 | M12: 0.0 | N12: 0.0 | O12: 0.0 | P12: 0.0 | Q12: 0.0 | R12: 0.0 | S12: General | U12: General | V12: General | W12: #+00.00 | X12: General | Y12: Text | Z12: 0.0 | AA12: 0.0 | AB12: 0.0 | AC12: 0.0 | AD12: 0.0 | AE12: 0.0 | AF12: 0.0 | AG12: 0.0 | AH12: 0.0 | AI12: 0.0 | AJ12: 0.0 | AK12: General
A13: Last Tab DE Starter Row | B13: 29 | C13: =CELL("width",C13) -> 7 | D13: 7 | E13: 18 | F13: 7 | G13: 15 | H13: 9 | I13: 9 | J13: 9 | K13: 9 | L13: 9 | M13: 9 | N13: 9 | O13: 9 | P13: 9 | Q13: 16 | R13: 16 | S13: 60 | U13: =CELL("width",U13) -> 0 | V13: 0 | W13: 0 | X13: 0 | Y13: 0 | Z13: 0 | AA13: 0 | AB13: 0 | AC13: 0 | AD13: 0 | AE13: 0 | AF13: 0 | AG13: 0 | AH13: 0 | AI13: 0 | AJ13: 0 | AK13: 0
A14: Last Tab Tabsheet Starter Row | B14: 15 | C14: A | D14: B | E14: C | F14: D | G14: E | H14: F | I14: G | J14: H | K14: I | L14: J | M14: K | N14: L | O14: M | P14: N | Q14: O | R14: P | S14: Q | U14: =LOWER(C14) -> a | V14: b | W14: c | X14: d | Y14: e | Z14: f | AA14: g | AB14: h | AC14: i | AD14: j | AE14: k | AF14: l | AG14: m | AH14: n | AI14: o | AJ14: p | AK14: q
A15: Last Copy Starter Row | B15: 1 | O15: Totals: | Q15: =SUBTOTAL(9,Q29:Q6000) -> 0 | R15: =SUBTOTAL(9,R29:R6000) -> 0 | U15: 107-23
A16: Tab Loop Number | B16: 2 | C16: GRADING FOR GUARDRAIL INSTALLATIONS | U16: =B17 -> 2011-10-18
A17: Revision Date | B17: 2011-10-18 | U17: =C16 -> GRADING FOR GUARDRAIL INSTALLATIONS
A18: Tabulation Width | B18: 3 | D18: Lane(s) to which the installation is adjacent. | K18: Refer to EW-301
A19: Horizontal Grid Lines | B19: Yes | C19: ="This Data Entry Sheet fills Tab "&U15&" effective "&TEXT(B17,"mm-dd-yy") -> This Data Entry Sheet fills Tab 107-23 effective 10-18-11 | V19: =D18 -> Lane(s) to which the installation is adjacent. | AC19: =K18 -> Refer to EW-301
C20: Location | G20: Foreslope at Guardrail | H20: Dimensions (Feet) | Q20: Earthwork | S20: Remarks | U20: =C20 -> Location | Y20: =G20 -> Foreslope at Guardrail | Z20: =H20 -> Dimensions (Feet) | AI20: =Q20 -> Earthwork | AK20: =S20 -> Remarks
C22: No. | D22: Direction of Traffic | E22: Station | F22: Side | Q22: Excavation Class 10 | R22: Embankment In Place | U22: =C22 -> No. | V22: =D22 -> Direction of Traffic | W22: =E22 -> Station | X22: =F22 -> Side | AI22: =Q22 -> Excavation Class 10 | AJ22: =R22 -> Embankment In Place
Q28: CY | R28: CY | AI28: =Q28 -> CY | AJ28: =R28 -> CY
C29: Otter Creek Bridges
C30: 1 | D30: EB | E30: 26685.43 | F30: Med | G30: 6:1 | H30: 52.5 | I30: 5.5 | J30: 65 | K30: 6.8 | L30: 227.5 | M30: 6.8 | N30: 277.6 | O30: 8.5 | P30: 51.3
C31: 2 | D31: EB | E31: 26708.53 | F31: Out | G31: 3:1 | H31: 90 | I31: 5.5 | J31: 139.8 | K31: 10.5 | L31: - | M31: - | N31: 189.9 | O31: 12.2 | P31: 65.1
C32: 3 | D32: WB | E32: 26953.78 | F32: Out | G32: 3:1 | H32: 90 | I32: 5.5 | J32: 139.8 | K32: 10.5 | L32: - | M32: - | N32: 189.9 | O32: 12.2 | P32: 65.1
C33: 4 | D33: WB | E33: 26976.87 | F33: Med | G33: 6:1 | H33: 52.5 | I33: 5.5 | J33: 65 | K33: 6.8 | L33: 227.5 | M33: 6.8 | N33: 277.6 | O33: 8.5 | P33: 51.3
C35: Salt Creek Bridge
C36: 5 | D36: WB | E36: 70056.51 | F36: Out | G36: 3:1 | H36: 90 | I36: 5.5 | J36: 139.8 | K36: 10.5 | L36: - | M36: - | N36: 189.9 | O36: 12.2 | P36: 65.1
C37: 6 | D37: WB | E37: 70056.51 | F37: Med | G37: 6:1 | H37: 65 | I37: 5.5 | J37: 77.5 | K37: 6.8 | L37: 227.5 | M37: 6.8 | N37: 277.6 | O37: 8.5 | P37: 51.3

Sheet DE108_13A
A1: TabTitle | B1: =C16 -> SAFETY CLOSURES
A2: Number of Tab Columns | B2: 4
A3: DE Starter Row Number | B3: 22
A4: TabSheet Starter Row Number | B4: 8
A5: TabSheet Header Row Count | B5: 7
A6: Top Header Cell | B6: H15
A7: Bottom Header Cell | B7: K21
A8: DESheet Row Count | B8: 165
A9: Fixed Empty Rows | B9: 1
A10: Usable Empty Rows | B10: 0
A11: Total Rows Placed | B11: 166 | C11: xlRight(1) | D11: xlRight(1) | E11: xlRight(1) | F11: xlLeft(1) | H11: =C11 -> xlRight(1) | I11: =D11 -> xlRight(1) | J11: xlRight(1) | K11: xlLeft(1)
A12: Total Rows Needed | B12: =SUM(B8:B10) -> 166 | C12: #+00.00 | D12: General | E12: General | F12: General | H12: =C12 -> #+00.00 | I12: General | J12: General | K12: General
A13: Last Tab DE Starter Row | B13: 105 | C13: =CELL("width",C13) -> 16 | D13: =CELL("width",D13) -> 14 | E13: =CELL("width",E13) -> 14 | F13: =CELL("width",F13) -> 31 | H13: =CELL("width",H13) -> 0 | I13: =CELL("width",I13) -> 0 | J13: =CELL("width",J13) -> 0 | K13: =CELL("width",K13) -> 0
A14: Last Tab Tabsheet Starter Row | B14: 98 | C14: A | D14: B | E14: C | F14: D | H14: =LOWER(C14) -> a | I14: =LOWER(D14) -> b | J14: =LOWER(E14) -> c | K14: =LOWER(F14) -> d
A15: Last Copy Starter Row | B15: 91 | D15: =SUBTOTAL(9,D22:D6096) -> 354 | E15: =SUBTOTAL(9,E22:E6096) -> 360 | H15: 108-13A
A16: Tab Loop Number | B16: 3 | C16: SAFETY CLOSURES | H16: =B17 -> 2008-08-01
A17: Revision Date | B17: 2008-08-01 | H17: =C16 -> SAFETY CLOSURES
A18: Tabulation Width | B18: 1 | C18: Refer to Section 2518 of the Standard Specifications
A19: Horizontal Grid Lines | B19: Yes | C19: ="This Data Entry Sheet fills Tab "&H15&" effective "&TEXT(B17,"mm-dd-yy") -> This Data Entry Sheet fills Tab 108-13A effective 08-01-08 | H19: =C18 -> Refer to Section 2518 of the Standard Specifications
C20: Station | D20: Closure Type | F20: Remarks | H20: =C20 -> Station | I20: =D20 -> Closure Type | K20: =F20 -> Remarks
D21: Road Qty. | E21: Hazard Qty. | I21: =D21 -> Road Qty. | J21: =E21 -> Hazard Qty.
C22: Mainline US 30
C23: Westbound
C24: 11130.57 | D24: 1 | F24: Beginning of Project
C25: 13985 | E25: 2 | F25: At pipe 25' Lt. and Rt.
C26: 14430 | E26: 2 | F26: At pipe 25' Lt. and Rt.
C27: 15656.47 | D27: 2 | F27: N Ave. 50' Lt. and Rt.
C28: 15915 | E28: 2 | F28: At pipe 25' Lt. and Rt.
C29: 17426 | E29: 2 | F29: At pipe 25' Lt. and Rt.
C30: 18500 | E30: 2 | F30: At pipe 25' Lt. and Rt.
C31: 19613.64 | D31: 2 | F31: O Ave.(N) 50' Lt. and Rt.
C32: 20175.15 | E32: 2 | F32: At pipe 25' Lt. and Rt.
C33: 21225 | E33: 2 | F33: At pipe 25' Lt. and Rt.
C34: 22098 | E34: 2 | F34: At pipe 25' Lt. and Rt.
C35: 23425 | E35: 2 | F35: At pipe 25' Lt. and Rt.
C36: 26325 | E36: 2 | F36: At pipe 25' Lt. and Rt.
C37: 26500 | E37: 1 | F37: Otter Creek Bridge
C38: 27100 | E38: 1 | F38: Otter Creek Bridge
C39: 27800 | E39: 2 | F39: At pipe 25' Lt. and Rt.
C40: 28152.42 | D40: 2 | F40: P Ave.(N) 50' Lt. and Rt.
C41: 28900 | E41: 2 | F41: At pipe 25' Lt. and Rt.
C42: 30229 | E42: 2 | F42: At RCB 25' Lt. and Rt.
C43: 31444.14 | D43: 2 | F43: Q Ave.(N) 50' Lt. and Rt.
C44: 33893.67 | E44: 2 | F44: At pipe 25' Lt. and Rt.
C45: 34554 | E45: 2 | F45: At pipe 25' Lt. and Rt.
C46: 34799 | E46: 2 | F46: At pipe 25' Lt. and Rt.
C47: 35508 | E47: 2 | F47: At pipe 25' Lt. and Rt.
C48: 36463 | E48: 2 | F48: At pipe 25' Lt. and Rt.
C49: 36708.47 | D49: 2 | F49: R Ave. 50' Lt. and Rt.
C50: 37100 | E50: 2 | F50: At pipe 25' Lt. and Rt.
C51: 38356.91 | E51: 2 | F51: At RCB 25' Lt. and Rt.
C52: 38914 | E52: 2 | F52: At pipe 25' Lt. and Rt.
C53: 40376.16 | E53: 2 | F53: At pipe 25' Lt. and Rt.
C54: 42752.11 | E54: 2 | F54: At RCB 25' Lt. and Rt.
C55: 43638.56 | E55: 2 | F55: At pipe 25' Lt. and Rt.
C56: 43700 | E56: 2 | F56: At pipe 25' Lt. and Rt.
C57: 45409 | E57: 2 | F57: At pipe 25' Lt. and Rt.
C58: 45897.99 | E58: 2 | F58: At pipe 25' Lt. and Rt.
C59: 47200 | E59: 2 | F59: At pipe 25' Lt. and Rt.
C60: 47335.87 | D60: 2 | F60: T Ave. 50' Lt. and Rt.
C61: 48152.8 | E61: 2 | F61: At RCB 25' Lt. and Rt.
C62: 49440 | E62: 2 | F62: At pipe 25' Lt. and Rt.
C63: 49800 | D63: 2 | F63: U Ave. 50' Lt. and Rt.
C64: 50700 | D64: 1 | F64: Co. Rd. V18 Gap
C65: 51100 | D65: 1 | F65: Co. Rd. V18 Gap
C66: 53210 | E66: 2 | F66: At pipe 25' Lt. and Rt.
C67: 53850 | E67: 2 | F67: At pipe 25' Lt. and Rt.
C68: 56578 | E68: 2 | F68: At pipe 25' Lt. and Rt.
C69: 57800 | E69: 2 | F69: At pipe 25' Lt. and Rt.
C70: 59325 | E70: 2 | F70: At pipe 25' Lt. and Rt.
C71: 61200 | E71: 2 | F71: At pipe 25' Lt. and Rt.
C72: 62618 | E72: 2 | F72: At pipe 25' Lt. and Rt.
C73: 65460 | E73: 2 | F73: At pipe 25' Lt. and Rt.
C74: 66125 | E74: 2 | F74: At pipe 25' Lt. and Rt.
C75: 66958 | E75: 2 | F75: At pipe 25' Lt. and Rt.
C76: 67200 | E76: 2 | F76: At pipe 25' Lt. and Rt.
C77: 68846.15 | D77: 2 | F77: X Ave. 50' Lt. and Rt.
C78: 69500 | E78: 1 | F78: Salt Creek Bridge
C79: 70200 | E79: 1 | F79: Salt Creek Bridge
C80: 70500 | D80: 1 | F80: End of Project
C82: Eastbound
C83: 11800 | D83: 1 | F83: Beginning of Project
C84: 13985 | E84: 2 | F84: At pipe 25' Lt. and Rt.
C85: 14430 | E85: 2 | F85: At pipe 25' Lt. and Rt.
C86: 15656.47 | D86: 2 | F86: N Ave. 50' Lt. and Rt.
C87: 15915 | E87: 2 | F87: At pipe 25' Lt. and Rt.
C88: 17426 | E88: 2 | F88: At pipe 25' Lt. and Rt.
C89: 18500 | E89: 2 | F89: At pipe 25' Lt. and Rt.
C90: 19613.64 | D90: 2 | F90: O Ave.(N) 50' Lt. and Rt.
C91: 20175.15 | E91: 2 | F91: At pipe 25' Lt. and Rt.
C92: 21225 | E92: 2 | F92: At pipe 25' Lt. and Rt.
C93: 22098 | E93: 2 | F93: At pipe 25' Lt. and Rt.
C94: 23425 | E94: 2 | F94: At pipe 25' Lt. and Rt.
C95: 26325 | E95: 2 | F95: At pipe 25' Lt. and Rt.
C96: 26600 | E96: 1 | F96: Otter Creek Bridge
C97: 27100 | E97: 1 | F97: Otter Creek Bridge
C98: 27800 | E98: 2 | F98: At pipe 25' Lt. and Rt.
C99: 28152.42 | D99: 2 | F99: P Ave.(N) 50' Lt. and Rt.
C100: 28900 | E100: 2 | F100: At pipe 25' Lt. and Rt.
C101: 30229 | E101: 2 | F101: At RCB 25' Lt. and Rt.
C102: 31444.14 | D102: 2 | F102: Q Ave.(N) 50' Lt. and Rt.
C103: 33893.67 | E103: 2 | F103: At pipe 25' Lt. and Rt.
C104: 34554 | E104: 2 | F104: At pipe 25' Lt. and Rt.
C105: 34799 | E105: 2 | F105: At pipe 25' Lt. and Rt.
C106: 35508 | E106: 2 | F106: At pipe 25' Lt. and Rt.
C107: 36463 | E107: 2 | F107: At pipe 25' Lt. and Rt.
C108: 36708.47 | D108: 2 | F108: R Ave. 50' Lt. and Rt.
C109: 37100 | E109: 2 | F109: At pipe 25' Lt. and Rt.
C110: 38356.91 | E110: 2 | F110: At RCB 25' Lt. and Rt.
C111: 38914 | E111: 2 | F111: At pipe 25' Lt. and Rt.
C112: 40376.16 | E112: 2 | F112: At pipe 25' Lt. and Rt.
C113: 42752.11 | E113: 2 | F113: At RCB 25' Lt. and Rt.
C114: 43638.56 | E114: 2 | F114: At pipe 25' Lt. and Rt.
C115: 43700 | E115: 2 | F115: At pipe 25' Lt. and Rt.
C116: 45409 | E116: 2 | F116: At pipe 25' Lt. and Rt.
C117: 45897.99 | E117: 2 | F117: At pipe 25' Lt. and Rt.
C118: 47200 | E118: 2 | F118: At pipe 25' Lt. and Rt.
C119: 47335.87 | D119: 2 | F119: T Ave. 50' Lt. and Rt.
C120: 48152.8 | E120: 2 | F120: At RCB 25' Lt. and Rt.
C121: 49440 | E121: 2 | F121: At pipe 25' Lt. and Rt.
C122: 49800 | D122: 2 | F122: U Ave. 50' Lt. and Rt.
C123: 50700 | D123: 1 | F123: Co. Rd. V18 Gap
C124: 51100 | D124: 1 | F124: Co. Rd. V18 Gap
C125: 53210 | E125: 2 | F125: At pipe 25' Lt. and Rt.
C126: 53850 | E126: 2 | F126: At pipe 25' Lt. and Rt.
C127: 56578 | E127: 2 | F127: At pipe 25' Lt. and Rt.
C128: 57800 | E128: 2 | F128: At pipe 25' Lt. and Rt.
C129: 59325 | E129: 2 | F129: At pipe 25' Lt. and Rt.
C130: 61200 | E130: 2 | F130: At pipe 25' Lt. and Rt.
C131: 62618 | E131: 2 | F131: At pipe 25' Lt. and Rt.
C132: 65460 | E132: 2 | F132: At pipe 25' Lt. and Rt.
C133: 66125 | E133: 2 | F133: At pipe 25' Lt. and Rt.
C134: 66300 | D134: 1 | F134: End of Project
C137: Side Roads
C138: N Avenue (N)
C139: 115500 | D139: 1 | F139: Begin SR Construction
C140: 115780 | E140: 2 | F140: At pipes 25' Lt. and Rt.
C141: 116050 | D141: 1 | F141: End SR Construction
C143: O Avenue (N)
C144: 319455 | D144: 1 | F144: Begin SR Construction
C145: 319775 | E145: 2 | F145: At pipe 25' Lt. and Rt.
C146: 320275 | D146: 1 | F146: End SR Construction
C148: P Avenue (N)
C149: 528020 | D149: 1 | F149: Begin SR Construction
C150: 528350 | E150: 2 | F150: At RCB 25' Lt. and Rt.
C151: 528475 | D151: 1 | F151: End SR Construction
C153: Q Avenue (N)
C154: 731315 | D154: 1 | F154: Begin SR Construction
C155: 731575 | E155: 2 | F155: At pipe 25' Lt. and Rt.
C156: 731900 | D156: 1 | F156: End SR Construction
C158: R Avenue (N)
C159: 836550 | D159: 1 | F159: Begin SR Construction
C160: 836860 | E160: 2 | F160: At pipe 25' Lt. and Rt.
C161: 837400 | D161: 1 | F161: End SR Construction
C163: T Avenue (N)
C164: 947200 | D164: 1 | F164: Begin SR Construction
C165: 948350 | D165: 1 | F165: End SR Construction
C167: U Avenue (N)
C168: 2149665 | D168: 1 | F168: Begin SR Construction
C169: 2149975 | E169: 2 | F169: At pipe 25' Lt. and Rt.
C170: 2150650 | D170: 1 | F170: End SR Construction
C172: V Avenue (N)
C173: 1158400 | D173: 1 | F173: Begin SR Construction
C174: 1158500 | E174: 2 | F174: At pipe 25' Lt. and Rt.
C175: 1158625 | D175: 1 | F175: End SR Construction
C177: W Avenue (N)
C178: 1262320 | D178: 1 | F178: Begin SR Construction
C179: 1262850 | D179: 1 | F179: End SR Construction
C181: X Avenue (N)
C182: 1368820 | D182: 1 | F182: Begin SR Construction
C183: 1369350 | D183: 1 | F183: End SR Construction
C185: TOTALS: | D185: =SUM(D24:D184) -> 58 | E185: =SUM(E24:E184) -> 180
C186: GRAND TOTAL: | D186: =D185+E185 -> 238

Sheet DE110_8
A1: TabTitle | B1: =C16 -> REMOVAL OF CONCRETE DRIVES
A2: Number of Tab Columns | B2: 4
A3: DE Starter Row Number | B3: 21
A4: TabSheet Starter Row Number | B4: 7
A5: TabSheet Header Row Count | B5: 6
A6: Top Header Cell | B6: K15
A7: Bottom Header Cell | B7: N20
A8: DESheet Row Count | B8: 3
A9: Fixed Empty Rows | B9: 10
A10: Usable Empty Rows | B10: 0
A11: Total Rows Placed | B11: 13 | C11: xlRight(1) | D11: xlCenter | H11: xlRight(1) | I11: xlLeft(1) | K11: =C11 -> xlRight(1) | L11: =D11 -> xlCenter | M11: =H11 -> xlRight(1) | N11: =I11 -> xlLeft(1)
A12: Total Rows Needed | B12: =SUM(B8:B10) -> 13 | C12: #+00.00 | D12: General | H12: 0.0 | I12: General | K12: =C12 -> #+00.00 | L12: =D12 -> General | M12: =H12 -> 0.0 | N12: =I12 -> General
A13: Last Tab DE Starter Row | B13: 21 | C13: =CELL("width",C13) -> 16 | D13: =CELL("width",D13) -> 5 | H13: =CELL("width",H13) -> 8 | I13: =CELL("width",I13) -> 46 | K13: =CELL("width",K13) -> 0 | L13: =CELL("width",L13) -> 0 | M13: =CELL("width",M13) -> 0 | N13: =CELL("width",N13) -> 0
A14: Last Tab Tabsheet Starter Row | B14: 7 | C14: A | D14: B | H14: C | I14: D | K14: =LOWER(C14) -> a | L14: =LOWER(D14) -> b | M14: =LOWER(H14) -> c | N14: =LOWER(I14) -> d
A15: Last Copy Starter Row | B15: 1 | H15: =SUBTOTAL(9,H21:H6000) -> 1597.426889 | K15: 110-8
A16: Tab Loop Number | B16: 2 | C16: REMOVAL OF CONCRETE DRIVES | K16: =B17 -> 2008-08-01
A17: Revision Date | B17: 2008-08-01 | K17: =C16 -> REMOVAL OF CONCRETE DRIVES
A18: Tabulation Width | B18: 1 | C18: ="This Data Entry Sheet fills Tab "&K15&" effective "&TEXT(B17,"mm-dd-yy") -> This Data Entry Sheet fills Tab 110-8 effective 08-01-08
A19: Horizontal Grid Lines | B19: Yes | C19: Location | E19: Length | F19: Width | G19: Area | H19: Area | I19: Remarks | K19: =C19 -> Location | M19: =H19 -> Area | N19: =I19 -> Remarks
C20: Station | D20: Side | E20: FT | F20: FT | G20: SF | H20: SY | K20: =C20 -> Station | L20: =D20 -> Side | M20: =H20 -> SY
C21: 37045.45 | D21: Lt. | E21: 648 | F21: 11 | G21: 7188.421 | H21: =IF(G21<>0,G21/9,"") -> 798.7134444 | I21: HMA Driveway
G22: =E22*F22 -> 0 | H22: =IF(G22<>0,G22/9,"") -> 
C23: TOTAL: | G23: =E23*F23 -> 0 | H23: =H21 -> 798.7134444
G24: 0 | H24: =IF(G24<>0,G24/9,"") -> 
G25: 0
G26: 0
G27: 0
G28: 0
G29: 0
G30: 0
G31: 0
G32: 0
G33: 0
G34: 0
G35: 0
G36: 0
G37: 0
G38: 0
G39: 0
G40: 0
G41: 0
G42: 0
G43: 0
G44: 0
G45: 0
G46: 0
G47: 0
G48: 0
G49: 0
G50: 0
G51: 0
G52: 0
G53: 0
G54: 0
G55: 0
G56: 0
G57: 0
G58: 0
G59: 0
G60: 0
G61: 0
G62: 0
G63: 0
G64: 0
G65: 0
G66: 0
G67: 0
G68: 0
G69: 0
G70: 0
G71: 0
G72: 0
G73: 0
G74: 0
G75: 0
G76: 0
G77: 0
G78: 0
G79: 0
G80: 0
G81: 0
G82: 0
G83: 0
G84: 0
G85: 0
G86: 0
G87: =E87*F87 -> 0 | H87: =IF(G87<>0,G87/9,"") -> 
G88: 0
G89: 0
G90: 0
G91: 0
G92: 0
G93: 0
G94: 0
G95: 0
G96: 0
G97: 0
G98: 0
G99: 0
G100: 0
G101: 0
G102: 0
G103: 0
G104: 0
G105: 0
G106: 0
G107: 0
G108: 0
G109: 0
G110: 0
G111: 0
G112: 0
G113: 0
G114: 0
G115: 0
G116: 0
G117: 0
G118: 0
G119: 0
G120: 0
G121: 0
G122: 0
G123: 0
G124: 0
G125: 0
G126: 0
G127: 0
G128: 0
G129: 0
G130: 0
G131: 0
G132: 0
G133: 0
G134: 0
G135: 0
G136: 0
G137: 0
G138: 0
G139: 0
G140: 0
G141: 0
G142: 0
G143: 0
G144: 0
G145: 0
G146: 0
G147: 0
G148: 0
G149: 0
G150: 0
G151: =E151*F151 -> 0 | H151: =IF(G151<>0,G151/9,"") -> 
G152: 0
G153: 0
G154: 0
G155: 0
G156: 0
G157: 0
G158: 0
G159: 0
G160: 0
G161: 0
G162: 0
G163: 0
G164: 0
G165: 0
G166: 0
G167: 0
G168: 0
G169: 0
G170: 0
G171: 0
G172: 0
G173: 0
G174: 0
G175: 0
G176: 0
G177: 0
G178: 0
G179: 0
G180: 0
G181: 0
G182: 0
G183: 0
G184: 0
G185: 0
G186: 0
G187: 0
G188: 0
G189: 0
G190: 0
G191: 0
G192: 0
G193: 0
G194: 0
G195: 0
G196: 0
G197: 0
G198: 0
G199: 0
G200: 0
... 5800 more rows

Sheet DE111_25
A1: TabTitle | B1: =C15 -> INDEX OF TABULATIONS
A2: Number of Tab Columns | B2: 3
A3: DE Starter Row Number | B3: 20
A4: TabSheet Starter Row Number | B4: 7
A5: TabSheet Header Row Count | B5: 6
A6: Top Header Cell | B6: G15
A7: Bottom Header Cell | B7: I20
A8: DESheet Row Count | B8: 10
A9: Fixed Empty Rows | B9: 0
A10: Usable Empty Rows | B10: 5
A11: Total Rows Placed | B11: 15 | C11: xlLeft(1) | D11: xlLeft(1) | E11: xlLeft(1) | G11: =C11 -> xlLeft(1) | H11: =D11 -> xlLeft(1) | I11: xlLeft(1)
A12: Total Rows Needed | B12: =SUM(B8:B10) -> 15 | C12: General | D12: General | E12: General | G12: =C12 -> General | H12: General | I12: General
A13: Last Tab DE Starter Row | B13: 20 | C13: =CELL("width",C13) -> 13 | D13: =CELL("width",D13) -> 128 | E13: =CELL("width",E13) -> 15 | G13: =CELL("width",G13) -> 0 | H13: =CELL("width",H13) -> 0 | I13: =CELL("width",I13) -> 0
A14: Last Tab TabSheet Starter Row | B14: 7 | C14: A | D14: B | E14: C | G14: =LOWER(C14) -> a | H14: =LOWER(D14) -> b | I14: =LOWER(E14) -> c
A15: Last Copy Starter Row | B15: 1 | C15: INDEX OF TABULATIONS | G15: 111-25
A16: Tab Loop Number | B16: 2 | G16: =B17 -> 2011-10-18
A17: Revision Date | B17: 2011-10-18 | C17: ="This Data Entry Sheet fills Tab "&G15&" effective "&TEXT(B17,"mm-dd-yy") -> This Data Entry Sheet fills Tab 111-25 effective 10-18-11 | G17: =C15 -> INDEX OF TABULATIONS
A18: Tabulation Width | B18: 2 | C18: Tabulation | D18: Tabulation Title | E18: Sheet No.
A19: Horizontal Grid Lines | B19: Yes | G19: =C18 -> Tabulation | H19: =D18 -> Tabulation Title | I19: =E18 -> Sheet No.
C20: C Sheets
C21: 100-1A | D21: ESTIMATED PROJECT QUANTITIES (1 DIVISION PROJECT) | E21: C.1 - C.2
C22: 100-1D | D22: PROJECT DESCRIPTION | E22: C.1
C23: 100-4A | D23: ESTIMATE REFERENCE INFORMATION | E23: C.2 - C.5
C24: 102-3M | D24: ACCESS POINTS AND SAFETY RAMPS | E24: C.7 - C.8
C25: 103-11 | D25: SELECT TREATMENT | E25: C.10
C26: 105-4 | D26: STANDARD ROAD PLANS | E26: C.6
C27: 107-23 | D27: GRADING FOR GUARDRAIL INSTALLATIONS | E27: C.11
C28: 108-13A | D28: SAFETY CLOSURES | E28: C.9
C29: 110-8 | D29: REMOVAL OF CONCRETE DRIVES | E29: C.11

Sheet DE232_10
A1: TabTitle | B1: =C15 -> EMERALD ASH BORER
A2: Number of Tab Columns | B2: 1
A3: DE Starter Row Number | B3: 18
A4: TabSheet Starter Row Number | B4: 5
A5: TabSheet Header Row Count | B5: 4
A6: Top Header Cell | B6: E15
A7: Bottom Header Cell | B7: E18
A8: DESheet Row Count | B8: 22
A9: Fixed Empty Rows | B9: 10
A10: Usable Empty Rows | B10: 0
A11: Total Rows Placed | B11: 32 | C11: xlLeft | E11: =C11 -> xlLeft
A12: Total Rows Needed | B12: =SUM(B8:B10) -> 32 | C12: General | E12: =C12 -> General
A13: Last Tab DE Starter Row | B13: 34 | C13: =CELL("width",C13) -> 77 | E13: =CELL("width",E13) -> 0
A14: Last Tab Tabsheet Starter Row | B14: 25 | C14: A | E14: a
A15: Last Copy Starter Row | B15: 21 | C15: EMERALD ASH BORER | E15: 232-10
A16: Tab Loop Number | B16: 3 | E16: =B17 -> 2017-04-18
A17: Revision Date | B17: 2017-04-18 | C17: ="This Data Entry Sheet fills Tab "&E15&" effective "&TEXT(B17,"mm-dd-yy") -> This Data Entry Sheet fills Tab 232-10 effective 04-18-17 | E17: =C15 -> EMERALD ASH BORER
A18: Tabulation Width | B18: 1 | C18: Any living, dead, cut or fallen material of the ash (Fraxinus
A19: Horizontal Grid Lines | B19: No | C19: spp.) including trees, nursery stock, logs, firewood, stumps,
C20: roots, branches, and composted or uncomposted ash chips can be
C21: freely moved within the yellow areas of the most recent Federal
C22: EAB Quarantine & Authorized Transit.
C24: https://www.aphis.usda.gov/plant_health/plant_pest_info/emerald_
C25: ash_b/downloads/eab_quarantine_map.pdf.
C27: Obtain appropriate Compliance Agreements from USDA APHIS PPQ prior
C28: to moving any of the above listed ash articles to areas outside
C29: the yellow zone on the map.
C31: For questions, concerns, and general assistance, contact:
C33: USDA APHIS PPQ, Iowa office, 515-414-3295
C35: Or
C37: Iowa Department of Agriculture & Land Stewardship
C38: 515-725-1470
C39: Entomology@IowaAgriculture.gov

Sheet DE231_2
A1: TabTitle | B1: =C15 -> HERBICIDE
A2: Number of Tab Columns | B2: 1
A3: DE Starter Row Number | B3: 18
A4: TabSheet Starter Row Number | B4: 5
A5: TabSheet Header Row Count | B5: 4
A6: Top Header Cell | B6: E15
A7: Bottom Header Cell | B7: E18
A8: DESheet Row Count | B8: 107
A9: Fixed Empty Rows | B9: 0
A10: Usable Empty Rows | B10: 0
A11: Total Rows Placed | B11: 107 | C11: xlLeft | E11: =C11 -> xlLeft
A12: Total Rows Needed | B12: =SUM(B8:B10) -> 107 | C12: General | E12: =C12 -> General
A13: Last Tab DE Starter Row | B13: 82 | C13: =CELL("width",C13) -> 78 | E13: =CELL("width",E13) -> 0
A14: Last Tab Tabsheet Starter Row | B14: 73 | C14: A | E14: a
A15: Last Copy Starter Row | B15: 69 | C15: HERBICIDE | E15: 231-2
A16: Tab Loop Number | B16: 3 | E16: =B17 -> 2012-10-16
A17: Revision Date | B17: 2012-10-16 | C17: ="This Data Entry Sheet fills Tab "&E15&" effective "&TEXT(B17,"mm-dd-yy") -> This Data Entry Sheet fills Tab 231-2 effective 10-16-12 | E17: =C15 -> HERBICIDE
A18: Tabulation Width | B18: 1 | C18: For all herbicide applications, the following provisions shall
A19: Horizontal Grid Lines | B19: No | C19: apply.
C21: 1. Follow all laws, rules and regulations related to the handling
C22: of pesticides, including but not limited to:
C23: a. Follow all herbicide label directions, restrictions, and
C24: precautions.
C25: b. The company responsible for the herbicide applicator must be
C26: licensed with Iowa Department of Agriculture and Land Stewardship
C27: (IDALS) as a commercial pesticide applicator company.
C28: c. The person applying the herbicide must be certified through
C29: IDALS as a pesticide applicator in Category 6, Right-of-Way. For
C30: herbicide applications that require an aquatic certification, the
C31: applicator must also be certified as a pesticide applicator in
C32: Category 5, Aquatics.
C33: d. Use herbicide and adjuvant products labeled for the
C34: application site:
C35: i. For applications on the primary highway right-of-way, use
C36: only products labeled for use on highway rights-of-way or
C37: roadsides.
C38: ii. For applications to or over water, use only products
C39: labeled for corresponding use in aquatic sites, unless
C40: intermittent pockets of standing water, such as tire ruts, and the
C41: product is labeled for such use.
C42: iii. For applications to areas in the water conveyance portion
C43: of the ditch that do not contain water at the time of application,
C44: use only products labeled for non-irrigation ditch banks or
C45: aquatic sites.
C46: e. Do not apply any herbicide to or over standing or flowing
C47: water unless required coverage is obtained under a National
C48: Pollutant Discharge and Elimination System (NPDES) Pesticide
C49: Discharge Permit through Iowa DNR. If standing or flowing water is
C50: encountered in areas when they need to be sprayed, notify Iowa DOT
C51: (Roadside Development) to determine if submittal of a Notice of
C52: Intent (NOI) is required.
C54: 2. Schedule work according to weather conditions and take measures
C55: to avoid off-target damage, such as runoff, leaching, drift and
C56: volatilization.
C57: a. Do not spray herbicide 24 hours prior to forecast
C58: precipitation that is expected to cause significant runoff
C59: conditions.
C60: b. For areas with saturated soil, such as ditch bottoms, do not
C61: spray herbicide 24 hours prior to forecast precipitation, unless
C62: using products labeled for aquatic sites.
C63: c. For conventional applications, avoid applications when wind
C64: speed exceeds 10 mph. For invert applications, avoid applications
C65: when wind speed exceeds 15 mph.
C66: d. For conventional foliar applications, use a drift retardant
C67: and maintain drift control throughout the application period by
C68: adding more to the tank as it breaks down from agitation.
C69: e. Avoid spraying volatile products when temperatures are
C70: forecast to exceed 85° F within 3 days.
C71: f. Check the IDALS Sensitive Crops Directory and do not spray
C72: adjacent to a listed operation when wind is blowing towards it.
C74: 3. Respond to allegations of any off-target damage attributed to
C75: handling and spraying of herbicide.
C77: 4. Provide the following documents to the Engineer for approval
C78: not less than 2 weeks prior to the application.
C79: a. A copy of the herbicide and adjuvant labels, including any
C80: applicable supplemental labels.
C81: b. A copy of the herbicide and adjuvant Material Safety Data
C82: Sheets (MSDS.)
C84: 5. Have copies of the herbicide and adjuvant labels and MSDSs
C85: on-hand and at locations of storage, transport, and application.
C87: 6. Schedule work to maximize efficiency of the herbicide
C88: application in relation to weather conditions and plant growth
C89: stage. Follow any label recommendations given as “for best
C90: results.”
C91: a. For weed applications:
C92: i. To determine if weeds are “actively growing,” use as a
C93: guideline that there needs to have been at least 1 hour of
C94: temperature above 65° F and 1 hour of sun in the day prior to, of,
C95: or forecast before a rain the day after the application.
C96: ii. For spring applications to thistles, apply after basal
C97: leaves of Canada thistles are fully extended, and after rosettes
C98: of musk thistle are at least 8 inches diameter, but before flower
C99: stage.
C100: iii. For fall applications to thistles, apply prior to the
C101: second hard freeze of 28° F, unless otherwise listed in the label
C102: directions.
C103: b. For tree and brush applications:
C104: i. For foliar applications and cut stump/surface
C105: applications with water-soluble products, apply after leaves are
C106: fully opened in the spring and prior to leaf discoloration in the
C107: fall.
C108: ii. For cut stump applications with oil soluble products, do
C109: not apply during periods of heavy sap flow. Use as a guideline
C110: that heavy sap flow occurs in late winter to early spring when
C111: nighttime temperatures below 32° F are followed by daytime
C112: temperatures above 32° F with sunny conditions.
C113: iii. For cut stump and basal bark applications, add sufficient
C114: dye so that treated areas are visible to inspection 7 days after
C115: application.
C117: 7. Notify the Engineer prior to calibrating, mixing and applying
C118: herbicides, including incidental items.
C120: 8. Provide copies of daily spray logs to the RCE at the end of
C121: each week of spraying (form provided by Iowa DOT).
C123: 9. If Contractor does not complete spray item on schedule, the
C124: Engineer may adjust the schedule.

Sheet DE262_5
A1: TabTitle | B1: =C15 -> UTILITIES (POINT 25 PROJECT)
A2: Number of Tab Columns | B2: 1
A3: DE Starter Row Number | B3: 20
A4: TabSheet Starter Row Number | B4: 7
A5: TabSheet Header Row Count | B5: 6
A6: Top Header Cell | B6: E15
A7: Bottom Header Cell | B7: E20
A8: DESheet Row Count | B8: 2
A9: Fixed Empty Rows | B9: 1
A10: Usable Empty Rows | B10: 0
A11: Total Rows Placed | B11: 3 | C11: xlLeft | E11: =C11 -> xlLeft
A12: Total Rows Needed | B12: =SUM(B8:B10) -> 3 | C12: General | E12: =C12 -> General
A13: Last Tab DE Starter Row | B13: 20 | C13: =CELL("width",C13) -> 78 | E13: =CELL("width",E13) -> 0
A14: Last Tab Tabsheet Starter Row | B14: 7 | C14: A | E14: a
A15: Last Copy Starter Row | B15: 1 | C15: UTILITIES (POINT 25 PROJECT) | E15: 262-5
A16: Tab Loop Number | B16: 2 | E16: =B17 -> 2005-10-18
A17: Revision Date | B17: 2005-10-18 | E17: =C15 -> UTILITIES (POINT 25 PROJECT)
A18: Tabulation Width | B18: 1
A19: Horizontal Grid Lines | B19: No | C19: ="This Data Entry Sheet fills Tab "&E15&" effective "&TEXT(B17,"mm-dd-yy") -> This Data Entry Sheet fills Tab 262-5 effective 10-18-05
C20: This is a POINT 25 project and is subject to the provisions of IAC
C21: 761-115.25.

Sheet DE281_1
A1: TabTitle | B1: =C15 -> SECTION 404 PERMIT AND CONDITIONS
A2: Number of Tab Columns | B2: 1
A3: DE Starter Row Number | B3: 18
A4: TabSheet Starter Row Number | B4: 5
A5: TabSheet Header Row Count | B5: 4
A6: Top Header Cell | B6: E15
A7: Bottom Header Cell | B7: E18
A8: DESheet Row Count | B8: 6
A9: Fixed Empty Rows | B9: 0
A10: Usable Empty Rows | B10: 0
A11: Total Rows Placed | B11: 6 | C11: xlLeft | E11: =C11 -> xlLeft
A12: Total Rows Needed | B12: =SUM(B8:B10) -> 6 | C12: General | E12: =C12 -> General
A13: Last Tab DE Starter Row | B13: 18 | C13: =CELL("width",C13) -> 78 | E13: =CELL("width",E13) -> 0
A14: Last Tab Tabsheet Starter Row | B14: 5 | C14: A | E14: a
A15: Last Copy Starter Row | B15: 1 | C15: SECTION 404 PERMIT AND CONDITIONS | E15: 281-1
A16: Tab Loop Number | B16: 2 | E16: =B17 -> 2016-10-18
A17: Revision Date | B17: 2016-10-18 | C17: ="This Data Entry Sheet fills Tab "&E15&" effective "&TEXT(B17,"mm-dd-yy") -> This Data Entry Sheet fills Tab 281-1 effective 10-18-16 | E17: =C15 -> SECTION 404 PERMIT AND CONDITIONS
A18: Tabulation Width | B18: 1 | C18: Construct this project according to the requirements of U.S. Army
A19: Horizontal Grid Lines | B19: No | C19: Corps of Engineers Individual Permit, Permit No. 2017-335. A
C20: copy of this permit is available from the Iowa DOT website
C21: (http://www.envpermits.iowadot.gov/). The U.S. Army Corps of
C22: Engineers reserves the right to visit the site without prior
C23: notice.

Sheet 100_1A
A1: 100-1A
A2: 1997-07-15
A3: ESTIMATED PROJECT QUANTITIES (1 DIVISION PROJECT)
A7: Item No. | B7: Item Code | C7: Item | D7: Unit | E7: Total | F7: As Built Qty.
A9: =IF(OFFSET(DE100_1A!$C$22,ROWS($C$22:C22)-1,COLUMNS($C$22:C22)-1)<>"",OFFSET(DE100_1A!$C$22,ROWS($C$22:C22)-1,COLUMNS($C$22:C22)-1),"") -> 1 | B9: =IF(OFFSET(DE100_1A!$D$22,ROWS($D$22:D22)-1,COLUMNS($D$22:D22)-1)<>"",OFFSET(DE100_1A!$D$22,ROWS($D$22:D22)-1,COLUMNS($D$22:D22)-1),"") -> 2101-0850001 | C9: =IF(OFFSET(DE100_1A!$E$22,ROWS($E$22:E22)-1,COLUMNS($E$22:E22)-1)<>"",OFFSET(DE100_1A!$E$22,ROWS($E$22:E22)-1,COLUMNS($E$22:E22)-1),"") -> CLEARING AND GRUBBING | D9: =IF(OFFSET(DE100_1A!$F$22,ROWS($F$22:F22)-1,COLUMNS($F$22:F22)-1)<>"",OFFSET(DE100_1A!$F$22,ROWS($F$22:F22)-1,COLUMNS($F$22:F22)-1),"") -> ACRE | E9: =IF(OFFSET(DE100_1A!$G$22,ROWS($G$22:G22)-1,COLUMNS($G$22:G22)-1)<>"",OFFSET(DE100_1A!$G$22,ROWS($G$22:G22)-1,COLUMNS($G$22:G22)-1),"") -> 433.3 | F9: =IF(OFFSET(DE100_1A!$H$22,ROWS($H$22:H22)-1,COLUMNS($H$22:H22)-1)<>"",OFFSET(DE100_1A!$H$22,ROWS($H$22:H22)-1,COLUMNS($H$22:H22)-1),"") -> 
A10: =IF(OFFSET(DE100_1A!$C$22,ROWS($C$22:C23)-1,COLUMNS($C$22:C23)-1)<>"",OFFSET(DE100_1A!$C$22,ROWS($C$22:C23)-1,COLUMNS($C$22:C23)-1),"") -> 2 | B10: =IF(OFFSET(DE100_1A!$D$22,ROWS($D$22:D23)-1,COLUMNS($D$22:D23)-1)<>"",OFFSET(DE100_1A!$D$22,ROWS($D$22:D23)-1,COLUMNS($D$22:D23)-1),"") -> 2102-2624980 | C10: =IF(OFFSET(DE100_1A!$E$22,ROWS($E$22:E23)-1,COLUMNS($E$22:E23)-1)<>"",OFFSET(DE100_1A!$E$22,ROWS($E$22:E23)-1,COLUMNS($E$22:E23)-1),"") -> CONTRACTOR FURNISHED SELECT TREATMENT | D10: =IF(OFFSET(DE100_1A!$F$22,ROWS($F$22:F23)-1,COLUMNS($F$22:F23)-1)<>"",OFFSET(DE100_1A!$F$22,ROWS($F$22:F23)-1,COLUMNS($F$22:F23)-1),"") -> CY | E10: =IF(OFFSET(DE100_1A!$G$22,ROWS($G$22:G23)-1,COLUMNS($G$22:G23)-1)<>"",OFFSET(DE100_1A!$G$22,ROWS($G$22:G23)-1,COLUMNS($G$22:G23)-1),"") -> 428,073.7 | F10: =IF(OFFSET(DE100_1A!$H$22,ROWS($H$22:H23)-1,COLUMNS($H$22:H23)-1)<>"",OFFSET(DE100_1A!$H$22,ROWS($H$22:H23)-1,COLUMNS($H$22:H23)-1),"") -> 
A11: =IF(OFFSET(DE100_1A!$C$22,ROWS($C$22:C24)-1,COLUMNS($C$22:C24)-1)<>"",OFFSET(DE100_1A!$C$22,ROWS($C$22:C24)-1,COLUMNS($C$22:C24)-1),"") -> 3 | B11: =IF(OFFSET(DE100_1A!$D$22,ROWS($D$22:D24)-1,COLUMNS($D$22:D24)-1)<>"",OFFSET(DE100_1A!$D$22,ROWS($D$22:D24)-1,COLUMNS($D$22:D24)-1),"") -> 2102-2710070 | C11: =IF(OFFSET(DE100_1A!$E$22,ROWS($E$22:E24)-1,COLUMNS($E$22:E24)-1)<>"",OFFSET(DE100_1A!$E$22,ROWS($E$22:E24)-1,COLUMNS($E$22:E24)-1),"") -> EXCAVATION, CLASS 10, ROADWAY AND BORROW | D11: =IF(OFFSET(DE100_1A!$F$22,ROWS($F$22:F24)-1,COLUMNS($F$22:F24)-1)<>"",OFFSET(DE100_1A!$F$22,ROWS($F$22:F24)-1,COLUMNS($F$22:F24)-1),"") -> CY | E11: =IF(OFFSET(DE100_1A!$G$22,ROWS($G$22:G24)-1,COLUMNS($G$22:G24)-1)<>"",OFFSET(DE100_1A!$G$22,ROWS($G$22:G24)-1,COLUMNS($G$22:G24)-1),"") -> 4,515,579.0 | F11: =IF(OFFSET(DE100_1A!$H$22,ROWS($H$22:H24)-1,COLUMNS($H$22:H24)-1)<>"",OFFSET(DE100_1A!$H$22,ROWS($H$22:H24)-1,COLUMNS($H$22:H24)-1),"") -> 
A12: =IF(OFFSET(DE100_1A!$C$22,ROWS($C$22:C25)-1,COLUMNS($C$22:C25)-1)<>"",OFFSET(DE100_1A!$C$22,ROWS($C$22:C25)-1,COLUMNS($C$22:C25)-1),"") -> 4 | B12: =IF(OFFSET(DE100_1A!$D$22,ROWS($D$22:D25)-1,COLUMNS($D$22:D25)-1)<>"",OFFSET(DE100_1A!$D$22,ROWS($D$22:D25)-1,COLUMNS($D$22:D25)-1),"") -> 2102-2710090 | C12: =IF(OFFSET(DE100_1A!$E$22,ROWS($E$22:E25)-1,COLUMNS($E$22:E25)-1)<>"",OFFSET(DE100_1A!$E$22,ROWS($E$22:E25)-1,COLUMNS($E$22:E25)-1),"") -> EXCAVATION, CLASS 10, WASTE | D12: =IF(OFFSET(DE100_1A!$F$22,ROWS($F$22:F25)-1,COLUMNS($F$22:F25)-1)<>"",OFFSET(DE100_1A!$F$22,ROWS($F$22:F25)-1,COLUMNS($F$22:F25)-1),"") -> CY | E12: =IF(OFFSET(DE100_1A!$G$22,ROWS($G$22:G25)-1,COLUMNS($G$22:G25)-1)<>"",OFFSET(DE100_1A!$G$22,ROWS($G$22:G25)-1,COLUMNS($G$22:G25)-1),"") -> 580,746.0 | F12: =IF(OFFSET(DE100_1A!$H$22,ROWS($H$22:H25)-1,COLUMNS($H$22:H25)-1)<>"",OFFSET(DE100_1A!$H$22,ROWS($H$22:H25)-1,COLUMNS($H$22:H25)-1),"") -> 
A13: =IF(OFFSET(DE100_1A!$C$22,ROWS($C$22:C26)-1,COLUMNS($C$22:C26)-1)<>"",OFFSET(DE100_1A!$C$22,ROWS($C$22:C26)-1,COLUMNS($C$22:C26)-1),"") -> 5 | B13: =IF(OFFSET(DE100_1A!$D$22,ROWS($D$22:D26)-1,COLUMNS($D$22:D26)-1)<>"",OFFSET(DE100_1A!$D$22,ROWS($D$22:D26)-1,COLUMNS($D$22:D26)-1),"") -> 2102-2712015 | C13: =IF(OFFSET(DE100_1A!$E$22,ROWS($E$22:E26)-1,COLUMNS($E$22:E26)-1)<>"",OFFSET(DE100_1A!$E$22,ROWS($E$22:E26)-1,COLUMNS($E$22:E26)-1),"") -> EXCAVATION, CLASS 12, BOULDERS OR ROCK FRAGMENTS | D13: =IF(OFFSET(DE100_1A!$F$22,ROWS($F$22:F26)-1,COLUMNS($F$22:F26)-1)<>"",OFFSET(DE100_1A!$F$22,ROWS($F$22:F26)-1,COLUMNS($F$22:F26)-1),"") -> CY | E13: =IF(OFFSET(DE100_1A!$G$22,ROWS($G$22:G26)-1,COLUMNS($G$22:G26)-1)<>"",OFFSET(DE100_1A!$G$22,ROWS($G$22:G26)-1,COLUMNS($G$22:G26)-1),"") -> 2,500.0 | F13: =IF(OFFSET(DE100_1A!$H$22,ROWS($H$22:H26)-1,COLUMNS($H$22:H26)-1)<>"",OFFSET(DE100_1A!$H$22,ROWS($H$22:H26)-1,COLUMNS($H$22:H26)-1),"") -> 
A14: =IF(OFFSET(DE100_1A!$C$22,ROWS($C$22:C27)-1,COLUMNS($C$22:C27)-1)<>"",OFFSET(DE100_1A!$C$22,ROWS($C$22:C27)-1,COLUMNS($C$22:C27)-1),"") -> 6 | B14: =IF(OFFSET(DE100_1A!$D$22,ROWS($D$22:D27)-1,COLUMNS($D$22:D27)-1)<>"",OFFSET(DE100_1A!$D$22,ROWS($D$22:D27)-1,COLUMNS($D$22:D27)-1),"") -> 2102-4560000 | C14: =IF(OFFSET(DE100_1A!$E$22,ROWS($E$22:E27)-1,COLUMNS($E$22:E27)-1)<>"",OFFSET(DE100_1A!$E$22,ROWS($E$22:E27)-1,COLUMNS($E$22:E27)-1),"") -> LOCATING TILE LINES | D14: =IF(OFFSET(DE100_1A!$F$22,ROWS($F$22:F27)-1,COLUMNS($F$22:F27)-1)<>"",OFFSET(DE100_1A!$F$22,ROWS($F$22:F27)-1,COLUMNS($F$22:F27)-1),"") -> STA | E14: =IF(OFFSET(DE100_1A!$G$22,ROWS($G$22:G27)-1,COLUMNS($G$22:G27)-1)<>"",OFFSET(DE100_1A!$G$22,ROWS($G$22:G27)-1,COLUMNS($G$22:G27)-1),"") -> 1,187.40 | F14: =IF(OFFSET(DE100_1A!$H$22,ROWS($H$22:H27)-1,COLUMNS($H$22:H27)-1)<>"",OFFSET(DE100_1A!$H$22,ROWS($H$22:H27)-1,COLUMNS($H$22:H27)-1),"") -> 
A15: =IF(OFFSET(DE100_1A!$C$22,ROWS($C$22:C28)-1,COLUMNS($C$22:C28)-1)<>"",OFFSET(DE100_1A!$C$22,ROWS($C$22:C28)-1,COLUMNS($C$22:C28)-1),"") -> 7 | B15: =IF(OFFSET(DE100_1A!$D$22,ROWS($D$22:D28)-1,COLUMNS($D$22:D28)-1)<>"",OFFSET(DE100_1A!$D$22,ROWS($D$22:D28)-1,COLUMNS($D$22:D28)-1),"") -> 2105-8425011 | C15: =IF(OFFSET(DE100_1A!$E$22,ROWS($E$22:E28)-1,COLUMNS($E$22:E28)-1)<>"",OFFSET(DE100_1A!$E$22,ROWS($E$22:E28)-1,COLUMNS($E$22:E28)-1),"") -> TOPSOIL, SPREAD | D15: =IF(OFFSET(DE100_1A!$F$22,ROWS($F$22:F28)-1,COLUMNS($F$22:F28)-1)<>"",OFFSET(DE100_1A!$F$22,ROWS($F$22:F28)-1,COLUMNS($F$22:F28)-1),"") -> CY | E15: =IF(OFFSET(DE100_1A!$G$22,ROWS($G$22:G28)-1,COLUMNS($G$22:G28)-1)<>"",OFFSET(DE100_1A!$G$22,ROWS($G$22:G28)-1,COLUMNS($G$22:G28)-1),"") -> 394,644.0 | F15: =IF(OFFSET(DE100_1A!$H$22,ROWS($H$22:H28)-1,COLUMNS($H$22:H28)-1)<>"",OFFSET(DE100_1A!$H$22,ROWS($H$22:H28)-1,COLUMNS($H$22:H28)-1),"") -> 
A16: =IF(OFFSET(DE100_1A!$C$22,ROWS($C$22:C29)-1,COLUMNS($C$22:C29)-1)<>"",OFFSET(DE100_1A!$C$22,ROWS($C$22:C29)-1,COLUMNS($C$22:C29)-1),"") -> 8 | B16: =IF(OFFSET(DE100_1A!$D$22,ROWS($D$22:D29)-1,COLUMNS($D$22:D29)-1)<>"",OFFSET(DE100_1A!$D$22,ROWS($D$22:D29)-1,COLUMNS($D$22:D29)-1),"") -> 2105-8425020 | C16: =IF(OFFSET(DE100_1A!$E$22,ROWS($E$22:E29)-1,COLUMNS($E$22:E29)-1)<>"",OFFSET(DE100_1A!$E$22,ROWS($E$22:E29)-1,COLUMNS($E$22:E29)-1),"") -> TOPSOIL, STRIP AND STOCKPILE | D16: =IF(OFFSET(DE100_1A!$F$22,ROWS($F$22:F29)-1,COLUMNS($F$22:F29)-1)<>"",OFFSET(DE100_1A!$F$22,ROWS($F$22:F29)-1,COLUMNS($F$22:F29)-1),"") -> CY | E16: =IF(OFFSET(DE100_1A!$G$22,ROWS($G$22:G29)-1,COLUMNS($G$22:G29)-1)<>"",OFFSET(DE100_1A!$G$22,ROWS($G$22:G29)-1,COLUMNS($G$22:G29)-1),"") -> 470,373.0 | F16: =IF(OFFSET(DE100_1A!$H$22,ROWS($H$22:H29)-1,COLUMNS($H$22:H29)-1)<>"",OFFSET(DE100_1A!$H$22,ROWS($H$22:H29)-1,COLUMNS($H$22:H29)-1),"") -> 
A17: =IF(OFFSET(DE100_1A!$C$22,ROWS($C$22:C30)-1,COLUMNS($C$22:C30)-1)<>"",OFFSET(DE100_1A!$C$22,ROWS($C$22:C30)-1,COLUMNS($C$22:C30)-1),"") -> 9 | B17: =IF(OFFSET(DE100_1A!$D$22,ROWS($D$22:D30)-1,COLUMNS($D$22:D30)-1)<>"",OFFSET(DE100_1A!$D$22,ROWS($D$22:D30)-1,COLUMNS($D$22:D30)-1),"") -> 2107-0425020 | C17: =IF(OFFSET(DE100_1A!$E$22,ROWS($E$22:E30)-1,COLUMNS($E$22:E30)-1)<>"",OFFSET(DE100_1A!$E$22,ROWS($E$22:E30)-1,COLUMNS($E$22:E30)-1),"") -> COMPACTING BACKFILL ADJACENT TO BRIDGES, CULVERTS OR STRUCTURES | D17: =IF(OFFSET(DE100_1A!$F$22,ROWS($F$22:F30)-1,COLUMNS($F$22:F30)-1)<>"",OFFSET(DE100_1A!$F$22,ROWS($F$22:F30)-1,COLUMNS($F$22:F30)-1),"") -> CY | E17: =IF(OFFSET(DE100_1A!$G$22,ROWS($G$22:G30)-1,COLUMNS($G$22:G30)-1)<>"",OFFSET(DE100_1A!$G$22,ROWS($G$22:G30)-1,COLUMNS($G$22:G30)-1),"") -> 79,519.6 | F17: =IF(OFFSET(DE100_1A!$H$22,ROWS($H$22:H30)-1,COLUMNS($H$22:H30)-1)<>"",OFFSET(DE100_1A!$H$22,ROWS($H$22:H30)-1,COLUMNS($H$22:H30)-1),"") -> 
A18: =IF(OFFSET(DE100_1A!$C$22,ROWS($C$22:C31)-1,COLUMNS($C$22:C31)-1)<>"",OFFSET(DE100_1A!$C$22,ROWS($C$22:C31)-1,COLUMNS($C$22:C31)-1),"") -> 10 | B18: =IF(OFFSET(DE100_1A!$D$22,ROWS($D$22:D31)-1,COLUMNS($D$22:D31)-1)<>"",OFFSET(DE100_1A!$D$22,ROWS($D$22:D31)-1,COLUMNS($D$22:D31)-1),"") -> 2107-0875100 | C18: =IF(OFFSET(DE100_1A!$E$22,ROWS($E$22:E31)-1,COLUMNS($E$22:E31)-1)<>"",OFFSET(DE100_1A!$E$22,ROWS($E$22:E31)-1,COLUMNS($E$22:E31)-1),"") -> COMPACTION WITH MOISTURE CONTROL | D18: =IF(OFFSET(DE100_1A!$F$22,ROWS($F$22:F31)-1,COLUMNS($F$22:F31)-1)<>"",OFFSET(DE100_1A!$F$22,ROWS($F$22:F31)-1,COLUMNS($F$22:F31)-1),"") -> CY | E18: =IF(OFFSET(DE100_1A!$G$22,ROWS($G$22:G31)-1,COLUMNS($G$22:G31)-1)<>"",OFFSET(DE100_1A!$G$22,ROWS($G$22:G31)-1,COLUMNS($G$22:G31)-1),"") -> 3,459,995.0 | F18: =IF(OFFSET(DE100_1A!$H$22,ROWS($H$22:H31)-1,COLUMNS($H$22:H31)-1)<>"",OFFSET(DE100_1A!$H$22,ROWS($H$22:H31)-1,COLUMNS($H$22:H31)-1),"") -> 
A19: =IF(OFFSET(DE100_1A!$C$22,ROWS($C$22:C32)-1,COLUMNS($C$22:C32)-1)<>"",OFFSET(DE100_1A!$C$22,ROWS($C$22:C32)-1,COLUMNS($C$22:C32)-1),"") -> 11 | B19: =IF(OFFSET(DE100_1A!$D$22,ROWS($D$22:D32)-1,COLUMNS($D$22:D32)-1)<>"",OFFSET(DE100_1A!$D$22,ROWS($D$22:D32)-1,COLUMNS($D$22:D32)-1),"") -> 2107-3825025 | C19: =IF(OFFSET(DE100_1A!$E$22,ROWS($E$22:E32)-1,COLUMNS($E$22:E32)-1)<>"",OFFSET(DE100_1A!$E$22,ROWS($E$22:E32)-1,COLUMNS($E$22:E32)-1),"") -> GRANULAR MATERIAL FOR BLANKET AND SUBDRAIN | D19: =IF(OFFSET(DE100_1A!$F$22,ROWS($F$22:F32)-1,COLUMNS($F$22:F32)-1)<>"",OFFSET(DE100_1A!$F$22,ROWS($F$22:F32)-1,COLUMNS($F$22:F32)-1),"") -> CY | E19: =IF(OFFSET(DE100_1A!$G$22,ROWS($G$22:G32)-1,COLUMNS($G$22:G32)-1)<>"",OFFSET(DE100_1A!$G$22,ROWS($G$22:G32)-1,COLUMNS($G$22:G32)-1),"") -> 21,543.4 | F19: =IF(OFFSET(DE100_1A!$H$22,ROWS($H$22:H32)-1,COLUMNS($H$22:H32)-1)<>"",OFFSET(DE100_1A!$H$22,ROWS($H$22:H32)-1,COLUMNS($H$22:H32)-1),"") -> 
A20: =IF(OFFSET(DE100_1A!$C$22,ROWS($C$22:C33)-1,COLUMNS($C$22:C33)-1)<>"",OFFSET(DE100_1A!$C$22,ROWS($C$22:C33)-1,COLUMNS($C$22:C33)-1),"") -> 12 | B20: =IF(OFFSET(DE100_1A!$D$22,ROWS($D$22:D33)-1,COLUMNS($D$22:D33)-1)<>"",OFFSET(DE100_1A!$D$22,ROWS($D$22:D33)-1,COLUMNS($D$22:D33)-1),"") -> 2112-0000100 | C20: =IF(OFFSET(DE100_1A!$E$22,ROWS($E$22:E33)-1,COLUMNS($E$22:E33)-1)<>"",OFFSET(DE100_1A!$E$22,ROWS($E$22:E33)-1,COLUMNS($E$22:E33)-1),"") -> WICK DRAIN | D20: =IF(OFFSET(DE100_1A!$F$22,ROWS($F$22:F33)-1,COLUMNS($F$22:F33)-1)<>"",OFFSET(DE100_1A!$F$22,ROWS($F$22:F33)-1,COLUMNS($F$22:F33)-1),"") -> LF | E20: =IF(OFFSET(DE100_1A!$G$22,ROWS($G$22:G33)-1,COLUMNS($G$22:G33)-1)<>"",OFFSET(DE100_1A!$G$22,ROWS($G$22:G33)-1,COLUMNS($G$22:G33)-1),"") -> 85,447.5 | F20: =IF(OFFSET(DE100_1A!$H$22,ROWS($H$22:H33)-1,COLUMNS($H$22:H33)-1)<>"",OFFSET(DE100_1A!$H$22,ROWS($H$22:H33)-1,COLUMNS($H$22:H33)-1),"") -> 
A21: =IF(OFFSET(DE100_1A!$C$22,ROWS($C$22:C34)-1,COLUMNS($C$22:C34)-1)<>"",OFFSET(DE100_1A!$C$22,ROWS($C$22:C34)-1,COLUMNS($C$22:C34)-1),"") -> 13 | B21: =IF(OFFSET(DE100_1A!$D$22,ROWS($D$22:D34)-1,COLUMNS($D$22:D34)-1)<>"",OFFSET(DE100_1A!$D$22,ROWS($D$22:D34)-1,COLUMNS($D$22:D34)-1),"") -> 2312-8260051 | C21: =IF(OFFSET(DE100_1A!$E$22,ROWS($E$22:E34)-1,COLUMNS($E$22:E34)-1)<>"",OFFSET(DE100_1A!$E$22,ROWS($E$22:E34)-1,COLUMNS($E$22:E34)-1),"") -> GRANULAR SURFACING ON ROAD, CLASS A CRUSHED STONE | D21: =IF(OFFSET(DE100_1A!$F$22,ROWS($F$22:F34)-1,COLUMNS($F$22:F34)-1)<>"",OFFSET(DE100_1A!$F$22,ROWS($F$22:F34)-1,COLUMNS($F$22:F34)-1),"") -> TON | E21: =IF(OFFSET(DE100_1A!$G$22,ROWS($G$22:G34)-1,COLUMNS($G$22:G34)-1)<>"",OFFSET(DE100_1A!$G$22,ROWS($G$22:G34)-1,COLUMNS($G$22:G34)-1),"") -> 2,113.0 | F21: =IF(OFFSET(DE100_1A!$H$22,ROWS($H$22:H34)-1,COLUMNS($H$22:H34)-1)<>"",OFFSET(DE100_1A!$H$22,ROWS($H$22:H34)-1,COLUMNS($H$22:H34)-1),"") -> 
A22: =IF(OFFSET(DE100_1A!$C$22,ROWS($C$22:C35)-1,COLUMNS($C$22:C35)-1)<>"",OFFSET(DE100_1A!$C$22,ROWS($C$22:C35)-1,COLUMNS($C$22:C35)-1),"") -> 14 | B22: =IF(OFFSET(DE100_1A!$D$22,ROWS($D$22:D35)-1,COLUMNS($D$22:D35)-1)<>"",OFFSET(DE100_1A!$D$22,ROWS($D$22:D35)-1,COLUMNS($D$22:D35)-1),"") -> 2315-8275025 | C22: =IF(OFFSET(DE100_1A!$E$22,ROWS($E$22:E35)-1,COLUMNS($E$22:E35)-1)<>"",OFFSET(DE100_1A!$E$22,ROWS($E$22:E35)-1,COLUMNS($E$22:E35)-1),"") -> SURFACING, DRIVEWAY, CLASS A CRUSHED STONE | D22: =IF(OFFSET(DE100_1A!$F$22,ROWS($F$22:F35)-1,COLUMNS($F$22:F35)-1)<>"",OFFSET(DE100_1A!$F$22,ROWS($F$22:F35)-1,COLUMNS($F$22:F35)-1),"") -> TON | E22: =IF(OFFSET(DE100_1A!$G$22,ROWS($G$22:G35)-1,COLUMNS($G$22:G35)-1)<>"",OFFSET(DE100_1A!$G$22,ROWS($G$22:G35)-1,COLUMNS($G$22:G35)-1),"") -> 5,905.6 | F22: =IF(OFFSET(DE100_1A!$H$22,ROWS($H$22:H35)-1,COLUMNS($H$22:H35)-1)<>"",OFFSET(DE100_1A!$H$22,ROWS($H$22:H35)-1,COLUMNS($H$22:H35)-1),"") -> 
A23: =IF(OFFSET(DE100_1A!$C$22,ROWS($C$22:C36)-1,COLUMNS($C$22:C36)-1)<>"",OFFSET(DE100_1A!$C$22,ROWS($C$22:C36)-1,COLUMNS($C$22:C36)-1),"") -> 15 | B23: =IF(OFFSET(DE100_1A!$D$22,ROWS($D$22:D36)-1,COLUMNS($D$22:D36)-1)<>"",OFFSET(DE100_1A!$D$22,ROWS($D$22:D36)-1,COLUMNS($D$22:D36)-1),"") -> 2401-6745354 | C23: =IF(OFFSET(DE100_1A!$E$22,ROWS($E$22:E36)-1,COLUMNS($E$22:E36)-1)<>"",OFFSET(DE100_1A!$E$22,ROWS($E$22:E36)-1,COLUMNS($E$22:E36)-1),"") -> REMOVAL OF CONCRETE FOOTINGS, AS PER PLAN | D23: =IF(OFFSET(DE100_1A!$F$22,ROWS($F$22:F36)-1,COLUMNS($F$22:F36)-1)<>"",OFFSET(DE100_1A!$F$22,ROWS($F$22:F36)-1,COLUMNS($F$22:F36)-1),"") -> EACH | E23: =IF(OFFSET(DE100_1A!$G$22,ROWS($G$22:G36)-1,COLUMNS($G$22:G36)-1)<>"",OFFSET(DE100_1A!$G$22,ROWS($G$22:G36)-1,COLUMNS($G$22:G36)-1),"") -> 2 | F23: =IF(OFFSET(DE100_1A!$H$22,ROWS($H$22:H36)-1,COLUMNS($H$22:H36)-1)<>"",OFFSET(DE100_1A!$H$22,ROWS($H$22:H36)-1,COLUMNS($H$22:H36)-1),"") -> 
A24: =IF(OFFSET(DE100_1A!$C$22,ROWS($C$22:C37)-1,COLUMNS($C$22:C37)-1)<>"",OFFSET(DE100_1A!$C$22,ROWS($C$22:C37)-1,COLUMNS($C$22:C37)-1),"") -> 16 | B24: =IF(OFFSET(DE100_1A!$D$22,ROWS($D$22:D37)-1,COLUMNS($D$22:D37)-1)<>"",OFFSET(DE100_1A!$D$22,ROWS($D$22:D37)-1,COLUMNS($D$22:D37)-1),"") -> 2402-0425040 | C24: =IF(OFFSET(DE100_1A!$E$22,ROWS($E$22:E37)-1,COLUMNS($E$22:E37)-1)<>"",OFFSET(DE100_1A!$E$22,ROWS($E$22:E37)-1,COLUMNS($E$22:E37)-1),"") -> FLOODED BACKFILL | D24: =IF(OFFSET(DE100_1A!$F$22,ROWS($F$22:F37)-1,COLUMNS($F$22:F37)-1)<>"",OFFSET(DE100_1A!$F$22,ROWS($F$22:F37)-1,COLUMNS($F$22:F37)-1),"") -> CY | E24: =IF(OFFSET(DE100_1A!$G$22,ROWS($G$22:G37)-1,COLUMNS($G$22:G37)-1)<>"",OFFSET(DE100_1A!$G$22,ROWS($G$22:G37)-1,COLUMNS($G$22:G37)-1),"") -> 16,441.5 | F24: =IF(OFFSET(DE100_1A!$H$22,ROWS($H$22:H37)-1,COLUMNS($H$22:H37)-1)<>"",OFFSET(DE100_1A!$H$22,ROWS($H$22:H37)-1,COLUMNS($H$22:H37)-1),"") -> 
A25: =IF(OFFSET(DE100_1A!$C$22,ROWS($C$22:C38)-1,COLUMNS($C$22:C38)-1)<>"",OFFSET(DE100_1A!$C$22,ROWS($C$22:C38)-1,COLUMNS($C$22:C38)-1),"") -> 17 | B25: =IF(OFFSET(DE100_1A!$D$22,ROWS($D$22:D38)-1,COLUMNS($D$22:D38)-1)<>"",OFFSET(DE100_1A!$D$22,ROWS($D$22:D38)-1,COLUMNS($D$22:D38)-1),"") -> 2402-2720000 | C25: =IF(OFFSET(DE100_1A!$E$22,ROWS($E$22:E38)-1,COLUMNS($E$22:E38)-1)<>"",OFFSET(DE100_1A!$E$22,ROWS($E$22:E38)-1,COLUMNS($E$22:E38)-1),"") -> EXCAVATION, CLASS 20 | D25: =IF(OFFSET(DE100_1A!$F$22,ROWS($F$22:F38)-1,COLUMNS($F$22:F38)-1)<>"",OFFSET(DE100_1A!$F$22,ROWS($F$22:F38)-1,COLUMNS($F$22:F38)-1),"") -> CY | E25: =IF(OFFSET(DE100_1A!$G$22,ROWS($G$22:G38)-1,COLUMNS($G$22:G38)-1)<>"",OFFSET(DE100_1A!$G$22,ROWS($G$22:G38)-1,COLUMNS($G$22:G38)-1),"") -> 1004 | F25: =IF(OFFSET(DE100_1A!$H$22,ROWS($H$22:H38)-1,COLUMNS($H$22:H38)-1)<>"",OFFSET(DE100_1A!$H$22,ROWS($H$22:H38)-1,COLUMNS($H$22:H38)-1),"") -> 
A26: =IF(OFFSET(DE100_1A!$C$22,ROWS($C$22:C39)-1,COLUMNS($C$22:C39)-1)<>"",OFFSET(DE100_1A!$C$22,ROWS($C$22:C39)-1,COLUMNS($C$22:C39)-1),"") -> 18 | B26: =IF(OFFSET(DE100_1A!$D$22,ROWS($D$22:D39)-1,COLUMNS($D$22:D39)-1)<>"",OFFSET(DE100_1A!$D$22,ROWS($D$22:D39)-1,COLUMNS($D$22:D39)-1),"") -> 2402-2720100 | C26: =IF(OFFSET(DE100_1A!$E$22,ROWS($E$22:E39)-1,COLUMNS($E$22:E39)-1)<>"",OFFSET(DE100_1A!$E$22,ROWS($E$22:E39)-1,COLUMNS($E$22:E39)-1),"") -> EXCAVATION, CLASS 20, FOR ROADWAY PIPE CULVERT | D26: =IF(OFFSET(DE100_1A!$F$22,ROWS($F$22:F39)-1,COLUMNS($F$22:F39)-1)<>"",OFFSET(DE100_1A!$F$22,ROWS($F$22:F39)-1,COLUMNS($F$22:F39)-1),"") -> CY | E26: =IF(OFFSET(DE100_1A!$G$22,ROWS($G$22:G39)-1,COLUMNS($G$22:G39)-1)<>"",OFFSET(DE100_1A!$G$22,ROWS($G$22:G39)-1,COLUMNS($G$22:G39)-1),"") -> 34,891.9 | F26: =IF(OFFSET(DE100_1A!$H$22,ROWS($H$22:H39)-1,COLUMNS($H$22:H39)-1)<>"",OFFSET(DE100_1A!$H$22,ROWS($H$22:H39)-1,COLUMNS($H$22:H39)-1),"") -> 
A27: =IF(OFFSET(DE100_1A!$C$22,ROWS($C$22:C40)-1,COLUMNS($C$22:C40)-1)<>"",OFFSET(DE100_1A!$C$22,ROWS($C$22:C40)-1,COLUMNS($C$22:C40)-1),"") -> 19 | B27: =IF(OFFSET(DE100_1A!$D$22,ROWS($D$22:D40)-1,COLUMNS($D$22:D40)-1)<>"",OFFSET(DE100_1A!$D$22,ROWS($D$22:D40)-1,COLUMNS($D$22:D40)-1),"") -> 2416-0100018 | C27: =IF(OFFSET(DE100_1A!$E$22,ROWS($E$22:E40)-1,COLUMNS($E$22:E40)-1)<>"",OFFSET(DE100_1A!$E$22,ROWS($E$22:E40)-1,COLUMNS($E$22:E40)-1),"") -> APRONS, CONCRETE, 18 IN. DIA. | D27: =IF(OFFSET(DE100_1A!$F$22,ROWS($F$22:F40)-1,COLUMNS($F$22:F40)-1)<>"",OFFSET(DE100_1A!$F$22,ROWS($F$22:F40)-1,COLUMNS($F$22:F40)-1),"") -> EACH | E27: =IF(OFFSET(DE100_1A!$G$22,ROWS($G$22:G40)-1,COLUMNS($G$22:G40)-1)<>"",OFFSET(DE100_1A!$G$22,ROWS($G$22:G40)-1,COLUMNS($G$22:G40)-1),"") -> 16 | F27: =IF(OFFSET(DE100_1A!$H$22,ROWS($H$22:H40)-1,COLUMNS($H$22:H40)-1)<>"",OFFSET(DE100_1A!$H$22,ROWS($H$22:H40)-1,COLUMNS($H$22:H40)-1),"") -> 
A28: =IF(OFFSET(DE100_1A!$C$22,ROWS($C$22:C41)-1,COLUMNS($C$22:C41)-1)<>"",OFFSET(DE100_1A!$C$22,ROWS($C$22:C41)-1,COLUMNS($C$22:C41)-1),"") -> 20 | B28: =IF(OFFSET(DE100_1A!$D$22,ROWS($D$22:D41)-1,COLUMNS($D$22:D41)-1)<>"",OFFSET(DE100_1A!$D$22,ROWS($D$22:D41)-1,COLUMNS($D$22:D41)-1),"") -> 2416-0100024 | C28: =IF(OFFSET(DE100_1A!$E$22,ROWS($E$22:E41)-1,COLUMNS($E$22:E41)-1)<>"",OFFSET(DE100_1A!$E$22,ROWS($E$22:E41)-1,COLUMNS($E$22:E41)-1),"") -> APRONS, CONCRETE, 24 IN. DIA. | D28: =IF(OFFSET(DE100_1A!$F$22,ROWS($F$22:F41)-1,COLUMNS($F$22:F41)-1)<>"",OFFSET(DE100_1A!$F$22,ROWS($F$22:F41)-1,COLUMNS($F$22:F41)-1),"") -> EACH | E28: =IF(OFFSET(DE100_1A!$G$22,ROWS($G$22:G41)-1,COLUMNS($G$22:G41)-1)<>"",OFFSET(DE100_1A!$G$22,ROWS($G$22:G41)-1,COLUMNS($G$22:G41)-1),"") -> 91 | F28: =IF(OFFSET(DE100_1A!$H$22,ROWS($H$22:H41)-1,COLUMNS($H$22:H41)-1)<>"",OFFSET(DE100_1A!$H$22,ROWS($H$22:H41)-1,COLUMNS($H$22:H41)-1),"") -> 
A29: =IF(OFFSET(DE100_1A!$C$22,ROWS($C$22:C42)-1,COLUMNS($C$22:C42)-1)<>"",OFFSET(DE100_1A!$C$22,ROWS($C$22:C42)-1,COLUMNS($C$22:C42)-1),"") -> 21 | B29: =IF(OFFSET(DE100_1A!$D$22,ROWS($D$22:D42)-1,COLUMNS($D$22:D42)-1)<>"",OFFSET(DE100_1A!$D$22,ROWS($D$22:D42)-1,COLUMNS($D$22:D42)-1),"") -> 2416-0100030 | C29: =IF(OFFSET(DE100_1A!$E$22,ROWS($E$22:E42)-1,COLUMNS($E$22:E42)-1)<>"",OFFSET(DE100_1A!$E$22,ROWS($E$22:E42)-1,COLUMNS($E$22:E42)-1),"") -> APRONS, CONCRETE, 30 IN. DIA. | D29: =IF(OFFSET(DE100_1A!$F$22,ROWS($F$22:F42)-1,COLUMNS($F$22:F42)-1)<>"",OFFSET(DE100_1A!$F$22,ROWS($F$22:F42)-1,COLUMNS($F$22:F42)-1),"") -> EACH | E29: =IF(OFFSET(DE100_1A!$G$22,ROWS($G$22:G42)-1,COLUMNS($G$22:G42)-1)<>"",OFFSET(DE100_1A!$G$22,ROWS($G$22:G42)-1,COLUMNS($G$22:G42)-1),"") -> 7 | F29: =IF(OFFSET(DE100_1A!$H$22,ROWS($H$22:H42)-1,COLUMNS($H$22:H42)-1)<>"",OFFSET(DE100_1A!$H$22,ROWS($H$22:H42)-1,COLUMNS($H$22:H42)-1),"") -> 
A30: =IF(OFFSET(DE100_1A!$C$22,ROWS($C$22:C43)-1,COLUMNS($C$22:C43)-1)<>"",OFFSET(DE100_1A!$C$22,ROWS($C$22:C43)-1,COLUMNS($C$22:C43)-1),"") -> 22 | B30: =IF(OFFSET(DE100_1A!$D$22,ROWS($D$22:D43)-1,COLUMNS($D$22:D43)-1)<>"",OFFSET(DE100_1A!$D$22,ROWS($D$22:D43)-1,COLUMNS($D$22:D43)-1),"") -> 2416-0100036 | C30: =IF(OFFSET(DE100_1A!$E$22,ROWS($E$22:E43)-1,COLUMNS($E$22:E43)-1)<>"",OFFSET(DE100_1A!$E$22,ROWS($E$22:E43)-1,COLUMNS($E$22:E43)-1),"") -> APRONS, CONCRETE, 36 IN. DIA. | D30: =IF(OFFSET(DE100_1A!$F$22,ROWS($F$22:F43)-1,COLUMNS($F$22:F43)-1)<>"",OFFSET(DE100_1A!$F$22,ROWS($F$22:F43)-1,COLUMNS($F$22:F43)-1),"") -> EACH | E30: =IF(OFFSET(DE100_1A!$G$22,ROWS($G$22:G43)-1,COLUMNS($G$22:G43)-1)<>"",OFFSET(DE100_1A!$G$22,ROWS($G$22:G43)-1,COLUMNS($G$22:G43)-1),"") -> 7 | F30: =IF(OFFSET(DE100_1A!$H$22,ROWS($H$22:H43)-1,COLUMNS($H$22:H43)-1)<>"",OFFSET(DE100_1A!$H$22,ROWS($H$22:H43)-1,COLUMNS($H$22:H43)-1),"") -> 
A31: =IF(OFFSET(DE100_1A!$C$22,ROWS($C$22:C44)-1,COLUMNS($C$22:C44)-1)<>"",OFFSET(DE100_1A!$C$22,ROWS($C$22:C44)-1,COLUMNS($C$22:C44)-1),"") -> 23 | B31: =IF(OFFSET(DE100_1A!$D$22,ROWS($D$22:D44)-1,COLUMNS($D$22:D44)-1)<>"",OFFSET(DE100_1A!$D$22,ROWS($D$22:D44)-1,COLUMNS($D$22:D44)-1),"") -> 2416-0100042 | C31: =IF(OFFSET(DE100_1A!$E$22,ROWS($E$22:E44)-1,COLUMNS($E$22:E44)-1)<>"",OFFSET(DE100_1A!$E$22,ROWS($E$22:E44)-1,COLUMNS($E$22:E44)-1),"") -> APRONS, CONCRETE, 42 IN. DIA. | D31: =IF(OFFSET(DE100_1A!$F$22,ROWS($F$22:F44)-1,COLUMNS($F$22:F44)-1)<>"",OFFSET(DE100_1A!$F$22,ROWS($F$22:F44)-1,COLUMNS($F$22:F44)-1),"") -> EACH | E31: =IF(OFFSET(DE100_1A!$G$22,ROWS($G$22:G44)-1,COLUMNS($G$22:G44)-1)<>"",OFFSET(DE100_1A!$G$22,ROWS($G$22:G44)-1,COLUMNS($G$22:G44)-1),"") -> 4 | F31: =IF(OFFSET(DE100_1A!$H$22,ROWS($H$22:H44)-1,COLUMNS($H$22:H44)-1)<>"",OFFSET(DE100_1A!$H$22,ROWS($H$22:H44)-1,COLUMNS($H$22:H44)-1),"") -> 
A32: =IF(OFFSET(DE100_1A!$C$22,ROWS($C$22:C45)-1,COLUMNS($C$22:C45)-1)<>"",OFFSET(DE100_1A!$C$22,ROWS($C$22:C45)-1,COLUMNS($C$22:C45)-1),"") -> 24 | B32: =IF(OFFSET(DE100_1A!$D$22,ROWS($D$22:D45)-1,COLUMNS($D$22:D45)-1)<>"",OFFSET(DE100_1A!$D$22,ROWS($D$22:D45)-1,COLUMNS($D$22:D45)-1),"") -> 2416-0100048 | C32: =IF(OFFSET(DE100_1A!$E$22,ROWS($E$22:E45)-1,COLUMNS($E$22:E45)-1)<>"",OFFSET(DE100_1A!$E$22,ROWS($E$22:E45)-1,COLUMNS($E$22:E45)-1),"") -> APRONS, CONCRETE, 48 IN. DIA. | D32: =IF(OFFSET(DE100_1A!$F$22,ROWS($F$22:F45)-1,COLUMNS($F$22:F45)-1)<>"",OFFSET(DE100_1A!$F$22,ROWS($F$22:F45)-1,COLUMNS($F$22:F45)-1),"") -> EACH | E32: =IF(OFFSET(DE100_1A!$G$22,ROWS($G$22:G45)-1,COLUMNS($G$22:G45)-1)<>"",OFFSET(DE100_1A!$G$22,ROWS($G$22:G45)-1,COLUMNS($G$22:G45)-1),"") -> 9 | F32: =IF(OFFSET(DE100_1A!$H$22,ROWS($H$22:H45)-1,COLUMNS($H$22:H45)-1)<>"",OFFSET(DE100_1A!$H$22,ROWS($H$22:H45)-1,COLUMNS($H$22:H45)-1),"") -> 
A33: =IF(OFFSET(DE100_1A!$C$22,ROWS($C$22:C46)-1,COLUMNS($C$22:C46)-1)<>"",OFFSET(DE100_1A!$C$22,ROWS($C$22:C46)-1,COLUMNS($C$22:C46)-1),"") -> 25 | B33: =IF(OFFSET(DE100_1A!$D$22,ROWS($D$22:D46)-1,COLUMNS($D$22:D46)-1)<>"",OFFSET(DE100_1A!$D$22,ROWS($D$22:D46)-1,COLUMNS($D$22:D46)-1),"") -> 2416-0100054 | C33: =IF(OFFSET(DE100_1A!$E$22,ROWS($E$22:E46)-1,COLUMNS($E$22:E46)-1)<>"",OFFSET(DE100_1A!$E$22,ROWS($E$22:E46)-1,COLUMNS($E$22:E46)-1),"") -> APRONS, CONCRETE, 54 IN. DIA. | D33: =IF(OFFSET(DE100_1A!$F$22,ROWS($F$22:F46)-1,COLUMNS($F$22:F46)-1)<>"",OFFSET(DE100_1A!$F$22,ROWS($F$22:F46)-1,COLUMNS($F$22:F46)-1),"") -> EACH | E33: =IF(OFFSET(DE100_1A!$G$22,ROWS($G$22:G46)-1,COLUMNS($G$22:G46)-1)<>"",OFFSET(DE100_1A!$G$22,ROWS($G$22:G46)-1,COLUMNS($G$22:G46)-1),"") -> 5 | F33: =IF(OFFSET(DE100_1A!$H$22,ROWS($H$22:H46)-1,COLUMNS($H$22:H46)-1)<>"",OFFSET(DE100_1A!$H$22,ROWS($H$22:H46)-1,COLUMNS($H$22:H46)-1),"") -> 
A34: =IF(OFFSET(DE100_1A!$C$22,ROWS($C$22:C47)-1,COLUMNS($C$22:C47)-1)<>"",OFFSET(DE100_1A!$C$22,ROWS($C$22:C47)-1,COLUMNS($C$22:C47)-1),"") -> 26 | B34: =IF(OFFSET(DE100_1A!$D$22,ROWS($D$22:D47)-1,COLUMNS($D$22:D47)-1)<>"",OFFSET(DE100_1A!$D$22,ROWS($D$22:D47)-1,COLUMNS($D$22:D47)-1),"") -> 2416-0100066 | C34: =IF(OFFSET(DE100_1A!$E$22,ROWS($E$22:E47)-1,COLUMNS($E$22:E47)-1)<>"",OFFSET(DE100_1A!$E$22,ROWS($E$22:E47)-1,COLUMNS($E$22:E47)-1),"") -> APRONS, CONCRETE, 66 IN. DIA. | D34: =IF(OFFSET(DE100_1A!$F$22,ROWS($F$22:F47)-1,COLUMNS($F$22:F47)-1)<>"",OFFSET(DE100_1A!$F$22,ROWS($F$22:F47)-1,COLUMNS($F$22:F47)-1),"") -> EACH | E34: =IF(OFFSET(DE100_1A!$G$22,ROWS($G$22:G47)-1,COLUMNS($G$22:G47)-1)<>"",OFFSET(DE100_1A!$G$22,ROWS($G$22:G47)-1,COLUMNS($G$22:G47)-1),"") -> 4 | F34: =IF(OFFSET(DE100_1A!$H$22,ROWS($H$22:H47)-1,COLUMNS($H$22:H47)-1)<>"",OFFSET(DE100_1A!$H$22,ROWS($H$22:H47)-1,COLUMNS($H$22:H47)-1),"") -> 
A35: =IF(OFFSET(DE100_1A!$C$22,ROWS($C$22:C48)-1,COLUMNS($C$22:C48)-1)<>"",OFFSET(DE100_1A!$C$22,ROWS($C$22:C48)-1,COLUMNS($C$22:C48)-1),"") -> 27 | B35: =IF(OFFSET(DE100_1A!$D$22,ROWS($D$22:D48)-1,COLUMNS($D$22:D48)-1)<>"",OFFSET(DE100_1A!$D$22,ROWS($D$22:D48)-1,COLUMNS($D$22:D48)-1),"") -> 2416-0100072 | C35: =IF(OFFSET(DE100_1A!$E$22,ROWS($E$22:E48)-1,COLUMNS($E$22:E48)-1)<>"",OFFSET(DE100_1A!$E$22,ROWS($E$22:E48)-1,COLUMNS($E$22:E48)-1),"") -> APRONS, CONCRETE, 72 IN. DIA. | D35: =IF(OFFSET(DE100_1A!$F$22,ROWS($F$22:F48)-1,COLUMNS($F$22:F48)-1)<>"",OFFSET(DE100_1A!$F$22,ROWS($F$22:F48)-1,COLUMNS($F$22:F48)-1),"") -> EACH | E35: =IF(OFFSET(DE100_1A!$G$22,ROWS($G$22:G48)-1,COLUMNS($G$22:G48)-1)<>"",OFFSET(DE100_1A!$G$22,ROWS($G$22:G48)-1,COLUMNS($G$22:G48)-1),"") -> 1 | F35: =IF(OFFSET(DE100_1A!$H$22,ROWS($H$22:H48)-1,COLUMNS($H$22:H48)-1)<>"",OFFSET(DE100_1A!$H$22,ROWS($H$22:H48)-1,COLUMNS($H$22:H48)-1),"") -> 
A36: =IF(OFFSET(DE100_1A!$C$22,ROWS($C$22:C49)-1,COLUMNS($C$22:C49)-1)<>"",OFFSET(DE100_1A!$C$22,ROWS($C$22:C49)-1,COLUMNS($C$22:C49)-1),"") -> 28 | B36: =IF(OFFSET(DE100_1A!$D$22,ROWS($D$22:D49)-1,COLUMNS($D$22:D49)-1)<>"",OFFSET(DE100_1A!$D$22,ROWS($D$22:D49)-1,COLUMNS($D$22:D49)-1),"") -> 2416-0102272 | C36: =IF(OFFSET(DE100_1A!$E$22,ROWS($E$22:E49)-1,COLUMNS($E$22:E49)-1)<>"",OFFSET(DE100_1A!$E$22,ROWS($E$22:E49)-1,COLUMNS($E$22:E49)-1),"") -> APRON, LOW CLEARANCE CONCRETE, EQUIVALENT DIAMETER 72 IN. | D36: =IF(OFFSET(DE100_1A!$F$22,ROWS($F$22:F49)-1,COLUMNS($F$22:F49)-1)<>"",OFFSET(DE100_1A!$F$22,ROWS($F$22:F49)-1,COLUMNS($F$22:F49)-1),"") -> EACH | E36: =IF(OFFSET(DE100_1A!$G$22,ROWS($G$22:G49)-1,COLUMNS($G$22:G49)-1)<>"",OFFSET(DE100_1A!$G$22,ROWS($G$22:G49)-1,COLUMNS($G$22:G49)-1),"") -> 2 | F36: =IF(OFFSET(DE100_1A!$H$22,ROWS($H$22:H49)-1,COLUMNS($H$22:H49)-1)<>"",OFFSET(DE100_1A!$H$22,ROWS($H$22:H49)-1,COLUMNS($H$22:H49)-1),"") -> 
A37: =IF(OFFSET(DE100_1A!$C$22,ROWS($C$22:C50)-1,COLUMNS($C$22:C50)-1)<>"",OFFSET(DE100_1A!$C$22,ROWS($C$22:C50)-1,COLUMNS($C$22:C50)-1),"") -> 29 | B37: =IF(OFFSET(DE100_1A!$D$22,ROWS($D$22:D50)-1,COLUMNS($D$22:D50)-1)<>"",OFFSET(DE100_1A!$D$22,ROWS($D$22:D50)-1,COLUMNS($D$22:D50)-1),"") -> 2416-1180018 | C37: =IF(OFFSET(DE100_1A!$E$22,ROWS($E$22:E50)-1,COLUMNS($E$22:E50)-1)<>"",OFFSET(DE100_1A!$E$22,ROWS($E$22:E50)-1,COLUMNS($E$22:E50)-1),"") -> CULVERT, CONCRETE ROADWAY PIPE, 18 IN. DIA. | D37: =IF(OFFSET(DE100_1A!$F$22,ROWS($F$22:F50)-1,COLUMNS($F$22:F50)-1)<>"",OFFSET(DE100_1A!$F$22,ROWS($F$22:F50)-1,COLUMNS($F$22:F50)-1),"") -> LF | E37: =IF(OFFSET(DE100_1A!$G$22,ROWS($G$22:G50)-1,COLUMNS($G$22:G50)-1)<>"",OFFSET(DE100_1A!$G$22,ROWS($G$22:G50)-1,COLUMNS($G$22:G50)-1),"") -> 710 | F37: =IF(OFFSET(DE100_1A!$H$22,ROWS($H$22:H50)-1,COLUMNS($H$22:H50)-1)<>"",OFFSET(DE100_1A!$H$22,ROWS($H$22:H50)-1,COLUMNS($H$22:H50)-1),"") -> 
A38: =IF(OFFSET(DE100_1A!$C$22,ROWS($C$22:C51)-1,COLUMNS($C$22:C51)-1)<>"",OFFSET(DE100_1A!$C$22,ROWS($C$22:C51)-1,COLUMNS($C$22:C51)-1),"") -> 30 | B38: =IF(OFFSET(DE100_1A!$D$22,ROWS($D$22:D51)-1,COLUMNS($D$22:D51)-1)<>"",OFFSET(DE100_1A!$D$22,ROWS($D$22:D51)-1,COLUMNS($D$22:D51)-1),"") -> 2416-1180024 | C38: =IF(OFFSET(DE100_1A!$E$22,ROWS($E$22:E51)-1,COLUMNS($E$22:E51)-1)<>"",OFFSET(DE100_1A!$E$22,ROWS($E$22:E51)-1,COLUMNS($E$22:E51)-1),"") -> CULVERT, CONCRETE ROADWAY PIPE, 24 IN. DIA. | D38: =IF(OFFSET(DE100_1A!$F$22,ROWS($F$22:F51)-1,COLUMNS($F$22:F51)-1)<>"",OFFSET(DE100_1A!$F$22,ROWS($F$22:F51)-1,COLUMNS($F$22:F51)-1),"") -> LF | E38: =IF(OFFSET(DE100_1A!$G$22,ROWS($G$22:G51)-1,COLUMNS($G$22:G51)-1)<>"",OFFSET(DE100_1A!$G$22,ROWS($G$22:G51)-1,COLUMNS($G$22:G51)-1),"") -> 4486 | F38: =IF(OFFSET(DE100_1A!$H$22,ROWS($H$22:H51)-1,COLUMNS($H$22:H51)-1)<>"",OFFSET(DE100_1A!$H$22,ROWS($H$22:H51)-1,COLUMNS($H$22:H51)-1),"") -> 
A39: =IF(OFFSET(DE100_1A!$C$22,ROWS($C$22:C52)-1,COLUMNS($C$22:C52)-1)<>"",OFFSET(DE100_1A!$C$22,ROWS($C$22:C52)-1,COLUMNS($C$22:C52)-1),"") -> 31 | B39: =IF(OFFSET(DE100_1A!$D$22,ROWS($D$22:D52)-1,COLUMNS($D$22:D52)-1)<>"",OFFSET(DE100_1A!$D$22,ROWS($D$22:D52)-1,COLUMNS($D$22:D52)-1),"") -> 2416-1180030 | C39: =IF(OFFSET(DE100_1A!$E$22,ROWS($E$22:E52)-1,COLUMNS($E$22:E52)-1)<>"",OFFSET(DE100_1A!$E$22,ROWS($E$22:E52)-1,COLUMNS($E$22:E52)-1),"") -> CULVERT, CONCRETE ROADWAY PIPE, 30 IN. DIA. | D39: =IF(OFFSET(DE100_1A!$F$22,ROWS($F$22:F52)-1,COLUMNS($F$22:F52)-1)<>"",OFFSET(DE100_1A!$F$22,ROWS($F$22:F52)-1,COLUMNS($F$22:F52)-1),"") -> LF | E39: =IF(OFFSET(DE100_1A!$G$22,ROWS($G$22:G52)-1,COLUMNS($G$22:G52)-1)<>"",OFFSET(DE100_1A!$G$22,ROWS($G$22:G52)-1,COLUMNS($G$22:G52)-1),"") -> 648 | F39: =IF(OFFSET(DE100_1A!$H$22,ROWS($H$22:H52)-1,COLUMNS($H$22:H52)-1)<>"",OFFSET(DE100_1A!$H$22,ROWS($H$22:H52)-1,COLUMNS($H$22:H52)-1),"") -> 
A40: =IF(OFFSET(DE100_1A!$C$22,ROWS($C$22:C53)-1,COLUMNS($C$22:C53)-1)<>"",OFFSET(DE100_1A!$C$22,ROWS($C$22:C53)-1,COLUMNS($C$22:C53)-1),"") -> 32 | B40: =IF(OFFSET(DE100_1A!$D$22,ROWS($D$22:D53)-1,COLUMNS($D$22:D53)-1)<>"",OFFSET(DE100_1A!$D$22,ROWS($D$22:D53)-1,COLUMNS($D$22:D53)-1),"") -> 2416-1180036 | C40: =IF(OFFSET(DE100_1A!$E$22,ROWS($E$22:E53)-1,COLUMNS($E$22:E53)-1)<>"",OFFSET(DE100_1A!$E$22,ROWS($E$22:E53)-1,COLUMNS($E$22:E53)-1),"") -> CULVERT, CONCRETE ROADWAY PIPE, 36 IN. DIA. | D40: =IF(OFFSET(DE100_1A!$F$22,ROWS($F$22:F53)-1,COLUMNS($F$22:F53)-1)<>"",OFFSET(DE100_1A!$F$22,ROWS($F$22:F53)-1,COLUMNS($F$22:F53)-1),"") -> LF | E40: =IF(OFFSET(DE100_1A!$G$22,ROWS($G$22:G53)-1,COLUMNS($G$22:G53)-1)<>"",OFFSET(DE100_1A!$G$22,ROWS($G$22:G53)-1,COLUMNS($G$22:G53)-1),"") -> 838 | F40: =IF(OFFSET(DE100_1A!$H$22,ROWS($H$22:H53)-1,COLUMNS($H$22:H53)-1)<>"",OFFSET(DE100_1A!$H$22,ROWS($H$22:H53)-1,COLUMNS($H$22:H53)-1),"") -> 
A41: =IF(OFFSET(DE100_1A!$C$22,ROWS($C$22:C54)-1,COLUMNS($C$22:C54)-1)<>"",OFFSET(DE100_1A!$C$22,ROWS($C$22:C54)-1,COLUMNS($C$22:C54)-1),"") -> 33 | B41: =IF(OFFSET(DE100_1A!$D$22,ROWS($D$22:D54)-1,COLUMNS($D$22:D54)-1)<>"",OFFSET(DE100_1A!$D$22,ROWS($D$22:D54)-1,COLUMNS($D$22:D54)-1),"") -> 2416-1180042 | C41: =IF(OFFSET(DE100_1A!$E$22,ROWS($E$22:E54)-1,COLUMNS($E$22:E54)-1)<>"",OFFSET(DE100_1A!$E$22,ROWS($E$22:E54)-1,COLUMNS($E$22:E54)-1),"") -> CULVERT, CONCRETE ROADWAY PIPE, 42 IN. DIA. | D41: =IF(OFFSET(DE100_1A!$F$22,ROWS($F$22:F54)-1,COLUMNS($F$22:F54)-1)<>"",OFFSET(DE100_1A!$F$22,ROWS($F$22:F54)-1,COLUMNS($F$22:F54)-1),"") -> LF | E41: =IF(OFFSET(DE100_1A!$G$22,ROWS($G$22:G54)-1,COLUMNS($G$22:G54)-1)<>"",OFFSET(DE100_1A!$G$22,ROWS($G$22:G54)-1,COLUMNS($G$22:G54)-1),"") -> 498 | F41: =IF(OFFSET(DE100_1A!$H$22,ROWS($H$22:H54)-1,COLUMNS($H$22:H54)-1)<>"",OFFSET(DE100_1A!$H$22,ROWS($H$22:H54)-1,COLUMNS($H$22:H54)-1),"") -> 
A42: =IF(OFFSET(DE100_1A!$C$22,ROWS($C$22:C55)-1,COLUMNS($C$22:C55)-1)<>"",OFFSET(DE100_1A!$C$22,ROWS($C$22:C55)-1,COLUMNS($C$22:C55)-1),"") -> 34 | B42: =IF(OFFSET(DE100_1A!$D$22,ROWS($D$22:D55)-1,COLUMNS($D$22:D55)-1)<>"",OFFSET(DE100_1A!$D$22,ROWS($D$22:D55)-1,COLUMNS($D$22:D55)-1),"") -> 2416-1180048 | C42: =IF(OFFSET(DE100_1A!$E$22,ROWS($E$22:E55)-1,COLUMNS($E$22:E55)-1)<>"",OFFSET(DE100_1A!$E$22,ROWS($E$22:E55)-1,COLUMNS($E$22:E55)-1),"") -> CULVERT, CONCRETE ROADWAY PIPE, 48 IN. DIA. | D42: =IF(OFFSET(DE100_1A!$F$22,ROWS($F$22:F55)-1,COLUMNS($F$22:F55)-1)<>"",OFFSET(DE100_1A!$F$22,ROWS($F$22:F55)-1,COLUMNS($F$22:F55)-1),"") -> LF | E42: =IF(OFFSET(DE100_1A!$G$22,ROWS($G$22:G55)-1,COLUMNS($G$22:G55)-1)<>"",OFFSET(DE100_1A!$G$22,ROWS($G$22:G55)-1,COLUMNS($G$22:G55)-1),"") -> 988 | F42: =IF(OFFSET(DE100_1A!$H$22,ROWS($H$22:H55)-1,COLUMNS($H$22:H55)-1)<>"",OFFSET(DE100_1A!$H$22,ROWS($H$22:H55)-1,COLUMNS($H$22:H55)-1),"") -> 
A43: =IF(OFFSET(DE100_1A!$C$22,ROWS($C$22:C56)-1,COLUMNS($C$22:C56)-1)<>"",OFFSET(DE100_1A!$C$22,ROWS($C$22:C56)-1,COLUMNS($C$22:C56)-1),"") -> 35 | B43: =IF(OFFSET(DE100_1A!$D$22,ROWS($D$22:D56)-1,COLUMNS($D$22:D56)-1)<>"",OFFSET(DE100_1A!$D$22,ROWS($D$22:D56)-1,COLUMNS($D$22:D56)-1),"") -> 2416-1180072 | C43: =IF(OFFSET(DE100_1A!$E$22,ROWS($E$22:E56)-1,COLUMNS($E$22:E56)-1)<>"",OFFSET(DE100_1A!$E$22,ROWS($E$22:E56)-1,COLUMNS($E$22:E56)-1),"") -> CULVERT, CONCRETE ROADWAY PIPE, 72 IN. DIA. | D43: =IF(OFFSET(DE100_1A!$F$22,ROWS($F$22:F56)-1,COLUMNS($F$22:F56)-1)<>"",OFFSET(DE100_1A!$F$22,ROWS($F$22:F56)-1,COLUMNS($F$22:F56)-1),"") -> LF | E43: =IF(OFFSET(DE100_1A!$G$22,ROWS($G$22:G56)-1,COLUMNS($G$22:G56)-1)<>"",OFFSET(DE100_1A!$G$22,ROWS($G$22:G56)-1,COLUMNS($G$22:G56)-1),"") -> 202 | F43: =IF(OFFSET(DE100_1A!$H$22,ROWS($H$22:H56)-1,COLUMNS($H$22:H56)-1)<>"",OFFSET(DE100_1A!$H$22,ROWS($H$22:H56)-1,COLUMNS($H$22:H56)-1),"") -> 
A44: =IF(OFFSET(DE100_1A!$C$22,ROWS($C$22:C57)-1,COLUMNS($C$22:C57)-1)<>"",OFFSET(DE100_1A!$C$22,ROWS($C$22:C57)-1,COLUMNS($C$22:C57)-1),"") -> 36 | B44: =IF(OFFSET(DE100_1A!$D$22,ROWS($D$22:D57)-1,COLUMNS($D$22:D57)-1)<>"",OFFSET(DE100_1A!$D$22,ROWS($D$22:D57)-1,COLUMNS($D$22:D57)-1),"") -> 2416-1200272 | C44: =IF(OFFSET(DE100_1A!$E$22,ROWS($E$22:E57)-1,COLUMNS($E$22:E57)-1)<>"",OFFSET(DE100_1A!$E$22,ROWS($E$22:E57)-1,COLUMNS($E$22:E57)-1),"") -> CULVERT, LOW CLEARANCE CONCRETE ROADWAY PIPE, EQUIVALENT DIAMETER 72 | D44: =IF(OFFSET(DE100_1A!$F$22,ROWS($F$22:F57)-1,COLUMNS($F$22:F57)-1)<>"",OFFSET(DE100_1A!$F$22,ROWS($F$22:F57)-1,COLUMNS($F$22:F57)-1),"") -> LF | E44: =IF(OFFSET(DE100_1A!$G$22,ROWS($G$22:G57)-1,COLUMNS($G$22:G57)-1)<>"",OFFSET(DE100_1A!$G$22,ROWS($G$22:G57)-1,COLUMNS($G$22:G57)-1),"") -> 198 | F44: =IF(OFFSET(DE100_1A!$H$22,ROWS($H$22:H57)-1,COLUMNS($H$22:H57)-1)<>"",OFFSET(DE100_1A!$H$22,ROWS($H$22:H57)-1,COLUMNS($H$22:H57)-1),"") -> 
A45: =IF(OFFSET(DE100_1A!$C$22,ROWS($C$22:C58)-1,COLUMNS($C$22:C58)-1)<>"",OFFSET(DE100_1A!$C$22,ROWS($C$22:C58)-1,COLUMNS($C$22:C58)-1),"") ->  | B45: =IF(OFFSET(DE100_1A!$D$22,ROWS($D$22:D58)-1,COLUMNS($D$22:D58)-1)<>"",OFFSET(DE100_1A!$D$22,ROWS($D$22:D58)-1,COLUMNS($D$22:D58)-1),"") ->  | C45: =IF(OFFSET(DE100_1A!$E$22,ROWS($E$22:E58)-1,COLUMNS($E$22:E58)-1)<>"",OFFSET(DE100_1A!$E$22,ROWS($E$22:E58)-1,COLUMNS($E$22:E58)-1),"") -> IN. | D45: =IF(OFFSET(DE100_1A!$F$22,ROWS($F$22:F58)-1,COLUMNS($F$22:F58)-1)<>"",OFFSET(DE100_1A!$F$22,ROWS($F$22:F58)-1,COLUMNS($F$22:F58)-1),"") ->  | E45: =IF(OFFSET(DE100_1A!$G$22,ROWS($G$22:G58)-1,COLUMNS($G$22:G58)-1)<>"",OFFSET(DE100_1A!$G$22,ROWS($G$22:G58)-1,COLUMNS($G$22:G58)-1),"") ->  | F45: =IF(OFFSET(DE100_1A!$H$22,ROWS($H$22:H58)-1,COLUMNS($H$22:H58)-1)<>"",OFFSET(DE100_1A!$H$22,ROWS($H$22:H58)-1,COLUMNS($H$22:H58)-1),"") -> 
A46: =IF(OFFSET(DE100_1A!$C$22,ROWS($C$22:C59)-1,COLUMNS($C$22:C59)-1)<>"",OFFSET(DE100_1A!$C$22,ROWS($C$22:C59)-1,COLUMNS($C$22:C59)-1),"") -> 37 | B46: =IF(OFFSET(DE100_1A!$D$22,ROWS($D$22:D59)-1,COLUMNS($D$22:D59)-1)<>"",OFFSET(DE100_1A!$D$22,ROWS($D$22:D59)-1,COLUMNS($D$22:D59)-1),"") -> 2416-1240036 | C46: =IF(OFFSET(DE100_1A!$E$22,ROWS($E$22:E59)-1,COLUMNS($E$22:E59)-1)<>"",OFFSET(DE100_1A!$E$22,ROWS($E$22:E59)-1,COLUMNS($E$22:E59)-1),"") -> CULVERT, 3000D CONCRETE ROADWAY PIPE, 36 IN. DIA. | D46: =IF(OFFSET(DE100_1A!$F$22,ROWS($F$22:F59)-1,COLUMNS($F$22:F59)-1)<>"",OFFSET(DE100_1A!$F$22,ROWS($F$22:F59)-1,COLUMNS($F$22:F59)-1),"") -> LF | E46: =IF(OFFSET(DE100_1A!$G$22,ROWS($G$22:G59)-1,COLUMNS($G$22:G59)-1)<>"",OFFSET(DE100_1A!$G$22,ROWS($G$22:G59)-1,COLUMNS($G$22:G59)-1),"") -> 158 | F46: =IF(OFFSET(DE100_1A!$H$22,ROWS($H$22:H59)-1,COLUMNS($H$22:H59)-1)<>"",OFFSET(DE100_1A!$H$22,ROWS($H$22:H59)-1,COLUMNS($H$22:H59)-1),"") -> 
A47: =IF(OFFSET(DE100_1A!$C$22,ROWS($C$22:C60)-1,COLUMNS($C$22:C60)-1)<>"",OFFSET(DE100_1A!$C$22,ROWS($C$22:C60)-1,COLUMNS($C$22:C60)-1),"") -> 38 | B47: =IF(OFFSET(DE100_1A!$D$22,ROWS($D$22:D60)-1,COLUMNS($D$22:D60)-1)<>"",OFFSET(DE100_1A!$D$22,ROWS($D$22:D60)-1,COLUMNS($D$22:D60)-1),"") -> 2416-1240048 | C47: =IF(OFFSET(DE100_1A!$E$22,ROWS($E$22:E60)-1,COLUMNS($E$22:E60)-1)<>"",OFFSET(DE100_1A!$E$22,ROWS($E$22:E60)-1,COLUMNS($E$22:E60)-1),"") -> CULVERT, 3000D CONCRETE ROADWAY PIPE, 48 IN. DIA. | D47: =IF(OFFSET(DE100_1A!$F$22,ROWS($F$22:F60)-1,COLUMNS($F$22:F60)-1)<>"",OFFSET(DE100_1A!$F$22,ROWS($F$22:F60)-1,COLUMNS($F$22:F60)-1),"") -> LF | E47: =IF(OFFSET(DE100_1A!$G$22,ROWS($G$22:G60)-1,COLUMNS($G$22:G60)-1)<>"",OFFSET(DE100_1A!$G$22,ROWS($G$22:G60)-1,COLUMNS($G$22:G60)-1),"") -> 256 | F47: =IF(OFFSET(DE100_1A!$H$22,ROWS($H$22:H60)-1,COLUMNS($H$22:H60)-1)<>"",OFFSET(DE100_1A!$H$22,ROWS($H$22:H60)-1,COLUMNS($H$22:H60)-1),"") -> 
A48: =IF(OFFSET(DE100_1A!$C$22,ROWS($C$22:C61)-1,COLUMNS($C$22:C61)-1)<>"",OFFSET(DE100_1A!$C$22,ROWS($C$22:C61)-1,COLUMNS($C$22:C61)-1),"") -> 39 | B48: =IF(OFFSET(DE100_1A!$D$22,ROWS($D$22:D61)-1,COLUMNS($D$22:D61)-1)<>"",OFFSET(DE100_1A!$D$22,ROWS($D$22:D61)-1,COLUMNS($D$22:D61)-1),"") -> 2416-1240054 | C48: =IF(OFFSET(DE100_1A!$E$22,ROWS($E$22:E61)-1,COLUMNS($E$22:E61)-1)<>"",OFFSET(DE100_1A!$E$22,ROWS($E$22:E61)-1,COLUMNS($E$22:E61)-1),"") -> CULVERT, 3000D CONCRETE ROADWAY PIPE, 54 IN. DIA. | D48: =IF(OFFSET(DE100_1A!$F$22,ROWS($F$22:F61)-1,COLUMNS($F$22:F61)-1)<>"",OFFSET(DE100_1A!$F$22,ROWS($F$22:F61)-1,COLUMNS($F$22:F61)-1),"") -> LF | E48: =IF(OFFSET(DE100_1A!$G$22,ROWS($G$22:G61)-1,COLUMNS($G$22:G61)-1)<>"",OFFSET(DE100_1A!$G$22,ROWS($G$22:G61)-1,COLUMNS($G$22:G61)-1),"") -> 258 | F48: =IF(OFFSET(DE100_1A!$H$22,ROWS($H$22:H61)-1,COLUMNS($H$22:H61)-1)<>"",OFFSET(DE100_1A!$H$22,ROWS($H$22:H61)-1,COLUMNS($H$22:H61)-1),"") -> 
A49: =IF(OFFSET(DE100_1A!$C$22,ROWS($C$22:C62)-1,COLUMNS($C$22:C62)-1)<>"",OFFSET(DE100_1A!$C$22,ROWS($C$22:C62)-1,COLUMNS($C$22:C62)-1),"") -> 40 | B49: =IF(OFFSET(DE100_1A!$D$22,ROWS($D$22:D62)-1,COLUMNS($D$22:D62)-1)<>"",OFFSET(DE100_1A!$D$22,ROWS($D$22:D62)-1,COLUMNS($D$22:D62)-1),"") -> 2416-1262024 | C49: =IF(OFFSET(DE100_1A!$E$22,ROWS($E$22:E62)-1,COLUMNS($E$22:E62)-1)<>"",OFFSET(DE100_1A!$E$22,ROWS($E$22:E62)-1,COLUMNS($E$22:E62)-1),"") -> CULVERT, CONCRETE PIPE, 2000D, TRENCHLESS, 24 IN. DIA. | D49: =IF(OFFSET(DE100_1A!$F$22,ROWS($F$22:F62)-1,COLUMNS($F$22:F62)-1)<>"",OFFSET(DE100_1A!$F$22,ROWS($F$22:F62)-1,COLUMNS($F$22:F62)-1),"") -> LF | E49: =IF(OFFSET(DE100_1A!$G$22,ROWS($G$22:G62)-1,COLUMNS($G$22:G62)-1)<>"",OFFSET(DE100_1A!$G$22,ROWS($G$22:G62)-1,COLUMNS($G$22:G62)-1),"") -> 902 | F49: =IF(OFFSET(DE100_1A!$H$22,ROWS($H$22:H62)-1,COLUMNS($H$22:H62)-1)<>"",OFFSET(DE100_1A!$H$22,ROWS($H$22:H62)-1,COLUMNS($H$22:H62)-1),"") -> 
A50: =IF(OFFSET(DE100_1A!$C$22,ROWS($C$22:C63)-1,COLUMNS($C$22:C63)-1)<>"",OFFSET(DE100_1A!$C$22,ROWS($C$22:C63)-1,COLUMNS($C$22:C63)-1),"") -> 41 | B50: =IF(OFFSET(DE100_1A!$D$22,ROWS($D$22:D63)-1,COLUMNS($D$22:D63)-1)<>"",OFFSET(DE100_1A!$D$22,ROWS($D$22:D63)-1,COLUMNS($D$22:D63)-1),"") -> 2416-1262030 | C50: =IF(OFFSET(DE100_1A!$E$22,ROWS($E$22:E63)-1,COLUMNS($E$22:E63)-1)<>"",OFFSET(DE100_1A!$E$22,ROWS($E$22:E63)-1,COLUMNS($E$22:E63)-1),"") -> CULVERT, CONCRETE PIPE, 2000D, TRENCHLESS, 30 IN. DIA. | D50: =IF(OFFSET(DE100_1A!$F$22,ROWS($F$22:F63)-1,COLUMNS($F$22:F63)-1)<>"",OFFSET(DE100_1A!$F$22,ROWS($F$22:F63)-1,COLUMNS($F$22:F63)-1),"") -> LF | E50: =IF(OFFSET(DE100_1A!$G$22,ROWS($G$22:G63)-1,COLUMNS($G$22:G63)-1)<>"",OFFSET(DE100_1A!$G$22,ROWS($G$22:G63)-1,COLUMNS($G$22:G63)-1),"") -> 194 | F50: =IF(OFFSET(DE100_1A!$H$22,ROWS($H$22:H63)-1,COLUMNS($H$22:H63)-1)<>"",OFFSET(DE100_1A!$H$22,ROWS($H$22:H63)-1,COLUMNS($H$22:H63)-1),"") -> 
A51: =IF(OFFSET(DE100_1A!$C$22,ROWS($C$22:C64)-1,COLUMNS($C$22:C64)-1)<>"",OFFSET(DE100_1A!$C$22,ROWS($C$22:C64)-1,COLUMNS($C$22:C64)-1),"") -> 42 | B51: =IF(OFFSET(DE100_1A!$D$22,ROWS($D$22:D64)-1,COLUMNS($D$22:D64)-1)<>"",OFFSET(DE100_1A!$D$22,ROWS($D$22:D64)-1,COLUMNS($D$22:D64)-1),"") -> 2416-1262036 | C51: =IF(OFFSET(DE100_1A!$E$22,ROWS($E$22:E64)-1,COLUMNS($E$22:E64)-1)<>"",OFFSET(DE100_1A!$E$22,ROWS($E$22:E64)-1,COLUMNS($E$22:E64)-1),"") -> CULVERT, CONCRETE PIPE, 2000D, TRENCHLESS, 36 IN. DIA. | D51: =IF(OFFSET(DE100_1A!$F$22,ROWS($F$22:F64)-1,COLUMNS($F$22:F64)-1)<>"",OFFSET(DE100_1A!$F$22,ROWS($F$22:F64)-1,COLUMNS($F$22:F64)-1),"") -> LF | E51: =IF(OFFSET(DE100_1A!$G$22,ROWS($G$22:G64)-1,COLUMNS($G$22:G64)-1)<>"",OFFSET(DE100_1A!$G$22,ROWS($G$22:G64)-1,COLUMNS($G$22:G64)-1),"") -> 472 | F51: =IF(OFFSET(DE100_1A!$H$22,ROWS($H$22:H64)-1,COLUMNS($H$22:H64)-1)<>"",OFFSET(DE100_1A!$H$22,ROWS($H$22:H64)-1,COLUMNS($H$22:H64)-1),"") -> 
A52: =IF(OFFSET(DE100_1A!$C$22,ROWS($C$22:C65)-1,COLUMNS($C$22:C65)-1)<>"",OFFSET(DE100_1A!$C$22,ROWS($C$22:C65)-1,COLUMNS($C$22:C65)-1),"") -> 43 | B52: =IF(OFFSET(DE100_1A!$D$22,ROWS($D$22:D65)-1,COLUMNS($D$22:D65)-1)<>"",OFFSET(DE100_1A!$D$22,ROWS($D$22:D65)-1,COLUMNS($D$22:D65)-1),"") -> 2416-1262042 | C52: =IF(OFFSET(DE100_1A!$E$22,ROWS($E$22:E65)-1,COLUMNS($E$22:E65)-1)<>"",OFFSET(DE100_1A!$E$22,ROWS($E$22:E65)-1,COLUMNS($E$22:E65)-1),"") -> CULVERT, CONCRETE PIPE, 2000D, TRENCHLESS, 42 IN. DIA. | D52: =IF(OFFSET(DE100_1A!$F$22,ROWS($F$22:F65)-1,COLUMNS($F$22:F65)-1)<>"",OFFSET(DE100_1A!$F$22,ROWS($F$22:F65)-1,COLUMNS($F$22:F65)-1),"") -> LF | E52: =IF(OFFSET(DE100_1A!$G$22,ROWS($G$22:G65)-1,COLUMNS($G$22:G65)-1)<>"",OFFSET(DE100_1A!$G$22,ROWS($G$22:G65)-1,COLUMNS($G$22:G65)-1),"") -> 74 | F52: =IF(OFFSET(DE100_1A!$H$22,ROWS($H$22:H65)-1,COLUMNS($H$22:H65)-1)<>"",OFFSET(DE100_1A!$H$22,ROWS($H$22:H65)-1,COLUMNS($H$22:H65)-1),"") -> 
A53: =IF(OFFSET(DE100_1A!$C$22,ROWS($C$22:C66)-1,COLUMNS($C$22:C66)-1)<>"",OFFSET(DE100_1A!$C$22,ROWS($C$22:C66)-1,COLUMNS($C$22:C66)-1),"") -> 44 | B53: =IF(OFFSET(DE100_1A!$D$22,ROWS($D$22:D66)-1,COLUMNS($D$22:D66)-1)<>"",OFFSET(DE100_1A!$D$22,ROWS($D$22:D66)-1,COLUMNS($D$22:D66)-1),"") -> 2416-1262048 | C53: =IF(OFFSET(DE100_1A!$E$22,ROWS($E$22:E66)-1,COLUMNS($E$22:E66)-1)<>"",OFFSET(DE100_1A!$E$22,ROWS($E$22:E66)-1,COLUMNS($E$22:E66)-1),"") -> CULVERT, CONCRETE PIPE, 2000D, TRENCHLESS, 48 IN. DIA. | D53: =IF(OFFSET(DE100_1A!$F$22,ROWS($F$22:F66)-1,COLUMNS($F$22:F66)-1)<>"",OFFSET(DE100_1A!$F$22,ROWS($F$22:F66)-1,COLUMNS($F$22:F66)-1),"") -> LF | E53: =IF(OFFSET(DE100_1A!$G$22,ROWS($G$22:G66)-1,COLUMNS($G$22:G66)-1)<>"",OFFSET(DE100_1A!$G$22,ROWS($G$22:G66)-1,COLUMNS($G$22:G66)-1),"") -> 106 | F53: =IF(OFFSET(DE100_1A!$H$22,ROWS($H$22:H66)-1,COLUMNS($H$22:H66)-1)<>"",OFFSET(DE100_1A!$H$22,ROWS($H$22:H66)-1,COLUMNS($H$22:H66)-1),"") -> 
A54: =IF(OFFSET(DE100_1A!$C$22,ROWS($C$22:C67)-1,COLUMNS($C$22:C67)-1)<>"",OFFSET(DE100_1A!$C$22,ROWS($C$22:C67)-1,COLUMNS($C$22:C67)-1),"") -> 45 | B54: =IF(OFFSET(DE100_1A!$D$22,ROWS($D$22:D67)-1,COLUMNS($D$22:D67)-1)<>"",OFFSET(DE100_1A!$D$22,ROWS($D$22:D67)-1,COLUMNS($D$22:D67)-1),"") -> 2416-1263030 | C54: =IF(OFFSET(DE100_1A!$E$22,ROWS($E$22:E67)-1,COLUMNS($E$22:E67)-1)<>"",OFFSET(DE100_1A!$E$22,ROWS($E$22:E67)-1,COLUMNS($E$22:E67)-1),"") -> CULVERT, CONCRETE PIPE, 3000D, TRENCHLESS, 30 IN. DIA. | D54: =IF(OFFSET(DE100_1A!$F$22,ROWS($F$22:F67)-1,COLUMNS($F$22:F67)-1)<>"",OFFSET(DE100_1A!$F$22,ROWS($F$22:F67)-1,COLUMNS($F$22:F67)-1),"") -> LF | E54: =IF(OFFSET(DE100_1A!$G$22,ROWS($G$22:G67)-1,COLUMNS($G$22:G67)-1)<>"",OFFSET(DE100_1A!$G$22,ROWS($G$22:G67)-1,COLUMNS($G$22:G67)-1),"") -> 162 | F54: =IF(OFFSET(DE100_1A!$H$22,ROWS($H$22:H67)-1,COLUMNS($H$22:H67)-1)<>"",OFFSET(DE100_1A!$H$22,ROWS($H$22:H67)-1,COLUMNS($H$22:H67)-1),"") -> 
A55: =IF(OFFSET(DE100_1A!$C$22,ROWS($C$22:C68)-1,COLUMNS($C$22:C68)-1)<>"",OFFSET(DE100_1A!$C$22,ROWS($C$22:C68)-1,COLUMNS($C$22:C68)-1),"") -> 46 | B55: =IF(OFFSET(DE100_1A!$D$22,ROWS($D$22:D68)-1,COLUMNS($D$22:D68)-1)<>"",OFFSET(DE100_1A!$D$22,ROWS($D$22:D68)-1,COLUMNS($D$22:D68)-1),"") -> 2416-1263036 | C55: =IF(OFFSET(DE100_1A!$E$22,ROWS($E$22:E68)-1,COLUMNS($E$22:E68)-1)<>"",OFFSET(DE100_1A!$E$22,ROWS($E$22:E68)-1,COLUMNS($E$22:E68)-1),"") -> CULVERT, CONCRETE PIPE, 3000D, TRENCHLESS, 36 IN. DIA. | D55: =IF(OFFSET(DE100_1A!$F$22,ROWS($F$22:F68)-1,COLUMNS($F$22:F68)-1)<>"",OFFSET(DE100_1A!$F$22,ROWS($F$22:F68)-1,COLUMNS($F$22:F68)-1),"") -> LF | E55: =IF(OFFSET(DE100_1A!$G$22,ROWS($G$22:G68)-1,COLUMNS($G$22:G68)-1)<>"",OFFSET(DE100_1A!$G$22,ROWS($G$22:G68)-1,COLUMNS($G$22:G68)-1),"") -> 174 | F55: =IF(OFFSET(DE100_1A!$H$22,ROWS($H$22:H68)-1,COLUMNS($H$22:H68)-1)<>"",OFFSET(DE100_1A!$H$22,ROWS($H$22:H68)-1,COLUMNS($H$22:H68)-1),"") -> 
A56: =IF(OFFSET(DE100_1A!$C$22,ROWS($C$22:C69)-1,COLUMNS($C$22:C69)-1)<>"",OFFSET(DE100_1A!$C$22,ROWS($C$22:C69)-1,COLUMNS($C$22:C69)-1),"") -> 47 | B56: =IF(OFFSET(DE100_1A!$D$22,ROWS($D$22:D69)-1,COLUMNS($D$22:D69)-1)<>"",OFFSET(DE100_1A!$D$22,ROWS($D$22:D69)-1,COLUMNS($D$22:D69)-1),"") -> 2416-1263054 | C56: =IF(OFFSET(DE100_1A!$E$22,ROWS($E$22:E69)-1,COLUMNS($E$22:E69)-1)<>"",OFFSET(DE100_1A!$E$22,ROWS($E$22:E69)-1,COLUMNS($E$22:E69)-1),"") -> CULVERT, CONCRETE PIPE, 3000D, TRENCHLESS, 54 IN. DIA. | D56: =IF(OFFSET(DE100_1A!$F$22,ROWS($F$22:F69)-1,COLUMNS($F$22:F69)-1)<>"",OFFSET(DE100_1A!$F$22,ROWS($F$22:F69)-1,COLUMNS($F$22:F69)-1),"") -> LF | E56: =IF(OFFSET(DE100_1A!$G$22,ROWS($G$22:G69)-1,COLUMNS($G$22:G69)-1)<>"",OFFSET(DE100_1A!$G$22,ROWS($G$22:G69)-1,COLUMNS($G$22:G69)-1),"") -> 150 | F56: =IF(OFFSET(DE100_1A!$H$22,ROWS($H$22:H69)-1,COLUMNS($H$22:H69)-1)<>"",OFFSET(DE100_1A!$H$22,ROWS($H$22:H69)-1,COLUMNS($H$22:H69)-1),"") -> 
A57: =IF(OFFSET(DE100_1A!$C$22,ROWS($C$22:C70)-1,COLUMNS($C$22:C70)-1)<>"",OFFSET(DE100_1A!$C$22,ROWS($C$22:C70)-1,COLUMNS($C$22:C70)-1),"") -> 48 | B57: =IF(OFFSET(DE100_1A!$D$22,ROWS($D$22:D70)-1,COLUMNS($D$22:D70)-1)<>"",OFFSET(DE100_1A!$D$22,ROWS($D$22:D70)-1,COLUMNS($D$22:D70)-1),"") -> 2417-0225024 | C57: =IF(OFFSET(DE100_1A!$E$22,ROWS($E$22:E70)-1,COLUMNS($E$22:E70)-1)<>"",OFFSET(DE100_1A!$E$22,ROWS($E$22:E70)-1,COLUMNS($E$22:E70)-1),"") -> APRONS, METAL, 24 IN. DIA. | D57: =IF(OFFSET(DE100_1A!$F$22,ROWS($F$22:F70)-1,COLUMNS($F$22:F70)-1)<>"",OFFSET(DE100_1A!$F$22,ROWS($F$22:F70)-1,COLUMNS($F$22:F70)-1),"") -> EACH | E57: =IF(OFFSET(DE100_1A!$G$22,ROWS($G$22:G70)-1,COLUMNS($G$22:G70)-1)<>"",OFFSET(DE100_1A!$G$22,ROWS($G$22:G70)-1,COLUMNS($G$22:G70)-1),"") -> 21 | F57: =IF(OFFSET(DE100_1A!$H$22,ROWS($H$22:H70)-1,COLUMNS($H$22:H70)-1)<>"",OFFSET(DE100_1A!$H$22,ROWS($H$22:H70)-1,COLUMNS($H$22:H70)-1),"") -> 
A58: =IF(OFFSET(DE100_1A!$C$22,ROWS($C$22:C71)-1,COLUMNS($C$22:C71)-1)<>"",OFFSET(DE100_1A!$C$22,ROWS($C$22:C71)-1,COLUMNS($C$22:C71)-1),"") -> 49 | B58: =IF(OFFSET(DE100_1A!$D$22,ROWS($D$22:D71)-1,COLUMNS($D$22:D71)-1)<>"",OFFSET(DE100_1A!$D$22,ROWS($D$22:D71)-1,COLUMNS($D$22:D71)-1),"") -> 2417-0225030 | C58: =IF(OFFSET(DE100_1A!$E$22,ROWS($E$22:E71)-1,COLUMNS($E$22:E71)-1)<>"",OFFSET(DE100_1A!$E$22,ROWS($E$22:E71)-1,COLUMNS($E$22:E71)-1),"") -> APRONS, METAL, 30 IN. DIA. | D58: =IF(OFFSET(DE100_1A!$F$22,ROWS($F$22:F71)-1,COLUMNS($F$22:F71)-1)<>"",OFFSET(DE100_1A!$F$22,ROWS($F$22:F71)-1,COLUMNS($F$22:F71)-1),"") -> EACH | E58: =IF(OFFSET(DE100_1A!$G$22,ROWS($G$22:G71)-1,COLUMNS($G$22:G71)-1)<>"",OFFSET(DE100_1A!$G$22,ROWS($G$22:G71)-1,COLUMNS($G$22:G71)-1),"") -> 2 | F58: =IF(OFFSET(DE100_1A!$H$22,ROWS($H$22:H71)-1,COLUMNS($H$22:H71)-1)<>"",OFFSET(DE100_1A!$H$22,ROWS($H$22:H71)-1,COLUMNS($H$22:H71)-1),"") -> 
A59: =IF(OFFSET(DE100_1A!$C$22,ROWS($C$22:C72)-1,COLUMNS($C$22:C72)-1)<>"",OFFSET(DE100_1A!$C$22,ROWS($C$22:C72)-1,COLUMNS($C$22:C72)-1),"") -> 50 | B59: =IF(OFFSET(DE100_1A!$D$22,ROWS($D$22:D72)-1,COLUMNS($D$22:D72)-1)<>"",OFFSET(DE100_1A!$D$22,ROWS($D$22:D72)-1,COLUMNS($D$22:D72)-1),"") -> 2417-0250035 | C59: =IF(OFFSET(DE100_1A!$E$22,ROWS($E$22:E72)-1,COLUMNS($E$22:E72)-1)<>"",OFFSET(DE100_1A!$E$22,ROWS($E$22:E72)-1,COLUMNS($E$22:E72)-1),"") -> APRONS, METAL, ARCH, 35 IN. X 24 IN. | D59: =IF(OFFSET(DE100_1A!$F$22,ROWS($F$22:F72)-1,COLUMNS($F$22:F72)-1)<>"",OFFSET(DE100_1A!$F$22,ROWS($F$22:F72)-1,COLUMNS($F$22:F72)-1),"") -> EACH | E59: =IF(OFFSET(DE100_1A!$G$22,ROWS($G$22:G72)-1,COLUMNS($G$22:G72)-1)<>"",OFFSET(DE100_1A!$G$22,ROWS($G$22:G72)-1,COLUMNS($G$22:G72)-1),"") -> 2 | F59: =IF(OFFSET(DE100_1A!$H$22,ROWS($H$22:H72)-1,COLUMNS($H$22:H72)-1)<>"",OFFSET(DE100_1A!$H$22,ROWS($H$22:H72)-1,COLUMNS($H$22:H72)-1),"") -> 
A60: =IF(OFFSET(DE100_1A!$C$22,ROWS($C$22:C73)-1,COLUMNS($C$22:C73)-1)<>"",OFFSET(DE100_1A!$C$22,ROWS($C$22:C73)-1,COLUMNS($C$22:C73)-1),"") -> 51 | B60: =IF(OFFSET(DE100_1A!$D$22,ROWS($D$22:D73)-1,COLUMNS($D$22:D73)-1)<>"",OFFSET(DE100_1A!$D$22,ROWS($D$22:D73)-1,COLUMNS($D$22:D73)-1),"") -> 2417-1060024 | C60: =IF(OFFSET(DE100_1A!$E$22,ROWS($E$22:E73)-1,COLUMNS($E$22:E73)-1)<>"",OFFSET(DE100_1A!$E$22,ROWS($E$22:E73)-1,COLUMNS($E$22:E73)-1),"") -> CULVERT, CORRUGATED METAL ROADWAY PIPE, 24 IN. DIA. | D60: =IF(OFFSET(DE100_1A!$F$22,ROWS($F$22:F73)-1,COLUMNS($F$22:F73)-1)<>"",OFFSET(DE100_1A!$F$22,ROWS($F$22:F73)-1,COLUMNS($F$22:F73)-1),"") -> LF | E60: =IF(OFFSET(DE100_1A!$G$22,ROWS($G$22:G73)-1,COLUMNS($G$22:G73)-1)<>"",OFFSET(DE100_1A!$G$22,ROWS($G$22:G73)-1,COLUMNS($G$22:G73)-1),"") -> 1843 | F60: =IF(OFFSET(DE100_1A!$H$22,ROWS($H$22:H73)-1,COLUMNS($H$22:H73)-1)<>"",OFFSET(DE100_1A!$H$22,ROWS($H$22:H73)-1,COLUMNS($H$22:H73)-1),"") -> 
A61: =IF(OFFSET(DE100_1A!$C$22,ROWS($C$22:C74)-1,COLUMNS($C$22:C74)-1)<>"",OFFSET(DE100_1A!$C$22,ROWS($C$22:C74)-1,COLUMNS($C$22:C74)-1),"") -> 52 | B61: =IF(OFFSET(DE100_1A!$D$22,ROWS($D$22:D74)-1,COLUMNS($D$22:D74)-1)<>"",OFFSET(DE100_1A!$D$22,ROWS($D$22:D74)-1,COLUMNS($D$22:D74)-1),"") -> 2417-1060030 | C61: =IF(OFFSET(DE100_1A!$E$22,ROWS($E$22:E74)-1,COLUMNS($E$22:E74)-1)<>"",OFFSET(DE100_1A!$E$22,ROWS($E$22:E74)-1,COLUMNS($E$22:E74)-1),"") -> CULVERT, CORRUGATED METAL ROADWAY PIPE, 30 IN. DIA. | D61: =IF(OFFSET(DE100_1A!$F$22,ROWS($F$22:F74)-1,COLUMNS($F$22:F74)-1)<>"",OFFSET(DE100_1A!$F$22,ROWS($F$22:F74)-1,COLUMNS($F$22:F74)-1),"") -> LF | E61: =IF(OFFSET(DE100_1A!$G$22,ROWS($G$22:G74)-1,COLUMNS($G$22:G74)-1)<>"",OFFSET(DE100_1A!$G$22,ROWS($G$22:G74)-1,COLUMNS($G$22:G74)-1),"") -> 144 | F61: =IF(OFFSET(DE100_1A!$H$22,ROWS($H$22:H74)-1,COLUMNS($H$22:H74)-1)<>"",OFFSET(DE100_1A!$H$22,ROWS($H$22:H74)-1,COLUMNS($H$22:H74)-1),"") -> 
A62: =IF(OFFSET(DE100_1A!$C$22,ROWS($C$22:C75)-1,COLUMNS($C$22:C75)-1)<>"",OFFSET(DE100_1A!$C$22,ROWS($C$22:C75)-1,COLUMNS($C$22:C75)-1),"") -> 53 | B62: =IF(OFFSET(DE100_1A!$D$22,ROWS($D$22:D75)-1,COLUMNS($D$22:D75)-1)<>"",OFFSET(DE100_1A!$D$22,ROWS($D$22:D75)-1,COLUMNS($D$22:D75)-1),"") -> 2417-1080024 | C62: =IF(OFFSET(DE100_1A!$E$22,ROWS($E$22:E75)-1,COLUMNS($E$22:E75)-1)<>"",OFFSET(DE100_1A!$E$22,ROWS($E$22:E75)-1,COLUMNS($E$22:E75)-1),"") -> CULVERT, CORRUGATED METAL ARCH ENTRANCE PIPE, 24 IN. X 18 IN. | D62: =IF(OFFSET(DE100_1A!$F$22,ROWS($F$22:F75)-1,COLUMNS($F$22:F75)-1)<>"",OFFSET(DE100_1A!$F$22,ROWS($F$22:F75)-1,COLUMNS($F$22:F75)-1),"") -> LF | E62: =IF(OFFSET(DE100_1A!$G$22,ROWS($G$22:G75)-1,COLUMNS($G$22:G75)-1)<>"",OFFSET(DE100_1A!$G$22,ROWS($G$22:G75)-1,COLUMNS($G$22:G75)-1),"") -> 362 | F62: =IF(OFFSET(DE100_1A!$H$22,ROWS($H$22:H75)-1,COLUMNS($H$22:H75)-1)<>"",OFFSET(DE100_1A!$H$22,ROWS($H$22:H75)-1,COLUMNS($H$22:H75)-1),"") -> 
A63: =IF(OFFSET(DE100_1A!$C$22,ROWS($C$22:C76)-1,COLUMNS($C$22:C76)-1)<>"",OFFSET(DE100_1A!$C$22,ROWS($C$22:C76)-1,COLUMNS($C$22:C76)-1),"") -> 54 | B63: =IF(OFFSET(DE100_1A!$D$22,ROWS($D$22:D76)-1,COLUMNS($D$22:D76)-1)<>"",OFFSET(DE100_1A!$D$22,ROWS($D$22:D76)-1,COLUMNS($D$22:D76)-1),"") -> 2417-1100035 | C63: =IF(OFFSET(DE100_1A!$E$22,ROWS($E$22:E76)-1,COLUMNS($E$22:E76)-1)<>"",OFFSET(DE100_1A!$E$22,ROWS($E$22:E76)-1,COLUMNS($E$22:E76)-1),"") -> CULVERT, CORRUGATED METAL ARCH ROADWAY PIPE, 35 IN. X 24 IN. | D63: =IF(OFFSET(DE100_1A!$F$22,ROWS($F$22:F76)-1,COLUMNS($F$22:F76)-1)<>"",OFFSET(DE100_1A!$F$22,ROWS($F$22:F76)-1,COLUMNS($F$22:F76)-1),"") -> LF | E63: =IF(OFFSET(DE100_1A!$G$22,ROWS($G$22:G76)-1,COLUMNS($G$22:G76)-1)<>"",OFFSET(DE100_1A!$G$22,ROWS($G$22:G76)-1,COLUMNS($G$22:G76)-1),"") -> 54 | F63: =IF(OFFSET(DE100_1A!$H$22,ROWS($H$22:H76)-1,COLUMNS($H$22:H76)-1)<>"",OFFSET(DE100_1A!$H$22,ROWS($H$22:H76)-1,COLUMNS($H$22:H76)-1),"") -> 
A64: =IF(OFFSET(DE100_1A!$C$22,ROWS($C$22:C77)-1,COLUMNS($C$22:C77)-1)<>"",OFFSET(DE100_1A!$C$22,ROWS($C$22:C77)-1,COLUMNS($C$22:C77)-1),"") -> 55 | B64: =IF(OFFSET(DE100_1A!$D$22,ROWS($D$22:D77)-1,COLUMNS($D$22:D77)-1)<>"",OFFSET(DE100_1A!$D$22,ROWS($D$22:D77)-1,COLUMNS($D$22:D77)-1),"") -> 2417-5895024 | C64: =IF(OFFSET(DE100_1A!$E$22,ROWS($E$22:E77)-1,COLUMNS($E$22:E77)-1)<>"",OFFSET(DE100_1A!$E$22,ROWS($E$22:E77)-1,COLUMNS($E$22:E77)-1),"") -> BEVELED PIPE AND GUARD, 24 INCH | D64: =IF(OFFSET(DE100_1A!$F$22,ROWS($F$22:F77)-1,COLUMNS($F$22:F77)-1)<>"",OFFSET(DE100_1A!$F$22,ROWS($F$22:F77)-1,COLUMNS($F$22:F77)-1),"") -> EACH | E64: =IF(OFFSET(DE100_1A!$G$22,ROWS($G$22:G77)-1,COLUMNS($G$22:G77)-1)<>"",OFFSET(DE100_1A!$G$22,ROWS($G$22:G77)-1,COLUMNS($G$22:G77)-1),"") -> 16 | F64: =IF(OFFSET(DE100_1A!$H$22,ROWS($H$22:H77)-1,COLUMNS($H$22:H77)-1)<>"",OFFSET(DE100_1A!$H$22,ROWS($H$22:H77)-1,COLUMNS($H$22:H77)-1),"") -> 
A65: =IF(OFFSET(DE100_1A!$C$22,ROWS($C$22:C78)-1,COLUMNS($C$22:C78)-1)<>"",OFFSET(DE100_1A!$C$22,ROWS($C$22:C78)-1,COLUMNS($C$22:C78)-1),"") -> 56 | B65: =IF(OFFSET(DE100_1A!$D$22,ROWS($D$22:D78)-1,COLUMNS($D$22:D78)-1)<>"",OFFSET(DE100_1A!$D$22,ROWS($D$22:D78)-1,COLUMNS($D$22:D78)-1),"") -> 2418-0000010 | C65: =IF(OFFSET(DE100_1A!$E$22,ROWS($E$22:E78)-1,COLUMNS($E$22:E78)-1)<>"",OFFSET(DE100_1A!$E$22,ROWS($E$22:E78)-1,COLUMNS($E$22:E78)-1),"") -> TEMPORARY STREAM DIVERSION | D65: =IF(OFFSET(DE100_1A!$F$22,ROWS($F$22:F78)-1,COLUMNS($F$22:F78)-1)<>"",OFFSET(DE100_1A!$F$22,ROWS($F$22:F78)-1,COLUMNS($F$22:F78)-1),"") -> EACH | E65: =IF(OFFSET(DE100_1A!$G$22,ROWS($G$22:G78)-1,COLUMNS($G$22:G78)-1)<>"",OFFSET(DE100_1A!$G$22,ROWS($G$22:G78)-1,COLUMNS($G$22:G78)-1),"") -> 5 | F65: =IF(OFFSET(DE100_1A!$H$22,ROWS($H$22:H78)-1,COLUMNS($H$22:H78)-1)<>"",OFFSET(DE100_1A!$H$22,ROWS($H$22:H78)-1,COLUMNS($H$22:H78)-1),"") -> 
A66: =IF(OFFSET(DE100_1A!$C$22,ROWS($C$22:C79)-1,COLUMNS($C$22:C79)-1)<>"",OFFSET(DE100_1A!$C$22,ROWS($C$22:C79)-1,COLUMNS($C$22:C79)-1),"") -> 57 | B66: =IF(OFFSET(DE100_1A!$D$22,ROWS($D$22:D79)-1,COLUMNS($D$22:D79)-1)<>"",OFFSET(DE100_1A!$D$22,ROWS($D$22:D79)-1,COLUMNS($D$22:D79)-1),"") -> 2422-0360018 | C66: =IF(OFFSET(DE100_1A!$E$22,ROWS($E$22:E79)-1,COLUMNS($E$22:E79)-1)<>"",OFFSET(DE100_1A!$E$22,ROWS($E$22:E79)-1,COLUMNS($E$22:E79)-1),"") -> APRONS, UNCLASSIFIED, 18 IN. DIA. | D66: =IF(OFFSET(DE100_1A!$F$22,ROWS($F$22:F79)-1,COLUMNS($F$22:F79)-1)<>"",OFFSET(DE100_1A!$F$22,ROWS($F$22:F79)-1,COLUMNS($F$22:F79)-1),"") -> EACH | E66: =IF(OFFSET(DE100_1A!$G$22,ROWS($G$22:G79)-1,COLUMNS($G$22:G79)-1)<>"",OFFSET(DE100_1A!$G$22,ROWS($G$22:G79)-1,COLUMNS($G$22:G79)-1),"") -> 4 | F66: =IF(OFFSET(DE100_1A!$H$22,ROWS($H$22:H79)-1,COLUMNS($H$22:H79)-1)<>"",OFFSET(DE100_1A!$H$22,ROWS($H$22:H79)-1,COLUMNS($H$22:H79)-1),"") -> 
A67: =IF(OFFSET(DE100_1A!$C$22,ROWS($C$22:C80)-1,COLUMNS($C$22:C80)-1)<>"",OFFSET(DE100_1A!$C$22,ROWS($C$22:C80)-1,COLUMNS($C$22:C80)-1),"") -> 58 | B67: =IF(OFFSET(DE100_1A!$D$22,ROWS($D$22:D80)-1,COLUMNS($D$22:D80)-1)<>"",OFFSET(DE100_1A!$D$22,ROWS($D$22:D80)-1,COLUMNS($D$22:D80)-1),"") -> 2422-0360024 | C67: =IF(OFFSET(DE100_1A!$E$22,ROWS($E$22:E80)-1,COLUMNS($E$22:E80)-1)<>"",OFFSET(DE100_1A!$E$22,ROWS($E$22:E80)-1,COLUMNS($E$22:E80)-1),"") -> APRONS, UNCLASSIFIED, 24 IN. DIA. | D67: =IF(OFFSET(DE100_1A!$F$22,ROWS($F$22:F80)-1,COLUMNS($F$22:F80)-1)<>"",OFFSET(DE100_1A!$F$22,ROWS($F$22:F80)-1,COLUMNS($F$22:F80)-1),"") -> EACH | E67: =IF(OFFSET(DE100_1A!$G$22,ROWS($G$22:G80)-1,COLUMNS($G$22:G80)-1)<>"",OFFSET(DE100_1A!$G$22,ROWS($G$22:G80)-1,COLUMNS($G$22:G80)-1),"") -> 50 | F67: =IF(OFFSET(DE100_1A!$H$22,ROWS($H$22:H80)-1,COLUMNS($H$22:H80)-1)<>"",OFFSET(DE100_1A!$H$22,ROWS($H$22:H80)-1,COLUMNS($H$22:H80)-1),"") -> 
A68: =IF(OFFSET(DE100_1A!$C$22,ROWS($C$22:C81)-1,COLUMNS($C$22:C81)-1)<>"",OFFSET(DE100_1A!$C$22,ROWS($C$22:C81)-1,COLUMNS($C$22:C81)-1),"") -> 59 | B68: =IF(OFFSET(DE100_1A!$D$22,ROWS($D$22:D81)-1,COLUMNS($D$22:D81)-1)<>"",OFFSET(DE100_1A!$D$22,ROWS($D$22:D81)-1,COLUMNS($D$22:D81)-1),"") -> 2422-0360030 | C68: =IF(OFFSET(DE100_1A!$E$22,ROWS($E$22:E81)-1,COLUMNS($E$22:E81)-1)<>"",OFFSET(DE100_1A!$E$22,ROWS($E$22:E81)-1,COLUMNS($E$22:E81)-1),"") -> APRONS, UNCLASSIFIED, 30 IN. DIA. | D68: =IF(OFFSET(DE100_1A!$F$22,ROWS($F$22:F81)-1,COLUMNS($F$22:F81)-1)<>"",OFFSET(DE100_1A!$F$22,ROWS($F$22:F81)-1,COLUMNS($F$22:F81)-1),"") -> EACH | E68: =IF(OFFSET(DE100_1A!$G$22,ROWS($G$22:G81)-1,COLUMNS($G$22:G81)-1)<>"",OFFSET(DE100_1A!$G$22,ROWS($G$22:G81)-1,COLUMNS($G$22:G81)-1),"") -> 8 | F68: =IF(OFFSET(DE100_1A!$H$22,ROWS($H$22:H81)-1,COLUMNS($H$22:H81)-1)<>"",OFFSET(DE100_1A!$H$22,ROWS($H$22:H81)-1,COLUMNS($H$22:H81)-1),"") -> 
A69: =IF(OFFSET(DE100_1A!$C$22,ROWS($C$22:C82)-1,COLUMNS($C$22:C82)-1)<>"",OFFSET(DE100_1A!$C$22,ROWS($C$22:C82)-1,COLUMNS($C$22:C82)-1),"") -> 60 | B69: =IF(OFFSET(DE100_1A!$D$22,ROWS($D$22:D82)-1,COLUMNS($D$22:D82)-1)<>"",OFFSET(DE100_1A!$D$22,ROWS($D$22:D82)-1,COLUMNS($D$22:D82)-1),"") -> 2422-0360036 | C69: =IF(OFFSET(DE100_1A!$E$22,ROWS($E$22:E82)-1,COLUMNS($E$22:E82)-1)<>"",OFFSET(DE100_1A!$E$22,ROWS($E$22:E82)-1,COLUMNS($E$22:E82)-1),"") -> APRONS, UNCLASSIFIED, 36 IN. DIA. | D69: =IF(OFFSET(DE100_1A!$F$22,ROWS($F$22:F82)-1,COLUMNS($F$22:F82)-1)<>"",OFFSET(DE100_1A!$F$22,ROWS($F$22:F82)-1,COLUMNS($F$22:F82)-1),"") -> EACH | E69: =IF(OFFSET(DE100_1A!$G$22,ROWS($G$22:G82)-1,COLUMNS($G$22:G82)-1)<>"",OFFSET(DE100_1A!$G$22,ROWS($G$22:G82)-1,COLUMNS($G$22:G82)-1),"") -> 2 | F69: =IF(OFFSET(DE100_1A!$H$22,ROWS($H$22:H82)-1,COLUMNS($H$22:H82)-1)<>"",OFFSET(DE100_1A!$H$22,ROWS($H$22:H82)-1,COLUMNS($H$22:H82)-1),"") -> 
A70: =IF(OFFSET(DE100_1A!$C$22,ROWS($C$22:C83)-1,COLUMNS($C$22:C83)-1)<>"",OFFSET(DE100_1A!$C$22,ROWS($C$22:C83)-1,COLUMNS($C$22:C83)-1),"") -> 61 | B70: =IF(OFFSET(DE100_1A!$D$22,ROWS($D$22:D83)-1,COLUMNS($D$22:D83)-1)<>"",OFFSET(DE100_1A!$D$22,ROWS($D$22:D83)-1,COLUMNS($D$22:D83)-1),"") -> 2422-0360042 | C70: =IF(OFFSET(DE100_1A!$E$22,ROWS($E$22:E83)-1,COLUMNS($E$22:E83)-1)<>"",OFFSET(DE100_1A!$E$22,ROWS($E$22:E83)-1,COLUMNS($E$22:E83)-1),"") -> APRONS, UNCLASSIFIED, 42 IN. DIA. | D70: =IF(OFFSET(DE100_1A!$F$22,ROWS($F$22:F83)-1,COLUMNS($F$22:F83)-1)<>"",OFFSET(DE100_1A!$F$22,ROWS($F$22:F83)-1,COLUMNS($F$22:F83)-1),"") -> EACH | E70: =IF(OFFSET(DE100_1A!$G$22,ROWS($G$22:G83)-1,COLUMNS($G$22:G83)-1)<>"",OFFSET(DE100_1A!$G$22,ROWS($G$22:G83)-1,COLUMNS($G$22:G83)-1),"") -> 4 | F70: =IF(OFFSET(DE100_1A!$H$22,ROWS($H$22:H83)-1,COLUMNS($H$22:H83)-1)<>"",OFFSET(DE100_1A!$H$22,ROWS($H$22:H83)-1,COLUMNS($H$22:H83)-1),"") -> 
A71: =IF(OFFSET(DE100_1A!$C$22,ROWS($C$22:C84)-1,COLUMNS($C$22:C84)-1)<>"",OFFSET(DE100_1A!$C$22,ROWS($C$22:C84)-1,COLUMNS($C$22:C84)-1),"") -> 62 | B71: =IF(OFFSET(DE100_1A!$D$22,ROWS($D$22:D84)-1,COLUMNS($D$22:D84)-1)<>"",OFFSET(DE100_1A!$D$22,ROWS($D$22:D84)-1,COLUMNS($D$22:D84)-1),"") -> 2422-0360048 | C71: =IF(OFFSET(DE100_1A!$E$22,ROWS($E$22:E84)-1,COLUMNS($E$22:E84)-1)<>"",OFFSET(DE100_1A!$E$22,ROWS($E$22:E84)-1,COLUMNS($E$22:E84)-1),"") -> APRONS, UNCLASSIFIED, 48 IN. DIA. | D71: =IF(OFFSET(DE100_1A!$F$22,ROWS($F$22:F84)-1,COLUMNS($F$22:F84)-1)<>"",OFFSET(DE100_1A!$F$22,ROWS($F$22:F84)-1,COLUMNS($F$22:F84)-1),"") -> EACH | E71: =IF(OFFSET(DE100_1A!$G$22,ROWS($G$22:G84)-1,COLUMNS($G$22:G84)-1)<>"",OFFSET(DE100_1A!$G$22,ROWS($G$22:G84)-1,COLUMNS($G$22:G84)-1),"") -> 4 | F71: =IF(OFFSET(DE100_1A!$H$22,ROWS($H$22:H84)-1,COLUMNS($H$22:H84)-1)<>"",OFFSET(DE100_1A!$H$22,ROWS($H$22:H84)-1,COLUMNS($H$22:H84)-1),"") -> 
A72: =IF(OFFSET(DE100_1A!$C$22,ROWS($C$22:C85)-1,COLUMNS($C$22:C85)-1)<>"",OFFSET(DE100_1A!$C$22,ROWS($C$22:C85)-1,COLUMNS($C$22:C85)-1),"") -> 63 | B72: =IF(OFFSET(DE100_1A!$D$22,ROWS($D$22:D85)-1,COLUMNS($D$22:D85)-1)<>"",OFFSET(DE100_1A!$D$22,ROWS($D$22:D85)-1,COLUMNS($D$22:D85)-1),"") -> 2422-0360054 | C72: =IF(OFFSET(DE100_1A!$E$22,ROWS($E$22:E85)-1,COLUMNS($E$22:E85)-1)<>"",OFFSET(DE100_1A!$E$22,ROWS($E$22:E85)-1,COLUMNS($E$22:E85)-1),"") -> APRONS, UNCLASSIFIED, 54 IN. DIA. | D72: =IF(OFFSET(DE100_1A!$F$22,ROWS($F$22:F85)-1,COLUMNS($F$22:F85)-1)<>"",OFFSET(DE100_1A!$F$22,ROWS($F$22:F85)-1,COLUMNS($F$22:F85)-1),"") -> EACH | E72: =IF(OFFSET(DE100_1A!$G$22,ROWS($G$22:G85)-1,COLUMNS($G$22:G85)-1)<>"",OFFSET(DE100_1A!$G$22,ROWS($G$22:G85)-1,COLUMNS($G$22:G85)-1),"") -> 2 | F72: =IF(OFFSET(DE100_1A!$H$22,ROWS($H$22:H85)-1,COLUMNS($H$22:H85)-1)<>"",OFFSET(DE100_1A!$H$22,ROWS($H$22:H85)-1,COLUMNS($H$22:H85)-1),"") -> 
A73: =IF(OFFSET(DE100_1A!$C$22,ROWS($C$22:C86)-1,COLUMNS($C$22:C86)-1)<>"",OFFSET(DE100_1A!$C$22,ROWS($C$22:C86)-1,COLUMNS($C$22:C86)-1),"") -> 64 | B73: =IF(OFFSET(DE100_1A!$D$22,ROWS($D$22:D86)-1,COLUMNS($D$22:D86)-1)<>"",OFFSET(DE100_1A!$D$22,ROWS($D$22:D86)-1,COLUMNS($D$22:D86)-1),"") -> 2422-0360060 | C73: =IF(OFFSET(DE100_1A!$E$22,ROWS($E$22:E86)-1,COLUMNS($E$22:E86)-1)<>"",OFFSET(DE100_1A!$E$22,ROWS($E$22:E86)-1,COLUMNS($E$22:E86)-1),"") -> APRONS, UNCLASSIFIED, 60 IN. DIA. | D73: =IF(OFFSET(DE100_1A!$F$22,ROWS($F$22:F86)-1,COLUMNS($F$22:F86)-1)<>"",OFFSET(DE100_1A!$F$22,ROWS($F$22:F86)-1,COLUMNS($F$22:F86)-1),"") -> EACH | E73: =IF(OFFSET(DE100_1A!$G$22,ROWS($G$22:G86)-1,COLUMNS($G$22:G86)-1)<>"",OFFSET(DE100_1A!$G$22,ROWS($G$22:G86)-1,COLUMNS($G$22:G86)-1),"") -> 2 | F73: =IF(OFFSET(DE100_1A!$H$22,ROWS($H$22:H86)-1,COLUMNS($H$22:H86)-1)<>"",OFFSET(DE100_1A!$H$22,ROWS($H$22:H86)-1,COLUMNS($H$22:H86)-1),"") -> 
A74: =IF(OFFSET(DE100_1A!$C$22,ROWS($C$22:C87)-1,COLUMNS($C$22:C87)-1)<>"",OFFSET(DE100_1A!$C$22,ROWS($C$22:C87)-1,COLUMNS($C$22:C87)-1),"") -> 65 | B74: =IF(OFFSET(DE100_1A!$D$22,ROWS($D$22:D87)-1,COLUMNS($D$22:D87)-1)<>"",OFFSET(DE100_1A!$D$22,ROWS($D$22:D87)-1,COLUMNS($D$22:D87)-1),"") -> 2422-0360072 | C74: =IF(OFFSET(DE100_1A!$E$22,ROWS($E$22:E87)-1,COLUMNS($E$22:E87)-1)<>"",OFFSET(DE100_1A!$E$22,ROWS($E$22:E87)-1,COLUMNS($E$22:E87)-1),"") -> APRONS, UNCLASSIFIED, 72 IN. DIA. | D74: =IF(OFFSET(DE100_1A!$F$22,ROWS($F$22:F87)-1,COLUMNS($F$22:F87)-1)<>"",OFFSET(DE100_1A!$F$22,ROWS($F$22:F87)-1,COLUMNS($F$22:F87)-1),"") -> EACH | E74: =IF(OFFSET(DE100_1A!$G$22,ROWS($G$22:G87)-1,COLUMNS($G$22:G87)-1)<>"",OFFSET(DE100_1A!$G$22,ROWS($G$22:G87)-1,COLUMNS($G$22:G87)-1),"") -> 2 | F74: =IF(OFFSET(DE100_1A!$H$22,ROWS($H$22:H87)-1,COLUMNS($H$22:H87)-1)<>"",OFFSET(DE100_1A!$H$22,ROWS($H$22:H87)-1,COLUMNS($H$22:H87)-1),"") -> 
A75: =IF(OFFSET(DE100_1A!$C$22,ROWS($C$22:C88)-1,COLUMNS($C$22:C88)-1)<>"",OFFSET(DE100_1A!$C$22,ROWS($C$22:C88)-1,COLUMNS($C$22:C88)-1),"") -> 66 | B75: =IF(OFFSET(DE100_1A!$D$22,ROWS($D$22:D88)-1,COLUMNS($D$22:D88)-1)<>"",OFFSET(DE100_1A!$D$22,ROWS($D$22:D88)-1,COLUMNS($D$22:D88)-1),"") -> 2422-0360078 | C75: =IF(OFFSET(DE100_1A!$E$22,ROWS($E$22:E88)-1,COLUMNS($E$22:E88)-1)<>"",OFFSET(DE100_1A!$E$22,ROWS($E$22:E88)-1,COLUMNS($E$22:E88)-1),"") -> APRONS, UNCLASSIFIED, 78 IN. DIA. | D75: =IF(OFFSET(DE100_1A!$F$22,ROWS($F$22:F88)-1,COLUMNS($F$22:F88)-1)<>"",OFFSET(DE100_1A!$F$22,ROWS($F$22:F88)-1,COLUMNS($F$22:F88)-1),"") -> EACH | E75: =IF(OFFSET(DE100_1A!$G$22,ROWS($G$22:G88)-1,COLUMNS($G$22:G88)-1)<>"",OFFSET(DE100_1A!$G$22,ROWS($G$22:G88)-1,COLUMNS($G$22:G88)-1),"") -> 2 | F75: =IF(OFFSET(DE100_1A!$H$22,ROWS($H$22:H88)-1,COLUMNS($H$22:H88)-1)<>"",OFFSET(DE100_1A!$H$22,ROWS($H$22:H88)-1,COLUMNS($H$22:H88)-1),"") -> 
A76: =IF(OFFSET(DE100_1A!$C$22,ROWS($C$22:C89)-1,COLUMNS($C$22:C89)-1)<>"",OFFSET(DE100_1A!$C$22,ROWS($C$22:C89)-1,COLUMNS($C$22:C89)-1),"") -> 67 | B76: =IF(OFFSET(DE100_1A!$D$22,ROWS($D$22:D89)-1,COLUMNS($D$22:D89)-1)<>"",OFFSET(DE100_1A!$D$22,ROWS($D$22:D89)-1,COLUMNS($D$22:D89)-1),"") -> 2422-1722018 | C76: =IF(OFFSET(DE100_1A!$E$22,ROWS($E$22:E89)-1,COLUMNS($E$22:E89)-1)<>"",OFFSET(DE100_1A!$E$22,ROWS($E$22:E89)-1,COLUMNS($E$22:E89)-1),"") -> CULVERT, UNCLASSIFIED ENTRANCE PIPE, 18 IN. DIA. | D76: =IF(OFFSET(DE100_1A!$F$22,ROWS($F$22:F89)-1,COLUMNS($F$22:F89)-1)<>"",OFFSET(DE100_1A!$F$22,ROWS($F$22:F89)-1,COLUMNS($F$22:F89)-1),"") -> LF | E76: =IF(OFFSET(DE100_1A!$G$22,ROWS($G$22:G89)-1,COLUMNS($G$22:G89)-1)<>"",OFFSET(DE100_1A!$G$22,ROWS($G$22:G89)-1,COLUMNS($G$22:G89)-1),"") -> 82 | F76: =IF(OFFSET(DE100_1A!$H$22,ROWS($H$22:H89)-1,COLUMNS($H$22:H89)-1)<>"",OFFSET(DE100_1A!$H$22,ROWS($H$22:H89)-1,COLUMNS($H$22:H89)-1),"") -> 
A77: =IF(OFFSET(DE100_1A!$C$22,ROWS($C$22:C90)-1,COLUMNS($C$22:C90)-1)<>"",OFFSET(DE100_1A!$C$22,ROWS($C$22:C90)-1,COLUMNS($C$22:C90)-1),"") -> 68 | B77: =IF(OFFSET(DE100_1A!$D$22,ROWS($D$22:D90)-1,COLUMNS($D$22:D90)-1)<>"",OFFSET(DE100_1A!$D$22,ROWS($D$22:D90)-1,COLUMNS($D$22:D90)-1),"") -> 2422-1722024 | C77: =IF(OFFSET(DE100_1A!$E$22,ROWS($E$22:E90)-1,COLUMNS($E$22:E90)-1)<>"",OFFSET(DE100_1A!$E$22,ROWS($E$22:E90)-1,COLUMNS($E$22:E90)-1),"") -> CULVERT, UNCLASSIFIED ENTRANCE PIPE, 24 IN. DIA. | D77: =IF(OFFSET(DE100_1A!$F$22,ROWS($F$22:F90)-1,COLUMNS($F$22:F90)-1)<>"",OFFSET(DE100_1A!$F$22,ROWS($F$22:F90)-1,COLUMNS($F$22:F90)-1),"") -> LF | E77: =IF(OFFSET(DE100_1A!$G$22,ROWS($G$22:G90)-1,COLUMNS($G$22:G90)-1)<>"",OFFSET(DE100_1A!$G$22,ROWS($G$22:G90)-1,COLUMNS($G$22:G90)-1),"") -> 5486 | F77: =IF(OFFSET(DE100_1A!$H$22,ROWS($H$22:H90)-1,COLUMNS($H$22:H90)-1)<>"",OFFSET(DE100_1A!$H$22,ROWS($H$22:H90)-1,COLUMNS($H$22:H90)-1),"") -> 
A78: =IF(OFFSET(DE100_1A!$C$22,ROWS($C$22:C91)-1,COLUMNS($C$22:C91)-1)<>"",OFFSET(DE100_1A!$C$22,ROWS($C$22:C91)-1,COLUMNS($C$22:C91)-1),"") -> 69 | B78: =IF(OFFSET(DE100_1A!$D$22,ROWS($D$22:D91)-1,COLUMNS($D$22:D91)-1)<>"",OFFSET(DE100_1A!$D$22,ROWS($D$22:D91)-1,COLUMNS($D$22:D91)-1),"") -> 2422-1722036 | C78: =IF(OFFSET(DE100_1A!$E$22,ROWS($E$22:E91)-1,COLUMNS($E$22:E91)-1)<>"",OFFSET(DE100_1A!$E$22,ROWS($E$22:E91)-1,COLUMNS($E$22:E91)-1),"") -> CULVERT, UNCLASSIFIED ENTRANCE PIPE, 36 IN. DIA. | D78: =IF(OFFSET(DE100_1A!$F$22,ROWS($F$22:F91)-1,COLUMNS($F$22:F91)-1)<>"",OFFSET(DE100_1A!$F$22,ROWS($F$22:F91)-1,COLUMNS($F$22:F91)-1),"") -> LF | E78: =IF(OFFSET(DE100_1A!$G$22,ROWS($G$22:G91)-1,COLUMNS($G$22:G91)-1)<>"",OFFSET(DE100_1A!$G$22,ROWS($G$22:G91)-1,COLUMNS($G$22:G91)-1),"") -> 136 | F78: =IF(OFFSET(DE100_1A!$H$22,ROWS($H$22:H91)-1,COLUMNS($H$22:H91)-1)<>"",OFFSET(DE100_1A!$H$22,ROWS($H$22:H91)-1,COLUMNS($H$22:H91)-1),"") -> 
A79: =IF(OFFSET(DE100_1A!$C$22,ROWS($C$22:C92)-1,COLUMNS($C$22:C92)-1)<>"",OFFSET(DE100_1A!$C$22,ROWS($C$22:C92)-1,COLUMNS($C$22:C92)-1),"") -> 70 | B79: =IF(OFFSET(DE100_1A!$D$22,ROWS($D$22:D92)-1,COLUMNS($D$22:D92)-1)<>"",OFFSET(DE100_1A!$D$22,ROWS($D$22:D92)-1,COLUMNS($D$22:D92)-1),"") -> 2422-1722072 | C79: =IF(OFFSET(DE100_1A!$E$22,ROWS($E$22:E92)-1,COLUMNS($E$22:E92)-1)<>"",OFFSET(DE100_1A!$E$22,ROWS($E$22:E92)-1,COLUMNS($E$22:E92)-1),"") -> CULVERT, UNCLASSIFIED ENTRANCE PIPE, 72 IN. DIA. | D79: =IF(OFFSET(DE100_1A!$F$22,ROWS($F$22:F92)-1,COLUMNS($F$22:F92)-1)<>"",OFFSET(DE100_1A!$F$22,ROWS($F$22:F92)-1,COLUMNS($F$22:F92)-1),"") -> LF | E79: =IF(OFFSET(DE100_1A!$G$22,ROWS($G$22:G92)-1,COLUMNS($G$22:G92)-1)<>"",OFFSET(DE100_1A!$G$22,ROWS($G$22:G92)-1,COLUMNS($G$22:G92)-1),"") -> 70 | F79: =IF(OFFSET(DE100_1A!$H$22,ROWS($H$22:H92)-1,COLUMNS($H$22:H92)-1)<>"",OFFSET(DE100_1A!$H$22,ROWS($H$22:H92)-1,COLUMNS($H$22:H92)-1),"") -> 
A80: =IF(OFFSET(DE100_1A!$C$22,ROWS($C$22:C93)-1,COLUMNS($C$22:C93)-1)<>"",OFFSET(DE100_1A!$C$22,ROWS($C$22:C93)-1,COLUMNS($C$22:C93)-1),"") -> 71 | B80: =IF(OFFSET(DE100_1A!$D$22,ROWS($D$22:D93)-1,COLUMNS($D$22:D93)-1)<>"",OFFSET(DE100_1A!$D$22,ROWS($D$22:D93)-1,COLUMNS($D$22:D93)-1),"") -> 2422-1723024 | C80: =IF(OFFSET(DE100_1A!$E$22,ROWS($E$22:E93)-1,COLUMNS($E$22:E93)-1)<>"",OFFSET(DE100_1A!$E$22,ROWS($E$22:E93)-1,COLUMNS($E$22:E93)-1),"") -> CULVERT, UNCLASSIFIED ROADWAY PIPE, 24 IN. DIA. | D80: =IF(OFFSET(DE100_1A!$F$22,ROWS($F$22:F93)-1,COLUMNS($F$22:F93)-1)<>"",OFFSET(DE100_1A!$F$22,ROWS($F$22:F93)-1,COLUMNS($F$22:F93)-1),"") -> LF | E80: =IF(OFFSET(DE100_1A!$G$22,ROWS($G$22:G93)-1,COLUMNS($G$22:G93)-1)<>"",OFFSET(DE100_1A!$G$22,ROWS($G$22:G93)-1,COLUMNS($G$22:G93)-1),"") -> 980 | F80: =IF(OFFSET(DE100_1A!$H$22,ROWS($H$22:H93)-1,COLUMNS($H$22:H93)-1)<>"",OFFSET(DE100_1A!$H$22,ROWS($H$22:H93)-1,COLUMNS($H$22:H93)-1),"") -> 
A81: =IF(OFFSET(DE100_1A!$C$22,ROWS($C$22:C94)-1,COLUMNS($C$22:C94)-1)<>"",OFFSET(DE100_1A!$C$22,ROWS($C$22:C94)-1,COLUMNS($C$22:C94)-1),"") -> 72 | B81: =IF(OFFSET(DE100_1A!$D$22,ROWS($D$22:D94)-1,COLUMNS($D$22:D94)-1)<>"",OFFSET(DE100_1A!$D$22,ROWS($D$22:D94)-1,COLUMNS($D$22:D94)-1),"") -> 2422-1723030 | C81: =IF(OFFSET(DE100_1A!$E$22,ROWS($E$22:E94)-1,COLUMNS($E$22:E94)-1)<>"",OFFSET(DE100_1A!$E$22,ROWS($E$22:E94)-1,COLUMNS($E$22:E94)-1),"") -> CULVERT, UNCLASSIFIED ROADWAY PIPE, 30 IN. DIA. | D81: =IF(OFFSET(DE100_1A!$F$22,ROWS($F$22:F94)-1,COLUMNS($F$22:F94)-1)<>"",OFFSET(DE100_1A!$F$22,ROWS($F$22:F94)-1,COLUMNS($F$22:F94)-1),"") -> LF | E81: =IF(OFFSET(DE100_1A!$G$22,ROWS($G$22:G94)-1,COLUMNS($G$22:G94)-1)<>"",OFFSET(DE100_1A!$G$22,ROWS($G$22:G94)-1,COLUMNS($G$22:G94)-1),"") -> 658 | F81: =IF(OFFSET(DE100_1A!$H$22,ROWS($H$22:H94)-1,COLUMNS($H$22:H94)-1)<>"",OFFSET(DE100_1A!$H$22,ROWS($H$22:H94)-1,COLUMNS($H$22:H94)-1),"") -> 
A82: 100-1A
A83: 1997-07-15
A84: ESTIMATED PROJECT QUANTITIES (1 DIVISION PROJECT)
A88: Item No. | B88: Item Code | C88: Item | D88: Unit | E88: Total | F88: As Built Qty.
A90: =IF(OFFSET(DE100_1A!$C$95,ROWS($C$95:C95)-1,COLUMNS($C$95:C95)-1)<>"",OFFSET(DE100_1A!$C$95,ROWS($C$95:C95)-1,COLUMNS($C$95:C95)-1),"") -> 73 | B90: =IF(OFFSET(DE100_1A!$D$95,ROWS($D$95:D95)-1,COLUMNS($D$95:D95)-1)<>"",OFFSET(DE100_1A!$D$95,ROWS($D$95:D95)-1,COLUMNS($D$95:D95)-1),"") -> 2422-1723042 | C90: =IF(OFFSET(DE100_1A!$E$95,ROWS($E$95:E95)-1,COLUMNS($E$95:E95)-1)<>"",OFFSET(DE100_1A!$E$95,ROWS($E$95:E95)-1,COLUMNS($E$95:E95)-1),"") -> CULVERT, UNCLASSIFIED ROADWAY PIPE, 42 IN. DIA. | D90: =IF(OFFSET(DE100_1A!$F$95,ROWS($F$95:F95)-1,COLUMNS($F$95:F95)-1)<>"",OFFSET(DE100_1A!$F$95,ROWS($F$95:F95)-1,COLUMNS($F$95:F95)-1),"") -> LF | E90: =IF(OFFSET(DE100_1A!$G$95,ROWS($G$95:G95)-1,COLUMNS($G$95:G95)-1)<>"",OFFSET(DE100_1A!$G$95,ROWS($G$95:G95)-1,COLUMNS($G$95:G95)-1),"") -> 120 | F90: =IF(OFFSET(DE100_1A!$H$95,ROWS($H$95:H95)-1,COLUMNS($H$95:H95)-1)<>"",OFFSET(DE100_1A!$H$95,ROWS($H$95:H95)-1,COLUMNS($H$95:H95)-1),"") -> 
A91: =IF(OFFSET(DE100_1A!$C$95,ROWS($C$95:C96)-1,COLUMNS($C$95:C96)-1)<>"",OFFSET(DE100_1A!$C$95,ROWS($C$95:C96)-1,COLUMNS($C$95:C96)-1),"") -> 74 | B91: =IF(OFFSET(DE100_1A!$D$95,ROWS($D$95:D96)-1,COLUMNS($D$95:D96)-1)<>"",OFFSET(DE100_1A!$D$95,ROWS($D$95:D96)-1,COLUMNS($D$95:D96)-1),"") -> 2422-1723048 | C91: =IF(OFFSET(DE100_1A!$E$95,ROWS($E$95:E96)-1,COLUMNS($E$95:E96)-1)<>"",OFFSET(DE100_1A!$E$95,ROWS($E$95:E96)-1,COLUMNS($E$95:E96)-1),"") -> CULVERT, UNCLASSIFIED ROADWAY PIPE, 48 IN. DIA. | D91: =IF(OFFSET(DE100_1A!$F$95,ROWS($F$95:F96)-1,COLUMNS($F$95:F96)-1)<>"",OFFSET(DE100_1A!$F$95,ROWS($F$95:F96)-1,COLUMNS($F$95:F96)-1),"") -> LF | E91: =IF(OFFSET(DE100_1A!$G$95,ROWS($G$95:G96)-1,COLUMNS($G$95:G96)-1)<>"",OFFSET(DE100_1A!$G$95,ROWS($G$95:G96)-1,COLUMNS($G$95:G96)-1),"") -> 216 | F91: =IF(OFFSET(DE100_1A!$H$95,ROWS($H$95:H96)-1,COLUMNS($H$95:H96)-1)<>"",OFFSET(DE100_1A!$H$95,ROWS($H$95:H96)-1,COLUMNS($H$95:H96)-1),"") -> 
A92: =IF(OFFSET(DE100_1A!$C$95,ROWS($C$95:C97)-1,COLUMNS($C$95:C97)-1)<>"",OFFSET(DE100_1A!$C$95,ROWS($C$95:C97)-1,COLUMNS($C$95:C97)-1),"") -> 75 | B92: =IF(OFFSET(DE100_1A!$D$95,ROWS($D$95:D97)-1,COLUMNS($D$95:D97)-1)<>"",OFFSET(DE100_1A!$D$95,ROWS($D$95:D97)-1,COLUMNS($D$95:D97)-1),"") -> 2502-8212024 | C92: =IF(OFFSET(DE100_1A!$E$95,ROWS($E$95:E97)-1,COLUMNS($E$95:E97)-1)<>"",OFFSET(DE100_1A!$E$95,ROWS($E$95:E97)-1,COLUMNS($E$95:E97)-1),"") -> SUBDRAIN, LONGITUDINAL, (BACKSLOPE) 4 IN. DIA. | D92: =IF(OFFSET(DE100_1A!$F$95,ROWS($F$95:F97)-1,COLUMNS($F$95:F97)-1)<>"",OFFSET(DE100_1A!$F$95,ROWS($F$95:F97)-1,COLUMNS($F$95:F97)-1),"") -> LF | E92: =IF(OFFSET(DE100_1A!$G$95,ROWS($G$95:G97)-1,COLUMNS($G$95:G97)-1)<>"",OFFSET(DE100_1A!$G$95,ROWS($G$95:G97)-1,COLUMNS($G$95:G97)-1),"") -> 17,260.0 | F92: =IF(OFFSET(DE100_1A!$H$95,ROWS($H$95:H97)-1,COLUMNS($H$95:H97)-1)<>"",OFFSET(DE100_1A!$H$95,ROWS($H$95:H97)-1,COLUMNS($H$95:H97)-1),"") -> 
A93: =IF(OFFSET(DE100_1A!$C$95,ROWS($C$95:C98)-1,COLUMNS($C$95:C98)-1)<>"",OFFSET(DE100_1A!$C$95,ROWS($C$95:C98)-1,COLUMNS($C$95:C98)-1),"") -> 76 | B93: =IF(OFFSET(DE100_1A!$D$95,ROWS($D$95:D98)-1,COLUMNS($D$95:D98)-1)<>"",OFFSET(DE100_1A!$D$95,ROWS($D$95:D98)-1,COLUMNS($D$95:D98)-1),"") -> 2502-8221306 | C93: =IF(OFFSET(DE100_1A!$E$95,ROWS($E$95:E98)-1,COLUMNS($E$95:E98)-1)<>"",OFFSET(DE100_1A!$E$95,ROWS($E$95:E98)-1,COLUMNS($E$95:E98)-1),"") -> SUBDRAIN OUTLET, DR-306 | D93: =IF(OFFSET(DE100_1A!$F$95,ROWS($F$95:F98)-1,COLUMNS($F$95:F98)-1)<>"",OFFSET(DE100_1A!$F$95,ROWS($F$95:F98)-1,COLUMNS($F$95:F98)-1),"") -> EACH | E93: =IF(OFFSET(DE100_1A!$G$95,ROWS($G$95:G98)-1,COLUMNS($G$95:G98)-1)<>"",OFFSET(DE100_1A!$G$95,ROWS($G$95:G98)-1,COLUMNS($G$95:G98)-1),"") -> 70 | F93: =IF(OFFSET(DE100_1A!$H$95,ROWS($H$95:H98)-1,COLUMNS($H$95:H98)-1)<>"",OFFSET(DE100_1A!$H$95,ROWS($H$95:H98)-1,COLUMNS($H$95:H98)-1),"") -> 
A94: =IF(OFFSET(DE100_1A!$C$95,ROWS($C$95:C99)-1,COLUMNS($C$95:C99)-1)<>"",OFFSET(DE100_1A!$C$95,ROWS($C$95:C99)-1,COLUMNS($C$95:C99)-1),"") -> 77 | B94: =IF(OFFSET(DE100_1A!$D$95,ROWS($D$95:D99)-1,COLUMNS($D$95:D99)-1)<>"",OFFSET(DE100_1A!$D$95,ROWS($D$95:D99)-1,COLUMNS($D$95:D99)-1),"") -> 2506-4984000 | C94: =IF(OFFSET(DE100_1A!$E$95,ROWS($E$95:E99)-1,COLUMNS($E$95:E99)-1)<>"",OFFSET(DE100_1A!$E$95,ROWS($E$95:E99)-1,COLUMNS($E$95:E99)-1),"") -> FLOWABLE MORTAR | D94: =IF(OFFSET(DE100_1A!$F$95,ROWS($F$95:F99)-1,COLUMNS($F$95:F99)-1)<>"",OFFSET(DE100_1A!$F$95,ROWS($F$95:F99)-1,COLUMNS($F$95:F99)-1),"") -> CY | E94: =IF(OFFSET(DE100_1A!$G$95,ROWS($G$95:G99)-1,COLUMNS($G$95:G99)-1)<>"",OFFSET(DE100_1A!$G$95,ROWS($G$95:G99)-1,COLUMNS($G$95:G99)-1),"") -> 574.0 | F94: =IF(OFFSET(DE100_1A!$H$95,ROWS($H$95:H99)-1,COLUMNS($H$95:H99)-1)<>"",OFFSET(DE100_1A!$H$95,ROWS($H$95:H99)-1,COLUMNS($H$95:H99)-1),"") -> 
A95: =IF(OFFSET(DE100_1A!$C$95,ROWS($C$95:C100)-1,COLUMNS($C$95:C100)-1)<>"",OFFSET(DE100_1A!$C$95,ROWS($C$95:C100)-1,COLUMNS($C$95:C100)-1),"") -> 78 | B95: =IF(OFFSET(DE100_1A!$D$95,ROWS($D$95:D100)-1,COLUMNS($D$95:D100)-1)<>"",OFFSET(DE100_1A!$D$95,ROWS($D$95:D100)-1,COLUMNS($D$95:D100)-1),"") -> 2507-3250005 | C95: =IF(OFFSET(DE100_1A!$E$95,ROWS($E$95:E100)-1,COLUMNS($E$95:E100)-1)<>"",OFFSET(DE100_1A!$E$95,ROWS($E$95:E100)-1,COLUMNS($E$95:E100)-1),"") -> ENGINEERING FABRIC | D95: =IF(OFFSET(DE100_1A!$F$95,ROWS($F$95:F100)-1,COLUMNS($F$95:F100)-1)<>"",OFFSET(DE100_1A!$F$95,ROWS($F$95:F100)-1,COLUMNS($F$95:F100)-1),"") -> SY | E95: =IF(OFFSET(DE100_1A!$G$95,ROWS($G$95:G100)-1,COLUMNS($G$95:G100)-1)<>"",OFFSET(DE100_1A!$G$95,ROWS($G$95:G100)-1,COLUMNS($G$95:G100)-1),"") -> 31,015.8 | F95: =IF(OFFSET(DE100_1A!$H$95,ROWS($H$95:H100)-1,COLUMNS($H$95:H100)-1)<>"",OFFSET(DE100_1A!$H$95,ROWS($H$95:H100)-1,COLUMNS($H$95:H100)-1),"") -> 
A96: =IF(OFFSET(DE100_1A!$C$95,ROWS($C$95:C101)-1,COLUMNS($C$95:C101)-1)<>"",OFFSET(DE100_1A!$C$95,ROWS($C$95:C101)-1,COLUMNS($C$95:C101)-1),"") -> 79 | B96: =IF(OFFSET(DE100_1A!$D$95,ROWS($D$95:D101)-1,COLUMNS($D$95:D101)-1)<>"",OFFSET(DE100_1A!$D$95,ROWS($D$95:D101)-1,COLUMNS($D$95:D101)-1),"") -> 2507-6800061 | C96: =IF(OFFSET(DE100_1A!$E$95,ROWS($E$95:E101)-1,COLUMNS($E$95:E101)-1)<>"",OFFSET(DE100_1A!$E$95,ROWS($E$95:E101)-1,COLUMNS($E$95:E101)-1),"") -> REVETMENT, CLASS E | D96: =IF(OFFSET(DE100_1A!$F$95,ROWS($F$95:F101)-1,COLUMNS($F$95:F101)-1)<>"",OFFSET(DE100_1A!$F$95,ROWS($F$95:F101)-1,COLUMNS($F$95:F101)-1),"") -> TON | E96: =IF(OFFSET(DE100_1A!$G$95,ROWS($G$95:G101)-1,COLUMNS($G$95:G101)-1)<>"",OFFSET(DE100_1A!$G$95,ROWS($G$95:G101)-1,COLUMNS($G$95:G101)-1),"") -> 16,613.8 | F96: =IF(OFFSET(DE100_1A!$H$95,ROWS($H$95:H101)-1,COLUMNS($H$95:H101)-1)<>"",OFFSET(DE100_1A!$H$95,ROWS($H$95:H101)-1,COLUMNS($H$95:H101)-1),"") -> 
A97: =IF(OFFSET(DE100_1A!$C$95,ROWS($C$95:C102)-1,COLUMNS($C$95:C102)-1)<>"",OFFSET(DE100_1A!$C$95,ROWS($C$95:C102)-1,COLUMNS($C$95:C102)-1),"") -> 80 | B97: =IF(OFFSET(DE100_1A!$D$95,ROWS($D$95:D102)-1,COLUMNS($D$95:D102)-1)<>"",OFFSET(DE100_1A!$D$95,ROWS($D$95:D102)-1,COLUMNS($D$95:D102)-1),"") -> 2507-8029000 | C97: =IF(OFFSET(DE100_1A!$E$95,ROWS($E$95:E102)-1,COLUMNS($E$95:E102)-1)<>"",OFFSET(DE100_1A!$E$95,ROWS($E$95:E102)-1,COLUMNS($E$95:E102)-1),"") -> EROSION STONE | D97: =IF(OFFSET(DE100_1A!$F$95,ROWS($F$95:F102)-1,COLUMNS($F$95:F102)-1)<>"",OFFSET(DE100_1A!$F$95,ROWS($F$95:F102)-1,COLUMNS($F$95:F102)-1),"") -> TON | E97: =IF(OFFSET(DE100_1A!$G$95,ROWS($G$95:G102)-1,COLUMNS($G$95:G102)-1)<>"",OFFSET(DE100_1A!$G$95,ROWS($G$95:G102)-1,COLUMNS($G$95:G102)-1),"") -> 7,704.4 | F97: =IF(OFFSET(DE100_1A!$H$95,ROWS($H$95:H102)-1,COLUMNS($H$95:H102)-1)<>"",OFFSET(DE100_1A!$H$95,ROWS($H$95:H102)-1,COLUMNS($H$95:H102)-1),"") -> 
A98: =IF(OFFSET(DE100_1A!$C$95,ROWS($C$95:C103)-1,COLUMNS($C$95:C103)-1)<>"",OFFSET(DE100_1A!$C$95,ROWS($C$95:C103)-1,COLUMNS($C$95:C103)-1),"") -> 81 | B98: =IF(OFFSET(DE100_1A!$D$95,ROWS($D$95:D103)-1,COLUMNS($D$95:D103)-1)<>"",OFFSET(DE100_1A!$D$95,ROWS($D$95:D103)-1,COLUMNS($D$95:D103)-1),"") -> 2515-6745600 | C98: =IF(OFFSET(DE100_1A!$E$95,ROWS($E$95:E103)-1,COLUMNS($E$95:E103)-1)<>"",OFFSET(DE100_1A!$E$95,ROWS($E$95:E103)-1,COLUMNS($E$95:E103)-1),"") -> REMOVAL OF PAVED DRIVEWAY | D98: =IF(OFFSET(DE100_1A!$F$95,ROWS($F$95:F103)-1,COLUMNS($F$95:F103)-1)<>"",OFFSET(DE100_1A!$F$95,ROWS($F$95:F103)-1,COLUMNS($F$95:F103)-1),"") -> SY | E98: =IF(OFFSET(DE100_1A!$G$95,ROWS($G$95:G103)-1,COLUMNS($G$95:G103)-1)<>"",OFFSET(DE100_1A!$G$95,ROWS($G$95:G103)-1,COLUMNS($G$95:G103)-1),"") -> 798.7 | F98: =IF(OFFSET(DE100_1A!$H$95,ROWS($H$95:H103)-1,COLUMNS($H$95:H103)-1)<>"",OFFSET(DE100_1A!$H$95,ROWS($H$95:H103)-1,COLUMNS($H$95:H103)-1),"") -> 
A99: =IF(OFFSET(DE100_1A!$C$95,ROWS($C$95:C104)-1,COLUMNS($C$95:C104)-1)<>"",OFFSET(DE100_1A!$C$95,ROWS($C$95:C104)-1,COLUMNS($C$95:C104)-1),"") -> 82 | B99: =IF(OFFSET(DE100_1A!$D$95,ROWS($D$95:D104)-1,COLUMNS($D$95:D104)-1)<>"",OFFSET(DE100_1A!$D$95,ROWS($D$95:D104)-1,COLUMNS($D$95:D104)-1),"") -> 2518-6910000 | C99: =IF(OFFSET(DE100_1A!$E$95,ROWS($E$95:E104)-1,COLUMNS($E$95:E104)-1)<>"",OFFSET(DE100_1A!$E$95,ROWS($E$95:E104)-1,COLUMNS($E$95:E104)-1),"") -> SAFETY CLOSURE | D99: =IF(OFFSET(DE100_1A!$F$95,ROWS($F$95:F104)-1,COLUMNS($F$95:F104)-1)<>"",OFFSET(DE100_1A!$F$95,ROWS($F$95:F104)-1,COLUMNS($F$95:F104)-1),"") -> EACH | E99: =IF(OFFSET(DE100_1A!$G$95,ROWS($G$95:G104)-1,COLUMNS($G$95:G104)-1)<>"",OFFSET(DE100_1A!$G$95,ROWS($G$95:G104)-1,COLUMNS($G$95:G104)-1),"") -> 238 | F99: =IF(OFFSET(DE100_1A!$H$95,ROWS($H$95:H104)-1,COLUMNS($H$95:H104)-1)<>"",OFFSET(DE100_1A!$H$95,ROWS($H$95:H104)-1,COLUMNS($H$95:H104)-1),"") -> 
A100: =IF(OFFSET(DE100_1A!$C$95,ROWS($C$95:C105)-1,COLUMNS($C$95:C105)-1)<>"",OFFSET(DE100_1A!$C$95,ROWS($C$95:C105)-1,COLUMNS($C$95:C105)-1),"") -> 83 | B100: =IF(OFFSET(DE100_1A!$D$95,ROWS($D$95:D105)-1,COLUMNS($D$95:D105)-1)<>"",OFFSET(DE100_1A!$D$95,ROWS($D$95:D105)-1,COLUMNS($D$95:D105)-1),"") -> 2520-3350010 | C100: =IF(OFFSET(DE100_1A!$E$95,ROWS($E$95:E105)-1,COLUMNS($E$95:E105)-1)<>"",OFFSET(DE100_1A!$E$95,ROWS($E$95:E105)-1,COLUMNS($E$95:E105)-1),"") -> FIELD LABORATORY | D100: =IF(OFFSET(DE100_1A!$F$95,ROWS($F$95:F105)-1,COLUMNS($F$95:F105)-1)<>"",OFFSET(DE100_1A!$F$95,ROWS($F$95:F105)-1,COLUMNS($F$95:F105)-1),"") -> EACH | E100: =IF(OFFSET(DE100_1A!$G$95,ROWS($G$95:G105)-1,COLUMNS($G$95:G105)-1)<>"",OFFSET(DE100_1A!$G$95,ROWS($G$95:G105)-1,COLUMNS($G$95:G105)-1),"") -> 1 | F100: =IF(OFFSET(DE100_1A!$H$95,ROWS($H$95:H105)-1,COLUMNS($H$95:H105)-1)<>"",OFFSET(DE100_1A!$H$95,ROWS($H$95:H105)-1,COLUMNS($H$95:H105)-1),"") -> 
A101: =IF(OFFSET(DE100_1A!$C$95,ROWS($C$95:C106)-1,COLUMNS($C$95:C106)-1)<>"",OFFSET(DE100_1A!$C$95,ROWS($C$95:C106)-1,COLUMNS($C$95:C106)-1),"") -> 84 | B101: =IF(OFFSET(DE100_1A!$D$95,ROWS($D$95:D106)-1,COLUMNS($D$95:D106)-1)<>"",OFFSET(DE100_1A!$D$95,ROWS($D$95:D106)-1,COLUMNS($D$95:D106)-1),"") -> 2526-8285000 | C101: =IF(OFFSET(DE100_1A!$E$95,ROWS($E$95:E106)-1,COLUMNS($E$95:E106)-1)<>"",OFFSET(DE100_1A!$E$95,ROWS($E$95:E106)-1,COLUMNS($E$95:E106)-1),"") -> CONSTRUCTION SURVEY | D101: =IF(OFFSET(DE100_1A!$F$95,ROWS($F$95:F106)-1,COLUMNS($F$95:F106)-1)<>"",OFFSET(DE100_1A!$F$95,ROWS($F$95:F106)-1,COLUMNS($F$95:F106)-1),"") -> LS | E101: =IF(OFFSET(DE100_1A!$G$95,ROWS($G$95:G106)-1,COLUMNS($G$95:G106)-1)<>"",OFFSET(DE100_1A!$G$95,ROWS($G$95:G106)-1,COLUMNS($G$95:G106)-1),"") -> 1.00 | F101: =IF(OFFSET(DE100_1A!$H$95,ROWS($H$95:H106)-1,COLUMNS($H$95:H106)-1)<>"",OFFSET(DE100_1A!$H$95,ROWS($H$95:H106)-1,COLUMNS($H$95:H106)-1),"") -> 
A102: =IF(OFFSET(DE100_1A!$C$95,ROWS($C$95:C107)-1,COLUMNS($C$95:C107)-1)<>"",OFFSET(DE100_1A!$C$95,ROWS($C$95:C107)-1,COLUMNS($C$95:C107)-1),"") -> 85 | B102: =IF(OFFSET(DE100_1A!$D$95,ROWS($D$95:D107)-1,COLUMNS($D$95:D107)-1)<>"",OFFSET(DE100_1A!$D$95,ROWS($D$95:D107)-1,COLUMNS($D$95:D107)-1),"") -> 2528-8445110 | C102: =IF(OFFSET(DE100_1A!$E$95,ROWS($E$95:E107)-1,COLUMNS($E$95:E107)-1)<>"",OFFSET(DE100_1A!$E$95,ROWS($E$95:E107)-1,COLUMNS($E$95:E107)-1),"") -> TRAFFIC CONTROL | D102: =IF(OFFSET(DE100_1A!$F$95,ROWS($F$95:F107)-1,COLUMNS($F$95:F107)-1)<>"",OFFSET(DE100_1A!$F$95,ROWS($F$95:F107)-1,COLUMNS($F$95:F107)-1),"") -> LS | E102: =IF(OFFSET(DE100_1A!$G$95,ROWS($G$95:G107)-1,COLUMNS($G$95:G107)-1)<>"",OFFSET(DE100_1A!$G$95,ROWS($G$95:G107)-1,COLUMNS($G$95:G107)-1),"") -> 1.00 | F102: =IF(OFFSET(DE100_1A!$H$95,ROWS($H$95:H107)-1,COLUMNS($H$95:H107)-1)<>"",OFFSET(DE100_1A!$H$95,ROWS($H$95:H107)-1,COLUMNS($H$95:H107)-1),"") -> 
A103: =IF(OFFSET(DE100_1A!$C$95,ROWS($C$95:C108)-1,COLUMNS($C$95:C108)-1)<>"",OFFSET(DE100_1A!$C$95,ROWS($C$95:C108)-1,COLUMNS($C$95:C108)-1),"") -> 86 | B103: =IF(OFFSET(DE100_1A!$D$95,ROWS($D$95:D108)-1,COLUMNS($D$95:D108)-1)<>"",OFFSET(DE100_1A!$D$95,ROWS($D$95:D108)-1,COLUMNS($D$95:D108)-1),"") -> 2528-8445113 | C103: =IF(OFFSET(DE100_1A!$E$95,ROWS($E$95:E108)-1,COLUMNS($E$95:E108)-1)<>"",OFFSET(DE100_1A!$E$95,ROWS($E$95:E108)-1,COLUMNS($E$95:E108)-1),"") -> FLAGGERS | D103: =IF(OFFSET(DE100_1A!$F$95,ROWS($F$95:F108)-1,COLUMNS($F$95:F108)-1)<>"",OFFSET(DE100_1A!$F$95,ROWS($F$95:F108)-1,COLUMNS($F$95:F108)-1),"") -> EACH | E103: =IF(OFFSET(DE100_1A!$G$95,ROWS($G$95:G108)-1,COLUMNS($G$95:G108)-1)<>"",OFFSET(DE100_1A!$G$95,ROWS($G$95:G108)-1,COLUMNS($G$95:G108)-1),"") -> See Proposal | F103: =IF(OFFSET(DE100_1A!$H$95,ROWS($H$95:H108)-1,COLUMNS($H$95:H108)-1)<>"",OFFSET(DE100_1A!$H$95,ROWS($H$95:H108)-1,COLUMNS($H$95:H108)-1),"") -> 
A104: =IF(OFFSET(DE100_1A!$C$95,ROWS($C$95:C109)-1,COLUMNS($C$95:C109)-1)<>"",OFFSET(DE100_1A!$C$95,ROWS($C$95:C109)-1,COLUMNS($C$95:C109)-1),"") -> 87 | B104: =IF(OFFSET(DE100_1A!$D$95,ROWS($D$95:D109)-1,COLUMNS($D$95:D109)-1)<>"",OFFSET(DE100_1A!$D$95,ROWS($D$95:D109)-1,COLUMNS($D$95:D109)-1),"") -> 2533-4980005 | C104: =IF(OFFSET(DE100_1A!$E$95,ROWS($E$95:E109)-1,COLUMNS($E$95:E109)-1)<>"",OFFSET(DE100_1A!$E$95,ROWS($E$95:E109)-1,COLUMNS($E$95:E109)-1),"") -> MOBILIZATION | D104: =IF(OFFSET(DE100_1A!$F$95,ROWS($F$95:F109)-1,COLUMNS($F$95:F109)-1)<>"",OFFSET(DE100_1A!$F$95,ROWS($F$95:F109)-1,COLUMNS($F$95:F109)-1),"") -> LS | E104: =IF(OFFSET(DE100_1A!$G$95,ROWS($G$95:G109)-1,COLUMNS($G$95:G109)-1)<>"",OFFSET(DE100_1A!$G$95,ROWS($G$95:G109)-1,COLUMNS($G$95:G109)-1),"") -> 1.00 | F104: =IF(OFFSET(DE100_1A!$H$95,ROWS($H$95:H109)-1,COLUMNS($H$95:H109)-1)<>"",OFFSET(DE100_1A!$H$95,ROWS($H$95:H109)-1,COLUMNS($H$95:H109)-1),"") -> 
A105: =IF(OFFSET(DE100_1A!$C$95,ROWS($C$95:C110)-1,COLUMNS($C$95:C110)-1)<>"",OFFSET(DE100_1A!$C$95,ROWS($C$95:C110)-1,COLUMNS($C$95:C110)-1),"") -> 88 | B105: =IF(OFFSET(DE100_1A!$D$95,ROWS($D$95:D110)-1,COLUMNS($D$95:D110)-1)<>"",OFFSET(DE100_1A!$D$95,ROWS($D$95:D110)-1,COLUMNS($D$95:D110)-1),"") -> 2599-9999001 | C105: =IF(OFFSET(DE100_1A!$E$95,ROWS($E$95:E110)-1,COLUMNS($E$95:E110)-1)<>"",OFFSET(DE100_1A!$E$95,ROWS($E$95:E110)-1,COLUMNS($E$95:E110)-1),"") -> ('ACRES' ITEM) STABILIZING CROP - NATIVE GRASS SEEDING AND | D105: =IF(OFFSET(DE100_1A!$F$95,ROWS($F$95:F110)-1,COLUMNS($F$95:F110)-1)<>"",OFFSET(DE100_1A!$F$95,ROWS($F$95:F110)-1,COLUMNS($F$95:F110)-1),"") -> ACRE | E105: =IF(OFFSET(DE100_1A!$G$95,ROWS($G$95:G110)-1,COLUMNS($G$95:G110)-1)<>"",OFFSET(DE100_1A!$G$95,ROWS($G$95:G110)-1,COLUMNS($G$95:G110)-1),"") -> 433.0 | F105: =IF(OFFSET(DE100_1A!$H$95,ROWS($H$95:H110)-1,COLUMNS($H$95:H110)-1)<>"",OFFSET(DE100_1A!$H$95,ROWS($H$95:H110)-1,COLUMNS($H$95:H110)-1),"") -> 
A106: =IF(OFFSET(DE100_1A!$C$95,ROWS($C$95:C111)-1,COLUMNS($C$95:C111)-1)<>"",OFFSET(DE100_1A!$C$95,ROWS($C$95:C111)-1,COLUMNS($C$95:C111)-1),"") ->  | B106: =IF(OFFSET(DE100_1A!$D$95,ROWS($D$95:D111)-1,COLUMNS($D$95:D111)-1)<>"",OFFSET(DE100_1A!$D$95,ROWS($D$95:D111)-1,COLUMNS($D$95:D111)-1),"") ->  | C106: =IF(OFFSET(DE100_1A!$E$95,ROWS($E$95:E111)-1,COLUMNS($E$95:E111)-1)<>"",OFFSET(DE100_1A!$E$95,ROWS($E$95:E111)-1,COLUMNS($E$95:E111)-1),"") -> FERTILIZING | D106: =IF(OFFSET(DE100_1A!$F$95,ROWS($F$95:F111)-1,COLUMNS($F$95:F111)-1)<>"",OFFSET(DE100_1A!$F$95,ROWS($F$95:F111)-1,COLUMNS($F$95:F111)-1),"") ->  | E106: =IF(OFFSET(DE100_1A!$G$95,ROWS($G$95:G111)-1,COLUMNS($G$95:G111)-1)<>"",OFFSET(DE100_1A!$G$95,ROWS($G$95:G111)-1,COLUMNS($G$95:G111)-1),"") ->  | F106: =IF(OFFSET(DE100_1A!$H$95,ROWS($H$95:H111)-1,COLUMNS($H$95:H111)-1)<>"",OFFSET(DE100_1A!$H$95,ROWS($H$95:H111)-1,COLUMNS($H$95:H111)-1),"") -> 
A107: =IF(OFFSET(DE100_1A!$C$95,ROWS($C$95:C112)-1,COLUMNS($C$95:C112)-1)<>"",OFFSET(DE100_1A!$C$95,ROWS($C$95:C112)-1,COLUMNS($C$95:C112)-1),"") -> 89 | B107: =IF(OFFSET(DE100_1A!$D$95,ROWS($D$95:D112)-1,COLUMNS($D$95:D112)-1)<>"",OFFSET(DE100_1A!$D$95,ROWS($D$95:D112)-1,COLUMNS($D$95:D112)-1),"") -> 2599-9999001 | C107: =IF(OFFSET(DE100_1A!$E$95,ROWS($E$95:E112)-1,COLUMNS($E$95:E112)-1)<>"",OFFSET(DE100_1A!$E$95,ROWS($E$95:E112)-1,COLUMNS($E$95:E112)-1),"") -> ('ACRES' ITEM) SUBGRADE STABILIZATION | D107: =IF(OFFSET(DE100_1A!$F$95,ROWS($F$95:F112)-1,COLUMNS($F$95:F112)-1)<>"",OFFSET(DE100_1A!$F$95,ROWS($F$95:F112)-1,COLUMNS($F$95:F112)-1),"") -> ACRE | E107: =IF(OFFSET(DE100_1A!$G$95,ROWS($G$95:G112)-1,COLUMNS($G$95:G112)-1)<>"",OFFSET(DE100_1A!$G$95,ROWS($G$95:G112)-1,COLUMNS($G$95:G112)-1),"") -> 42.0 | F107: =IF(OFFSET(DE100_1A!$H$95,ROWS($H$95:H112)-1,COLUMNS($H$95:H112)-1)<>"",OFFSET(DE100_1A!$H$95,ROWS($H$95:H112)-1,COLUMNS($H$95:H112)-1),"") -> 
A108: =IF(OFFSET(DE100_1A!$C$95,ROWS($C$95:C113)-1,COLUMNS($C$95:C113)-1)<>"",OFFSET(DE100_1A!$C$95,ROWS($C$95:C113)-1,COLUMNS($C$95:C113)-1),"") -> 90 | B108: =IF(OFFSET(DE100_1A!$D$95,ROWS($D$95:D113)-1,COLUMNS($D$95:D113)-1)<>"",OFFSET(DE100_1A!$D$95,ROWS($D$95:D113)-1,COLUMNS($D$95:D113)-1),"") -> 2599-9999005 | C108: =IF(OFFSET(DE100_1A!$E$95,ROWS($E$95:E113)-1,COLUMNS($E$95:E113)-1)<>"",OFFSET(DE100_1A!$E$95,ROWS($E$95:E113)-1,COLUMNS($E$95:E113)-1),"") -> ('EACH' ITEM) PIEZOMETER | D108: =IF(OFFSET(DE100_1A!$F$95,ROWS($F$95:F113)-1,COLUMNS($F$95:F113)-1)<>"",OFFSET(DE100_1A!$F$95,ROWS($F$95:F113)-1,COLUMNS($F$95:F113)-1),"") -> EACH | E108: =IF(OFFSET(DE100_1A!$G$95,ROWS($G$95:G113)-1,COLUMNS($G$95:G113)-1)<>"",OFFSET(DE100_1A!$G$95,ROWS($G$95:G113)-1,COLUMNS($G$95:G113)-1),"") -> 12 | F108: =IF(OFFSET(DE100_1A!$H$95,ROWS($H$95:H113)-1,COLUMNS($H$95:H113)-1)<>"",OFFSET(DE100_1A!$H$95,ROWS($H$95:H113)-1,COLUMNS($H$95:H113)-1),"") -> 
A109: =IF(OFFSET(DE100_1A!$C$95,ROWS($C$95:C114)-1,COLUMNS($C$95:C114)-1)<>"",OFFSET(DE100_1A!$C$95,ROWS($C$95:C114)-1,COLUMNS($C$95:C114)-1),"") -> 91 | B109: =IF(OFFSET(DE100_1A!$D$95,ROWS($D$95:D114)-1,COLUMNS($D$95:D114)-1)<>"",OFFSET(DE100_1A!$D$95,ROWS($D$95:D114)-1,COLUMNS($D$95:D114)-1),"") -> 2599-9999009 | C109: =IF(OFFSET(DE100_1A!$E$95,ROWS($E$95:E114)-1,COLUMNS($E$95:E114)-1)<>"",OFFSET(DE100_1A!$E$95,ROWS($E$95:E114)-1,COLUMNS($E$95:E114)-1),"") -> ('LINEAR FEET' ITEM) CULVERT SPECIAL, UNCLASSIFIED ROADWAY PIPE, 48 | D109: =IF(OFFSET(DE100_1A!$F$95,ROWS($F$95:F114)-1,COLUMNS($F$95:F114)-1)<>"",OFFSET(DE100_1A!$F$95,ROWS($F$95:F114)-1,COLUMNS($F$95:F114)-1),"") -> LF | E109: =IF(OFFSET(DE100_1A!$G$95,ROWS($G$95:G114)-1,COLUMNS($G$95:G114)-1)<>"",OFFSET(DE100_1A!$G$95,ROWS($G$95:G114)-1,COLUMNS($G$95:G114)-1),"") -> 482.0 | F109: =IF(OFFSET(DE100_1A!$H$95,ROWS($H$95:H114)-1,COLUMNS($H$95:H114)-1)<>"",OFFSET(DE100_1A!$H$95,ROWS($H$95:H114)-1,COLUMNS($H$95:H114)-1),"") -> 
A110: =IF(OFFSET(DE100_1A!$C$95,ROWS($C$95:C115)-1,COLUMNS($C$95:C115)-1)<>"",OFFSET(DE100_1A!$C$95,ROWS($C$95:C115)-1,COLUMNS($C$95:C115)-1),"") ->  | B110: =IF(OFFSET(DE100_1A!$D$95,ROWS($D$95:D115)-1,COLUMNS($D$95:D115)-1)<>"",OFFSET(DE100_1A!$D$95,ROWS($D$95:D115)-1,COLUMNS($D$95:D115)-1),"") ->  | C110: =IF(OFFSET(DE100_1A!$E$95,ROWS($E$95:E115)-1,COLUMNS($E$95:E115)-1)<>"",OFFSET(DE100_1A!$E$95,ROWS($E$95:E115)-1,COLUMNS($E$95:E115)-1),"") -> IN. DIA. | D110: =IF(OFFSET(DE100_1A!$F$95,ROWS($F$95:F115)-1,COLUMNS($F$95:F115)-1)<>"",OFFSET(DE100_1A!$F$95,ROWS($F$95:F115)-1,COLUMNS($F$95:F115)-1),"") ->  | E110: =IF(OFFSET(DE100_1A!$G$95,ROWS($G$95:G115)-1,COLUMNS($G$95:G115)-1)<>"",OFFSET(DE100_1A!$G$95,ROWS($G$95:G115)-1,COLUMNS($G$95:G115)-1),"") ->  | F110: =IF(OFFSET(DE100_1A!$H$95,ROWS($H$95:H115)-1,COLUMNS($H$95:H115)-1)<>"",OFFSET(DE100_1A!$H$95,ROWS($H$95:H115)-1,COLUMNS($H$95:H115)-1),"") -> 
A111: =IF(OFFSET(DE100_1A!$C$95,ROWS($C$95:C116)-1,COLUMNS($C$95:C116)-1)<>"",OFFSET(DE100_1A!$C$95,ROWS($C$95:C116)-1,COLUMNS($C$95:C116)-1),"") -> 92 | B111: =IF(OFFSET(DE100_1A!$D$95,ROWS($D$95:D116)-1,COLUMNS($D$95:D116)-1)<>"",OFFSET(DE100_1A!$D$95,ROWS($D$95:D116)-1,COLUMNS($D$95:D116)-1),"") -> 2599-9999009 | C111: =IF(OFFSET(DE100_1A!$E$95,ROWS($E$95:E116)-1,COLUMNS($E$95:E116)-1)<>"",OFFSET(DE100_1A!$E$95,ROWS($E$95:E116)-1,COLUMNS($E$95:E116)-1),"") -> ('LINEAR FEET' ITEM) CULVERT SPECIAL, UNCLASSIFIED ROADWAY PIPE, 54 | D111: =IF(OFFSET(DE100_1A!$F$95,ROWS($F$95:F116)-1,COLUMNS($F$95:F116)-1)<>"",OFFSET(DE100_1A!$F$95,ROWS($F$95:F116)-1,COLUMNS($F$95:F116)-1),"") -> LF | E111: =IF(OFFSET(DE100_1A!$G$95,ROWS($G$95:G116)-1,COLUMNS($G$95:G116)-1)<>"",OFFSET(DE100_1A!$G$95,ROWS($G$95:G116)-1,COLUMNS($G$95:G116)-1),"") -> 266.0 | F111: =IF(OFFSET(DE100_1A!$H$95,ROWS($H$95:H116)-1,COLUMNS($H$95:H116)-1)<>"",OFFSET(DE100_1A!$H$95,ROWS($H$95:H116)-1,COLUMNS($H$95:H116)-1),"") -> 
A112: =IF(OFFSET(DE100_1A!$C$95,ROWS($C$95:C117)-1,COLUMNS($C$95:C117)-1)<>"",OFFSET(DE100_1A!$C$95,ROWS($C$95:C117)-1,COLUMNS($C$95:C117)-1),"") ->  | B112: =IF(OFFSET(DE100_1A!$D$95,ROWS($D$95:D117)-1,COLUMNS($D$95:D117)-1)<>"",OFFSET(DE100_1A!$D$95,ROWS($D$95:D117)-1,COLUMNS($D$95:D117)-1),"") ->  | C112: =IF(OFFSET(DE100_1A!$E$95,ROWS($E$95:E117)-1,COLUMNS($E$95:E117)-1)<>"",OFFSET(DE100_1A!$E$95,ROWS($E$95:E117)-1,COLUMNS($E$95:E117)-1),"") -> IN. DIA. | D112: =IF(OFFSET(DE100_1A!$F$95,ROWS($F$95:F117)-1,COLUMNS($F$95:F117)-1)<>"",OFFSET(DE100_1A!$F$95,ROWS($F$95:F117)-1,COLUMNS($F$95:F117)-1),"") ->  | E112: =IF(OFFSET(DE100_1A!$G$95,ROWS($G$95:G117)-1,COLUMNS($G$95:G117)-1)<>"",OFFSET(DE100_1A!$G$95,ROWS($G$95:G117)-1,COLUMNS($G$95:G117)-1),"") ->  | F112: =IF(OFFSET(DE100_1A!$H$95,ROWS($H$95:H117)-1,COLUMNS($H$95:H117)-1)<>"",OFFSET(DE100_1A!$H$95,ROWS($H$95:H117)-1,COLUMNS($H$95:H117)-1),"") -> 
A113: =IF(OFFSET(DE100_1A!$C$95,ROWS($C$95:C118)-1,COLUMNS($C$95:C118)-1)<>"",OFFSET(DE100_1A!$C$95,ROWS($C$95:C118)-1,COLUMNS($C$95:C118)-1),"") -> 93 | B113: =IF(OFFSET(DE100_1A!$D$95,ROWS($D$95:D118)-1,COLUMNS($D$95:D118)-1)<>"",OFFSET(DE100_1A!$D$95,ROWS($D$95:D118)-1,COLUMNS($D$95:D118)-1),"") -> 2599-9999009 | C113: =IF(OFFSET(DE100_1A!$E$95,ROWS($E$95:E118)-1,COLUMNS($E$95:E118)-1)<>"",OFFSET(DE100_1A!$E$95,ROWS($E$95:E118)-1,COLUMNS($E$95:E118)-1),"") -> ('LINEAR FEET' ITEM) CULVERT SPECIAL, UNCLASSIFIED ROADWAY PIPE, 60 | D113: =IF(OFFSET(DE100_1A!$F$95,ROWS($F$95:F118)-1,COLUMNS($F$95:F118)-1)<>"",OFFSET(DE100_1A!$F$95,ROWS($F$95:F118)-1,COLUMNS($F$95:F118)-1),"") -> LF | E113: =IF(OFFSET(DE100_1A!$G$95,ROWS($G$95:G118)-1,COLUMNS($G$95:G118)-1)<>"",OFFSET(DE100_1A!$G$95,ROWS($G$95:G118)-1,COLUMNS($G$95:G118)-1),"") -> 226.0 | F113: =IF(OFFSET(DE100_1A!$H$95,ROWS($H$95:H118)-1,COLUMNS($H$95:H118)-1)<>"",OFFSET(DE100_1A!$H$95,ROWS($H$95:H118)-1,COLUMNS($H$95:H118)-1),"") -> 
A114: =IF(OFFSET(DE100_1A!$C$95,ROWS($C$95:C119)-1,COLUMNS($C$95:C119)-1)<>"",OFFSET(DE100_1A!$C$95,ROWS($C$95:C119)-1,COLUMNS($C$95:C119)-1),"") ->  | B114: =IF(OFFSET(DE100_1A!$D$95,ROWS($D$95:D119)-1,COLUMNS($D$95:D119)-1)<>"",OFFSET(DE100_1A!$D$95,ROWS($D$95:D119)-1,COLUMNS($D$95:D119)-1),"") ->  | C114: =IF(OFFSET(DE100_1A!$E$95,ROWS($E$95:E119)-1,COLUMNS($E$95:E119)-1)<>"",OFFSET(DE100_1A!$E$95,ROWS($E$95:E119)-1,COLUMNS($E$95:E119)-1),"") -> IN. DIA. | D114: =IF(OFFSET(DE100_1A!$F$95,ROWS($F$95:F119)-1,COLUMNS($F$95:F119)-1)<>"",OFFSET(DE100_1A!$F$95,ROWS($F$95:F119)-1,COLUMNS($F$95:F119)-1),"") ->  | E114: =IF(OFFSET(DE100_1A!$G$95,ROWS($G$95:G119)-1,COLUMNS($G$95:G119)-1)<>"",OFFSET(DE100_1A!$G$95,ROWS($G$95:G119)-1,COLUMNS($G$95:G119)-1),"") ->  | F114: =IF(OFFSET(DE100_1A!$H$95,ROWS($H$95:H119)-1,COLUMNS($H$95:H119)-1)<>"",OFFSET(DE100_1A!$H$95,ROWS($H$95:H119)-1,COLUMNS($H$95:H119)-1),"") -> 
A115: =IF(OFFSET(DE100_1A!$C$95,ROWS($C$95:C120)-1,COLUMNS($C$95:C120)-1)<>"",OFFSET(DE100_1A!$C$95,ROWS($C$95:C120)-1,COLUMNS($C$95:C120)-1),"") -> 94 | B115: =IF(OFFSET(DE100_1A!$D$95,ROWS($D$95:D120)-1,COLUMNS($D$95:D120)-1)<>"",OFFSET(DE100_1A!$D$95,ROWS($D$95:D120)-1,COLUMNS($D$95:D120)-1),"") -> 2599-9999009 | C115: =IF(OFFSET(DE100_1A!$E$95,ROWS($E$95:E120)-1,COLUMNS($E$95:E120)-1)<>"",OFFSET(DE100_1A!$E$95,ROWS($E$95:E120)-1,COLUMNS($E$95:E120)-1),"") -> ('LINEAR FEET' ITEM) CULVERT SPECIAL, UNCLASSIFIED ROADWAY PIPE, 78 | D115: =IF(OFFSET(DE100_1A!$F$95,ROWS($F$95:F120)-1,COLUMNS($F$95:F120)-1)<>"",OFFSET(DE100_1A!$F$95,ROWS($F$95:F120)-1,COLUMNS($F$95:F120)-1),"") -> LF | E115: =IF(OFFSET(DE100_1A!$G$95,ROWS($G$95:G120)-1,COLUMNS($G$95:G120)-1)<>"",OFFSET(DE100_1A!$G$95,ROWS($G$95:G120)-1,COLUMNS($G$95:G120)-1),"") -> 288.0 | F115: =IF(OFFSET(DE100_1A!$H$95,ROWS($H$95:H120)-1,COLUMNS($H$95:H120)-1)<>"",OFFSET(DE100_1A!$H$95,ROWS($H$95:H120)-1,COLUMNS($H$95:H120)-1),"") -> 
A116: =IF(OFFSET(DE100_1A!$C$95,ROWS($C$95:C121)-1,COLUMNS($C$95:C121)-1)<>"",OFFSET(DE100_1A!$C$95,ROWS($C$95:C121)-1,COLUMNS($C$95:C121)-1),"") ->  | B116: =IF(OFFSET(DE100_1A!$D$95,ROWS($D$95:D121)-1,COLUMNS($D$95:D121)-1)<>"",OFFSET(DE100_1A!$D$95,ROWS($D$95:D121)-1,COLUMNS($D$95:D121)-1),"") ->  | C116: =IF(OFFSET(DE100_1A!$E$95,ROWS($E$95:E121)-1,COLUMNS($E$95:E121)-1)<>"",OFFSET(DE100_1A!$E$95,ROWS($E$95:E121)-1,COLUMNS($E$95:E121)-1),"") -> IN. DIA. | D116: =IF(OFFSET(DE100_1A!$F$95,ROWS($F$95:F121)-1,COLUMNS($F$95:F121)-1)<>"",OFFSET(DE100_1A!$F$95,ROWS($F$95:F121)-1,COLUMNS($F$95:F121)-1),"") ->  | E116: =IF(OFFSET(DE100_1A!$G$95,ROWS($G$95:G121)-1,COLUMNS($G$95:G121)-1)<>"",OFFSET(DE100_1A!$G$95,ROWS($G$95:G121)-1,COLUMNS($G$95:G121)-1),"") ->  | F116: =IF(OFFSET(DE100_1A!$H$95,ROWS($H$95:H121)-1,COLUMNS($H$95:H121)-1)<>"",OFFSET(DE100_1A!$H$95,ROWS($H$95:H121)-1,COLUMNS($H$95:H121)-1),"") -> 
A117: =IF(OFFSET(DE100_1A!$C$95,ROWS($C$95:C122)-1,COLUMNS($C$95:C122)-1)<>"",OFFSET(DE100_1A!$C$95,ROWS($C$95:C122)-1,COLUMNS($C$95:C122)-1),"") -> 95 | B117: =IF(OFFSET(DE100_1A!$D$95,ROWS($D$95:D122)-1,COLUMNS($D$95:D122)-1)<>"",OFFSET(DE100_1A!$D$95,ROWS($D$95:D122)-1,COLUMNS($D$95:D122)-1),"") -> 2599-9999009 | C117: =IF(OFFSET(DE100_1A!$E$95,ROWS($E$95:E122)-1,COLUMNS($E$95:E122)-1)<>"",OFFSET(DE100_1A!$E$95,ROWS($E$95:E122)-1,COLUMNS($E$95:E122)-1),"") -> ('LINEAR FEET' ITEM) CULVERT SPECIAL, UNCLASSIFIED ROADWAY PIPE, | D117: =IF(OFFSET(DE100_1A!$F$95,ROWS($F$95:F122)-1,COLUMNS($F$95:F122)-1)<>"",OFFSET(DE100_1A!$F$95,ROWS($F$95:F122)-1,COLUMNS($F$95:F122)-1),"") -> LF | E117: =IF(OFFSET(DE100_1A!$G$95,ROWS($G$95:G122)-1,COLUMNS($G$95:G122)-1)<>"",OFFSET(DE100_1A!$G$95,ROWS($G$95:G122)-1,COLUMNS($G$95:G122)-1),"") -> 640.0 | F117: =IF(OFFSET(DE100_1A!$H$95,ROWS($H$95:H122)-1,COLUMNS($H$95:H122)-1)<>"",OFFSET(DE100_1A!$H$95,ROWS($H$95:H122)-1,COLUMNS($H$95:H122)-1),"") -> 
A118: =IF(OFFSET(DE100_1A!$C$95,ROWS($C$95:C123)-1,COLUMNS($C$95:C123)-1)<>"",OFFSET(DE100_1A!$C$95,ROWS($C$95:C123)-1,COLUMNS($C$95:C123)-1),"") ->  | B118: =IF(OFFSET(DE100_1A!$D$95,ROWS($D$95:D123)-1,COLUMNS($D$95:D123)-1)<>"",OFFSET(DE100_1A!$D$95,ROWS($D$95:D123)-1,COLUMNS($D$95:D123)-1),"") ->  | C118: =IF(OFFSET(DE100_1A!$E$95,ROWS($E$95:E123)-1,COLUMNS($E$95:E123)-1)<>"",OFFSET(DE100_1A!$E$95,ROWS($E$95:E123)-1,COLUMNS($E$95:E123)-1),"") -> TRENCHLESS, 48 IN. DIA. | D118: =IF(OFFSET(DE100_1A!$F$95,ROWS($F$95:F123)-1,COLUMNS($F$95:F123)-1)<>"",OFFSET(DE100_1A!$F$95,ROWS($F$95:F123)-1,COLUMNS($F$95:F123)-1),"") ->  | E118: =IF(OFFSET(DE100_1A!$G$95,ROWS($G$95:G123)-1,COLUMNS($G$95:G123)-1)<>"",OFFSET(DE100_1A!$G$95,ROWS($G$95:G123)-1,COLUMNS($G$95:G123)-1),"") ->  | F118: =IF(OFFSET(DE100_1A!$H$95,ROWS($H$95:H123)-1,COLUMNS($H$95:H123)-1)<>"",OFFSET(DE100_1A!$H$95,ROWS($H$95:H123)-1,COLUMNS($H$95:H123)-1),"") -> 
A119: =IF(OFFSET(DE100_1A!$C$95,ROWS($C$95:C124)-1,COLUMNS($C$95:C124)-1)<>"",OFFSET(DE100_1A!$C$95,ROWS($C$95:C124)-1,COLUMNS($C$95:C124)-1),"") -> 96 | B119: =IF(OFFSET(DE100_1A!$D$95,ROWS($D$95:D124)-1,COLUMNS($D$95:D124)-1)<>"",OFFSET(DE100_1A!$D$95,ROWS($D$95:D124)-1,COLUMNS($D$95:D124)-1),"") -> 2599-9999009 | C119: =IF(OFFSET(DE100_1A!$E$95,ROWS($E$95:E124)-1,COLUMNS($E$95:E124)-1)<>"",OFFSET(DE100_1A!$E$95,ROWS($E$95:E124)-1,COLUMNS($E$95:E124)-1),"") -> ('LINEAR FEET' ITEM) CULVERT SPECIAL, UNCLASSIFIED ROADWAY PIPE, | D119: =IF(OFFSET(DE100_1A!$F$95,ROWS($F$95:F124)-1,COLUMNS($F$95:F124)-1)<>"",OFFSET(DE100_1A!$F$95,ROWS($F$95:F124)-1,COLUMNS($F$95:F124)-1),"") -> LF | E119: =IF(OFFSET(DE100_1A!$G$95,ROWS($G$95:G124)-1,COLUMNS($G$95:G124)-1)<>"",OFFSET(DE100_1A!$G$95,ROWS($G$95:G124)-1,COLUMNS($G$95:G124)-1),"") -> 348.0 | F119: =IF(OFFSET(DE100_1A!$H$95,ROWS($H$95:H124)-1,COLUMNS($H$95:H124)-1)<>"",OFFSET(DE100_1A!$H$95,ROWS($H$95:H124)-1,COLUMNS($H$95:H124)-1),"") -> 
A120: =IF(OFFSET(DE100_1A!$C$95,ROWS($C$95:C125)-1,COLUMNS($C$95:C125)-1)<>"",OFFSET(DE100_1A!$C$95,ROWS($C$95:C125)-1,COLUMNS($C$95:C125)-1),"") ->  | B120: =IF(OFFSET(DE100_1A!$D$95,ROWS($D$95:D125)-1,COLUMNS($D$95:D125)-1)<>"",OFFSET(DE100_1A!$D$95,ROWS($D$95:D125)-1,COLUMNS($D$95:D125)-1),"") ->  | C120: =IF(OFFSET(DE100_1A!$E$95,ROWS($E$95:E125)-1,COLUMNS($E$95:E125)-1)<>"",OFFSET(DE100_1A!$E$95,ROWS($E$95:E125)-1,COLUMNS($E$95:E125)-1),"") -> TRENCHLESS, 54 IN. DIA. | D120: =IF(OFFSET(DE100_1A!$F$95,ROWS($F$95:F125)-1,COLUMNS($F$95:F125)-1)<>"",OFFSET(DE100_1A!$F$95,ROWS($F$95:F125)-1,COLUMNS($F$95:F125)-1),"") ->  | E120: =IF(OFFSET(DE100_1A!$G$95,ROWS($G$95:G125)-1,COLUMNS($G$95:G125)-1)<>"",OFFSET(DE100_1A!$G$95,ROWS($G$95:G125)-1,COLUMNS($G$95:G125)-1),"") ->  | F120: =IF(OFFSET(DE100_1A!$H$95,ROWS($H$95:H125)-1,COLUMNS($H$95:H125)-1)<>"",OFFSET(DE100_1A!$H$95,ROWS($H$95:H125)-1,COLUMNS($H$95:H125)-1),"") -> 
A121: =IF(OFFSET(DE100_1A!$C$95,ROWS($C$95:C126)-1,COLUMNS($C$95:C126)-1)<>"",OFFSET(DE100_1A!$C$95,ROWS($C$95:C126)-1,COLUMNS($C$95:C126)-1),"") -> 97 | B121: =IF(OFFSET(DE100_1A!$D$95,ROWS($D$95:D126)-1,COLUMNS($D$95:D126)-1)<>"",OFFSET(DE100_1A!$D$95,ROWS($D$95:D126)-1,COLUMNS($D$95:D126)-1),"") -> 2599-9999009 | C121: =IF(OFFSET(DE100_1A!$E$95,ROWS($E$95:E126)-1,COLUMNS($E$95:E126)-1)<>"",OFFSET(DE100_1A!$E$95,ROWS($E$95:E126)-1,COLUMNS($E$95:E126)-1),"") -> ('LINEAR FEET' ITEM) CULVERT SPECIAL, UNCLASSIFIED ROADWAY PIPE, | D121: =IF(OFFSET(DE100_1A!$F$95,ROWS($F$95:F126)-1,COLUMNS($F$95:F126)-1)<>"",OFFSET(DE100_1A!$F$95,ROWS($F$95:F126)-1,COLUMNS($F$95:F126)-1),"") -> LF | E121: =IF(OFFSET(DE100_1A!$G$95,ROWS($G$95:G126)-1,COLUMNS($G$95:G126)-1)<>"",OFFSET(DE100_1A!$G$95,ROWS($G$95:G126)-1,COLUMNS($G$95:G126)-1),"") -> 340.0 | F121: =IF(OFFSET(DE100_1A!$H$95,ROWS($H$95:H126)-1,COLUMNS($H$95:H126)-1)<>"",OFFSET(DE100_1A!$H$95,ROWS($H$95:H126)-1,COLUMNS($H$95:H126)-1),"") -> 
A122: =IF(OFFSET(DE100_1A!$C$95,ROWS($C$95:C127)-1,COLUMNS($C$95:C127)-1)<>"",OFFSET(DE100_1A!$C$95,ROWS($C$95:C127)-1,COLUMNS($C$95:C127)-1),"") ->  | B122: =IF(OFFSET(DE100_1A!$D$95,ROWS($D$95:D127)-1,COLUMNS($D$95:D127)-1)<>"",OFFSET(DE100_1A!$D$95,ROWS($D$95:D127)-1,COLUMNS($D$95:D127)-1),"") ->  | C122: =IF(OFFSET(DE100_1A!$E$95,ROWS($E$95:E127)-1,COLUMNS($E$95:E127)-1)<>"",OFFSET(DE100_1A!$E$95,ROWS($E$95:E127)-1,COLUMNS($E$95:E127)-1),"") -> TRENCHLESS, 60 IN. DIA. | D122: =IF(OFFSET(DE100_1A!$F$95,ROWS($F$95:F127)-1,COLUMNS($F$95:F127)-1)<>"",OFFSET(DE100_1A!$F$95,ROWS($F$95:F127)-1,COLUMNS($F$95:F127)-1),"") ->  | E122: =IF(OFFSET(DE100_1A!$G$95,ROWS($G$95:G127)-1,COLUMNS($G$95:G127)-1)<>"",OFFSET(DE100_1A!$G$95,ROWS($G$95:G127)-1,COLUMNS($G$95:G127)-1),"") ->  | F122: =IF(OFFSET(DE100_1A!$H$95,ROWS($H$95:H127)-1,COLUMNS($H$95:H127)-1)<>"",OFFSET(DE100_1A!$H$95,ROWS($H$95:H127)-1,COLUMNS($H$95:H127)-1),"") -> 
A123: =IF(OFFSET(DE100_1A!$C$95,ROWS($C$95:C128)-1,COLUMNS($C$95:C128)-1)<>"",OFFSET(DE100_1A!$C$95,ROWS($C$95:C128)-1,COLUMNS($C$95:C128)-1),"") -> 98 | B123: =IF(OFFSET(DE100_1A!$D$95,ROWS($D$95:D128)-1,COLUMNS($D$95:D128)-1)<>"",OFFSET(DE100_1A!$D$95,ROWS($D$95:D128)-1,COLUMNS($D$95:D128)-1),"") -> 2599-9999009 | C123: =IF(OFFSET(DE100_1A!$E$95,ROWS($E$95:E128)-1,COLUMNS($E$95:E128)-1)<>"",OFFSET(DE100_1A!$E$95,ROWS($E$95:E128)-1,COLUMNS($E$95:E128)-1),"") -> ('LINEAR FEET' ITEM) CULVERT SPECIAL, UNCLASSIFIED ROADWAY PIPE, | D123: =IF(OFFSET(DE100_1A!$F$95,ROWS($F$95:F128)-1,COLUMNS($F$95:F128)-1)<>"",OFFSET(DE100_1A!$F$95,ROWS($F$95:F128)-1,COLUMNS($F$95:F128)-1),"") -> LF | E123: =IF(OFFSET(DE100_1A!$G$95,ROWS($G$95:G128)-1,COLUMNS($G$95:G128)-1)<>"",OFFSET(DE100_1A!$G$95,ROWS($G$95:G128)-1,COLUMNS($G$95:G128)-1),"") -> 288.0 | F123: =IF(OFFSET(DE100_1A!$H$95,ROWS($H$95:H128)-1,COLUMNS($H$95:H128)-1)<>"",OFFSET(DE100_1A!$H$95,ROWS($H$95:H128)-1,COLUMNS($H$95:H128)-1),"") -> 
A124: =IF(OFFSET(DE100_1A!$C$95,ROWS($C$95:C129)-1,COLUMNS($C$95:C129)-1)<>"",OFFSET(DE100_1A!$C$95,ROWS($C$95:C129)-1,COLUMNS($C$95:C129)-1),"") ->  | B124: =IF(OFFSET(DE100_1A!$D$95,ROWS($D$95:D129)-1,COLUMNS($D$95:D129)-1)<>"",OFFSET(DE100_1A!$D$95,ROWS($D$95:D129)-1,COLUMNS($D$95:D129)-1),"") ->  | C124: =IF(OFFSET(DE100_1A!$E$95,ROWS($E$95:E129)-1,COLUMNS($E$95:E129)-1)<>"",OFFSET(DE100_1A!$E$95,ROWS($E$95:E129)-1,COLUMNS($E$95:E129)-1),"") -> TRENCHLESS, 78 IN. DIA. | D124: =IF(OFFSET(DE100_1A!$F$95,ROWS($F$95:F129)-1,COLUMNS($F$95:F129)-1)<>"",OFFSET(DE100_1A!$F$95,ROWS($F$95:F129)-1,COLUMNS($F$95:F129)-1),"") ->  | E124: =IF(OFFSET(DE100_1A!$G$95,ROWS($G$95:G129)-1,COLUMNS($G$95:G129)-1)<>"",OFFSET(DE100_1A!$G$95,ROWS($G$95:G129)-1,COLUMNS($G$95:G129)-1),"") ->  | F124: =IF(OFFSET(DE100_1A!$H$95,ROWS($H$95:H129)-1,COLUMNS($H$95:H129)-1)<>"",OFFSET(DE100_1A!$H$95,ROWS($H$95:H129)-1,COLUMNS($H$95:H129)-1),"") -> 
A125: =IF(OFFSET(DE100_1A!$C$95,ROWS($C$95:C130)-1,COLUMNS($C$95:C130)-1)<>"",OFFSET(DE100_1A!$C$95,ROWS($C$95:C130)-1,COLUMNS($C$95:C130)-1),"") -> 99 | B125: =IF(OFFSET(DE100_1A!$D$95,ROWS($D$95:D130)-1,COLUMNS($D$95:D130)-1)<>"",OFFSET(DE100_1A!$D$95,ROWS($D$95:D130)-1,COLUMNS($D$95:D130)-1),"") -> 2599-9999009 | C125: =IF(OFFSET(DE100_1A!$E$95,ROWS($E$95:E130)-1,COLUMNS($E$95:E130)-1)<>"",OFFSET(DE100_1A!$E$95,ROWS($E$95:E130)-1,COLUMNS($E$95:E130)-1),"") -> ('LINEAR FEET' ITEM) CULVERT, 4000D CONCRETE ROADWAY PIPE, 42 IN. | D125: =IF(OFFSET(DE100_1A!$F$95,ROWS($F$95:F130)-1,COLUMNS($F$95:F130)-1)<>"",OFFSET(DE100_1A!$F$95,ROWS($F$95:F130)-1,COLUMNS($F$95:F130)-1),"") -> LF | E125: =IF(OFFSET(DE100_1A!$G$95,ROWS($G$95:G130)-1,COLUMNS($G$95:G130)-1)<>"",OFFSET(DE100_1A!$G$95,ROWS($G$95:G130)-1,COLUMNS($G$95:G130)-1),"") -> 286.0 | F125: =IF(OFFSET(DE100_1A!$H$95,ROWS($H$95:H130)-1,COLUMNS($H$95:H130)-1)<>"",OFFSET(DE100_1A!$H$95,ROWS($H$95:H130)-1,COLUMNS($H$95:H130)-1),"") -> 
A126: =IF(OFFSET(DE100_1A!$C$95,ROWS($C$95:C131)-1,COLUMNS($C$95:C131)-1)<>"",OFFSET(DE100_1A!$C$95,ROWS($C$95:C131)-1,COLUMNS($C$95:C131)-1),"") ->  | B126: =IF(OFFSET(DE100_1A!$D$95,ROWS($D$95:D131)-1,COLUMNS($D$95:D131)-1)<>"",OFFSET(DE100_1A!$D$95,ROWS($D$95:D131)-1,COLUMNS($D$95:D131)-1),"") ->  | C126: =IF(OFFSET(DE100_1A!$E$95,ROWS($E$95:E131)-1,COLUMNS($E$95:E131)-1)<>"",OFFSET(DE100_1A!$E$95,ROWS($E$95:E131)-1,COLUMNS($E$95:E131)-1),"") -> DIA. | D126: =IF(OFFSET(DE100_1A!$F$95,ROWS($F$95:F131)-1,COLUMNS($F$95:F131)-1)<>"",OFFSET(DE100_1A!$F$95,ROWS($F$95:F131)-1,COLUMNS($F$95:F131)-1),"") ->  | E126: =IF(OFFSET(DE100_1A!$G$95,ROWS($G$95:G131)-1,COLUMNS($G$95:G131)-1)<>"",OFFSET(DE100_1A!$G$95,ROWS($G$95:G131)-1,COLUMNS($G$95:G131)-1),"") ->  | F126: =IF(OFFSET(DE100_1A!$H$95,ROWS($H$95:H131)-1,COLUMNS($H$95:H131)-1)<>"",OFFSET(DE100_1A!$H$95,ROWS($H$95:H131)-1,COLUMNS($H$95:H131)-1),"") -> 
A127: =IF(OFFSET(DE100_1A!$C$95,ROWS($C$95:C132)-1,COLUMNS($C$95:C132)-1)<>"",OFFSET(DE100_1A!$C$95,ROWS($C$95:C132)-1,COLUMNS($C$95:C132)-1),"") -> 100 | B127: =IF(OFFSET(DE100_1A!$D$95,ROWS($D$95:D132)-1,COLUMNS($D$95:D132)-1)<>"",OFFSET(DE100_1A!$D$95,ROWS($D$95:D132)-1,COLUMNS($D$95:D132)-1),"") -> 2599-9999009 | C127: =IF(OFFSET(DE100_1A!$E$95,ROWS($E$95:E132)-1,COLUMNS($E$95:E132)-1)<>"",OFFSET(DE100_1A!$E$95,ROWS($E$95:E132)-1,COLUMNS($E$95:E132)-1),"") -> ('LINEAR FEET' ITEM) CULVERT, 4000D CONCRETE ROADWAY PIPE, 48 IN. | D127: =IF(OFFSET(DE100_1A!$F$95,ROWS($F$95:F132)-1,COLUMNS($F$95:F132)-1)<>"",OFFSET(DE100_1A!$F$95,ROWS($F$95:F132)-1,COLUMNS($F$95:F132)-1),"") -> LF | E127: =IF(OFFSET(DE100_1A!$G$95,ROWS($G$95:G132)-1,COLUMNS($G$95:G132)-1)<>"",OFFSET(DE100_1A!$G$95,ROWS($G$95:G132)-1,COLUMNS($G$95:G132)-1),"") -> 218.0 | F127: =IF(OFFSET(DE100_1A!$H$95,ROWS($H$95:H132)-1,COLUMNS($H$95:H132)-1)<>"",OFFSET(DE100_1A!$H$95,ROWS($H$95:H132)-1,COLUMNS($H$95:H132)-1),"") -> 
A128: =IF(OFFSET(DE100_1A!$C$95,ROWS($C$95:C133)-1,COLUMNS($C$95:C133)-1)<>"",OFFSET(DE100_1A!$C$95,ROWS($C$95:C133)-1,COLUMNS($C$95:C133)-1),"") ->  | B128: =IF(OFFSET(DE100_1A!$D$95,ROWS($D$95:D133)-1,COLUMNS($D$95:D133)-1)<>"",OFFSET(DE100_1A!$D$95,ROWS($D$95:D133)-1,COLUMNS($D$95:D133)-1),"") ->  | C128: =IF(OFFSET(DE100_1A!$E$95,ROWS($E$95:E133)-1,COLUMNS($E$95:E133)-1)<>"",OFFSET(DE100_1A!$E$95,ROWS($E$95:E133)-1,COLUMNS($E$95:E133)-1),"") -> DIA. | D128: =IF(OFFSET(DE100_1A!$F$95,ROWS($F$95:F133)-1,COLUMNS($F$95:F133)-1)<>"",OFFSET(DE100_1A!$F$95,ROWS($F$95:F133)-1,COLUMNS($F$95:F133)-1),"") ->  | E128: =IF(OFFSET(DE100_1A!$G$95,ROWS($G$95:G133)-1,COLUMNS($G$95:G133)-1)<>"",OFFSET(DE100_1A!$G$95,ROWS($G$95:G133)-1,COLUMNS($G$95:G133)-1),"") ->  | F128: =IF(OFFSET(DE100_1A!$H$95,ROWS($H$95:H133)-1,COLUMNS($H$95:H133)-1)<>"",OFFSET(DE100_1A!$H$95,ROWS($H$95:H133)-1,COLUMNS($H$95:H133)-1),"") -> 
A129: =IF(OFFSET(DE100_1A!$C$95,ROWS($C$95:C134)-1,COLUMNS($C$95:C134)-1)<>"",OFFSET(DE100_1A!$C$95,ROWS($C$95:C134)-1,COLUMNS($C$95:C134)-1),"") -> 101 | B129: =IF(OFFSET(DE100_1A!$D$95,ROWS($D$95:D134)-1,COLUMNS($D$95:D134)-1)<>"",OFFSET(DE100_1A!$D$95,ROWS($D$95:D134)-1,COLUMNS($D$95:D134)-1),"") -> 2599-9999009 | C129: =IF(OFFSET(DE100_1A!$E$95,ROWS($E$95:E134)-1,COLUMNS($E$95:E134)-1)<>"",OFFSET(DE100_1A!$E$95,ROWS($E$95:E134)-1,COLUMNS($E$95:E134)-1),"") -> ('LINEAR FEET' ITEM) CULVERT, 4000D CONCRETE ROADWAY PIPE, 54 IN. | D129: =IF(OFFSET(DE100_1A!$F$95,ROWS($F$95:F134)-1,COLUMNS($F$95:F134)-1)<>"",OFFSET(DE100_1A!$F$95,ROWS($F$95:F134)-1,COLUMNS($F$95:F134)-1),"") -> LF | E129: =IF(OFFSET(DE100_1A!$G$95,ROWS($G$95:G134)-1,COLUMNS($G$95:G134)-1)<>"",OFFSET(DE100_1A!$G$95,ROWS($G$95:G134)-1,COLUMNS($G$95:G134)-1),"") -> 266.0 | F129: =IF(OFFSET(DE100_1A!$H$95,ROWS($H$95:H134)-1,COLUMNS($H$95:H134)-1)<>"",OFFSET(DE100_1A!$H$95,ROWS($H$95:H134)-1,COLUMNS($H$95:H134)-1),"") -> 
A130: =IF(OFFSET(DE100_1A!$C$95,ROWS($C$95:C135)-1,COLUMNS($C$95:C135)-1)<>"",OFFSET(DE100_1A!$C$95,ROWS($C$95:C135)-1,COLUMNS($C$95:C135)-1),"") ->  | B130: =IF(OFFSET(DE100_1A!$D$95,ROWS($D$95:D135)-1,COLUMNS($D$95:D135)-1)<>"",OFFSET(DE100_1A!$D$95,ROWS($D$95:D135)-1,COLUMNS($D$95:D135)-1),"") ->  | C130: =IF(OFFSET(DE100_1A!$E$95,ROWS($E$95:E135)-1,COLUMNS($E$95:E135)-1)<>"",OFFSET(DE100_1A!$E$95,ROWS($E$95:E135)-1,COLUMNS($E$95:E135)-1),"") -> DIA. | D130: =IF(OFFSET(DE100_1A!$F$95,ROWS($F$95:F135)-1,COLUMNS($F$95:F135)-1)<>"",OFFSET(DE100_1A!$F$95,ROWS($F$95:F135)-1,COLUMNS($F$95:F135)-1),"") ->  | E130: =IF(OFFSET(DE100_1A!$G$95,ROWS($G$95:G135)-1,COLUMNS($G$95:G135)-1)<>"",OFFSET(DE100_1A!$G$95,ROWS($G$95:G135)-1,COLUMNS($G$95:G135)-1),"") ->  | F130: =IF(OFFSET(DE100_1A!$H$95,ROWS($H$95:H135)-1,COLUMNS($H$95:H135)-1)<>"",OFFSET(DE100_1A!$H$95,ROWS($H$95:H135)-1,COLUMNS($H$95:H135)-1),"") -> 
A131: =IF(OFFSET(DE100_1A!$C$95,ROWS($C$95:C136)-1,COLUMNS($C$95:C136)-1)<>"",OFFSET(DE100_1A!$C$95,ROWS($C$95:C136)-1,COLUMNS($C$95:C136)-1),"") -> 102 | B131: =IF(OFFSET(DE100_1A!$D$95,ROWS($D$95:D136)-1,COLUMNS($D$95:D136)-1)<>"",OFFSET(DE100_1A!$D$95,ROWS($D$95:D136)-1,COLUMNS($D$95:D136)-1),"") -> 2599-9999009 | C131: =IF(OFFSET(DE100_1A!$E$95,ROWS($E$95:E136)-1,COLUMNS($E$95:E136)-1)<>"",OFFSET(DE100_1A!$E$95,ROWS($E$95:E136)-1,COLUMNS($E$95:E136)-1),"") -> ('LINEAR FEET' ITEM) CULVERT, 4000D CONCRETE ROADWAY PIPE, 66 IN. | D131: =IF(OFFSET(DE100_1A!$F$95,ROWS($F$95:F136)-1,COLUMNS($F$95:F136)-1)<>"",OFFSET(DE100_1A!$F$95,ROWS($F$95:F136)-1,COLUMNS($F$95:F136)-1),"") -> LF | E131: =IF(OFFSET(DE100_1A!$G$95,ROWS($G$95:G136)-1,COLUMNS($G$95:G136)-1)<>"",OFFSET(DE100_1A!$G$95,ROWS($G$95:G136)-1,COLUMNS($G$95:G136)-1),"") -> 514.0 | F131: =IF(OFFSET(DE100_1A!$H$95,ROWS($H$95:H136)-1,COLUMNS($H$95:H136)-1)<>"",OFFSET(DE100_1A!$H$95,ROWS($H$95:H136)-1,COLUMNS($H$95:H136)-1),"") -> 
A132: =IF(OFFSET(DE100_1A!$C$95,ROWS($C$95:C137)-1,COLUMNS($C$95:C137)-1)<>"",OFFSET(DE100_1A!$C$95,ROWS($C$95:C137)-1,COLUMNS($C$95:C137)-1),"") ->  | B132: =IF(OFFSET(DE100_1A!$D$95,ROWS($D$95:D137)-1,COLUMNS($D$95:D137)-1)<>"",OFFSET(DE100_1A!$D$95,ROWS($D$95:D137)-1,COLUMNS($D$95:D137)-1),"") ->  | C132: =IF(OFFSET(DE100_1A!$E$95,ROWS($E$95:E137)-1,COLUMNS($E$95:E137)-1)<>"",OFFSET(DE100_1A!$E$95,ROWS($E$95:E137)-1,COLUMNS($E$95:E137)-1),"") -> DIA. | D132: =IF(OFFSET(DE100_1A!$F$95,ROWS($F$95:F137)-1,COLUMNS($F$95:F137)-1)<>"",OFFSET(DE100_1A!$F$95,ROWS($F$95:F137)-1,COLUMNS($F$95:F137)-1),"") ->  | E132: =IF(OFFSET(DE100_1A!$G$95,ROWS($G$95:G137)-1,COLUMNS($G$95:G137)-1)<>"",OFFSET(DE100_1A!$G$95,ROWS($G$95:G137)-1,COLUMNS($G$95:G137)-1),"") ->  | F132: =IF(OFFSET(DE100_1A!$H$95,ROWS($H$95:H137)-1,COLUMNS($H$95:H137)-1)<>"",OFFSET(DE100_1A!$H$95,ROWS($H$95:H137)-1,COLUMNS($H$95:H137)-1),"") -> 
A133: =IF(OFFSET(DE100_1A!$C$95,ROWS($C$95:C138)-1,COLUMNS($C$95:C138)-1)<>"",OFFSET(DE100_1A!$C$95,ROWS($C$95:C138)-1,COLUMNS($C$95:C138)-1),"") -> 103 | B133: =IF(OFFSET(DE100_1A!$D$95,ROWS($D$95:D138)-1,COLUMNS($D$95:D138)-1)<>"",OFFSET(DE100_1A!$D$95,ROWS($D$95:D138)-1,COLUMNS($D$95:D138)-1),"") -> 2599-9999009 | C133: =IF(OFFSET(DE100_1A!$E$95,ROWS($E$95:E138)-1,COLUMNS($E$95:E138)-1)<>"",OFFSET(DE100_1A!$E$95,ROWS($E$95:E138)-1,COLUMNS($E$95:E138)-1),"") -> ('LINEAR FEET' ITEM) CULVERT, 4000D CONCRETE ROADWAY PIPE, | D133: =IF(OFFSET(DE100_1A!$F$95,ROWS($F$95:F138)-1,COLUMNS($F$95:F138)-1)<>"",OFFSET(DE100_1A!$F$95,ROWS($F$95:F138)-1,COLUMNS($F$95:F138)-1),"") -> LF | E133: =IF(OFFSET(DE100_1A!$G$95,ROWS($G$95:G138)-1,COLUMNS($G$95:G138)-1)<>"",OFFSET(DE100_1A!$G$95,ROWS($G$95:G138)-1,COLUMNS($G$95:G138)-1),"") -> 386.0 | F133: =IF(OFFSET(DE100_1A!$H$95,ROWS($H$95:H138)-1,COLUMNS($H$95:H138)-1)<>"",OFFSET(DE100_1A!$H$95,ROWS($H$95:H138)-1,COLUMNS($H$95:H138)-1),"") -> 
A134: =IF(OFFSET(DE100_1A!$C$95,ROWS($C$95:C139)-1,COLUMNS($C$95:C139)-1)<>"",OFFSET(DE100_1A!$C$95,ROWS($C$95:C139)-1,COLUMNS($C$95:C139)-1),"") ->  | B134: =IF(OFFSET(DE100_1A!$D$95,ROWS($D$95:D139)-1,COLUMNS($D$95:D139)-1)<>"",OFFSET(DE100_1A!$D$95,ROWS($D$95:D139)-1,COLUMNS($D$95:D139)-1),"") ->  | C134: =IF(OFFSET(DE100_1A!$E$95,ROWS($E$95:E139)-1,COLUMNS($E$95:E139)-1)<>"",OFFSET(DE100_1A!$E$95,ROWS($E$95:E139)-1,COLUMNS($E$95:E139)-1),"") -> TRENCHLESS, 30 IN. DIA. | D134: =IF(OFFSET(DE100_1A!$F$95,ROWS($F$95:F139)-1,COLUMNS($F$95:F139)-1)<>"",OFFSET(DE100_1A!$F$95,ROWS($F$95:F139)-1,COLUMNS($F$95:F139)-1),"") ->  | E134: =IF(OFFSET(DE100_1A!$G$95,ROWS($G$95:G139)-1,COLUMNS($G$95:G139)-1)<>"",OFFSET(DE100_1A!$G$95,ROWS($G$95:G139)-1,COLUMNS($G$95:G139)-1),"") ->  | F134: =IF(OFFSET(DE100_1A!$H$95,ROWS($H$95:H139)-1,COLUMNS($H$95:H139)-1)<>"",OFFSET(DE100_1A!$H$95,ROWS($H$95:H139)-1,COLUMNS($H$95:H139)-1),"") -> 
A135: =IF(OFFSET(DE100_1A!$C$95,ROWS($C$95:C140)-1,COLUMNS($C$95:C140)-1)<>"",OFFSET(DE100_1A!$C$95,ROWS($C$95:C140)-1,COLUMNS($C$95:C140)-1),"") -> 104 | B135: =IF(OFFSET(DE100_1A!$D$95,ROWS($D$95:D140)-1,COLUMNS($D$95:D140)-1)<>"",OFFSET(DE100_1A!$D$95,ROWS($D$95:D140)-1,COLUMNS($D$95:D140)-1),"") -> 2599-9999009 | C135: =IF(OFFSET(DE100_1A!$E$95,ROWS($E$95:E140)-1,COLUMNS($E$95:E140)-1)<>"",OFFSET(DE100_1A!$E$95,ROWS($E$95:E140)-1,COLUMNS($E$95:E140)-1),"") -> ('LINEAR FEET' ITEM) CULVERT, 4000D CONCRETE ROADWAY PIPE, | D135: =IF(OFFSET(DE100_1A!$F$95,ROWS($F$95:F140)-1,COLUMNS($F$95:F140)-1)<>"",OFFSET(DE100_1A!$F$95,ROWS($F$95:F140)-1,COLUMNS($F$95:F140)-1),"") -> LF | E135: =IF(OFFSET(DE100_1A!$G$95,ROWS($G$95:G140)-1,COLUMNS($G$95:G140)-1)<>"",OFFSET(DE100_1A!$G$95,ROWS($G$95:G140)-1,COLUMNS($G$95:G140)-1),"") -> 166.0 | F135: =IF(OFFSET(DE100_1A!$H$95,ROWS($H$95:H140)-1,COLUMNS($H$95:H140)-1)<>"",OFFSET(DE100_1A!$H$95,ROWS($H$95:H140)-1,COLUMNS($H$95:H140)-1),"") -> 
A136: =IF(OFFSET(DE100_1A!$C$95,ROWS($C$95:C141)-1,COLUMNS($C$95:C141)-1)<>"",OFFSET(DE100_1A!$C$95,ROWS($C$95:C141)-1,COLUMNS($C$95:C141)-1),"") ->  | B136: =IF(OFFSET(DE100_1A!$D$95,ROWS($D$95:D141)-1,COLUMNS($D$95:D141)-1)<>"",OFFSET(DE100_1A!$D$95,ROWS($D$95:D141)-1,COLUMNS($D$95:D141)-1),"") ->  | C136: =IF(OFFSET(DE100_1A!$E$95,ROWS($E$95:E141)-1,COLUMNS($E$95:E141)-1)<>"",OFFSET(DE100_1A!$E$95,ROWS($E$95:E141)-1,COLUMNS($E$95:E141)-1),"") -> TRENCHLESS, 42 IN. DIA. | D136: =IF(OFFSET(DE100_1A!$F$95,ROWS($F$95:F141)-1,COLUMNS($F$95:F141)-1)<>"",OFFSET(DE100_1A!$F$95,ROWS($F$95:F141)-1,COLUMNS($F$95:F141)-1),"") ->  | E136: =IF(OFFSET(DE100_1A!$G$95,ROWS($G$95:G141)-1,COLUMNS($G$95:G141)-1)<>"",OFFSET(DE100_1A!$G$95,ROWS($G$95:G141)-1,COLUMNS($G$95:G141)-1),"") ->  | F136: =IF(OFFSET(DE100_1A!$H$95,ROWS($H$95:H141)-1,COLUMNS($H$95:H141)-1)<>"",OFFSET(DE100_1A!$H$95,ROWS($H$95:H141)-1,COLUMNS($H$95:H141)-1),"") -> 
A137: =IF(OFFSET(DE100_1A!$C$95,ROWS($C$95:C142)-1,COLUMNS($C$95:C142)-1)<>"",OFFSET(DE100_1A!$C$95,ROWS($C$95:C142)-1,COLUMNS($C$95:C142)-1),"") -> 105 | B137: =IF(OFFSET(DE100_1A!$D$95,ROWS($D$95:D142)-1,COLUMNS($D$95:D142)-1)<>"",OFFSET(DE100_1A!$D$95,ROWS($D$95:D142)-1,COLUMNS($D$95:D142)-1),"") -> 2599-9999009 | C137: =IF(OFFSET(DE100_1A!$E$95,ROWS($E$95:E142)-1,COLUMNS($E$95:E142)-1)<>"",OFFSET(DE100_1A!$E$95,ROWS($E$95:E142)-1,COLUMNS($E$95:E142)-1),"") -> ('LINEAR FEET' ITEM) CULVERT, 4000D CONCRETE ROADWAY PIPE, | D137: =IF(OFFSET(DE100_1A!$F$95,ROWS($F$95:F142)-1,COLUMNS($F$95:F142)-1)<>"",OFFSET(DE100_1A!$F$95,ROWS($F$95:F142)-1,COLUMNS($F$95:F142)-1),"") -> LF | E137: =IF(OFFSET(DE100_1A!$G$95,ROWS($G$95:G142)-1,COLUMNS($G$95:G142)-1)<>"",OFFSET(DE100_1A!$G$95,ROWS($G$95:G142)-1,COLUMNS($G$95:G142)-1),"") -> 282.0 | F137: =IF(OFFSET(DE100_1A!$H$95,ROWS($H$95:H142)-1,COLUMNS($H$95:H142)-1)<>"",OFFSET(DE100_1A!$H$95,ROWS($H$95:H142)-1,COLUMNS($H$95:H142)-1),"") -> 
A138: =IF(OFFSET(DE100_1A!$C$95,ROWS($C$95:C143)-1,COLUMNS($C$95:C143)-1)<>"",OFFSET(DE100_1A!$C$95,ROWS($C$95:C143)-1,COLUMNS($C$95:C143)-1),"") ->  | B138: =IF(OFFSET(DE100_1A!$D$95,ROWS($D$95:D143)-1,COLUMNS($D$95:D143)-1)<>"",OFFSET(DE100_1A!$D$95,ROWS($D$95:D143)-1,COLUMNS($D$95:D143)-1),"") ->  | C138: =IF(OFFSET(DE100_1A!$E$95,ROWS($E$95:E143)-1,COLUMNS($E$95:E143)-1)<>"",OFFSET(DE100_1A!$E$95,ROWS($E$95:E143)-1,COLUMNS($E$95:E143)-1),"") -> TRENCHLESS, 48 IN. DIA. | D138: =IF(OFFSET(DE100_1A!$F$95,ROWS($F$95:F143)-1,COLUMNS($F$95:F143)-1)<>"",OFFSET(DE100_1A!$F$95,ROWS($F$95:F143)-1,COLUMNS($F$95:F143)-1),"") ->  | E138: =IF(OFFSET(DE100_1A!$G$95,ROWS($G$95:G143)-1,COLUMNS($G$95:G143)-1)<>"",OFFSET(DE100_1A!$G$95,ROWS($G$95:G143)-1,COLUMNS($G$95:G143)-1),"") ->  | F138: =IF(OFFSET(DE100_1A!$H$95,ROWS($H$95:H143)-1,COLUMNS($H$95:H143)-1)<>"",OFFSET(DE100_1A!$H$95,ROWS($H$95:H143)-1,COLUMNS($H$95:H143)-1),"") -> 
A139: =IF(OFFSET(DE100_1A!$C$95,ROWS($C$95:C144)-1,COLUMNS($C$95:C144)-1)<>"",OFFSET(DE100_1A!$C$95,ROWS($C$95:C144)-1,COLUMNS($C$95:C144)-1),"") -> 106 | B139: =IF(OFFSET(DE100_1A!$D$95,ROWS($D$95:D144)-1,COLUMNS($D$95:D144)-1)<>"",OFFSET(DE100_1A!$D$95,ROWS($D$95:D144)-1,COLUMNS($D$95:D144)-1),"") -> 2599-9999009 | C139: =IF(OFFSET(DE100_1A!$E$95,ROWS($E$95:E144)-1,COLUMNS($E$95:E144)-1)<>"",OFFSET(DE100_1A!$E$95,ROWS($E$95:E144)-1,COLUMNS($E$95:E144)-1),"") -> ('LINEAR FEET' ITEM) CULVERT, 4000D CONCRETE ROADWAY PIPE, | D139: =IF(OFFSET(DE100_1A!$F$95,ROWS($F$95:F144)-1,COLUMNS($F$95:F144)-1)<>"",OFFSET(DE100_1A!$F$95,ROWS($F$95:F144)-1,COLUMNS($F$95:F144)-1),"") -> LF | E139: =IF(OFFSET(DE100_1A!$G$95,ROWS($G$95:G144)-1,COLUMNS($G$95:G144)-1)<>"",OFFSET(DE100_1A!$G$95,ROWS($G$95:G144)-1,COLUMNS($G$95:G144)-1),"") -> 162.0 | F139: =IF(OFFSET(DE100_1A!$H$95,ROWS($H$95:H144)-1,COLUMNS($H$95:H144)-1)<>"",OFFSET(DE100_1A!$H$95,ROWS($H$95:H144)-1,COLUMNS($H$95:H144)-1),"") -> 
A140: =IF(OFFSET(DE100_1A!$C$95,ROWS($C$95:C145)-1,COLUMNS($C$95:C145)-1)<>"",OFFSET(DE100_1A!$C$95,ROWS($C$95:C145)-1,COLUMNS($C$95:C145)-1),"") ->  | B140: =IF(OFFSET(DE100_1A!$D$95,ROWS($D$95:D145)-1,COLUMNS($D$95:D145)-1)<>"",OFFSET(DE100_1A!$D$95,ROWS($D$95:D145)-1,COLUMNS($D$95:D145)-1),"") ->  | C140: =IF(OFFSET(DE100_1A!$E$95,ROWS($E$95:E145)-1,COLUMNS($E$95:E145)-1)<>"",OFFSET(DE100_1A!$E$95,ROWS($E$95:E145)-1,COLUMNS($E$95:E145)-1),"") -> TRENCHLESS, 54 IN. DIA. | D140: =IF(OFFSET(DE100_1A!$F$95,ROWS($F$95:F145)-1,COLUMNS($F$95:F145)-1)<>"",OFFSET(DE100_1A!$F$95,ROWS($F$95:F145)-1,COLUMNS($F$95:F145)-1),"") ->  | E140: =IF(OFFSET(DE100_1A!$G$95,ROWS($G$95:G145)-1,COLUMNS($G$95:G145)-1)<>"",OFFSET(DE100_1A!$G$95,ROWS($G$95:G145)-1,COLUMNS($G$95:G145)-1),"") ->  | F140: =IF(OFFSET(DE100_1A!$H$95,ROWS($H$95:H145)-1,COLUMNS($H$95:H145)-1)<>"",OFFSET(DE100_1A!$H$95,ROWS($H$95:H145)-1,COLUMNS($H$95:H145)-1),"") -> 
A141: =IF(OFFSET(DE100_1A!$C$95,ROWS($C$95:C146)-1,COLUMNS($C$95:C146)-1)<>"",OFFSET(DE100_1A!$C$95,ROWS($C$95:C146)-1,COLUMNS($C$95:C146)-1),"") -> 107 | B141: =IF(OFFSET(DE100_1A!$D$95,ROWS($D$95:D146)-1,COLUMNS($D$95:D146)-1)<>"",OFFSET(DE100_1A!$D$95,ROWS($D$95:D146)-1,COLUMNS($D$95:D146)-1),"") -> 2599-9999009 | C141: =IF(OFFSET(DE100_1A!$E$95,ROWS($E$95:E146)-1,COLUMNS($E$95:E146)-1)<>"",OFFSET(DE100_1A!$E$95,ROWS($E$95:E146)-1,COLUMNS($E$95:E146)-1),"") -> ('LINEAR FEET' ITEM) CULVERT, 4000D CONCRETE ROADWAY PIPE, | D141: =IF(OFFSET(DE100_1A!$F$95,ROWS($F$95:F146)-1,COLUMNS($F$95:F146)-1)<>"",OFFSET(DE100_1A!$F$95,ROWS($F$95:F146)-1,COLUMNS($F$95:F146)-1),"") -> LF | E141: =IF(OFFSET(DE100_1A!$G$95,ROWS($G$95:G146)-1,COLUMNS($G$95:G146)-1)<>"",OFFSET(DE100_1A!$G$95,ROWS($G$95:G146)-1,COLUMNS($G$95:G146)-1),"") -> 434.0 | F141: =IF(OFFSET(DE100_1A!$H$95,ROWS($H$95:H146)-1,COLUMNS($H$95:H146)-1)<>"",OFFSET(DE100_1A!$H$95,ROWS($H$95:H146)-1,COLUMNS($H$95:H146)-1),"") -> 
A142: =IF(OFFSET(DE100_1A!$C$95,ROWS($C$95:C147)-1,COLUMNS($C$95:C147)-1)<>"",OFFSET(DE100_1A!$C$95,ROWS($C$95:C147)-1,COLUMNS($C$95:C147)-1),"") ->  | B142: =IF(OFFSET(DE100_1A!$D$95,ROWS($D$95:D147)-1,COLUMNS($D$95:D147)-1)<>"",OFFSET(DE100_1A!$D$95,ROWS($D$95:D147)-1,COLUMNS($D$95:D147)-1),"") ->  | C142: =IF(OFFSET(DE100_1A!$E$95,ROWS($E$95:E147)-1,COLUMNS($E$95:E147)-1)<>"",OFFSET(DE100_1A!$E$95,ROWS($E$95:E147)-1,COLUMNS($E$95:E147)-1),"") -> TRENCHLESS, 66 IN. DIA. | D142: =IF(OFFSET(DE100_1A!$F$95,ROWS($F$95:F147)-1,COLUMNS($F$95:F147)-1)<>"",OFFSET(DE100_1A!$F$95,ROWS($F$95:F147)-1,COLUMNS($F$95:F147)-1),"") ->  | E142: =IF(OFFSET(DE100_1A!$G$95,ROWS($G$95:G147)-1,COLUMNS($G$95:G147)-1)<>"",OFFSET(DE100_1A!$G$95,ROWS($G$95:G147)-1,COLUMNS($G$95:G147)-1),"") ->  | F142: =IF(OFFSET(DE100_1A!$H$95,ROWS($H$95:H147)-1,COLUMNS($H$95:H147)-1)<>"",OFFSET(DE100_1A!$H$95,ROWS($H$95:H147)-1,COLUMNS($H$95:H147)-1),"") -> 
A143: =IF(OFFSET(DE100_1A!$C$95,ROWS($C$95:C148)-1,COLUMNS($C$95:C148)-1)<>"",OFFSET(DE100_1A!$C$95,ROWS($C$95:C148)-1,COLUMNS($C$95:C148)-1),"") -> 108 | B143: =IF(OFFSET(DE100_1A!$D$95,ROWS($D$95:D148)-1,COLUMNS($D$95:D148)-1)<>"",OFFSET(DE100_1A!$D$95,ROWS($D$95:D148)-1,COLUMNS($D$95:D148)-1),"") -> 2599-9999009 | C143: =IF(OFFSET(DE100_1A!$E$95,ROWS($E$95:E148)-1,COLUMNS($E$95:E148)-1)<>"",OFFSET(DE100_1A!$E$95,ROWS($E$95:E148)-1,COLUMNS($E$95:E148)-1),"") -> ('LINEAR FEET' ITEM) CULVERT, 4500D CONCRETE ROADWAY PIPE, 54 IN. | D143: =IF(OFFSET(DE100_1A!$F$95,ROWS($F$95:F148)-1,COLUMNS($F$95:F148)-1)<>"",OFFSET(DE100_1A!$F$95,ROWS($F$95:F148)-1,COLUMNS($F$95:F148)-1),"") -> LF | E143: =IF(OFFSET(DE100_1A!$G$95,ROWS($G$95:G148)-1,COLUMNS($G$95:G148)-1)<>"",OFFSET(DE100_1A!$G$95,ROWS($G$95:G148)-1,COLUMNS($G$95:G148)-1),"") -> 254.0 | F143: =IF(OFFSET(DE100_1A!$H$95,ROWS($H$95:H148)-1,COLUMNS($H$95:H148)-1)<>"",OFFSET(DE100_1A!$H$95,ROWS($H$95:H148)-1,COLUMNS($H$95:H148)-1),"") -> 
A144: =IF(OFFSET(DE100_1A!$C$95,ROWS($C$95:C149)-1,COLUMNS($C$95:C149)-1)<>"",OFFSET(DE100_1A!$C$95,ROWS($C$95:C149)-1,COLUMNS($C$95:C149)-1),"") ->  | B144: =IF(OFFSET(DE100_1A!$D$95,ROWS($D$95:D149)-1,COLUMNS($D$95:D149)-1)<>"",OFFSET(DE100_1A!$D$95,ROWS($D$95:D149)-1,COLUMNS($D$95:D149)-1),"") ->  | C144: =IF(OFFSET(DE100_1A!$E$95,ROWS($E$95:E149)-1,COLUMNS($E$95:E149)-1)<>"",OFFSET(DE100_1A!$E$95,ROWS($E$95:E149)-1,COLUMNS($E$95:E149)-1),"") -> DIA. | D144: =IF(OFFSET(DE100_1A!$F$95,ROWS($F$95:F149)-1,COLUMNS($F$95:F149)-1)<>"",OFFSET(DE100_1A!$F$95,ROWS($F$95:F149)-1,COLUMNS($F$95:F149)-1),"") ->  | E144: =IF(OFFSET(DE100_1A!$G$95,ROWS($G$95:G149)-1,COLUMNS($G$95:G149)-1)<>"",OFFSET(DE100_1A!$G$95,ROWS($G$95:G149)-1,COLUMNS($G$95:G149)-1),"") ->  | F144: =IF(OFFSET(DE100_1A!$H$95,ROWS($H$95:H149)-1,COLUMNS($H$95:H149)-1)<>"",OFFSET(DE100_1A!$H$95,ROWS($H$95:H149)-1,COLUMNS($H$95:H149)-1),"") -> 
A145: =IF(OFFSET(DE100_1A!$C$95,ROWS($C$95:C150)-1,COLUMNS($C$95:C150)-1)<>"",OFFSET(DE100_1A!$C$95,ROWS($C$95:C150)-1,COLUMNS($C$95:C150)-1),"") -> 109 | B145: =IF(OFFSET(DE100_1A!$D$95,ROWS($D$95:D150)-1,COLUMNS($D$95:D150)-1)<>"",OFFSET(DE100_1A!$D$95,ROWS($D$95:D150)-1,COLUMNS($D$95:D150)-1),"") -> 2599-9999009 | C145: =IF(OFFSET(DE100_1A!$E$95,ROWS($E$95:E150)-1,COLUMNS($E$95:E150)-1)<>"",OFFSET(DE100_1A!$E$95,ROWS($E$95:E150)-1,COLUMNS($E$95:E150)-1),"") -> ('LINEAR FEET' ITEM) CULVERT, 4500D CONCRETE ROADWAY PIPE, | D145: =IF(OFFSET(DE100_1A!$F$95,ROWS($F$95:F150)-1,COLUMNS($F$95:F150)-1)<>"",OFFSET(DE100_1A!$F$95,ROWS($F$95:F150)-1,COLUMNS($F$95:F150)-1),"") -> LF | E145: =IF(OFFSET(DE100_1A!$G$95,ROWS($G$95:G150)-1,COLUMNS($G$95:G150)-1)<>"",OFFSET(DE100_1A!$G$95,ROWS($G$95:G150)-1,COLUMNS($G$95:G150)-1),"") -> 276.0 | F145: =IF(OFFSET(DE100_1A!$H$95,ROWS($H$95:H150)-1,COLUMNS($H$95:H150)-1)<>"",OFFSET(DE100_1A!$H$95,ROWS($H$95:H150)-1,COLUMNS($H$95:H150)-1),"") -> 
A146: =IF(OFFSET(DE100_1A!$C$95,ROWS($C$95:C151)-1,COLUMNS($C$95:C151)-1)<>"",OFFSET(DE100_1A!$C$95,ROWS($C$95:C151)-1,COLUMNS($C$95:C151)-1),"") ->  | B146: =IF(OFFSET(DE100_1A!$D$95,ROWS($D$95:D151)-1,COLUMNS($D$95:D151)-1)<>"",OFFSET(DE100_1A!$D$95,ROWS($D$95:D151)-1,COLUMNS($D$95:D151)-1),"") ->  | C146: =IF(OFFSET(DE100_1A!$E$95,ROWS($E$95:E151)-1,COLUMNS($E$95:E151)-1)<>"",OFFSET(DE100_1A!$E$95,ROWS($E$95:E151)-1,COLUMNS($E$95:E151)-1),"") -> TRENCHLESS, 54 IN. DIA. | D146: =IF(OFFSET(DE100_1A!$F$95,ROWS($F$95:F151)-1,COLUMNS($F$95:F151)-1)<>"",OFFSET(DE100_1A!$F$95,ROWS($F$95:F151)-1,COLUMNS($F$95:F151)-1),"") ->  | E146: =IF(OFFSET(DE100_1A!$G$95,ROWS($G$95:G151)-1,COLUMNS($G$95:G151)-1)<>"",OFFSET(DE100_1A!$G$95,ROWS($G$95:G151)-1,COLUMNS($G$95:G151)-1),"") ->  | F146: =IF(OFFSET(DE100_1A!$H$95,ROWS($H$95:H151)-1,COLUMNS($H$95:H151)-1)<>"",OFFSET(DE100_1A!$H$95,ROWS($H$95:H151)-1,COLUMNS($H$95:H151)-1),"") -> 
A147: =IF(OFFSET(DE100_1A!$C$95,ROWS($C$95:C152)-1,COLUMNS($C$95:C152)-1)<>"",OFFSET(DE100_1A!$C$95,ROWS($C$95:C152)-1,COLUMNS($C$95:C152)-1),"") -> 110 | B147: =IF(OFFSET(DE100_1A!$D$95,ROWS($D$95:D152)-1,COLUMNS($D$95:D152)-1)<>"",OFFSET(DE100_1A!$D$95,ROWS($D$95:D152)-1,COLUMNS($D$95:D152)-1),"") -> 2599-9999009 | C147: =IF(OFFSET(DE100_1A!$E$95,ROWS($E$95:E152)-1,COLUMNS($E$95:E152)-1)<>"",OFFSET(DE100_1A!$E$95,ROWS($E$95:E152)-1,COLUMNS($E$95:E152)-1),"") -> ('LINEAR FEET' ITEM) HORIZONTAL STRIP DRAIN | D147: =IF(OFFSET(DE100_1A!$F$95,ROWS($F$95:F152)-1,COLUMNS($F$95:F152)-1)<>"",OFFSET(DE100_1A!$F$95,ROWS($F$95:F152)-1,COLUMNS($F$95:F152)-1),"") -> LF | E147: =IF(OFFSET(DE100_1A!$G$95,ROWS($G$95:G152)-1,COLUMNS($G$95:G152)-1)<>"",OFFSET(DE100_1A!$G$95,ROWS($G$95:G152)-1,COLUMNS($G$95:G152)-1),"") -> 13,115.0 | F147: =IF(OFFSET(DE100_1A!$H$95,ROWS($H$95:H152)-1,COLUMNS($H$95:H152)-1)<>"",OFFSET(DE100_1A!$H$95,ROWS($H$95:H152)-1,COLUMNS($H$95:H152)-1),"") -> 
A148: =IF(OFFSET(DE100_1A!$C$95,ROWS($C$95:C153)-1,COLUMNS($C$95:C153)-1)<>"",OFFSET(DE100_1A!$C$95,ROWS($C$95:C153)-1,COLUMNS($C$95:C153)-1),"") -> 111 | B148: =IF(OFFSET(DE100_1A!$D$95,ROWS($D$95:D153)-1,COLUMNS($D$95:D153)-1)<>"",OFFSET(DE100_1A!$D$95,ROWS($D$95:D153)-1,COLUMNS($D$95:D153)-1),"") -> 2599-9999012 | C148: =IF(OFFSET(DE100_1A!$E$95,ROWS($E$95:E153)-1,COLUMNS($E$95:E153)-1)<>"",OFFSET(DE100_1A!$E$95,ROWS($E$95:E153)-1,COLUMNS($E$95:E153)-1),"") -> ('THOUSANDS OF GALLONS' ITEM) DUST CONTROL WATERING | D148: =IF(OFFSET(DE100_1A!$F$95,ROWS($F$95:F153)-1,COLUMNS($F$95:F153)-1)<>"",OFFSET(DE100_1A!$F$95,ROWS($F$95:F153)-1,COLUMNS($F$95:F153)-1),"") -> MGAL | E148: =IF(OFFSET(DE100_1A!$G$95,ROWS($G$95:G153)-1,COLUMNS($G$95:G153)-1)<>"",OFFSET(DE100_1A!$G$95,ROWS($G$95:G153)-1,COLUMNS($G$95:G153)-1),"") -> 4,000.00 | F148: =IF(OFFSET(DE100_1A!$H$95,ROWS($H$95:H153)-1,COLUMNS($H$95:H153)-1)<>"",OFFSET(DE100_1A!$H$95,ROWS($H$95:H153)-1,COLUMNS($H$95:H153)-1),"") -> 
A149: =IF(OFFSET(DE100_1A!$C$95,ROWS($C$95:C154)-1,COLUMNS($C$95:C154)-1)<>"",OFFSET(DE100_1A!$C$95,ROWS($C$95:C154)-1,COLUMNS($C$95:C154)-1),"") -> 112 | B149: =IF(OFFSET(DE100_1A!$D$95,ROWS($D$95:D154)-1,COLUMNS($D$95:D154)-1)<>"",OFFSET(DE100_1A!$D$95,ROWS($D$95:D154)-1,COLUMNS($D$95:D154)-1),"") -> 2601-2633100 | C149: =IF(OFFSET(DE100_1A!$E$95,ROWS($E$95:E154)-1,COLUMNS($E$95:E154)-1)<>"",OFFSET(DE100_1A!$E$95,ROWS($E$95:E154)-1,COLUMNS($E$95:E154)-1),"") -> MOWING | D149: =IF(OFFSET(DE100_1A!$F$95,ROWS($F$95:F154)-1,COLUMNS($F$95:F154)-1)<>"",OFFSET(DE100_1A!$F$95,ROWS($F$95:F154)-1,COLUMNS($F$95:F154)-1),"") -> ACRE | E149: =IF(OFFSET(DE100_1A!$G$95,ROWS($G$95:G154)-1,COLUMNS($G$95:G154)-1)<>"",OFFSET(DE100_1A!$G$95,ROWS($G$95:G154)-1,COLUMNS($G$95:G154)-1),"") -> 1,684.0 | F149: =IF(OFFSET(DE100_1A!$H$95,ROWS($H$95:H154)-1,COLUMNS($H$95:H154)-1)<>"",OFFSET(DE100_1A!$H$95,ROWS($H$95:H154)-1,COLUMNS($H$95:H154)-1),"") -> 
A150: =IF(OFFSET(DE100_1A!$C$95,ROWS($C$95:C155)-1,COLUMNS($C$95:C155)-1)<>"",OFFSET(DE100_1A!$C$95,ROWS($C$95:C155)-1,COLUMNS($C$95:C155)-1),"") -> 113 | B150: =IF(OFFSET(DE100_1A!$D$95,ROWS($D$95:D155)-1,COLUMNS($D$95:D155)-1)<>"",OFFSET(DE100_1A!$D$95,ROWS($D$95:D155)-1,COLUMNS($D$95:D155)-1),"") -> 2601-2634100 | C150: =IF(OFFSET(DE100_1A!$E$95,ROWS($E$95:E155)-1,COLUMNS($E$95:E155)-1)<>"",OFFSET(DE100_1A!$E$95,ROWS($E$95:E155)-1,COLUMNS($E$95:E155)-1),"") -> MULCHING | D150: =IF(OFFSET(DE100_1A!$F$95,ROWS($F$95:F155)-1,COLUMNS($F$95:F155)-1)<>"",OFFSET(DE100_1A!$F$95,ROWS($F$95:F155)-1,COLUMNS($F$95:F155)-1),"") -> ACRE | E150: =IF(OFFSET(DE100_1A!$G$95,ROWS($G$95:G155)-1,COLUMNS($G$95:G155)-1)<>"",OFFSET(DE100_1A!$G$95,ROWS($G$95:G155)-1,COLUMNS($G$95:G155)-1),"") -> 433.0 | F150: =IF(OFFSET(DE100_1A!$H$95,ROWS($H$95:H155)-1,COLUMNS($H$95:H155)-1)<>"",OFFSET(DE100_1A!$H$95,ROWS($H$95:H155)-1,COLUMNS($H$95:H155)-1),"") -> 
A151: =IF(OFFSET(DE100_1A!$C$95,ROWS($C$95:C156)-1,COLUMNS($C$95:C156)-1)<>"",OFFSET(DE100_1A!$C$95,ROWS($C$95:C156)-1,COLUMNS($C$95:C156)-1),"") -> 114 | B151: =IF(OFFSET(DE100_1A!$D$95,ROWS($D$95:D156)-1,COLUMNS($D$95:D156)-1)<>"",OFFSET(DE100_1A!$D$95,ROWS($D$95:D156)-1,COLUMNS($D$95:D156)-1),"") -> 2601-2634105 | C151: =IF(OFFSET(DE100_1A!$E$95,ROWS($E$95:E156)-1,COLUMNS($E$95:E156)-1)<>"",OFFSET(DE100_1A!$E$95,ROWS($E$95:E156)-1,COLUMNS($E$95:E156)-1),"") -> MULCHING, BONDED FIBER MATRIX | D151: =IF(OFFSET(DE100_1A!$F$95,ROWS($F$95:F156)-1,COLUMNS($F$95:F156)-1)<>"",OFFSET(DE100_1A!$F$95,ROWS($F$95:F156)-1,COLUMNS($F$95:F156)-1),"") -> ACRE | E151: =IF(OFFSET(DE100_1A!$G$95,ROWS($G$95:G156)-1,COLUMNS($G$95:G156)-1)<>"",OFFSET(DE100_1A!$G$95,ROWS($G$95:G156)-1,COLUMNS($G$95:G156)-1),"") -> 10.0 | F151: =IF(OFFSET(DE100_1A!$H$95,ROWS($H$95:H156)-1,COLUMNS($H$95:H156)-1)<>"",OFFSET(DE100_1A!$H$95,ROWS($H$95:H156)-1,COLUMNS($H$95:H156)-1),"") -> 
A152: =IF(OFFSET(DE100_1A!$C$95,ROWS($C$95:C157)-1,COLUMNS($C$95:C157)-1)<>"",OFFSET(DE100_1A!$C$95,ROWS($C$95:C157)-1,COLUMNS($C$95:C157)-1),"") -> 115 | B152: =IF(OFFSET(DE100_1A!$D$95,ROWS($D$95:D157)-1,COLUMNS($D$95:D157)-1)<>"",OFFSET(DE100_1A!$D$95,ROWS($D$95:D157)-1,COLUMNS($D$95:D157)-1),"") -> 2601-2640350 | C152: =IF(OFFSET(DE100_1A!$E$95,ROWS($E$95:E157)-1,COLUMNS($E$95:E157)-1)<>"",OFFSET(DE100_1A!$E$95,ROWS($E$95:E157)-1,COLUMNS($E$95:E157)-1),"") -> SPECIAL DITCH CONTROL, WOOD EXCELSIOR MAT | D152: =IF(OFFSET(DE100_1A!$F$95,ROWS($F$95:F157)-1,COLUMNS($F$95:F157)-1)<>"",OFFSET(DE100_1A!$F$95,ROWS($F$95:F157)-1,COLUMNS($F$95:F157)-1),"") -> SQ | E152: =IF(OFFSET(DE100_1A!$G$95,ROWS($G$95:G157)-1,COLUMNS($G$95:G157)-1)<>"",OFFSET(DE100_1A!$G$95,ROWS($G$95:G157)-1,COLUMNS($G$95:G157)-1),"") -> 1,300.0 | F152: =IF(OFFSET(DE100_1A!$H$95,ROWS($H$95:H157)-1,COLUMNS($H$95:H157)-1)<>"",OFFSET(DE100_1A!$H$95,ROWS($H$95:H157)-1,COLUMNS($H$95:H157)-1),"") -> 
A153: =IF(OFFSET(DE100_1A!$C$95,ROWS($C$95:C158)-1,COLUMNS($C$95:C158)-1)<>"",OFFSET(DE100_1A!$C$95,ROWS($C$95:C158)-1,COLUMNS($C$95:C158)-1),"") -> 116 | B153: =IF(OFFSET(DE100_1A!$D$95,ROWS($D$95:D158)-1,COLUMNS($D$95:D158)-1)<>"",OFFSET(DE100_1A!$D$95,ROWS($D$95:D158)-1,COLUMNS($D$95:D158)-1),"") -> 2601-2642100 | C153: =IF(OFFSET(DE100_1A!$E$95,ROWS($E$95:E158)-1,COLUMNS($E$95:E158)-1)<>"",OFFSET(DE100_1A!$E$95,ROWS($E$95:E158)-1,COLUMNS($E$95:E158)-1),"") -> STABILIZING CROP - SEEDING AND FERTILIZING | D153: =IF(OFFSET(DE100_1A!$F$95,ROWS($F$95:F158)-1,COLUMNS($F$95:F158)-1)<>"",OFFSET(DE100_1A!$F$95,ROWS($F$95:F158)-1,COLUMNS($F$95:F158)-1),"") -> ACRE | E153: =IF(OFFSET(DE100_1A!$G$95,ROWS($G$95:G158)-1,COLUMNS($G$95:G158)-1)<>"",OFFSET(DE100_1A!$G$95,ROWS($G$95:G158)-1,COLUMNS($G$95:G158)-1),"") -> 433.0 | F153: =IF(OFFSET(DE100_1A!$H$95,ROWS($H$95:H158)-1,COLUMNS($H$95:H158)-1)<>"",OFFSET(DE100_1A!$H$95,ROWS($H$95:H158)-1,COLUMNS($H$95:H158)-1),"") -> 
A154: =IF(OFFSET(DE100_1A!$C$95,ROWS($C$95:C159)-1,COLUMNS($C$95:C159)-1)<>"",OFFSET(DE100_1A!$C$95,ROWS($C$95:C159)-1,COLUMNS($C$95:C159)-1),"") -> 117 | B154: =IF(OFFSET(DE100_1A!$D$95,ROWS($D$95:D159)-1,COLUMNS($D$95:D159)-1)<>"",OFFSET(DE100_1A!$D$95,ROWS($D$95:D159)-1,COLUMNS($D$95:D159)-1),"") -> 2601-2643110 | C154: =IF(OFFSET(DE100_1A!$E$95,ROWS($E$95:E159)-1,COLUMNS($E$95:E159)-1)<>"",OFFSET(DE100_1A!$E$95,ROWS($E$95:E159)-1,COLUMNS($E$95:E159)-1),"") -> WATERING FOR SOD, SPECIAL DITCH CONTROL, OR SLOPE PROTECTION | D154: =IF(OFFSET(DE100_1A!$F$95,ROWS($F$95:F159)-1,COLUMNS($F$95:F159)-1)<>"",OFFSET(DE100_1A!$F$95,ROWS($F$95:F159)-1,COLUMNS($F$95:F159)-1),"") -> MGAL | E154: =IF(OFFSET(DE100_1A!$G$95,ROWS($G$95:G159)-1,COLUMNS($G$95:G159)-1)<>"",OFFSET(DE100_1A!$G$95,ROWS($G$95:G159)-1,COLUMNS($G$95:G159)-1),"") -> 670.40 | F154: =IF(OFFSET(DE100_1A!$H$95,ROWS($H$95:H159)-1,COLUMNS($H$95:H159)-1)<>"",OFFSET(DE100_1A!$H$95,ROWS($H$95:H159)-1,COLUMNS($H$95:H159)-1),"") -> 
A155: =IF(OFFSET(DE100_1A!$C$95,ROWS($C$95:C160)-1,COLUMNS($C$95:C160)-1)<>"",OFFSET(DE100_1A!$C$95,ROWS($C$95:C160)-1,COLUMNS($C$95:C160)-1),"") -> 118 | B155: =IF(OFFSET(DE100_1A!$D$95,ROWS($D$95:D160)-1,COLUMNS($D$95:D160)-1)<>"",OFFSET(DE100_1A!$D$95,ROWS($D$95:D160)-1,COLUMNS($D$95:D160)-1),"") -> 2601-2643300 | C155: =IF(OFFSET(DE100_1A!$E$95,ROWS($E$95:E160)-1,COLUMNS($E$95:E160)-1)<>"",OFFSET(DE100_1A!$E$95,ROWS($E$95:E160)-1,COLUMNS($E$95:E160)-1),"") -> MOBILIZATION FOR WATERING | D155: =IF(OFFSET(DE100_1A!$F$95,ROWS($F$95:F160)-1,COLUMNS($F$95:F160)-1)<>"",OFFSET(DE100_1A!$F$95,ROWS($F$95:F160)-1,COLUMNS($F$95:F160)-1),"") -> EACH | E155: =IF(OFFSET(DE100_1A!$G$95,ROWS($G$95:G160)-1,COLUMNS($G$95:G160)-1)<>"",OFFSET(DE100_1A!$G$95,ROWS($G$95:G160)-1,COLUMNS($G$95:G160)-1),"") -> 3 | F155: =IF(OFFSET(DE100_1A!$H$95,ROWS($H$95:H160)-1,COLUMNS($H$95:H160)-1)<>"",OFFSET(DE100_1A!$H$95,ROWS($H$95:H160)-1,COLUMNS($H$95:H160)-1),"") -> 
A156: =IF(OFFSET(DE100_1A!$C$95,ROWS($C$95:C161)-1,COLUMNS($C$95:C161)-1)<>"",OFFSET(DE100_1A!$C$95,ROWS($C$95:C161)-1,COLUMNS($C$95:C161)-1),"") -> 119 | B156: =IF(OFFSET(DE100_1A!$D$95,ROWS($D$95:D161)-1,COLUMNS($D$95:D161)-1)<>"",OFFSET(DE100_1A!$D$95,ROWS($D$95:D161)-1,COLUMNS($D$95:D161)-1),"") -> 2601-2643412 | C156: =IF(OFFSET(DE100_1A!$E$95,ROWS($E$95:E161)-1,COLUMNS($E$95:E161)-1)<>"",OFFSET(DE100_1A!$E$95,ROWS($E$95:E161)-1,COLUMNS($E$95:E161)-1),"") -> TURF REINFORCEMENT MAT, TYPE 2 | D156: =IF(OFFSET(DE100_1A!$F$95,ROWS($F$95:F161)-1,COLUMNS($F$95:F161)-1)<>"",OFFSET(DE100_1A!$F$95,ROWS($F$95:F161)-1,COLUMNS($F$95:F161)-1),"") -> SQ | E156: =IF(OFFSET(DE100_1A!$G$95,ROWS($G$95:G161)-1,COLUMNS($G$95:G161)-1)<>"",OFFSET(DE100_1A!$G$95,ROWS($G$95:G161)-1,COLUMNS($G$95:G161)-1),"") -> 982.0 | F156: =IF(OFFSET(DE100_1A!$H$95,ROWS($H$95:H161)-1,COLUMNS($H$95:H161)-1)<>"",OFFSET(DE100_1A!$H$95,ROWS($H$95:H161)-1,COLUMNS($H$95:H161)-1),"") -> 
A157: =IF(OFFSET(DE100_1A!$C$95,ROWS($C$95:C162)-1,COLUMNS($C$95:C162)-1)<>"",OFFSET(DE100_1A!$C$95,ROWS($C$95:C162)-1,COLUMNS($C$95:C162)-1),"") -> 120 | B157: =IF(OFFSET(DE100_1A!$D$95,ROWS($D$95:D162)-1,COLUMNS($D$95:D162)-1)<>"",OFFSET(DE100_1A!$D$95,ROWS($D$95:D162)-1,COLUMNS($D$95:D162)-1),"") -> 2601-2643413 | C157: =IF(OFFSET(DE100_1A!$E$95,ROWS($E$95:E162)-1,COLUMNS($E$95:E162)-1)<>"",OFFSET(DE100_1A!$E$95,ROWS($E$95:E162)-1,COLUMNS($E$95:E162)-1),"") -> TURF REINFORCEMENT MAT, TYPE 3 | D157: =IF(OFFSET(DE100_1A!$F$95,ROWS($F$95:F162)-1,COLUMNS($F$95:F162)-1)<>"",OFFSET(DE100_1A!$F$95,ROWS($F$95:F162)-1,COLUMNS($F$95:F162)-1),"") -> SQ | E157: =IF(OFFSET(DE100_1A!$G$95,ROWS($G$95:G162)-1,COLUMNS($G$95:G162)-1)<>"",OFFSET(DE100_1A!$G$95,ROWS($G$95:G162)-1,COLUMNS($G$95:G162)-1),"") -> 542.0 | F157: =IF(OFFSET(DE100_1A!$H$95,ROWS($H$95:H162)-1,COLUMNS($H$95:H162)-1)<>"",OFFSET(DE100_1A!$H$95,ROWS($H$95:H162)-1,COLUMNS($H$95:H162)-1),"") -> 
A158: =IF(OFFSET(DE100_1A!$C$95,ROWS($C$95:C163)-1,COLUMNS($C$95:C163)-1)<>"",OFFSET(DE100_1A!$C$95,ROWS($C$95:C163)-1,COLUMNS($C$95:C163)-1),"") -> 121 | B158: =IF(OFFSET(DE100_1A!$D$95,ROWS($D$95:D163)-1,COLUMNS($D$95:D163)-1)<>"",OFFSET(DE100_1A!$D$95,ROWS($D$95:D163)-1,COLUMNS($D$95:D163)-1),"") -> 2601-2643414 | C158: =IF(OFFSET(DE100_1A!$E$95,ROWS($E$95:E163)-1,COLUMNS($E$95:E163)-1)<>"",OFFSET(DE100_1A!$E$95,ROWS($E$95:E163)-1,COLUMNS($E$95:E163)-1),"") -> TURF REINFORCEMENT MAT, TYPE 4 | D158: =IF(OFFSET(DE100_1A!$F$95,ROWS($F$95:F163)-1,COLUMNS($F$95:F163)-1)<>"",OFFSET(DE100_1A!$F$95,ROWS($F$95:F163)-1,COLUMNS($F$95:F163)-1),"") -> SQ | E158: =IF(OFFSET(DE100_1A!$G$95,ROWS($G$95:G163)-1,COLUMNS($G$95:G163)-1)<>"",OFFSET(DE100_1A!$G$95,ROWS($G$95:G163)-1,COLUMNS($G$95:G163)-1),"") -> 528.0 | F158: =IF(OFFSET(DE100_1A!$H$95,ROWS($H$95:H163)-1,COLUMNS($H$95:H163)-1)<>"",OFFSET(DE100_1A!$H$95,ROWS($H$95:H163)-1,COLUMNS($H$95:H163)-1),"") -> 
A159: =IF(OFFSET(DE100_1A!$C$95,ROWS($C$95:C164)-1,COLUMNS($C$95:C164)-1)<>"",OFFSET(DE100_1A!$C$95,ROWS($C$95:C164)-1,COLUMNS($C$95:C164)-1),"") -> 122 | B159: =IF(OFFSET(DE100_1A!$D$95,ROWS($D$95:D164)-1,COLUMNS($D$95:D164)-1)<>"",OFFSET(DE100_1A!$D$95,ROWS($D$95:D164)-1,COLUMNS($D$95:D164)-1),"") -> 2602-0000020 | C159: =IF(OFFSET(DE100_1A!$E$95,ROWS($E$95:E164)-1,COLUMNS($E$95:E164)-1)<>"",OFFSET(DE100_1A!$E$95,ROWS($E$95:E164)-1,COLUMNS($E$95:E164)-1),"") -> SILT FENCE | D159: =IF(OFFSET(DE100_1A!$F$95,ROWS($F$95:F164)-1,COLUMNS($F$95:F164)-1)<>"",OFFSET(DE100_1A!$F$95,ROWS($F$95:F164)-1,COLUMNS($F$95:F164)-1),"") -> LF | E159: =IF(OFFSET(DE100_1A!$G$95,ROWS($G$95:G164)-1,COLUMNS($G$95:G164)-1)<>"",OFFSET(DE100_1A!$G$95,ROWS($G$95:G164)-1,COLUMNS($G$95:G164)-1),"") -> 297,425.0 | F159: =IF(OFFSET(DE100_1A!$H$95,ROWS($H$95:H164)-1,COLUMNS($H$95:H164)-1)<>"",OFFSET(DE100_1A!$H$95,ROWS($H$95:H164)-1,COLUMNS($H$95:H164)-1),"") -> 
A160: =IF(OFFSET(DE100_1A!$C$95,ROWS($C$95:C165)-1,COLUMNS($C$95:C165)-1)<>"",OFFSET(DE100_1A!$C$95,ROWS($C$95:C165)-1,COLUMNS($C$95:C165)-1),"") -> 123 | B160: =IF(OFFSET(DE100_1A!$D$95,ROWS($D$95:D165)-1,COLUMNS($D$95:D165)-1)<>"",OFFSET(DE100_1A!$D$95,ROWS($D$95:D165)-1,COLUMNS($D$95:D165)-1),"") -> 2602-0000030 | C160: =IF(OFFSET(DE100_1A!$E$95,ROWS($E$95:E165)-1,COLUMNS($E$95:E165)-1)<>"",OFFSET(DE100_1A!$E$95,ROWS($E$95:E165)-1,COLUMNS($E$95:E165)-1),"") -> SILT FENCE FOR DITCH CHECKS | D160: =IF(OFFSET(DE100_1A!$F$95,ROWS($F$95:F165)-1,COLUMNS($F$95:F165)-1)<>"",OFFSET(DE100_1A!$F$95,ROWS($F$95:F165)-1,COLUMNS($F$95:F165)-1),"") -> LF | E160: =IF(OFFSET(DE100_1A!$G$95,ROWS($G$95:G165)-1,COLUMNS($G$95:G165)-1)<>"",OFFSET(DE100_1A!$G$95,ROWS($G$95:G165)-1,COLUMNS($G$95:G165)-1),"") -> 102,010.1 | F160: =IF(OFFSET(DE100_1A!$H$95,ROWS($H$95:H165)-1,COLUMNS($H$95:H165)-1)<>"",OFFSET(DE100_1A!$H$95,ROWS($H$95:H165)-1,COLUMNS($H$95:H165)-1),"") -> 
A161: =IF(OFFSET(DE100_1A!$C$95,ROWS($C$95:C166)-1,COLUMNS($C$95:C166)-1)<>"",OFFSET(DE100_1A!$C$95,ROWS($C$95:C166)-1,COLUMNS($C$95:C166)-1),"") -> 124 | B161: =IF(OFFSET(DE100_1A!$D$95,ROWS($D$95:D166)-1,COLUMNS($D$95:D166)-1)<>"",OFFSET(DE100_1A!$D$95,ROWS($D$95:D166)-1,COLUMNS($D$95:D166)-1),"") -> 2602-0000050 | C161: =IF(OFFSET(DE100_1A!$E$95,ROWS($E$95:E166)-1,COLUMNS($E$95:E166)-1)<>"",OFFSET(DE100_1A!$E$95,ROWS($E$95:E166)-1,COLUMNS($E$95:E166)-1),"") -> SILT BASINS | D161: =IF(OFFSET(DE100_1A!$F$95,ROWS($F$95:F166)-1,COLUMNS($F$95:F166)-1)<>"",OFFSET(DE100_1A!$F$95,ROWS($F$95:F166)-1,COLUMNS($F$95:F166)-1),"") -> EACH | E161: =IF(OFFSET(DE100_1A!$G$95,ROWS($G$95:G166)-1,COLUMNS($G$95:G166)-1)<>"",OFFSET(DE100_1A!$G$95,ROWS($G$95:G166)-1,COLUMNS($G$95:G166)-1),"") -> 450 | F161: =IF(OFFSET(DE100_1A!$H$95,ROWS($H$95:H166)-1,COLUMNS($H$95:H166)-1)<>"",OFFSET(DE100_1A!$H$95,ROWS($H$95:H166)-1,COLUMNS($H$95:H166)-1),"") -> 
A162: =IF(OFFSET(DE100_1A!$C$95,ROWS($C$95:C167)-1,COLUMNS($C$95:C167)-1)<>"",OFFSET(DE100_1A!$C$95,ROWS($C$95:C167)-1,COLUMNS($C$95:C167)-1),"") -> 125 | B162: =IF(OFFSET(DE100_1A!$D$95,ROWS($D$95:D167)-1,COLUMNS($D$95:D167)-1)<>"",OFFSET(DE100_1A!$D$95,ROWS($D$95:D167)-1,COLUMNS($D$95:D167)-1),"") -> 2602-0000071 | C162: =IF(OFFSET(DE100_1A!$E$95,ROWS($E$95:E167)-1,COLUMNS($E$95:E167)-1)<>"",OFFSET(DE100_1A!$E$95,ROWS($E$95:E167)-1,COLUMNS($E$95:E167)-1),"") -> REMOVAL OF SILT FENCE OR SILT FENCE FOR DITCH CHECKS | D162: =IF(OFFSET(DE100_1A!$F$95,ROWS($F$95:F167)-1,COLUMNS($F$95:F167)-1)<>"",OFFSET(DE100_1A!$F$95,ROWS($F$95:F167)-1,COLUMNS($F$95:F167)-1),"") -> LF | E162: =IF(OFFSET(DE100_1A!$G$95,ROWS($G$95:G167)-1,COLUMNS($G$95:G167)-1)<>"",OFFSET(DE100_1A!$G$95,ROWS($G$95:G167)-1,COLUMNS($G$95:G167)-1),"") -> 199,717.7 | F162: =IF(OFFSET(DE100_1A!$H$95,ROWS($H$95:H167)-1,COLUMNS($H$95:H167)-1)<>"",OFFSET(DE100_1A!$H$95,ROWS($H$95:H167)-1,COLUMNS($H$95:H167)-1),"") -> 
A163: =IF(OFFSET(DE100_1A!$C$95,ROWS($C$95:C168)-1,COLUMNS($C$95:C168)-1)<>"",OFFSET(DE100_1A!$C$95,ROWS($C$95:C168)-1,COLUMNS($C$95:C168)-1),"") -> 126 | B163: =IF(OFFSET(DE100_1A!$D$95,ROWS($D$95:D168)-1,COLUMNS($D$95:D168)-1)<>"",OFFSET(DE100_1A!$D$95,ROWS($D$95:D168)-1,COLUMNS($D$95:D168)-1),"") -> 2602-0000080 | C163: =IF(OFFSET(DE100_1A!$E$95,ROWS($E$95:E168)-1,COLUMNS($E$95:E168)-1)<>"",OFFSET(DE100_1A!$E$95,ROWS($E$95:E168)-1,COLUMNS($E$95:E168)-1),"") -> REMOVAL OF SILT BASINS | D163: =IF(OFFSET(DE100_1A!$F$95,ROWS($F$95:F168)-1,COLUMNS($F$95:F168)-1)<>"",OFFSET(DE100_1A!$F$95,ROWS($F$95:F168)-1,COLUMNS($F$95:F168)-1),"") -> EACH | E163: =IF(OFFSET(DE100_1A!$G$95,ROWS($G$95:G168)-1,COLUMNS($G$95:G168)-1)<>"",OFFSET(DE100_1A!$G$95,ROWS($G$95:G168)-1,COLUMNS($G$95:G168)-1),"") -> 225 | F163: =IF(OFFSET(DE100_1A!$H$95,ROWS($H$95:H168)-1,COLUMNS($H$95:H168)-1)<>"",OFFSET(DE100_1A!$H$95,ROWS($H$95:H168)-1,COLUMNS($H$95:H168)-1),"") -> 
A164: =IF(OFFSET(DE100_1A!$C$95,ROWS($C$95:C169)-1,COLUMNS($C$95:C169)-1)<>"",OFFSET(DE100_1A!$C$95,ROWS($C$95:C169)-1,COLUMNS($C$95:C169)-1),"") -> 127 | B164: =IF(OFFSET(DE100_1A!$D$95,ROWS($D$95:D169)-1,COLUMNS($D$95:D169)-1)<>"",OFFSET(DE100_1A!$D$95,ROWS($D$95:D169)-1,COLUMNS($D$95:D169)-1),"") -> 2602-0000101 | C164: =IF(OFFSET(DE100_1A!$E$95,ROWS($E$95:E169)-1,COLUMNS($E$95:E169)-1)<>"",OFFSET(DE100_1A!$E$95,ROWS($E$95:E169)-1,COLUMNS($E$95:E169)-1),"") -> MAINTENANCE OF SILT FENCE OR SILT FENCE FOR DITCH CHECK | D164: =IF(OFFSET(DE100_1A!$F$95,ROWS($F$95:F169)-1,COLUMNS($F$95:F169)-1)<>"",OFFSET(DE100_1A!$F$95,ROWS($F$95:F169)-1,COLUMNS($F$95:F169)-1),"") -> LF | E164: =IF(OFFSET(DE100_1A!$G$95,ROWS($G$95:G169)-1,COLUMNS($G$95:G169)-1)<>"",OFFSET(DE100_1A!$G$95,ROWS($G$95:G169)-1,COLUMNS($G$95:G169)-1),"") -> 39,943.5 | F164: =IF(OFFSET(DE100_1A!$H$95,ROWS($H$95:H169)-1,COLUMNS($H$95:H169)-1)<>"",OFFSET(DE100_1A!$H$95,ROWS($H$95:H169)-1,COLUMNS($H$95:H169)-1),"") -> 
A165: =IF(OFFSET(DE100_1A!$C$95,ROWS($C$95:C170)-1,COLUMNS($C$95:C170)-1)<>"",OFFSET(DE100_1A!$C$95,ROWS($C$95:C170)-1,COLUMNS($C$95:C170)-1),"") -> 128 | B165: =IF(OFFSET(DE100_1A!$D$95,ROWS($D$95:D170)-1,COLUMNS($D$95:D170)-1)<>"",OFFSET(DE100_1A!$D$95,ROWS($D$95:D170)-1,COLUMNS($D$95:D170)-1),"") -> 2602-0000130 | C165: =IF(OFFSET(DE100_1A!$E$95,ROWS($E$95:E170)-1,COLUMNS($E$95:E170)-1)<>"",OFFSET(DE100_1A!$E$95,ROWS($E$95:E170)-1,COLUMNS($E$95:E170)-1),"") -> TEMPORARY SEDIMENT CONTROL BASIN | D165: =IF(OFFSET(DE100_1A!$F$95,ROWS($F$95:F170)-1,COLUMNS($F$95:F170)-1)<>"",OFFSET(DE100_1A!$F$95,ROWS($F$95:F170)-1,COLUMNS($F$95:F170)-1),"") -> EACH | E165: =IF(OFFSET(DE100_1A!$G$95,ROWS($G$95:G170)-1,COLUMNS($G$95:G170)-1)<>"",OFFSET(DE100_1A!$G$95,ROWS($G$95:G170)-1,COLUMNS($G$95:G170)-1),"") -> 72 | F165: =IF(OFFSET(DE100_1A!$H$95,ROWS($H$95:H170)-1,COLUMNS($H$95:H170)-1)<>"",OFFSET(DE100_1A!$H$95,ROWS($H$95:H170)-1,COLUMNS($H$95:H170)-1),"") -> 
A166: =IF(OFFSET(DE100_1A!$C$95,ROWS($C$95:C171)-1,COLUMNS($C$95:C171)-1)<>"",OFFSET(DE100_1A!$C$95,ROWS($C$95:C171)-1,COLUMNS($C$95:C171)-1),"") -> 129 | B166: =IF(OFFSET(DE100_1A!$D$95,ROWS($D$95:D171)-1,COLUMNS($D$95:D171)-1)<>"",OFFSET(DE100_1A!$D$95,ROWS($D$95:D171)-1,COLUMNS($D$95:D171)-1),"") -> 2602-0000135 | C166: =IF(OFFSET(DE100_1A!$E$95,ROWS($E$95:E171)-1,COLUMNS($E$95:E171)-1)<>"",OFFSET(DE100_1A!$E$95,ROWS($E$95:E171)-1,COLUMNS($E$95:E171)-1),"") -> REMOVAL OF TEMPORARY SEDIMENT CONTROL BASIN | D166: =IF(OFFSET(DE100_1A!$F$95,ROWS($F$95:F171)-1,COLUMNS($F$95:F171)-1)<>"",OFFSET(DE100_1A!$F$95,ROWS($F$95:F171)-1,COLUMNS($F$95:F171)-1),"") -> EACH | E166: =IF(OFFSET(DE100_1A!$G$95,ROWS($G$95:G171)-1,COLUMNS($G$95:G171)-1)<>"",OFFSET(DE100_1A!$G$95,ROWS($G$95:G171)-1,COLUMNS($G$95:G171)-1),"") -> 72 | F166: =IF(OFFSET(DE100_1A!$H$95,ROWS($H$95:H171)-1,COLUMNS($H$95:H171)-1)<>"",OFFSET(DE100_1A!$H$95,ROWS($H$95:H171)-1,COLUMNS($H$95:H171)-1),"") -> 
A167: =IF(OFFSET(DE100_1A!$C$95,ROWS($C$95:C172)-1,COLUMNS($C$95:C172)-1)<>"",OFFSET(DE100_1A!$C$95,ROWS($C$95:C172)-1,COLUMNS($C$95:C172)-1),"") -> 130 | B167: =IF(OFFSET(DE100_1A!$D$95,ROWS($D$95:D172)-1,COLUMNS($D$95:D172)-1)<>"",OFFSET(DE100_1A!$D$95,ROWS($D$95:D172)-1,COLUMNS($D$95:D172)-1),"") -> 2602-0000140 | C167: =IF(OFFSET(DE100_1A!$E$95,ROWS($E$95:E172)-1,COLUMNS($E$95:E172)-1)<>"",OFFSET(DE100_1A!$E$95,ROWS($E$95:E172)-1,COLUMNS($E$95:E172)-1),"") -> MAINTENANCE OF TEMPORARY SEDIMENT CONTROL BASIN | D167: =IF(OFFSET(DE100_1A!$F$95,ROWS($F$95:F172)-1,COLUMNS($F$95:F172)-1)<>"",OFFSET(DE100_1A!$F$95,ROWS($F$95:F172)-1,COLUMNS($F$95:F172)-1),"") -> EACH | E167: =IF(OFFSET(DE100_1A!$G$95,ROWS($G$95:G172)-1,COLUMNS($G$95:G172)-1)<>"",OFFSET(DE100_1A!$G$95,ROWS($G$95:G172)-1,COLUMNS($G$95:G172)-1),"") -> 216 | F167: =IF(OFFSET(DE100_1A!$H$95,ROWS($H$95:H172)-1,COLUMNS($H$95:H172)-1)<>"",OFFSET(DE100_1A!$H$95,ROWS($H$95:H172)-1,COLUMNS($H$95:H172)-1),"") -> 
A168: =IF(OFFSET(DE100_1A!$C$95,ROWS($C$95:C173)-1,COLUMNS($C$95:C173)-1)<>"",OFFSET(DE100_1A!$C$95,ROWS($C$95:C173)-1,COLUMNS($C$95:C173)-1),"") -> 131 | B168: =IF(OFFSET(DE100_1A!$D$95,ROWS($D$95:D173)-1,COLUMNS($D$95:D173)-1)<>"",OFFSET(DE100_1A!$D$95,ROWS($D$95:D173)-1,COLUMNS($D$95:D173)-1),"") -> 2602-0000150 | C168: =IF(OFFSET(DE100_1A!$E$95,ROWS($E$95:E173)-1,COLUMNS($E$95:E173)-1)<>"",OFFSET(DE100_1A!$E$95,ROWS($E$95:E173)-1,COLUMNS($E$95:E173)-1),"") -> STABILIZED CONSTRUCTION ENTRANCE | D168: =IF(OFFSET(DE100_1A!$F$95,ROWS($F$95:F173)-1,COLUMNS($F$95:F173)-1)<>"",OFFSET(DE100_1A!$F$95,ROWS($F$95:F173)-1,COLUMNS($F$95:F173)-1),"") -> LF | E168: =IF(OFFSET(DE100_1A!$G$95,ROWS($G$95:G173)-1,COLUMNS($G$95:G173)-1)<>"",OFFSET(DE100_1A!$G$95,ROWS($G$95:G173)-1,COLUMNS($G$95:G173)-1),"") -> 3,000.0 | F168: =IF(OFFSET(DE100_1A!$H$95,ROWS($H$95:H173)-1,COLUMNS($H$95:H173)-1)<>"",OFFSET(DE100_1A!$H$95,ROWS($H$95:H173)-1,COLUMNS($H$95:H173)-1),"") -> 
A169: =IF(OFFSET(DE100_1A!$C$95,ROWS($C$95:C174)-1,COLUMNS($C$95:C174)-1)<>"",OFFSET(DE100_1A!$C$95,ROWS($C$95:C174)-1,COLUMNS($C$95:C174)-1),"") -> 132 | B169: =IF(OFFSET(DE100_1A!$D$95,ROWS($D$95:D174)-1,COLUMNS($D$95:D174)-1)<>"",OFFSET(DE100_1A!$D$95,ROWS($D$95:D174)-1,COLUMNS($D$95:D174)-1),"") -> 2602-0000160 | C169: =IF(OFFSET(DE100_1A!$E$95,ROWS($E$95:E174)-1,COLUMNS($E$95:E174)-1)<>"",OFFSET(DE100_1A!$E$95,ROWS($E$95:E174)-1,COLUMNS($E$95:E174)-1),"") -> ROCK CHECK DAM | D169: =IF(OFFSET(DE100_1A!$F$95,ROWS($F$95:F174)-1,COLUMNS($F$95:F174)-1)<>"",OFFSET(DE100_1A!$F$95,ROWS($F$95:F174)-1,COLUMNS($F$95:F174)-1),"") -> LF | E169: =IF(OFFSET(DE100_1A!$G$95,ROWS($G$95:G174)-1,COLUMNS($G$95:G174)-1)<>"",OFFSET(DE100_1A!$G$95,ROWS($G$95:G174)-1,COLUMNS($G$95:G174)-1),"") -> 21726 | F169: =IF(OFFSET(DE100_1A!$H$95,ROWS($H$95:H174)-1,COLUMNS($H$95:H174)-1)<>"",OFFSET(DE100_1A!$H$95,ROWS($H$95:H174)-1,COLUMNS($H$95:H174)-1),"") -> 
A170: =IF(OFFSET(DE100_1A!$C$95,ROWS($C$95:C175)-1,COLUMNS($C$95:C175)-1)<>"",OFFSET(DE100_1A!$C$95,ROWS($C$95:C175)-1,COLUMNS($C$95:C175)-1),"") -> 133 | B170: =IF(OFFSET(DE100_1A!$D$95,ROWS($D$95:D175)-1,COLUMNS($D$95:D175)-1)<>"",OFFSET(DE100_1A!$D$95,ROWS($D$95:D175)-1,COLUMNS($D$95:D175)-1),"") -> 2602-0000170 | C170: =IF(OFFSET(DE100_1A!$E$95,ROWS($E$95:E175)-1,COLUMNS($E$95:E175)-1)<>"",OFFSET(DE100_1A!$E$95,ROWS($E$95:E175)-1,COLUMNS($E$95:E175)-1),"") -> MAINTENANCE OF ROCK CHECK DAM | D170: =IF(OFFSET(DE100_1A!$F$95,ROWS($F$95:F175)-1,COLUMNS($F$95:F175)-1)<>"",OFFSET(DE100_1A!$F$95,ROWS($F$95:F175)-1,COLUMNS($F$95:F175)-1),"") -> EACH | E170: =IF(OFFSET(DE100_1A!$G$95,ROWS($G$95:G175)-1,COLUMNS($G$95:G175)-1)<>"",OFFSET(DE100_1A!$G$95,ROWS($G$95:G175)-1,COLUMNS($G$95:G175)-1),"") -> 3018 | F170: =IF(OFFSET(DE100_1A!$H$95,ROWS($H$95:H175)-1,COLUMNS($H$95:H175)-1)<>"",OFFSET(DE100_1A!$H$95,ROWS($H$95:H175)-1,COLUMNS($H$95:H175)-1),"") -> 
A171: =IF(OFFSET(DE100_1A!$C$95,ROWS($C$95:C176)-1,COLUMNS($C$95:C176)-1)<>"",OFFSET(DE100_1A!$C$95,ROWS($C$95:C176)-1,COLUMNS($C$95:C176)-1),"") -> 134 | B171: =IF(OFFSET(DE100_1A!$D$95,ROWS($D$95:D176)-1,COLUMNS($D$95:D176)-1)<>"",OFFSET(DE100_1A!$D$95,ROWS($D$95:D176)-1,COLUMNS($D$95:D176)-1),"") -> 2602-0000180 | C171: =IF(OFFSET(DE100_1A!$E$95,ROWS($E$95:E176)-1,COLUMNS($E$95:E176)-1)<>"",OFFSET(DE100_1A!$E$95,ROWS($E$95:E176)-1,COLUMNS($E$95:E176)-1),"") -> REMOVAL OF ROCK CHECK DAM | D171: =IF(OFFSET(DE100_1A!$F$95,ROWS($F$95:F176)-1,COLUMNS($F$95:F176)-1)<>"",OFFSET(DE100_1A!$F$95,ROWS($F$95:F176)-1,COLUMNS($F$95:F176)-1),"") -> EACH | E171: =IF(OFFSET(DE100_1A!$G$95,ROWS($G$95:G176)-1,COLUMNS($G$95:G176)-1)<>"",OFFSET(DE100_1A!$G$95,ROWS($G$95:G176)-1,COLUMNS($G$95:G176)-1),"") -> 1006 | F171: =IF(OFFSET(DE100_1A!$H$95,ROWS($H$95:H176)-1,COLUMNS($H$95:H176)-1)<>"",OFFSET(DE100_1A!$H$95,ROWS($H$95:H176)-1,COLUMNS($H$95:H176)-1),"") -> 
A172: 100-1A
A173: 1997-07-15
A174: ESTIMATED PROJECT QUANTITIES (1 DIVISION PROJECT)
A178: Item No. | B178: Item Code | C178: Item | D178: Unit | E178: Total | F178: As Built Qty.
A180: =IF(OFFSET(DE100_1A!$C$177,ROWS($C$177:C177)-1,COLUMNS($C$177:C177)-1)<>"",OFFSET(DE100_1A!$C$177,ROWS($C$177:C177)-1,COLUMNS($C$177:C177)-1),"") -> 135 | B180: =IF(OFFSET(DE100_1A!$D$177,ROWS($D$177:D177)-1,COLUMNS($D$177:D177)-1)<>"",OFFSET(DE100_1A!$D$177,ROWS($D$177:D177)-1,COLUMNS($D$177:D177)-1),"") -> 2602-0000312 | C180: =IF(OFFSET(DE100_1A!$E$177,ROWS($E$177:E177)-1,COLUMNS($E$177:E177)-1)<>"",OFFSET(DE100_1A!$E$177,ROWS($E$177:E177)-1,COLUMNS($E$177:E177)-1),"") -> PERIMETER AND SLOPE SEDIMENT CONTROL DEVICE, 12 IN. DIA. | D180: =IF(OFFSET(DE100_1A!$F$177,ROWS($F$177:F177)-1,COLUMNS($F$177:F177)-1)<>"",OFFSET(DE100_1A!$F$177,ROWS($F$177:F177)-1,COLUMNS($F$177:F177)-1),"") -> LF | E180: =IF(OFFSET(DE100_1A!$G$177,ROWS($G$177:G177)-1,COLUMNS($G$177:G177)-1)<>"",OFFSET(DE100_1A!$G$177,ROWS($G$177:G177)-1,COLUMNS($G$177:G177)-1),"") -> 3,390.0 | F180: =IF(OFFSET(DE100_1A!$H$177,ROWS($H$177:H177)-1,COLUMNS($H$177:H177)-1)<>"",OFFSET(DE100_1A!$H$177,ROWS($H$177:H177)-1,COLUMNS($H$177:H177)-1),"") -> 
A181: =IF(OFFSET(DE100_1A!$C$177,ROWS($C$177:C178)-1,COLUMNS($C$177:C178)-1)<>"",OFFSET(DE100_1A!$C$177,ROWS($C$177:C178)-1,COLUMNS($C$177:C178)-1),"") -> 136 | B181: =IF(OFFSET(DE100_1A!$D$177,ROWS($D$177:D178)-1,COLUMNS($D$177:D178)-1)<>"",OFFSET(DE100_1A!$D$177,ROWS($D$177:D178)-1,COLUMNS($D$177:D178)-1),"") -> 2602-0000320 | C181: =IF(OFFSET(DE100_1A!$E$177,ROWS($E$177:E178)-1,COLUMNS($E$177:E178)-1)<>"",OFFSET(DE100_1A!$E$177,ROWS($E$177:E178)-1,COLUMNS($E$177:E178)-1),"") -> PERIMETER AND SLOPE SEDIMENT CONTROL DEVICE, 20 IN. DIA. | D181: =IF(OFFSET(DE100_1A!$F$177,ROWS($F$177:F178)-1,COLUMNS($F$177:F178)-1)<>"",OFFSET(DE100_1A!$F$177,ROWS($F$177:F178)-1,COLUMNS($F$177:F178)-1),"") -> LF | E181: =IF(OFFSET(DE100_1A!$G$177,ROWS($G$177:G178)-1,COLUMNS($G$177:G178)-1)<>"",OFFSET(DE100_1A!$G$177,ROWS($G$177:G178)-1,COLUMNS($G$177:G178)-1),"") -> 15,540.0 | F181: =IF(OFFSET(DE100_1A!$H$177,ROWS($H$177:H178)-1,COLUMNS($H$177:H178)-1)<>"",OFFSET(DE100_1A!$H$177,ROWS($H$177:H178)-1,COLUMNS($H$177:H178)-1),"") -> 
A182: =IF(OFFSET(DE100_1A!$C$177,ROWS($C$177:C179)-1,COLUMNS($C$177:C179)-1)<>"",OFFSET(DE100_1A!$C$177,ROWS($C$177:C179)-1,COLUMNS($C$177:C179)-1),"") -> 137 | B182: =IF(OFFSET(DE100_1A!$D$177,ROWS($D$177:D179)-1,COLUMNS($D$177:D179)-1)<>"",OFFSET(DE100_1A!$D$177,ROWS($D$177:D179)-1,COLUMNS($D$177:D179)-1),"") -> 2602-0000350 | C182: =IF(OFFSET(DE100_1A!$E$177,ROWS($E$177:E179)-1,COLUMNS($E$177:E179)-1)<>"",OFFSET(DE100_1A!$E$177,ROWS($E$177:E179)-1,COLUMNS($E$177:E179)-1),"") -> REMOVAL OF PERIMETER AND SLOPE SEDIMENT CONTROL DEVICE | D182: =IF(OFFSET(DE100_1A!$F$177,ROWS($F$177:F179)-1,COLUMNS($F$177:F179)-1)<>"",OFFSET(DE100_1A!$F$177,ROWS($F$177:F179)-1,COLUMNS($F$177:F179)-1),"") -> LF | E182: =IF(OFFSET(DE100_1A!$G$177,ROWS($G$177:G179)-1,COLUMNS($G$177:G179)-1)<>"",OFFSET(DE100_1A!$G$177,ROWS($G$177:G179)-1,COLUMNS($G$177:G179)-1),"") -> 4,000.0 | F182: =IF(OFFSET(DE100_1A!$H$177,ROWS($H$177:H179)-1,COLUMNS($H$177:H179)-1)<>"",OFFSET(DE100_1A!$H$177,ROWS($H$177:H179)-1,COLUMNS($H$177:H179)-1),"") -> 
A183: =IF(OFFSET(DE100_1A!$C$177,ROWS($C$177:C180)-1,COLUMNS($C$177:C180)-1)<>"",OFFSET(DE100_1A!$C$177,ROWS($C$177:C180)-1,COLUMNS($C$177:C180)-1),"") -> 138 | B183: =IF(OFFSET(DE100_1A!$D$177,ROWS($D$177:D180)-1,COLUMNS($D$177:D180)-1)<>"",OFFSET(DE100_1A!$D$177,ROWS($D$177:D180)-1,COLUMNS($D$177:D180)-1),"") -> 2602-0010010 | C183: =IF(OFFSET(DE100_1A!$E$177,ROWS($E$177:E180)-1,COLUMNS($E$177:E180)-1)<>"",OFFSET(DE100_1A!$E$177,ROWS($E$177:E180)-1,COLUMNS($E$177:E180)-1),"") -> MOBILIZATIONS, EROSION CONTROL | D183: =IF(OFFSET(DE100_1A!$F$177,ROWS($F$177:F180)-1,COLUMNS($F$177:F180)-1)<>"",OFFSET(DE100_1A!$F$177,ROWS($F$177:F180)-1,COLUMNS($F$177:F180)-1),"") -> EACH | E183: =IF(OFFSET(DE100_1A!$G$177,ROWS($G$177:G180)-1,COLUMNS($G$177:G180)-1)<>"",OFFSET(DE100_1A!$G$177,ROWS($G$177:G180)-1,COLUMNS($G$177:G180)-1),"") -> 1 | F183: =IF(OFFSET(DE100_1A!$H$177,ROWS($H$177:H180)-1,COLUMNS($H$177:H180)-1)<>"",OFFSET(DE100_1A!$H$177,ROWS($H$177:H180)-1,COLUMNS($H$177:H180)-1),"") -> 
A184: =IF(OFFSET(DE100_1A!$C$177,ROWS($C$177:C181)-1,COLUMNS($C$177:C181)-1)<>"",OFFSET(DE100_1A!$C$177,ROWS($C$177:C181)-1,COLUMNS($C$177:C181)-1),"") -> 139 | B184: =IF(OFFSET(DE100_1A!$D$177,ROWS($D$177:D181)-1,COLUMNS($D$177:D181)-1)<>"",OFFSET(DE100_1A!$D$177,ROWS($D$177:D181)-1,COLUMNS($D$177:D181)-1),"") -> 2602-0010020 | C184: =IF(OFFSET(DE100_1A!$E$177,ROWS($E$177:E181)-1,COLUMNS($E$177:E181)-1)<>"",OFFSET(DE100_1A!$E$177,ROWS($E$177:E181)-1,COLUMNS($E$177:E181)-1),"") -> MOBILIZATIONS, EMERGENCY EROSION CONTROL | D184: =IF(OFFSET(DE100_1A!$F$177,ROWS($F$177:F181)-1,COLUMNS($F$177:F181)-1)<>"",OFFSET(DE100_1A!$F$177,ROWS($F$177:F181)-1,COLUMNS($F$177:F181)-1),"") -> EACH | E184: =IF(OFFSET(DE100_1A!$G$177,ROWS($G$177:G181)-1,COLUMNS($G$177:G181)-1)<>"",OFFSET(DE100_1A!$G$177,ROWS($G$177:G181)-1,COLUMNS($G$177:G181)-1),"") -> 1 | F184: =IF(OFFSET(DE100_1A!$H$177,ROWS($H$177:H181)-1,COLUMNS($H$177:H181)-1)<>"",OFFSET(DE100_1A!$H$177,ROWS($H$177:H181)-1,COLUMNS($H$177:H181)-1),"") -> 
A185: =IF(OFFSET(DE100_1A!$C$177,ROWS($C$177:C182)-1,COLUMNS($C$177:C182)-1)<>"",OFFSET(DE100_1A!$C$177,ROWS($C$177:C182)-1,COLUMNS($C$177:C182)-1),"") -> 140 | B185: =IF(OFFSET(DE100_1A!$D$177,ROWS($D$177:D182)-1,COLUMNS($D$177:D182)-1)<>"",OFFSET(DE100_1A!$D$177,ROWS($D$177:D182)-1,COLUMNS($D$177:D182)-1),"") -> 2612-0000520 | C185: =IF(OFFSET(DE100_1A!$E$177,ROWS($E$177:E182)-1,COLUMNS($E$177:E182)-1)<>"",OFFSET(DE100_1A!$E$177,ROWS($E$177:E182)-1,COLUMNS($E$177:E182)-1),"") -> ROADSIDE SPRAY FOR WEED CONTROL | D185: =IF(OFFSET(DE100_1A!$F$177,ROWS($F$177:F182)-1,COLUMNS($F$177:F182)-1)<>"",OFFSET(DE100_1A!$F$177,ROWS($F$177:F182)-1,COLUMNS($F$177:F182)-1),"") -> ACRE | E185: =IF(OFFSET(DE100_1A!$G$177,ROWS($G$177:G182)-1,COLUMNS($G$177:G182)-1)<>"",OFFSET(DE100_1A!$G$177,ROWS($G$177:G182)-1,COLUMNS($G$177:G182)-1),"") -> 42.0 | F185: =IF(OFFSET(DE100_1A!$H$177,ROWS($H$177:H182)-1,COLUMNS($H$177:H182)-1)<>"",OFFSET(DE100_1A!$H$177,ROWS($H$177:H182)-1,COLUMNS($H$177:H182)-1),"") -> 
A186: =IF(OFFSET(DE100_1A!$C$177,ROWS($C$177:C183)-1,COLUMNS($C$177:C183)-1)<>"",OFFSET(DE100_1A!$C$177,ROWS($C$177:C183)-1,COLUMNS($C$177:C183)-1),"") ->  | B186: =IF(OFFSET(DE100_1A!$D$177,ROWS($D$177:D183)-1,COLUMNS($D$177:D183)-1)<>"",OFFSET(DE100_1A!$D$177,ROWS($D$177:D183)-1,COLUMNS($D$177:D183)-1),"") ->  | C186: =IF(OFFSET(DE100_1A!$E$177,ROWS($E$177:E183)-1,COLUMNS($E$177:E183)-1)<>"",OFFSET(DE100_1A!$E$177,ROWS($E$177:E183)-1,COLUMNS($E$177:E183)-1),"") ->  | D186: =IF(OFFSET(DE100_1A!$F$177,ROWS($F$177:F183)-1,COLUMNS($F$177:F183)-1)<>"",OFFSET(DE100_1A!$F$177,ROWS($F$177:F183)-1,COLUMNS($F$177:F183)-1),"") ->  | E186: =IF(OFFSET(DE100_1A!$G$177,ROWS($G$177:G183)-1,COLUMNS($G$177:G183)-1)<>"",OFFSET(DE100_1A!$G$177,ROWS($G$177:G183)-1,COLUMNS($G$177:G183)-1),"") ->  | F186: =IF(OFFSET(DE100_1A!$H$177,ROWS($H$177:H183)-1,COLUMNS($H$177:H183)-1)<>"",OFFSET(DE100_1A!$H$177,ROWS($H$177:H183)-1,COLUMNS($H$177:H183)-1),"") -> 
A187: =IF(OFFSET(DE100_1A!$C$177,ROWS($C$177:C184)-1,COLUMNS($C$177:C184)-1)<>"",OFFSET(DE100_1A!$C$177,ROWS($C$177:C184)-1,COLUMNS($C$177:C184)-1),"") ->  | B187: =IF(OFFSET(DE100_1A!$D$177,ROWS($D$177:D184)-1,COLUMNS($D$177:D184)-1)<>"",OFFSET(DE100_1A!$D$177,ROWS($D$177:D184)-1,COLUMNS($D$177:D184)-1),"") ->  | C187: =IF(OFFSET(DE100_1A!$E$177,ROWS($E$177:E184)-1,COLUMNS($E$177:E184)-1)<>"",OFFSET(DE100_1A!$E$177,ROWS($E$177:E184)-1,COLUMNS($E$177:E184)-1),"") ->  | D187: =IF(OFFSET(DE100_1A!$F$177,ROWS($F$177:F184)-1,COLUMNS($F$177:F184)-1)<>"",OFFSET(DE100_1A!$F$177,ROWS($F$177:F184)-1,COLUMNS($F$177:F184)-1),"") ->  | E187: =IF(OFFSET(DE100_1A!$G$177,ROWS($G$177:G184)-1,COLUMNS($G$177:G184)-1)<>"",OFFSET(DE100_1A!$G$177,ROWS($G$177:G184)-1,COLUMNS($G$177:G184)-1),"") ->  | F187: =IF(OFFSET(DE100_1A!$H$177,ROWS($H$177:H184)-1,COLUMNS($H$177:H184)-1)<>"",OFFSET(DE100_1A!$H$177,ROWS($H$177:H184)-1,COLUMNS($H$177:H184)-1),"") -> 
A188: =IF(OFFSET(DE100_1A!$C$177,ROWS($C$177:C185)-1,COLUMNS($C$177:C185)-1)<>"",OFFSET(DE100_1A!$C$177,ROWS($C$177:C185)-1,COLUMNS($C$177:C185)-1),"") ->  | B188: =IF(OFFSET(DE100_1A!$D$177,ROWS($D$177:D185)-1,COLUMNS($D$177:D185)-1)<>"",OFFSET(DE100_1A!$D$177,ROWS($D$177:D185)-1,COLUMNS($D$177:D185)-1),"") ->  | C188: =IF(OFFSET(DE100_1A!$E$177,ROWS($E$177:E185)-1,COLUMNS($E$177:E185)-1)<>"",OFFSET(DE100_1A!$E$177,ROWS($E$177:E185)-1,COLUMNS($E$177:E185)-1),"") ->  | D188: =IF(OFFSET(DE100_1A!$F$177,ROWS($F$177:F185)-1,COLUMNS($F$177:F185)-1)<>"",OFFSET(DE100_1A!$F$177,ROWS($F$177:F185)-1,COLUMNS($F$177:F185)-1),"") ->  | E188: =IF(OFFSET(DE100_1A!$G$177,ROWS($G$177:G185)-1,COLUMNS($G$177:G185)-1)<>"",OFFSET(DE100_1A!$G$177,ROWS($G$177:G185)-1,COLUMNS($G$177:G185)-1),"") ->  | F188: =IF(OFFSET(DE100_1A!$H$177,ROWS($H$177:H185)-1,COLUMNS($H$177:H185)-1)<>"",OFFSET(DE100_1A!$H$177,ROWS($H$177:H185)-1,COLUMNS($H$177:H185)-1),"") -> 
A189: =IF(OFFSET(DE100_1A!$C$177,ROWS($C$177:C186)-1,COLUMNS($C$177:C186)-1)<>"",OFFSET(DE100_1A!$C$177,ROWS($C$177:C186)-1,COLUMNS($C$177:C186)-1),"") ->  | B189: =IF(OFFSET(DE100_1A!$D$177,ROWS($D$177:D186)-1,COLUMNS($D$177:D186)-1)<>"",OFFSET(DE100_1A!$D$177,ROWS($D$177:D186)-1,COLUMNS($D$177:D186)-1),"") ->  | C189: =IF(OFFSET(DE100_1A!$E$177,ROWS($E$177:E186)-1,COLUMNS($E$177:E186)-1)<>"",OFFSET(DE100_1A!$E$177,ROWS($E$177:E186)-1,COLUMNS($E$177:E186)-1),"") ->  | D189: =IF(OFFSET(DE100_1A!$F$177,ROWS($F$177:F186)-1,COLUMNS($F$177:F186)-1)<>"",OFFSET(DE100_1A!$F$177,ROWS($F$177:F186)-1,COLUMNS($F$177:F186)-1),"") ->  | E189: =IF(OFFSET(DE100_1A!$G$177,ROWS($G$177:G186)-1,COLUMNS($G$177:G186)-1)<>"",OFFSET(DE100_1A!$G$177,ROWS($G$177:G186)-1,COLUMNS($G$177:G186)-1),"") ->  | F189: =IF(OFFSET(DE100_1A!$H$177,ROWS($H$177:H186)-1,COLUMNS($H$177:H186)-1)<>"",OFFSET(DE100_1A!$H$177,ROWS($H$177:H186)-1,COLUMNS($H$177:H186)-1),"") -> 
A190: =IF(OFFSET(DE100_1A!$C$177,ROWS($C$177:C187)-1,COLUMNS($C$177:C187)-1)<>"",OFFSET(DE100_1A!$C$177,ROWS($C$177:C187)-1,COLUMNS($C$177:C187)-1),"") ->  | B190: =IF(OFFSET(DE100_1A!$D$177,ROWS($D$177:D187)-1,COLUMNS($D$177:D187)-1)<>"",OFFSET(DE100_1A!$D$177,ROWS($D$177:D187)-1,COLUMNS($D$177:D187)-1),"") ->  | C190: =IF(OFFSET(DE100_1A!$E$177,ROWS($E$177:E187)-1,COLUMNS($E$177:E187)-1)<>"",OFFSET(DE100_1A!$E$177,ROWS($E$177:E187)-1,COLUMNS($E$177:E187)-1),"") ->  | D190: =IF(OFFSET(DE100_1A!$F$177,ROWS($F$177:F187)-1,COLUMNS($F$177:F187)-1)<>"",OFFSET(DE100_1A!$F$177,ROWS($F$177:F187)-1,COLUMNS($F$177:F187)-1),"") ->  | E190: =IF(OFFSET(DE100_1A!$G$177,ROWS($G$177:G187)-1,COLUMNS($G$177:G187)-1)<>"",OFFSET(DE100_1A!$G$177,ROWS($G$177:G187)-1,COLUMNS($G$177:G187)-1),"") ->  | F190: =IF(OFFSET(DE100_1A!$H$177,ROWS($H$177:H187)-1,COLUMNS($H$177:H187)-1)<>"",OFFSET(DE100_1A!$H$177,ROWS($H$177:H187)-1,COLUMNS($H$177:H187)-1),"") -> 
A191: =IF(OFFSET(DE100_1A!$C$177,ROWS($C$177:C188)-1,COLUMNS($C$177:C188)-1)<>"",OFFSET(DE100_1A!$C$177,ROWS($C$177:C188)-1,COLUMNS($C$177:C188)-1),"") ->  | B191: =IF(OFFSET(DE100_1A!$D$177,ROWS($D$177:D188)-1,COLUMNS($D$177:D188)-1)<>"",OFFSET(DE100_1A!$D$177,ROWS($D$177:D188)-1,COLUMNS($D$177:D188)-1),"") ->  | C191: =IF(OFFSET(DE100_1A!$E$177,ROWS($E$177:E188)-1,COLUMNS($E$177:E188)-1)<>"",OFFSET(DE100_1A!$E$177,ROWS($E$177:E188)-1,COLUMNS($E$177:E188)-1),"") ->  | D191: =IF(OFFSET(DE100_1A!$F$177,ROWS($F$177:F188)-1,COLUMNS($F$177:F188)-1)<>"",OFFSET(DE100_1A!$F$177,ROWS($F$177:F188)-1,COLUMNS($F$177:F188)-1),"") ->  | E191: =IF(OFFSET(DE100_1A!$G$177,ROWS($G$177:G188)-1,COLUMNS($G$177:G188)-1)<>"",OFFSET(DE100_1A!$G$177,ROWS($G$177:G188)-1,COLUMNS($G$177:G188)-1),"") ->  | F191: =IF(OFFSET(DE100_1A!$H$177,ROWS($H$177:H188)-1,COLUMNS($H$177:H188)-1)<>"",OFFSET(DE100_1A!$H$177,ROWS($H$177:H188)-1,COLUMNS($H$177:H188)-1),"") -> 
A192: =IF(OFFSET(DE100_1A!$C$177,ROWS($C$177:C189)-1,COLUMNS($C$177:C189)-1)<>"",OFFSET(DE100_1A!$C$177,ROWS($C$177:C189)-1,COLUMNS($C$177:C189)-1),"") ->  | B192: =IF(OFFSET(DE100_1A!$D$177,ROWS($D$177:D189)-1,COLUMNS($D$177:D189)-1)<>"",OFFSET(DE100_1A!$D$177,ROWS($D$177:D189)-1,COLUMNS($D$177:D189)-1),"") ->  | C192: =IF(OFFSET(DE100_1A!$E$177,ROWS($E$177:E189)-1,COLUMNS($E$177:E189)-1)<>"",OFFSET(DE100_1A!$E$177,ROWS($E$177:E189)-1,COLUMNS($E$177:E189)-1),"") ->  | D192: =IF(OFFSET(DE100_1A!$F$177,ROWS($F$177:F189)-1,COLUMNS($F$177:F189)-1)<>"",OFFSET(DE100_1A!$F$177,ROWS($F$177:F189)-1,COLUMNS($F$177:F189)-1),"") ->  | E192: =IF(OFFSET(DE100_1A!$G$177,ROWS($G$177:G189)-1,COLUMNS($G$177:G189)-1)<>"",OFFSET(DE100_1A!$G$177,ROWS($G$177:G189)-1,COLUMNS($G$177:G189)-1),"") ->  | F192: =IF(OFFSET(DE100_1A!$H$177,ROWS($H$177:H189)-1,COLUMNS($H$177:H189)-1)<>"",OFFSET(DE100_1A!$H$177,ROWS($H$177:H189)-1,COLUMNS($H$177:H189)-1),"") -> 
A193: =IF(OFFSET(DE100_1A!$C$177,ROWS($C$177:C190)-1,COLUMNS($C$177:C190)-1)<>"",OFFSET(DE100_1A!$C$177,ROWS($C$177:C190)-1,COLUMNS($C$177:C190)-1),"") ->  | B193: =IF(OFFSET(DE100_1A!$D$177,ROWS($D$177:D190)-1,COLUMNS($D$177:D190)-1)<>"",OFFSET(DE100_1A!$D$177,ROWS($D$177:D190)-1,COLUMNS($D$177:D190)-1),"") ->  | C193: =IF(OFFSET(DE100_1A!$E$177,ROWS($E$177:E190)-1,COLUMNS($E$177:E190)-1)<>"",OFFSET(DE100_1A!$E$177,ROWS($E$177:E190)-1,COLUMNS($E$177:E190)-1),"") ->  | D193: =IF(OFFSET(DE100_1A!$F$177,ROWS($F$177:F190)-1,COLUMNS($F$177:F190)-1)<>"",OFFSET(DE100_1A!$F$177,ROWS($F$177:F190)-1,COLUMNS($F$177:F190)-1),"") ->  | E193: =IF(OFFSET(DE100_1A!$G$177,ROWS($G$177:G190)-1,COLUMNS($G$177:G190)-1)<>"",OFFSET(DE100_1A!$G$177,ROWS($G$177:G190)-1,COLUMNS($G$177:G190)-1),"") ->  | F193: =IF(OFFSET(DE100_1A!$H$177,ROWS($H$177:H190)-1,COLUMNS($H$177:H190)-1)<>"",OFFSET(DE100_1A!$H$177,ROWS($H$177:H190)-1,COLUMNS($H$177:H190)-1),"") -> 
A194: =IF(OFFSET(DE100_1A!$C$177,ROWS($C$177:C191)-1,COLUMNS($C$177:C191)-1)<>"",OFFSET(DE100_1A!$C$177,ROWS($C$177:C191)-1,COLUMNS($C$177:C191)-1),"") ->  | B194: =IF(OFFSET(DE100_1A!$D$177,ROWS($D$177:D191)-1,COLUMNS($D$177:D191)-1)<>"",OFFSET(DE100_1A!$D$177,ROWS($D$177:D191)-1,COLUMNS($D$177:D191)-1),"") ->  | C194: =IF(OFFSET(DE100_1A!$E$177,ROWS($E$177:E191)-1,COLUMNS($E$177:E191)-1)<>"",OFFSET(DE100_1A!$E$177,ROWS($E$177:E191)-1,COLUMNS($E$177:E191)-1),"") ->  | D194: =IF(OFFSET(DE100_1A!$F$177,ROWS($F$177:F191)-1,COLUMNS($F$177:F191)-1)<>"",OFFSET(DE100_1A!$F$177,ROWS($F$177:F191)-1,COLUMNS($F$177:F191)-1),"") ->  | E194: =IF(OFFSET(DE100_1A!$G$177,ROWS($G$177:G191)-1,COLUMNS($G$177:G191)-1)<>"",OFFSET(DE100_1A!$G$177,ROWS($G$177:G191)-1,COLUMNS($G$177:G191)-1),"") ->  | F194: =IF(OFFSET(DE100_1A!$H$177,ROWS($H$177:H191)-1,COLUMNS($H$177:H191)-1)<>"",OFFSET(DE100_1A!$H$177,ROWS($H$177:H191)-1,COLUMNS($H$177:H191)-1),"") -> 
A195: =IF(OFFSET(DE100_1A!$C$177,ROWS($C$177:C192)-1,COLUMNS($C$177:C192)-1)<>"",OFFSET(DE100_1A!$C$177,ROWS($C$177:C192)-1,COLUMNS($C$177:C192)-1),"") ->  | B195: =IF(OFFSET(DE100_1A!$D$177,ROWS($D$177:D192)-1,COLUMNS($D$177:D192)-1)<>"",OFFSET(DE100_1A!$D$177,ROWS($D$177:D192)-1,COLUMNS($D$177:D192)-1),"") ->  | C195: =IF(OFFSET(DE100_1A!$E$177,ROWS($E$177:E192)-1,COLUMNS($E$177:E192)-1)<>"",OFFSET(DE100_1A!$E$177,ROWS($E$177:E192)-1,COLUMNS($E$177:E192)-1),"") ->  | D195: =IF(OFFSET(DE100_1A!$F$177,ROWS($F$177:F192)-1,COLUMNS($F$177:F192)-1)<>"",OFFSET(DE100_1A!$F$177,ROWS($F$177:F192)-1,COLUMNS($F$177:F192)-1),"") ->  | E195: =IF(OFFSET(DE100_1A!$G$177,ROWS($G$177:G192)-1,COLUMNS($G$177:G192)-1)<>"",OFFSET(DE100_1A!$G$177,ROWS($G$177:G192)-1,COLUMNS($G$177:G192)-1),"") ->  | F195: =IF(OFFSET(DE100_1A!$H$177,ROWS($H$177:H192)-1,COLUMNS($H$177:H192)-1)<>"",OFFSET(DE100_1A!$H$177,ROWS($H$177:H192)-1,COLUMNS($H$177:H192)-1),"") -> 
A196: =IF(OFFSET(DE100_1A!$C$177,ROWS($C$177:C193)-1,COLUMNS($C$177:C193)-1)<>"",OFFSET(DE100_1A!$C$177,ROWS($C$177:C193)-1,COLUMNS($C$177:C193)-1),"") ->  | B196: =IF(OFFSET(DE100_1A!$D$177,ROWS($D$177:D193)-1,COLUMNS($D$177:D193)-1)<>"",OFFSET(DE100_1A!$D$177,ROWS($D$177:D193)-1,COLUMNS($D$177:D193)-1),"") ->  | C196: =IF(OFFSET(DE100_1A!$E$177,ROWS($E$177:E193)-1,COLUMNS($E$177:E193)-1)<>"",OFFSET(DE100_1A!$E$177,ROWS($E$177:E193)-1,COLUMNS($E$177:E193)-1),"") ->  | D196: =IF(OFFSET(DE100_1A!$F$177,ROWS($F$177:F193)-1,COLUMNS($F$177:F193)-1)<>"",OFFSET(DE100_1A!$F$177,ROWS($F$177:F193)-1,COLUMNS($F$177:F193)-1),"") ->  | E196: =IF(OFFSET(DE100_1A!$G$177,ROWS($G$177:G193)-1,COLUMNS($G$177:G193)-1)<>"",OFFSET(DE100_1A!$G$177,ROWS($G$177:G193)-1,COLUMNS($G$177:G193)-1),"") ->  | F196: =IF(OFFSET(DE100_1A!$H$177,ROWS($H$177:H193)-1,COLUMNS($H$177:H193)-1)<>"",OFFSET(DE100_1A!$H$177,ROWS($H$177:H193)-1,COLUMNS($H$177:H193)-1),"") -> 
A197: =IF(OFFSET(DE100_1A!$C$177,ROWS($C$177:C194)-1,COLUMNS($C$177:C194)-1)<>"",OFFSET(DE100_1A!$C$177,ROWS($C$177:C194)-1,COLUMNS($C$177:C194)-1),"") ->  | B197: =IF(OFFSET(DE100_1A!$D$177,ROWS($D$177:D194)-1,COLUMNS($D$177:D194)-1)<>"",OFFSET(DE100_1A!$D$177,ROWS($D$177:D194)-1,COLUMNS($D$177:D194)-1),"") ->  | C197: =IF(OFFSET(DE100_1A!$E$177,ROWS($E$177:E194)-1,COLUMNS($E$177:E194)-1)<>"",OFFSET(DE100_1A!$E$177,ROWS($E$177:E194)-1,COLUMNS($E$177:E194)-1),"") ->  | D197: =IF(OFFSET(DE100_1A!$F$177,ROWS($F$177:F194)-1,COLUMNS($F$177:F194)-1)<>"",OFFSET(DE100_1A!$F$177,ROWS($F$177:F194)-1,COLUMNS($F$177:F194)-1),"") ->  | E197: =IF(OFFSET(DE100_1A!$G$177,ROWS($G$177:G194)-1,COLUMNS($G$177:G194)-1)<>"",OFFSET(DE100_1A!$G$177,ROWS($G$177:G194)-1,COLUMNS($G$177:G194)-1),"") ->  | F197: =IF(OFFSET(DE100_1A!$H$177,ROWS($H$177:H194)-1,COLUMNS($H$177:H194)-1)<>"",OFFSET(DE100_1A!$H$177,ROWS($H$177:H194)-1,COLUMNS($H$177:H194)-1),"") -> 
A198: =IF(OFFSET(DE100_1A!$C$177,ROWS($C$177:C195)-1,COLUMNS($C$177:C195)-1)<>"",OFFSET(DE100_1A!$C$177,ROWS($C$177:C195)-1,COLUMNS($C$177:C195)-1),"") ->  | B198: =IF(OFFSET(DE100_1A!$D$177,ROWS($D$177:D195)-1,COLUMNS($D$177:D195)-1)<>"",OFFSET(DE100_1A!$D$177,ROWS($D$177:D195)-1,COLUMNS($D$177:D195)-1),"") ->  | C198: =IF(OFFSET(DE100_1A!$E$177,ROWS($E$177:E195)-1,COLUMNS($E$177:E195)-1)<>"",OFFSET(DE100_1A!$E$177,ROWS($E$177:E195)-1,COLUMNS($E$177:E195)-1),"") ->  | D198: =IF(OFFSET(DE100_1A!$F$177,ROWS($F$177:F195)-1,COLUMNS($F$177:F195)-1)<>"",OFFSET(DE100_1A!$F$177,ROWS($F$177:F195)-1,COLUMNS($F$177:F195)-1),"") ->  | E198: =IF(OFFSET(DE100_1A!$G$177,ROWS($G$177:G195)-1,COLUMNS($G$177:G195)-1)<>"",OFFSET(DE100_1A!$G$177,ROWS($G$177:G195)-1,COLUMNS($G$177:G195)-1),"") ->  | F198: =IF(OFFSET(DE100_1A!$H$177,ROWS($H$177:H195)-1,COLUMNS($H$177:H195)-1)<>"",OFFSET(DE100_1A!$H$177,ROWS($H$177:H195)-1,COLUMNS($H$177:H195)-1),"") -> 
A199: =IF(OFFSET(DE100_1A!$C$177,ROWS($C$177:C196)-1,COLUMNS($C$177:C196)-1)<>"",OFFSET(DE100_1A!$C$177,ROWS($C$177:C196)-1,COLUMNS($C$177:C196)-1),"") ->  | B199: =IF(OFFSET(DE100_1A!$D$177,ROWS($D$177:D196)-1,COLUMNS($D$177:D196)-1)<>"",OFFSET(DE100_1A!$D$177,ROWS($D$177:D196)-1,COLUMNS($D$177:D196)-1),"") ->  | C199: =IF(OFFSET(DE100_1A!$E$177,ROWS($E$177:E196)-1,COLUMNS($E$177:E196)-1)<>"",OFFSET(DE100_1A!$E$177,ROWS($E$177:E196)-1,COLUMNS($E$177:E196)-1),"") ->  | D199: =IF(OFFSET(DE100_1A!$F$177,ROWS($F$177:F196)-1,COLUMNS($F$177:F196)-1)<>"",OFFSET(DE100_1A!$F$177,ROWS($F$177:F196)-1,COLUMNS($F$177:F196)-1),"") ->  | E199: =IF(OFFSET(DE100_1A!$G$177,ROWS($G$177:G196)-1,COLUMNS($G$177:G196)-1)<>"",OFFSET(DE100_1A!$G$177,ROWS($G$177:G196)-1,COLUMNS($G$177:G196)-1),"") ->  | F199: =IF(OFFSET(DE100_1A!$H$177,ROWS($H$177:H196)-1,COLUMNS($H$177:H196)-1)<>"",OFFSET(DE100_1A!$H$177,ROWS($H$177:H196)-1,COLUMNS($H$177:H196)-1),"") -> 
A200: =IF(OFFSET(DE100_1A!$C$177,ROWS($C$177:C197)-1,COLUMNS($C$177:C197)-1)<>"",OFFSET(DE100_1A!$C$177,ROWS($C$177:C197)-1,COLUMNS($C$177:C197)-1),"") ->  | B200: =IF(OFFSET(DE100_1A!$D$177,ROWS($D$177:D197)-1,COLUMNS($D$177:D197)-1)<>"",OFFSET(DE100_1A!$D$177,ROWS($D$177:D197)-1,COLUMNS($D$177:D197)-1),"") ->  | C200: =IF(OFFSET(DE100_1A!$E$177,ROWS($E$177:E197)-1,COLUMNS($E$177:E197)-1)<>"",OFFSET(DE100_1A!$E$177,ROWS($E$177:E197)-1,COLUMNS($E$177:E197)-1),"") ->  | D200: =IF(OFFSET(DE100_1A!$F$177,ROWS($F$177:F197)-1,COLUMNS($F$177:F197)-1)<>"",OFFSET(DE100_1A!$F$177,ROWS($F$177:F197)-1,COLUMNS($F$177:F197)-1),"") ->  | E200: =IF(OFFSET(DE100_1A!$G$177,ROWS($G$177:G197)-1,COLUMNS($G$177:G197)-1)<>"",OFFSET(DE100_1A!$G$177,ROWS($G$177:G197)-1,COLUMNS($G$177:G197)-1),"") ->  | F200: =IF(OFFSET(DE100_1A!$H$177,ROWS($H$177:H197)-1,COLUMNS($H$177:H197)-1)<>"",OFFSET(DE100_1A!$H$177,ROWS($H$177:H197)-1,COLUMNS($H$177:H197)-1),"") -> 
A201: =IF(OFFSET(DE100_1A!$C$177,ROWS($C$177:C198)-1,COLUMNS($C$177:C198)-1)<>"",OFFSET(DE100_1A!$C$177,ROWS($C$177:C198)-1,COLUMNS($C$177:C198)-1),"") ->  | B201: =IF(OFFSET(DE100_1A!$D$177,ROWS($D$177:D198)-1,COLUMNS($D$177:D198)-1)<>"",OFFSET(DE100_1A!$D$177,ROWS($D$177:D198)-1,COLUMNS($D$177:D198)-1),"") ->  | C201: =IF(OFFSET(DE100_1A!$E$177,ROWS($E$177:E198)-1,COLUMNS($E$177:E198)-1)<>"",OFFSET(DE100_1A!$E$177,ROWS($E$177:E198)-1,COLUMNS($E$177:E198)-1),"") ->  | D201: =IF(OFFSET(DE100_1A!$F$177,ROWS($F$177:F198)-1,COLUMNS($F$177:F198)-1)<>"",OFFSET(DE100_1A!$F$177,ROWS($F$177:F198)-1,COLUMNS($F$177:F198)-1),"") ->  | E201: =IF(OFFSET(DE100_1A!$G$177,ROWS($G$177:G198)-1,COLUMNS($G$177:G198)-1)<>"",OFFSET(DE100_1A!$G$177,ROWS($G$177:G198)-1,COLUMNS($G$177:G198)-1),"") ->  | F201: =IF(OFFSET(DE100_1A!$H$177,ROWS($H$177:H198)-1,COLUMNS($H$177:H198)-1)<>"",OFFSET(DE100_1A!$H$177,ROWS($H$177:H198)-1,COLUMNS($H$177:H198)-1),"") -> 
A202: =IF(OFFSET(DE100_1A!$C$177,ROWS($C$177:C199)-1,COLUMNS($C$177:C199)-1)<>"",OFFSET(DE100_1A!$C$177,ROWS($C$177:C199)-1,COLUMNS($C$177:C199)-1),"") ->  | B202: =IF(OFFSET(DE100_1A!$D$177,ROWS($D$177:D199)-1,COLUMNS($D$177:D199)-1)<>"",OFFSET(DE100_1A!$D$177,ROWS($D$177:D199)-1,COLUMNS($D$177:D199)-1),"") ->  | C202: =IF(OFFSET(DE100_1A!$E$177,ROWS($E$177:E199)-1,COLUMNS($E$177:E199)-1)<>"",OFFSET(DE100_1A!$E$177,ROWS($E$177:E199)-1,COLUMNS($E$177:E199)-1),"") ->  | D202: =IF(OFFSET(DE100_1A!$F$177,ROWS($F$177:F199)-1,COLUMNS($F$177:F199)-1)<>"",OFFSET(DE100_1A!$F$177,ROWS($F$177:F199)-1,COLUMNS($F$177:F199)-1),"") ->  | E202: =IF(OFFSET(DE100_1A!$G$177,ROWS($G$177:G199)-1,COLUMNS($G$177:G199)-1)<>"",OFFSET(DE100_1A!$G$177,ROWS($G$177:G199)-1,COLUMNS($G$177:G199)-1),"") ->  | F202: =IF(OFFSET(DE100_1A!$H$177,ROWS($H$177:H199)-1,COLUMNS($H$177:H199)-1)<>"",OFFSET(DE100_1A!$H$177,ROWS($H$177:H199)-1,COLUMNS($H$177:H199)-1),"") -> 
A203: =IF(OFFSET(DE100_1A!$C$177,ROWS($C$177:C200)-1,COLUMNS($C$177:C200)-1)<>"",OFFSET(DE100_1A!$C$177,ROWS($C$177:C200)-1,COLUMNS($C$177:C200)-1),"") ->  | B203: =IF(OFFSET(DE100_1A!$D$177,ROWS($D$177:D200)-1,COLUMNS($D$177:D200)-1)<>"",OFFSET(DE100_1A!$D$177,ROWS($D$177:D200)-1,COLUMNS($D$177:D200)-1),"") ->  | C203: =IF(OFFSET(DE100_1A!$E$177,ROWS($E$177:E200)-1,COLUMNS($E$177:E200)-1)<>"",OFFSET(DE100_1A!$E$177,ROWS($E$177:E200)-1,COLUMNS($E$177:E200)-1),"") ->  | D203: =IF(OFFSET(DE100_1A!$F$177,ROWS($F$177:F200)-1,COLUMNS($F$177:F200)-1)<>"",OFFSET(DE100_1A!$F$177,ROWS($F$177:F200)-1,COLUMNS($F$177:F200)-1),"") ->  | E203: =IF(OFFSET(DE100_1A!$G$177,ROWS($G$177:G200)-1,COLUMNS($G$177:G200)-1)<>"",OFFSET(DE100_1A!$G$177,ROWS($G$177:G200)-1,COLUMNS($G$177:G200)-1),"") ->  | F203: =IF(OFFSET(DE100_1A!$H$177,ROWS($H$177:H200)-1,COLUMNS($H$177:H200)-1)<>"",OFFSET(DE100_1A!$H$177,ROWS($H$177:H200)-1,COLUMNS($H$177:H200)-1),"") -> 
A204: =IF(OFFSET(DE100_1A!$C$177,ROWS($C$177:C201)-1,COLUMNS($C$177:C201)-1)<>"",OFFSET(DE100_1A!$C$177,ROWS($C$177:C201)-1,COLUMNS($C$177:C201)-1),"") ->  | B204: =IF(OFFSET(DE100_1A!$D$177,ROWS($D$177:D201)-1,COLUMNS($D$177:D201)-1)<>"",OFFSET(DE100_1A!$D$177,ROWS($D$177:D201)-1,COLUMNS($D$177:D201)-1),"") ->  | C204: =IF(OFFSET(DE100_1A!$E$177,ROWS($E$177:E201)-1,COLUMNS($E$177:E201)-1)<>"",OFFSET(DE100_1A!$E$177,ROWS($E$177:E201)-1,COLUMNS($E$177:E201)-1),"") ->  | D204: =IF(OFFSET(DE100_1A!$F$177,ROWS($F$177:F201)-1,COLUMNS($F$177:F201)-1)<>"",OFFSET(DE100_1A!$F$177,ROWS($F$177:F201)-1,COLUMNS($F$177:F201)-1),"") ->  | E204: =IF(OFFSET(DE100_1A!$G$177,ROWS($G$177:G201)-1,COLUMNS($G$177:G201)-1)<>"",OFFSET(DE100_1A!$G$177,ROWS($G$177:G201)-1,COLUMNS($G$177:G201)-1),"") ->  | F204: =IF(OFFSET(DE100_1A!$H$177,ROWS($H$177:H201)-1,COLUMNS($H$177:H201)-1)<>"",OFFSET(DE100_1A!$H$177,ROWS($H$177:H201)-1,COLUMNS($H$177:H201)-1),"") -> 
A205: =IF(OFFSET(DE100_1A!$C$177,ROWS($C$177:C202)-1,COLUMNS($C$177:C202)-1)<>"",OFFSET(DE100_1A!$C$177,ROWS($C$177:C202)-1,COLUMNS($C$177:C202)-1),"") ->  | B205: =IF(OFFSET(DE100_1A!$D$177,ROWS($D$177:D202)-1,COLUMNS($D$177:D202)-1)<>"",OFFSET(DE100_1A!$D$177,ROWS($D$177:D202)-1,COLUMNS($D$177:D202)-1),"") ->  | C205: =IF(OFFSET(DE100_1A!$E$177,ROWS($E$177:E202)-1,COLUMNS($E$177:E202)-1)<>"",OFFSET(DE100_1A!$E$177,ROWS($E$177:E202)-1,COLUMNS($E$177:E202)-1),"") ->  | D205: =IF(OFFSET(DE100_1A!$F$177,ROWS($F$177:F202)-1,COLUMNS($F$177:F202)-1)<>"",OFFSET(DE100_1A!$F$177,ROWS($F$177:F202)-1,COLUMNS($F$177:F202)-1),"") ->  | E205: =IF(OFFSET(DE100_1A!$G$177,ROWS($G$177:G202)-1,COLUMNS($G$177:G202)-1)<>"",OFFSET(DE100_1A!$G$177,ROWS($G$177:G202)-1,COLUMNS($G$177:G202)-1),"") ->  | F205: =IF(OFFSET(DE100_1A!$H$177,ROWS($H$177:H202)-1,COLUMNS($H$177:H202)-1)<>"",OFFSET(DE100_1A!$H$177,ROWS($H$177:H202)-1,COLUMNS($H$177:H202)-1),"") -> 
A206: =IF(OFFSET(DE100_1A!$C$177,ROWS($C$177:C203)-1,COLUMNS($C$177:C203)-1)<>"",OFFSET(DE100_1A!$C$177,ROWS($C$177:C203)-1,COLUMNS($C$177:C203)-1),"") ->  | B206: =IF(OFFSET(DE100_1A!$D$177,ROWS($D$177:D203)-1,COLUMNS($D$177:D203)-1)<>"",OFFSET(DE100_1A!$D$177,ROWS($D$177:D203)-1,COLUMNS($D$177:D203)-1),"") ->  | C206: =IF(OFFSET(DE100_1A!$E$177,ROWS($E$177:E203)-1,COLUMNS($E$177:E203)-1)<>"",OFFSET(DE100_1A!$E$177,ROWS($E$177:E203)-1,COLUMNS($E$177:E203)-1),"") ->  | D206: =IF(OFFSET(DE100_1A!$F$177,ROWS($F$177:F203)-1,COLUMNS($F$177:F203)-1)<>"",OFFSET(DE100_1A!$F$177,ROWS($F$177:F203)-1,COLUMNS($F$177:F203)-1),"") ->  | E206: =IF(OFFSET(DE100_1A!$G$177,ROWS($G$177:G203)-1,COLUMNS($G$177:G203)-1)<>"",OFFSET(DE100_1A!$G$177,ROWS($G$177:G203)-1,COLUMNS($G$177:G203)-1),"") ->  | F206: =IF(OFFSET(DE100_1A!$H$177,ROWS($H$177:H203)-1,COLUMNS($H$177:H203)-1)<>"",OFFSET(DE100_1A!$H$177,ROWS($H$177:H203)-1,COLUMNS($H$177:H203)-1),"") -> 
A207: =IF(OFFSET(DE100_1A!$C$177,ROWS($C$177:C204)-1,COLUMNS($C$177:C204)-1)<>"",OFFSET(DE100_1A!$C$177,ROWS($C$177:C204)-1,COLUMNS($C$177:C204)-1),"") ->  | B207: =IF(OFFSET(DE100_1A!$D$177,ROWS($D$177:D204)-1,COLUMNS($D$177:D204)-1)<>"",OFFSET(DE100_1A!$D$177,ROWS($D$177:D204)-1,COLUMNS($D$177:D204)-1),"") ->  | C207: =IF(OFFSET(DE100_1A!$E$177,ROWS($E$177:E204)-1,COLUMNS($E$177:E204)-1)<>"",OFFSET(DE100_1A!$E$177,ROWS($E$177:E204)-1,COLUMNS($E$177:E204)-1),"") ->  | D207: =IF(OFFSET(DE100_1A!$F$177,ROWS($F$177:F204)-1,COLUMNS($F$177:F204)-1)<>"",OFFSET(DE100_1A!$F$177,ROWS($F$177:F204)-1,COLUMNS($F$177:F204)-1),"") ->  | E207: =IF(OFFSET(DE100_1A!$G$177,ROWS($G$177:G204)-1,COLUMNS($G$177:G204)-1)<>"",OFFSET(DE100_1A!$G$177,ROWS($G$177:G204)-1,COLUMNS($G$177:G204)-1),"") ->  | F207: =IF(OFFSET(DE100_1A!$H$177,ROWS($H$177:H204)-1,COLUMNS($H$177:H204)-1)<>"",OFFSET(DE100_1A!$H$177,ROWS($H$177:H204)-1,COLUMNS($H$177:H204)-1),"") -> 
A208: =IF(OFFSET(DE100_1A!$C$177,ROWS($C$177:C205)-1,COLUMNS($C$177:C205)-1)<>"",OFFSET(DE100_1A!$C$177,ROWS($C$177:C205)-1,COLUMNS($C$177:C205)-1),"") ->  | B208: =IF(OFFSET(DE100_1A!$D$177,ROWS($D$177:D205)-1,COLUMNS($D$177:D205)-1)<>"",OFFSET(DE100_1A!$D$177,ROWS($D$177:D205)-1,COLUMNS($D$177:D205)-1),"") ->  | C208: =IF(OFFSET(DE100_1A!$E$177,ROWS($E$177:E205)-1,COLUMNS($E$177:E205)-1)<>"",OFFSET(DE100_1A!$E$177,ROWS($E$177:E205)-1,COLUMNS($E$177:E205)-1),"") ->  | D208: =IF(OFFSET(DE100_1A!$F$177,ROWS($F$177:F205)-1,COLUMNS($F$177:F205)-1)<>"",OFFSET(DE100_1A!$F$177,ROWS($F$177:F205)-1,COLUMNS($F$177:F205)-1),"") ->  | E208: =IF(OFFSET(DE100_1A!$G$177,ROWS($G$177:G205)-1,COLUMNS($G$177:G205)-1)<>"",OFFSET(DE100_1A!$G$177,ROWS($G$177:G205)-1,COLUMNS($G$177:G205)-1),"") ->  | F208: =IF(OFFSET(DE100_1A!$H$177,ROWS($H$177:H205)-1,COLUMNS($H$177:H205)-1)<>"",OFFSET(DE100_1A!$H$177,ROWS($H$177:H205)-1,COLUMNS($H$177:H205)-1),"") -> 
A209: =IF(OFFSET(DE100_1A!$C$177,ROWS($C$177:C206)-1,COLUMNS($C$177:C206)-1)<>"",OFFSET(DE100_1A!$C$177,ROWS($C$177:C206)-1,COLUMNS($C$177:C206)-1),"") ->  | B209: =IF(OFFSET(DE100_1A!$D$177,ROWS($D$177:D206)-1,COLUMNS($D$177:D206)-1)<>"",OFFSET(DE100_1A!$D$177,ROWS($D$177:D206)-1,COLUMNS($D$177:D206)-1),"") ->  | C209: =IF(OFFSET(DE100_1A!$E$177,ROWS($E$177:E206)-1,COLUMNS($E$177:E206)-1)<>"",OFFSET(DE100_1A!$E$177,ROWS($E$177:E206)-1,COLUMNS($E$177:E206)-1),"") ->  | D209: =IF(OFFSET(DE100_1A!$F$177,ROWS($F$177:F206)-1,COLUMNS($F$177:F206)-1)<>"",OFFSET(DE100_1A!$F$177,ROWS($F$177:F206)-1,COLUMNS($F$177:F206)-1),"") ->  | E209: =IF(OFFSET(DE100_1A!$G$177,ROWS($G$177:G206)-1,COLUMNS($G$177:G206)-1)<>"",OFFSET(DE100_1A!$G$177,ROWS($G$177:G206)-1,COLUMNS($G$177:G206)-1),"") ->  | F209: =IF(OFFSET(DE100_1A!$H$177,ROWS($H$177:H206)-1,COLUMNS($H$177:H206)-1)<>"",OFFSET(DE100_1A!$H$177,ROWS($H$177:H206)-1,COLUMNS($H$177:H206)-1),"") -> 
A210: =IF(OFFSET(DE100_1A!$C$177,ROWS($C$177:C207)-1,COLUMNS($C$177:C207)-1)<>"",OFFSET(DE100_1A!$C$177,ROWS($C$177:C207)-1,COLUMNS($C$177:C207)-1),"") ->  | B210: =IF(OFFSET(DE100_1A!$D$177,ROWS($D$177:D207)-1,COLUMNS($D$177:D207)-1)<>"",OFFSET(DE100_1A!$D$177,ROWS($D$177:D207)-1,COLUMNS($D$177:D207)-1),"") ->  | C210: =IF(OFFSET(DE100_1A!$E$177,ROWS($E$177:E207)-1,COLUMNS($E$177:E207)-1)<>"",OFFSET(DE100_1A!$E$177,ROWS($E$177:E207)-1,COLUMNS($E$177:E207)-1),"") ->  | D210: =IF(OFFSET(DE100_1A!$F$177,ROWS($F$177:F207)-1,COLUMNS($F$177:F207)-1)<>"",OFFSET(DE100_1A!$F$177,ROWS($F$177:F207)-1,COLUMNS($F$177:F207)-1),"") ->  | E210: =IF(OFFSET(DE100_1A!$G$177,ROWS($G$177:G207)-1,COLUMNS($G$177:G207)-1)<>"",OFFSET(DE100_1A!$G$177,ROWS($G$177:G207)-1,COLUMNS($G$177:G207)-1),"") ->  | F210: =IF(OFFSET(DE100_1A!$H$177,ROWS($H$177:H207)-1,COLUMNS($H$177:H207)-1)<>"",OFFSET(DE100_1A!$H$177,ROWS($H$177:H207)-1,COLUMNS($H$177:H207)-1),"") -> 
A211: =IF(OFFSET(DE100_1A!$C$177,ROWS($C$177:C208)-1,COLUMNS($C$177:C208)-1)<>"",OFFSET(DE100_1A!$C$177,ROWS($C$177:C208)-1,COLUMNS($C$177:C208)-1),"") ->  | B211: =IF(OFFSET(DE100_1A!$D$177,ROWS($D$177:D208)-1,COLUMNS($D$177:D208)-1)<>"",OFFSET(DE100_1A!$D$177,ROWS($D$177:D208)-1,COLUMNS($D$177:D208)-1),"") ->  | C211: =IF(OFFSET(DE100_1A!$E$177,ROWS($E$177:E208)-1,COLUMNS($E$177:E208)-1)<>"",OFFSET(DE100_1A!$E$177,ROWS($E$177:E208)-1,COLUMNS($E$177:E208)-1),"") ->  | D211: =IF(OFFSET(DE100_1A!$F$177,ROWS($F$177:F208)-1,COLUMNS($F$177:F208)-1)<>"",OFFSET(DE100_1A!$F$177,ROWS($F$177:F208)-1,COLUMNS($F$177:F208)-1),"") ->  | E211: =IF(OFFSET(DE100_1A!$G$177,ROWS($G$177:G208)-1,COLUMNS($G$177:G208)-1)<>"",OFFSET(DE100_1A!$G$177,ROWS($G$177:G208)-1,COLUMNS($G$177:G208)-1),"") ->  | F211: =IF(OFFSET(DE100_1A!$H$177,ROWS($H$177:H208)-1,COLUMNS($H$177:H208)-1)<>"",OFFSET(DE100_1A!$H$177,ROWS($H$177:H208)-1,COLUMNS($H$177:H208)-1),"") -> 
A212: =IF(OFFSET(DE100_1A!$C$177,ROWS($C$177:C209)-1,COLUMNS($C$177:C209)-1)<>"",OFFSET(DE100_1A!$C$177,ROWS($C$177:C209)-1,COLUMNS($C$177:C209)-1),"") ->  | B212: =IF(OFFSET(DE100_1A!$D$177,ROWS($D$177:D209)-1,COLUMNS($D$177:D209)-1)<>"",OFFSET(DE100_1A!$D$177,ROWS($D$177:D209)-1,COLUMNS($D$177:D209)-1),"") ->  | C212: =IF(OFFSET(DE100_1A!$E$177,ROWS($E$177:E209)-1,COLUMNS($E$177:E209)-1)<>"",OFFSET(DE100_1A!$E$177,ROWS($E$177:E209)-1,COLUMNS($E$177:E209)-1),"") ->  | D212: =IF(OFFSET(DE100_1A!$F$177,ROWS($F$177:F209)-1,COLUMNS($F$177:F209)-1)<>"",OFFSET(DE100_1A!$F$177,ROWS($F$177:F209)-1,COLUMNS($F$177:F209)-1),"") ->  | E212: =IF(OFFSET(DE100_1A!$G$177,ROWS($G$177:G209)-1,COLUMNS($G$177:G209)-1)<>"",OFFSET(DE100_1A!$G$177,ROWS($G$177:G209)-1,COLUMNS($G$177:G209)-1),"") ->  | F212: =IF(OFFSET(DE100_1A!$H$177,ROWS($H$177:H209)-1,COLUMNS($H$177:H209)-1)<>"",OFFSET(DE100_1A!$H$177,ROWS($H$177:H209)-1,COLUMNS($H$177:H209)-1),"") -> 
... 49 more rows

Sheet 100_1D
A1: 100-1D
A2: 2005-10-18
A3: PROJECT DESCRIPTION
